Workbook

Sheet Stato civile totali
A1: Popolazione per sesso-età e stato civile dal 2002 al 2015
A2: residenti al 1° gennaio
C3: Celibi | D3: Coniu | E3: Divorziati | F3: Vedovi | G3: Totale | H3: Nubili | I3: Coniu | J3: Divorziate | K3: Vedove | L3: Totale | M3: Maschi
D4: gati | G4: Maschi | I4: gate | L4: Femmine | M4: +
A5: Anno | B5: fasce di età | M5: Femmine
A6: 2002 | B6: fasce età | C6: ='2002'!B110 -> 7555 | D6: ='2002'!C110 -> 9441 | E6: ='2002'!D110 -> 175 | F6: ='2002'!E110 -> 331 | G6: ='2002'!F110 -> 17502 | H6: ='2002'!G110 -> 6820 | I6: ='2002'!H110 -> 9680 | J6: ='2002'!I110 -> 293 | K6: ='2002'!J110 -> 1777 | L6: ='2002'!K110 -> 18570 | M6: ='2002'!L110 -> 36072
A7: 2003 | B7: fasce età | C7: ='2003'!B111 -> 7570 | D7: ='2003'!C111 -> 9442 | E7: ='2003'!D111 -> 165 | F7: ='2003'!E111 -> 343 | G7: ='2003'!F111 -> 17520 | H7: ='2003'!G111 -> 6819 | I7: ='2003'!H111 -> 9692 | J7: ='2003'!I111 -> 284 | K7: ='2003'!J111 -> 1818 | L7: ='2003'!K111 -> 18613 | M7: ='2003'!L111 -> 36133
A8: 2004 | B8: fasce età | C8: ='2004'!B110 -> 7813 | D8: ='2004'!C110 -> 9551 | E8: ='2004'!D110 -> 186 | F8: ='2004'!E110 -> 366 | G8: ='2004'!F110 -> 17916 | H8: ='2004'!G110 -> 7051 | I8: ='2004'!H110 -> 9877 | J8: ='2004'!I110 -> 308 | K8: ='2004'!J110 -> 1879 | L8: ='2004'!K110 -> 19115 | M8: ='2004'!L110 -> 37031
A9: 2005 | B9: fasce età | C9: ='2005'!B110 -> 7859 | D9: ='2005'!C110 -> 9772 | E9: ='2005'!D110 -> 158 | F9: ='2005'!E110 -> 376 | G9: ='2005'!F110 -> 18165 | H9: ='2005'!G110 -> 7096 | I9: ='2005'!H110 -> 10010 | J9: ='2005'!I110 -> 327 | K9: ='2005'!J110 -> 1931 | L9: ='2005'!K110 -> 19364 | M9: ='2005'!L110 -> 37529
A10: 2006 | B10: fasce età | C10: ='2006'!B110 -> 7999 | D10: ='2006'!C110 -> 9808 | E10: ='2006'!D110 -> 179 | F10: ='2006'!E110 -> 377 | G10: ='2006'!F110 -> 18363 | H10: ='2006'!G110 -> 7221 | I10: ='2006'!H110 -> 10067 | J10: ='2006'!I110 -> 353 | K10: ='2006'!J110 -> 1980 | L10: ='2006'!K110 -> 19621 | M10: ='2006'!L110 -> 37984
A11: 2007 | B11: fasce età | C11: ='2007'!B110 -> 8028 | D11: ='2007'!C110 -> 9766 | E11: ='2007'!D110 -> 193 | F11: ='2007'!E110 -> 386 | G11: ='2007'!F110 -> 18373 | H11: ='2007'!G110 -> 7216 | I11: ='2007'!H110 -> 10019 | J11: ='2007'!I110 -> 366 | K11: ='2007'!J110 -> 2009 | L11: ='2007'!K110 -> 19610 | M11: ='2007'!L110 -> 37983
A12: 2008 | B12: fasce età | C12: ='2008'!B110 -> 7983 | D12: ='2008'!C110 -> 9647 | E12: ='2008'!D110 -> 209 | F12: ='2008'!E110 -> 400 | G12: ='2008'!F110 -> 18239 | H12: ='2008'!G110 -> 7201 | I12: ='2008'!H110 -> 9965 | J12: ='2008'!I110 -> 411 | K12: ='2008'!J110 -> 2069 | L12: ='2008'!K110 -> 19646 | M12: ='2008'!L110 -> 37885
A13: 2009 | B13: fasce età | C13: ='2009'!B110 -> 8063 | D13: ='2009'!C110 -> 9611 | E13: ='2009'!D110 -> 232 | F13: ='2009'!E110 -> 405 | G13: ='2009'!F110 -> 18311 | H13: ='2009'!G110 -> 7317 | I13: ='2009'!H110 -> 9920 | J13: ='2009'!I110 -> 438 | K13: ='2009'!J110 -> 2072 | L13: ='2009'!K110 -> 19747 | M13: ='2009'!L110 -> 38058
A14: 2010 | B14: fasce età | C14: ='2010'!B110 -> 8112 | D14: ='2010'!C110 -> 9593 | E14: ='2010'!D110 -> 247 | F14: ='2010'!E110 -> 410 | G14: ='2010'!F110 -> 18362 | H14: ='2010'!G110 -> 7378 | I14: ='2010'!H110 -> 9937 | J14: ='2010'!I110 -> 496 | K14: ='2010'!J110 -> 2078 | L14: ='2010'!K110 -> 19889 | M14: ='2010'!L110 -> 38251
A15: 2011 | B15: fasce età | C15: ='2011'!B110 -> 8201 | D15: ='2011'!C110 -> 9602 | E15: ='2011'!D110 -> 251 | F15: ='2011'!E110 -> 405 | G15: ='2011'!F110 -> 18459 | H15: ='2011'!G110 -> 7542 | I15: ='2011'!H110 -> 9917 | J15: ='2011'!I110 -> 530 | K15: ='2011'!J110 -> 2081 | L15: ='2011'!K110 -> 20070 | M15: ='2011'!L110 -> 38529
A16: 2012 | B16: fasce età | C16: ='2012'!B110 -> 7911 | D16: ='2012'!C110 -> 9185 | E16: ='2012'!D110 -> 253 | F16: ='2012'!E110 -> 422 | G16: ='2012'!F110 -> 17771 | H16: ='2012'!G110 -> 7296 | I16: ='2012'!H110 -> 9560 | J16: ='2012'!I110 -> 514 | K16: ='2012'!J110 -> 2039 | L16: ='2012'!K110 -> 19409 | M16: ='2012'!L110 -> 37180
A17: 2013 | B17: fasce età | C17: ='2013'!B110 -> 8003 | D17: ='2013'!C110 -> 9111 | E17: ='2013'!D110 -> 264 | F17: ='2013'!E110 -> 426 | G17: ='2013'!F110 -> 17804 | H17: ='2013'!G110 -> 7427 | I17: ='2013'!H110 -> 9527 | J17: ='2013'!I110 -> 535 | K17: ='2013'!J110 -> 2039 | L17: ='2013'!K110 -> 19528 | M17: ='2013'!L110 -> 37332
A18: 2014 | B18: fasce età | C18: ='2014 fasce'!B27 -> 8225 | D18: ='2014 fasce'!C27 -> 9256 | E18: ='2014 fasce'!D27 -> 282 | F18: ='2014 fasce'!E27 -> 440 | G18: ='2014 fasce'!F27 -> 18203 | H18: ='2014 fasce'!G27 -> 7626 | I18: ='2014 fasce'!H27 -> 9684 | J18: ='2014 fasce'!I27 -> 549 | K18: ='2014 fasce'!J27 -> 2083 | L18: ='2014 fasce'!K27 -> 19942 | M18: ='2014 fasce'!L27 -> 38145
A19: 2015 | B19: fasce età | C19: ='2015 fasce'!B27 -> 8317 | D19: ='2015 fasce'!C27 -> 9256 | E19: ='2015 fasce'!D27 -> 294 | F19: ='2015 fasce'!E27 -> 433 | G19: ='2015 fasce'!F27 -> 18300 | H19: ='2015 fasce'!G27 -> 7759 | I19: ='2015 fasce'!H27 -> 9670 | J19: ='2015 fasce'!I27 -> 580 | K19: ='2015 fasce'!J27 -> 2108 | L19: ='2015 fasce'!K27 -> 20117 | M19: ='2015 fasce'!L27 -> 38417
A20: 2016 | B20: fasce età | C20: 8361 | D20: 9128 | E20: 317 | F20: 451 | G20: 18257 | H20: 7792 | I20: 9614 | J20: 620 | K20: 2129 | L20: 20155 | M20: 38412
A23: Clicca qui per il dettaglio del rispettivo anno

Sheet 2002
A1: torna all'indice
A3: Popolazione residente al 1 Gennaio 2002 per età, sesso e stato civile
A4: Comune: Ciampino
A6: Eta' | B6: Celibi | C6: Coniu | D6: Divorziati | E6: Vedovi | F6: Totale | G6: Nubili | H6: Coniu | I6: Divorziate | J6: Vedove | K6: Totale | L6: Maschi + femmine
C7: gati | F7: Maschi | H7: gate | K7: Femmine | L7: +
L8: Femmine
A9: 0 | B9: 180 | C9: 0 | D9: 0 | E9: 0 | F9: 180 | G9: 163 | H9: 0 | I9: 0 | J9: 0 | K9: 163 | L9: 343
A10: 1 | B10: 167 | C10: 0 | D10: 0 | E10: 0 | F10: 167 | G10: 189 | H10: 0 | I10: 0 | J10: 0 | K10: 189 | L10: 356
A11: 2 | B11: 203 | C11: 0 | D11: 0 | E11: 0 | F11: 203 | G11: 182 | H11: 0 | I11: 0 | J11: 0 | K11: 182 | L11: 385
A12: 3 | B12: 170 | C12: 0 | D12: 0 | E12: 0 | F12: 170 | G12: 169 | H12: 0 | I12: 0 | J12: 0 | K12: 169 | L12: 339
A13: 4 | B13: 176 | C13: 0 | D13: 0 | E13: 0 | F13: 176 | G13: 173 | H13: 0 | I13: 0 | J13: 0 | K13: 173 | L13: 349
A14: 5 | B14: 176 | C14: 0 | D14: 0 | E14: 0 | F14: 176 | G14: 196 | H14: 0 | I14: 0 | J14: 0 | K14: 196 | L14: 372
A15: 6 | B15: 170 | C15: 0 | D15: 0 | E15: 0 | F15: 170 | G15: 158 | H15: 0 | I15: 0 | J15: 0 | K15: 158 | L15: 328
A16: 7 | B16: 157 | C16: 0 | D16: 0 | E16: 0 | F16: 157 | G16: 194 | H16: 0 | I16: 0 | J16: 0 | K16: 194 | L16: 351
A17: 8 | B17: 208 | C17: 0 | D17: 0 | E17: 0 | F17: 208 | G17: 189 | H17: 0 | I17: 0 | J17: 0 | K17: 189 | L17: 397
A18: 9 | B18: 187 | C18: 0 | D18: 0 | E18: 0 | F18: 187 | G18: 180 | H18: 0 | I18: 0 | J18: 0 | K18: 180 | L18: 367
A19: 10 | B19: 197 | C19: 0 | D19: 0 | E19: 0 | F19: 197 | G19: 157 | H19: 0 | I19: 0 | J19: 0 | K19: 157 | L19: 354
A20: 11 | B20: 186 | C20: 0 | D20: 0 | E20: 0 | F20: 186 | G20: 198 | H20: 0 | I20: 0 | J20: 0 | K20: 198 | L20: 384
A21: 12 | B21: 184 | C21: 0 | D21: 0 | E21: 0 | F21: 184 | G21: 172 | H21: 0 | I21: 0 | J21: 0 | K21: 172 | L21: 356
A22: 13 | B22: 208 | C22: 0 | D22: 0 | E22: 0 | F22: 208 | G22: 170 | H22: 0 | I22: 0 | J22: 0 | K22: 170 | L22: 378
A23: 14 | B23: 175 | C23: 0 | D23: 0 | E23: 0 | F23: 175 | G23: 166 | H23: 0 | I23: 0 | J23: 0 | K23: 166 | L23: 341
A24: 15 | B24: 168 | C24: 0 | D24: 0 | E24: 0 | F24: 168 | G24: 168 | H24: 0 | I24: 0 | J24: 0 | K24: 168 | L24: 336
A25: 16 | B25: 208 | C25: 0 | D25: 0 | E25: 0 | F25: 208 | G25: 191 | H25: 0 | I25: 0 | J25: 0 | K25: 191 | L25: 399
A26: 17 | B26: 176 | C26: 0 | D26: 0 | E26: 0 | F26: 176 | G26: 146 | H26: 0 | I26: 0 | J26: 0 | K26: 146 | L26: 322
A27: 18 | B27: 209 | C27: 0 | D27: 0 | E27: 0 | F27: 209 | G27: 176 | H27: 0 | I27: 0 | J27: 0 | K27: 176 | L27: 385
A28: 19 | B28: 216 | C28: 0 | D28: 0 | E28: 0 | F28: 216 | G28: 202 | H28: 1 | I28: 0 | J28: 0 | K28: 203 | L28: 419
A29: 20 | B29: 205 | C29: 0 | D29: 0 | E29: 0 | F29: 205 | G29: 171 | H29: 0 | I29: 0 | J29: 0 | K29: 171 | L29: 376
A30: 21 | B30: 214 | C30: 1 | D30: 0 | E30: 0 | F30: 215 | G30: 196 | H30: 9 | I30: 0 | J30: 0 | K30: 205 | L30: 420
A31: 22 | B31: 229 | C31: 2 | D31: 0 | E31: 0 | F31: 231 | G31: 200 | H31: 4 | I31: 0 | J31: 0 | K31: 204 | L31: 435
A32: 23 | B32: 209 | C32: 4 | D32: 0 | E32: 0 | F32: 213 | G32: 210 | H32: 17 | I32: 0 | J32: 0 | K32: 227 | L32: 440
A33: 24 | B33: 233 | C33: 4 | D33: 0 | E33: 0 | F33: 237 | G33: 200 | H33: 29 | I33: 0 | J33: 0 | K33: 229 | L33: 466
A34: 25 | B34: 199 | C34: 12 | D34: 0 | E34: 0 | F34: 211 | G34: 208 | H34: 48 | I34: 0 | J34: 0 | K34: 256 | L34: 467
A35: 26 | B35: 258 | C35: 19 | D35: 0 | E35: 0 | F35: 277 | G35: 218 | H35: 52 | I35: 0 | J35: 0 | K35: 270 | L35: 547
A36: 27 | B36: 234 | C36: 41 | D36: 0 | E36: 0 | F36: 275 | G36: 189 | H36: 90 | I36: 0 | J36: 0 | K36: 279 | L36: 554
A37: 28 | B37: 229 | C37: 54 | D37: 0 | E37: 0 | F37: 283 | G37: 188 | H37: 129 | I37: 1 | J37: 0 | K37: 318 | L37: 601
A38: 29 | B38: 220 | C38: 73 | D38: 2 | E38: 0 | F38: 295 | G38: 158 | H38: 157 | I38: 2 | J38: 1 | K38: 318 | L38: 613
A39: 30 | B39: 187 | C39: 106 | D39: 2 | E39: 0 | F39: 295 | G39: 135 | H39: 199 | I39: 4 | J39: 0 | K39: 338 | L39: 633
A40: 31 | B40: 181 | C40: 154 | D40: 0 | E40: 0 | F40: 335 | G40: 114 | H40: 198 | I40: 3 | J40: 1 | K40: 316 | L40: 651
A41: 32 | B41: 161 | C41: 165 | D41: 1 | E41: 1 | F41: 328 | G41: 101 | H41: 211 | I41: 2 | J41: 2 | K41: 316 | L41: 644
A42: 33 | B42: 118 | C42: 176 | D42: 0 | E42: 0 | F42: 294 | G42: 83 | H42: 243 | I42: 3 | J42: 1 | K42: 330 | L42: 624
A43: 34 | B43: 107 | C43: 195 | D43: 4 | E43: 0 | F43: 306 | G43: 72 | H43: 243 | I43: 9 | J43: 0 | K43: 324 | L43: 630
A44: 35 | B44: 91 | C44: 231 | D44: 2 | E44: 1 | F44: 325 | G44: 88 | H44: 284 | I44: 4 | J44: 4 | K44: 380 | L44: 705
A45: 36 | B45: 76 | C45: 218 | D45: 7 | E45: 1 | F45: 302 | G45: 60 | H45: 274 | I45: 9 | J45: 3 | K45: 346 | L45: 648
A46: 37 | B46: 81 | C46: 270 | D46: 4 | E46: 1 | F46: 356 | G46: 49 | H46: 323 | I46: 12 | J46: 2 | K46: 386 | L46: 742
A47: 38 | B47: 64 | C47: 258 | D47: 2 | E47: 0 | F47: 324 | G47: 33 | H47: 255 | I47: 9 | J47: 6 | K47: 303 | L47: 627
A48: 39 | B48: 52 | C48: 259 | D48: 7 | E48: 2 | F48: 320 | G48: 46 | H48: 268 | I48: 13 | J48: 5 | K48: 332 | L48: 652
A49: 40 | B49: 49 | C49: 237 | D49: 5 | E49: 0 | F49: 291 | G49: 35 | H49: 252 | I49: 13 | J49: 6 | K49: 306 | L49: 597
A50: 41 | B50: 39 | C50: 247 | D50: 5 | E50: 0 | F50: 291 | G50: 26 | H50: 252 | I50: 11 | J50: 4 | K50: 293 | L50: 584
A51: 42 | B51: 22 | C51: 248 | D51: 11 | E51: 2 | F51: 283 | G51: 33 | H51: 249 | I51: 9 | J51: 3 | K51: 294 | L51: 577
A52: 43 | B52: 29 | C52: 240 | D52: 5 | E52: 0 | F52: 274 | G52: 19 | H52: 256 | I52: 12 | J52: 5 | K52: 292 | L52: 566
A53: 44 | B53: 27 | C53: 225 | D53: 4 | E53: 1 | F53: 257 | G53: 22 | H53: 211 | I53: 10 | J53: 3 | K53: 246 | L53: 503
A54: 45 | B54: 22 | C54: 185 | D54: 5 | E54: 1 | F54: 213 | G54: 15 | H54: 245 | I54: 10 | J54: 10 | K54: 280 | L54: 493
A55: 46 | B55: 27 | C55: 232 | D55: 8 | E55: 1 | F55: 268 | G55: 18 | H55: 217 | I55: 9 | J55: 5 | K55: 249 | L55: 517
A56: 47 | B56: 26 | C56: 235 | D56: 4 | E56: 1 | F56: 266 | G56: 13 | H56: 229 | I56: 11 | J56: 8 | K56: 261 | L56: 527
A57: 48 | B57: 21 | C57: 214 | D57: 6 | E57: 2 | F57: 243 | G57: 13 | H57: 208 | I57: 7 | J57: 6 | K57: 234 | L57: 477
A58: 49 | B58: 11 | C58: 195 | D58: 9 | E58: 1 | F58: 216 | G58: 15 | H58: 225 | I58: 12 | J58: 11 | K58: 263 | L58: 479
A59: 50 | B59: 17 | C59: 207 | D59: 6 | E59: 0 | F59: 230 | G59: 17 | H59: 214 | I59: 7 | J59: 8 | K59: 246 | L59: 476
A60: 51 | B60: 18 | C60: 220 | D60: 6 | E60: 1 | F60: 245 | G60: 16 | H60: 192 | I60: 5 | J60: 15 | K60: 228 | L60: 473
A61: 52 | B61: 16 | C61: 203 | D61: 4 | E61: 2 | F61: 225 | G61: 14 | H61: 234 | I61: 4 | J61: 15 | K61: 267 | L61: 492
A62: 53 | B62: 14 | C62: 240 | D62: 6 | E62: 2 | F62: 262 | G62: 18 | H62: 217 | I62: 5 | J62: 13 | K62: 253 | L62: 515
A63: 54 | B63: 12 | C63: 227 | D63: 7 | E63: 7 | F63: 253 | G63: 8 | H63: 217 | I63: 9 | J63: 11 | K63: 245 | L63: 498
A64: 55 | B64: 11 | C64: 237 | D64: 4 | E64: 3 | F64: 255 | G64: 8 | H64: 237 | I64: 12 | J64: 20 | K64: 277 | L64: 532
A65: 56 | B65: 10 | C65: 175 | D65: 1 | E65: 5 | F65: 191 | G65: 12 | H65: 174 | I65: 2 | J65: 14 | K65: 202 | L65: 393
A66: 57 | B66: 11 | C66: 181 | D66: 5 | E66: 6 | F66: 203 | G66: 19 | H66: 153 | I66: 3 | J66: 14 | K66: 189 | L66: 392
A67: 58 | B67: 3 | C67: 176 | D67: 4 | E67: 4 | F67: 187 | G67: 7 | H67: 184 | I67: 6 | J67: 22 | K67: 219 | L67: 406
A68: 59 | B68: 7 | C68: 172 | D68: 2 | E68: 6 | F68: 187 | G68: 10 | H68: 165 | I68: 7 | J68: 33 | K68: 215 | L68: 402
A69: 60 | B69: 9 | C69: 178 | D69: 4 | E69: 4 | F69: 195 | G69: 10 | H69: 164 | I69: 3 | J69: 35 | K69: 212 | L69: 407
A70: 61 | B70: 5 | C70: 192 | D70: 4 | E70: 3 | F70: 204 | G70: 12 | H70: 205 | I70: 3 | J70: 34 | K70: 254 | L70: 458
A71: 62 | B71: 6 | C71: 175 | D71: 2 | E71: 3 | F71: 186 | G71: 18 | H71: 194 | I71: 5 | J71: 40 | K71: 257 | L71: 443
A72: 63 | B72: 5 | C72: 197 | D72: 1 | E72: 10 | F72: 213 | G72: 10 | H72: 166 | I72: 4 | J72: 42 | K72: 222 | L72: 435
A73: 64 | B73: 6 | C73: 205 | D73: 3 | E73: 7 | F73: 221 | G73: 10 | H73: 152 | I73: 2 | J73: 43 | K73: 207 | L73: 428
A74: 65 | B74: 5 | C74: 175 | D74: 0 | E74: 6 | F74: 186 | G74: 13 | H74: 133 | I74: 1 | J74: 56 | K74: 203 | L74: 389
A75: 66 | B75: 5 | C75: 157 | D75: 1 | E75: 10 | F75: 173 | G75: 10 | H75: 135 | I75: 7 | J75: 45 | K75: 197 | L75: 370
A76: 67 | B76: 4 | C76: 159 | D76: 2 | E76: 8 | F76: 173 | G76: 10 | H76: 137 | I76: 1 | J76: 51 | K76: 199 | L76: 372
A77: 68 | B77: 4 | C77: 132 | D77: 3 | E77: 12 | F77: 151 | G77: 10 | H77: 96 | I77: 0 | J77: 47 | K77: 153 | L77: 304
A78: 69 | B78: 5 | C78: 118 | D78: 2 | E78: 8 | F78: 133 | G78: 12 | H78: 104 | I78: 0 | J78: 48 | K78: 164 | L78: 297
A79: 70 | B79: 6 | C79: 126 | D79: 0 | E79: 10 | F79: 142 | G79: 5 | H79: 132 | I79: 0 | J79: 64 | K79: 201 | L79: 343
A80: 71 | B80: 6 | C80: 122 | D80: 0 | E80: 12 | F80: 140 | G80: 8 | H80: 104 | I80: 0 | J80: 72 | K80: 184 | L80: 324
A81: 72 | B81: 4 | C81: 112 | D81: 0 | E81: 13 | F81: 129 | G81: 6 | H81: 74 | I81: 2 | J81: 46 | K81: 128 | L81: 257
A82: 73 | B82: 4 | C82: 111 | D82: 1 | E82: 13 | F82: 129 | G82: 8 | H82: 76 | I82: 1 | J82: 61 | K82: 146 | L82: 275
A83: 74 | B83: 2 | C83: 90 | D83: 0 | E83: 15 | F83: 107 | G83: 4 | H83: 67 | I83: 3 | J83: 65 | K83: 139 | L83: 246
A84: 75 | B84: 3 | C84: 101 | D84: 0 | E84: 13 | F84: 117 | G84: 5 | H84: 68 | I84: 2 | J84: 65 | K84: 140 | L84: 257
A85: 76 | B85: 2 | C85: 78 | D85: 0 | E85: 9 | F85: 89 | G85: 9 | H85: 69 | I85: 2 | J85: 65 | K85: 145 | L85: 234
A86: 77 | B86: 4 | C86: 76 | D86: 2 | E86: 10 | F86: 92 | G86: 4 | H86: 40 | I86: 0 | J86: 70 | K86: 114 | L86: 206
A87: 78 | B87: 2 | C87: 71 | D87: 1 | E87: 9 | F87: 83 | G87: 7 | H87: 32 | I87: 1 | J87: 67 | K87: 107 | L87: 190
A88: 79 | B88: 1 | C88: 67 | D88: 0 | E88: 14 | F88: 82 | G88: 7 | H88: 48 | I88: 1 | J88: 66 | K88: 122 | L88: 204
A89: 80 | B89: 0 | C89: 51 | D89: 11 | E89: 6 | F89: 68 | G89: 5 | H89: 29 | I89: 0 | J89: 71 | K89: 105 | L89: 173
A90: 81 | B90: 2 | C90: 46 | D90: 0 | E90: 8 | F90: 56 | G90: 6 | H90: 26 | I90: 0 | J90: 60 | K90: 92 | L90: 148
A91: 82 | B91: 0 | C91: 33 | D91: 0 | E91: 7 | F91: 40 | G91: 3 | H91: 15 | I91: 0 | J91: 46 | K91: 64 | L91: 104
A92: 83 | B92: 0 | C92: 31 | D92: 0 | E92: 4 | F92: 35 | G92: 6 | H92: 10 | I92: 0 | J92: 30 | K92: 46 | L92: 81
A93: 84 | B93: 1 | C93: 14 | D93: 0 | E93: 8 | F93: 23 | G93: 2 | H93: 9 | I93: 0 | J93: 28 | K93: 39 | L93: 62
A94: 85 | B94: 1 | C94: 18 | D94: 0 | E94: 7 | F94: 26 | G94: 4 | H94: 4 | I94: 0 | J94: 36 | K94: 44 | L94: 70
A95: 86 | B95: 0 | C95: 21 | D95: 0 | E95: 6 | F95: 27 | G95: 2 | H95: 8 | I95: 0 | J95: 49 | K95: 59 | L95: 86
A96: 87 | B96: 0 | C96: 12 | D96: 0 | E96: 10 | F96: 22 | G96: 4 | H96: 4 | I96: 0 | J96: 35 | K96: 43 | L96: 65
A97: 88 | B97: 1 | C97: 11 | D97: 0 | E97: 0 | F97: 12 | G97: 1 | H97: 6 | I97: 0 | J97: 24 | K97: 31 | L97: 43
A98: 89 | B98: 1 | C98: 8 | D98: 0 | E98: 8 | F98: 17 | G98: 1 | H98: 4 | I98: 1 | J98: 25 | K98: 31 | L98: 48
A99: 90 | B99: 0 | C99: 6 | D99: 0 | E99: 8 | F99: 14 | G99: 1 | H99: 2 | I99: 0 | J99: 17 | K99: 20 | L99: 34
A100: 91 | B100: 0 | C100: 4 | D100: 0 | E100: 7 | F100: 11 | G100: 3 | H100: 0 | I100: 0 | J100: 18 | K100: 21 | L100: 32
A101: 92 | B101: 0 | C101: 2 | D101: 0 | E101: 4 | F101: 6 | G101: 5 | H101: 0 | I101: 0 | J101: 5 | K101: 10 | L101: 16
A102: 93 | B102: 0 | C102: 3 | D102: 0 | E102: 2 | F102: 5 | G102: 1 | H102: 1 | I102: 5 | J102: 0 | K102: 7 | L102: 12
A103: 94 | B103: 0 | C103: 0 | D103: 0 | E103: 5 | F103: 5 | G103: 0 | H103: 1 | I103: 0 | J103: 0 | K103: 1 | L103: 6
A104: 95 | B104: 0 | C104: 1 | D104: 0 | E104: 0 | F104: 1 | G104: 1 | H104: 0 | I104: 5 | J104: 0 | K104: 6 | L104: 7
A105: 96 | B105: 0 | C105: 0 | D105: 0 | E105: 0 | F105: 0 | G105: 0 | H105: 0 | I105: 4 | J105: 0 | K105: 4 | L105: 4
A106: 97 | B106: 0 | C106: 0 | D106: 0 | E106: 0 | F106: 0 | G106: 1 | H106: 0 | I106: 3 | J106: 0 | K106: 4 | L106: 4
A107: 98 | B107: 0 | C107: 0 | D107: 0 | E107: 0 | F107: 0 | G107: 0 | H107: 0 | I107: 0 | J107: 0 | K107: 0 | L107: 0
A108: 99 | B108: 0 | C108: 0 | D108: 0 | E108: 1 | F108: 1 | G108: 0 | H108: 0 | I108: 0 | J108: 0 | K108: 0 | L108: 1
A109: 100 e più | B109: 0 | C109: 0 | D109: 0 | E109: 0 | F109: 0 | G109: 0 | H109: 0 | I109: 2 | J109: 0 | K109: 2 | L109: 2
A110: TOTALE | B110: 7555 | C110: 9441 | D110: 175 | E110: 331 | F110: 17502 | G110: 6820 | H110: 9680 | I110: 293 | J110: 1777 | K110: 18570 | L110: 36072

Sheet 2002 fasce
A1: torna all'indice
A2: Popolazione residente al 1 Gennaio 2002 per età, sesso e stato civile
A3: Comune: Ciampino
A4: fasce di età | B4: Celibi | C4: Coniu | D4: Divorziati | E4: Vedovi | F4: Totale | G4: Nubili | H4: Coniu | I4: Divorziate | J4: Vedove | K4: Totale | L4: Maschi + femmine
C5: gati | F5: Maschi | H5: gate | K5: Femmine | L5: +
L6: Femmine
A7: da 0 a 5 | B7: 1072 | C7: 0 | D7: 0 | E7: 0 | F7: 1072 | G7: 1072 | H7: 0 | I7: 0 | J7: 0 | K7: 1072 | L7: 2144
A8: da 6 a 10 | B8: 919 | C8: 0 | D8: 0 | E8: 0 | F8: 919 | G8: 878 | H8: 0 | I8: 0 | J8: 0 | K8: 878 | L8: 1797
A9: da 11 a 15 | B9: 921 | C9: 0 | D9: 0 | E9: 0 | F9: 921 | G9: 874 | H9: 0 | I9: 0 | J9: 0 | K9: 874 | L9: 1795
A10: da 16 a 20 | B10: 1014 | C10: 0 | D10: 0 | E10: 0 | F10: 1014 | G10: 886 | H10: 1 | I10: 0 | J10: 0 | K10: 887 | L10: 1901
A11: da 21 a 25 | B11: 1084 | C11: 23 | D11: 0 | E11: 0 | F11: 1107 | G11: 1014 | H11: 107 | I11: 0 | J11: 0 | K11: 1121 | L11: 2228
A12: da 26 a 30 | B12: 1128 | C12: 293 | D12: 4 | E12: 0 | F12: 1425 | G12: 888 | H12: 627 | I12: 7 | J12: 1 | K12: 1523 | L12: 2948
A13: da 31 a 35 | B13: 658 | C13: 921 | D13: 7 | E13: 2 | F13: 1588 | G13: 458 | H13: 1179 | I13: 21 | J13: 8 | K13: 1666 | L13: 3254
A14: da 36 a 40 | B14: 322 | C14: 1242 | D14: 25 | E14: 4 | F14: 1593 | G14: 223 | H14: 1372 | I14: 56 | J14: 22 | K14: 1673 | L14: 3266
A15: da 41 a 45 | B15: 139 | C15: 1145 | D15: 30 | E15: 4 | F15: 1318 | G15: 115 | H15: 1213 | I15: 52 | J15: 25 | K15: 1405 | L15: 2723
A16: da 46 a 50 | B16: 102 | C16: 1083 | D16: 33 | E16: 5 | F16: 1223 | G16: 76 | H16: 1093 | I16: 46 | J16: 38 | K16: 1253 | L16: 2476
A17: da 51 a 55 | B17: 71 | C17: 1127 | D17: 27 | E17: 15 | F17: 1240 | G17: 64 | H17: 1097 | I17: 35 | J17: 74 | K17: 1270 | L17: 2510
A18: da 56 a 60 | B18: 40 | C18: 882 | D18: 16 | E18: 25 | F18: 963 | G18: 58 | H18: 840 | I18: 21 | J18: 118 | K18: 1037 | L18: 2000
A19: da 61 a 65 | B19: 27 | C19: 944 | D19: 10 | E19: 29 | F19: 1010 | G19: 63 | H19: 850 | I19: 15 | J19: 215 | K19: 1143 | L19: 2153
A20: da 66 a 70 | B20: 24 | C20: 692 | D20: 8 | E20: 48 | F20: 772 | G20: 47 | H20: 604 | I20: 8 | J20: 255 | K20: 914 | L20: 1686
A21: da 71 a 75 | B21: 19 | C21: 536 | D21: 1 | E21: 66 | F21: 622 | G21: 31 | H21: 389 | I21: 8 | J21: 309 | K21: 737 | L21: 1359
A22: da 76 a 80 | B22: 9 | C22: 343 | D22: 14 | E22: 48 | F22: 414 | G22: 32 | H22: 218 | I22: 4 | J22: 339 | K22: 593 | L22: 1007
A23: da 81 a 85 | B23: 4 | C23: 142 | D23: 0 | E23: 34 | F23: 180 | G23: 21 | H23: 64 | I23: 0 | J23: 200 | K23: 285 | L23: 465
A24: da 86 a 90 | B24: 2 | C24: 58 | D24: 0 | E24: 32 | F24: 92 | G24: 9 | H24: 24 | I24: 1 | J24: 150 | K24: 184 | L24: 276
A25: da 91 95 | B25: 0 | C25: 10 | D25: 0 | E25: 18 | F25: 28 | G25: 10 | H25: 2 | I25: 10 | J25: 23 | K25: 45 | L25: 73
A26: oltre 95 | B26: 0 | C26: 0 | D26: 0 | E26: 1 | F26: 1 | G26: 1 | H26: 0 | I26: 9 | J26: 0 | K26: 10 | L26: 11
A27: TOTALE | B27: =SUM(B7:B26) -> 7555 | C27: =SUM(C7:C26) -> 9441 | D27: 175 | E27: 331 | F27: 17502 | G27: 6820 | H27: 9680 | I27: 293 | J27: 1777 | K27: 18570 | L27: 36072
A98: Dati per piramide
A100: fasce di età | B100: Celibi | C100: Coniu | D100: Divorziati | E100: Vedovi | F100: Totale | G100: Nubili | H100: Coniu | I100: Divorziate | J100: Vedove | K100: Totale | L100: Maschi + femmine
C101: gati | F101: Maschi | H101: gate | K101: Femmine | L101: +
L102: Femmine
A103: da 0 a 5 | B103: 1072 | C103: 0 | D103: 0 | E103: 0 | F103: 1072 | G103: -1072 | H103: 0 | I103: 0 | J103: 0 | K103: -1072 | L103: 2144 | M103: =G103-(G103*2) -> 1072 | N103: =H103-(H103*2) -> 0 | O103: 0 | P103: 0 | Q103: 1072
A104: da 6 a 10 | B104: 919 | C104: 0 | D104: 0 | E104: 0 | F104: 919 | G104: -878 | H104: 0 | I104: 0 | J104: 0 | K104: -878 | L104: 1797 | M104: =G104-(G104*2) -> 878 | N104: =H104-(H104*2) -> 0 | O104: =I104-(I104*2) -> 0 | P104: =J104-(J104*2) -> 0 | Q104: =K104-(K104*2) -> 878
A105: da 11 a 15 | B105: 921 | C105: 0 | D105: 0 | E105: 0 | F105: 921 | G105: -874 | H105: 0 | I105: 0 | J105: 0 | K105: -874 | L105: 1795 | M105: 874 | N105: 0 | O105: 0 | P105: 0 | Q105: 874
A106: da 16 a 20 | B106: 1014 | C106: 0 | D106: 0 | E106: 0 | F106: 1014 | G106: -886 | H106: -1 | I106: 0 | J106: 0 | K106: -887 | L106: 1901 | M106: 886 | N106: 1 | O106: 0 | P106: 0 | Q106: 887
A107: da 21 a 25 | B107: 1084 | C107: 23 | D107: 0 | E107: 0 | F107: 1107 | G107: -1014 | H107: -107 | I107: 0 | J107: 0 | K107: -1121 | L107: 2228 | M107: 1014 | N107: 107 | O107: 0 | P107: 0 | Q107: 1121
A108: da 26 a 30 | B108: 1128 | C108: 293 | D108: 4 | E108: 0 | F108: 1425 | G108: -888 | H108: -627 | I108: -7 | J108: -1 | K108: -1523 | L108: 2948 | M108: 888 | N108: 627 | O108: 7 | P108: 1 | Q108: 1523
A109: da 31 a 35 | B109: 658 | C109: 921 | D109: 7 | E109: 2 | F109: 1588 | G109: -458 | H109: -1179 | I109: -21 | J109: -8 | K109: -1666 | L109: 3254 | M109: 458 | N109: 1179 | O109: 21 | P109: 8 | Q109: 1666
A110: da 36 a 40 | B110: 322 | C110: 1242 | D110: 25 | E110: 4 | F110: 1593 | G110: -223 | H110: -1372 | I110: -56 | J110: -22 | K110: -1673 | L110: 3266 | M110: 223 | N110: 1372 | O110: 56 | P110: 22 | Q110: 1673
A111: da 41 a 45 | B111: 139 | C111: 1145 | D111: 30 | E111: 4 | F111: 1318 | G111: -115 | H111: -1213 | I111: -52 | J111: -25 | K111: -1405 | L111: 2723 | M111: 115 | N111: 1213 | O111: 52 | P111: 25 | Q111: 1405
A112: da 46 a 50 | B112: 102 | C112: 1083 | D112: 33 | E112: 5 | F112: 1223 | G112: -76 | H112: -1093 | I112: -46 | J112: -38 | K112: -1253 | L112: 2476 | M112: 76 | N112: 1093 | O112: 46 | P112: 38 | Q112: 1253
A113: da 51 a 55 | B113: 71 | C113: 1127 | D113: 27 | E113: 15 | F113: 1240 | G113: -64 | H113: -1097 | I113: -35 | J113: -74 | K113: -1270 | L113: 2510 | M113: 64 | N113: 1097 | O113: 35 | P113: 74 | Q113: 1270
A114: da 56 a 60 | B114: 40 | C114: 882 | D114: 16 | E114: 25 | F114: 963 | G114: -58 | H114: -840 | I114: -21 | J114: -118 | K114: -1037 | L114: 2000 | M114: 58 | N114: 840 | O114: 21 | P114: 118 | Q114: 1037
A115: da 61 a 65 | B115: 27 | C115: 944 | D115: 10 | E115: 29 | F115: 1010 | G115: -63 | H115: -850 | I115: -15 | J115: -215 | K115: -1143 | L115: 2153 | M115: 63 | N115: 850 | O115: 15 | P115: 215 | Q115: 1143
A116: da 66 a 70 | B116: 24 | C116: 692 | D116: 8 | E116: 48 | F116: 772 | G116: -47 | H116: -604 | I116: -8 | J116: -255 | K116: -914 | L116: 1686 | M116: 47 | N116: 604 | O116: 8 | P116: 255 | Q116: 914
A117: da 71 a 75 | B117: 19 | C117: 536 | D117: 1 | E117: 66 | F117: 622 | G117: -31 | H117: -389 | I117: -8 | J117: -309 | K117: -737 | L117: 1359 | M117: 31 | N117: 389 | O117: 8 | P117: 309 | Q117: 737
A118: da 76 a 80 | B118: 9 | C118: 343 | D118: 14 | E118: 48 | F118: 414 | G118: -32 | H118: -218 | I118: -4 | J118: -339 | K118: -593 | L118: 1007 | M118: 32 | N118: 218 | O118: 4 | P118: 339 | Q118: 593
A119: da 81 a 85 | B119: 4 | C119: 142 | D119: 0 | E119: 34 | F119: 180 | G119: -21 | H119: -64 | I119: 0 | J119: -200 | K119: -285 | L119: 465 | M119: 21 | N119: 64 | O119: 0 | P119: 200 | Q119: 285
A120: da 86 a 90 | B120: 2 | C120: 58 | D120: 0 | E120: 32 | F120: 92 | G120: -9 | H120: -24 | I120: -1 | J120: -150 | K120: -184 | L120: 276 | M120: 9 | N120: 24 | O120: 1 | P120: 150 | Q120: 184
A121: da 91 95 | B121: 0 | C121: 10 | D121: 0 | E121: 18 | F121: 28 | G121: -10 | H121: -2 | I121: -10 | J121: -23 | K121: -45 | L121: 73 | M121: 10 | N121: 2 | O121: 10 | P121: 23 | Q121: 45
A122: oltre 95 | B122: 0 | C122: 0 | D122: 0 | E122: 1 | F122: 1 | G122: -1 | H122: 0 | I122: -9 | J122: 0 | K122: -10 | L122: 11 | M122: 1 | N122: 0 | O122: 9 | P122: 0 | Q122: 10
A123: TOTALE | B123: =SUM(B103:B122) -> 7555 | C123: =SUM(C103:C122) -> 9441 | D123: 175 | E123: 331 | F123: 17502 | G123: -6820 | H123: -9680 | I123: -293 | J123: -1777 | K123: -18570 | L123: 36072

Sheet 2003
A1: torna all'indice
A3: Popolazione residente al 1 Gennaio 2003 per età, sesso e stato civile
A4: Comune: Ciampino
A6: Eta' | B6: Celibi | C6: Coniu | D6: Divorziati | E6: Vedovi | F6: Totale | G6: Nubili | H6: Coniu | I6: Divorziate | J6: Vedove | K6: Totale | L6: Maschi + femmine
C7: gati | F7: Maschi | H7: gate | K7: Femmine | L7: +
L8: Femmine
A9: 0 | B9: 169 | C9: 0 | D9: 0 | E9: 0 | F9: 169 | G9: 170 | H9: 0 | I9: 0 | J9: 0 | K9: 170 | L9: 339
A10: 1 | B10: 182 | C10: 0 | D10: 0 | E10: 0 | F10: 182 | G10: 162 | H10: 0 | I10: 0 | J10: 0 | K10: 162 | L10: 344
A11: 2 | B11: 166 | C11: 0 | D11: 0 | E11: 0 | F11: 166 | G11: 190 | H11: 0 | I11: 0 | J11: 0 | K11: 190 | L11: 356
A12: 3 | B12: 201 | C12: 0 | D12: 0 | E12: 0 | F12: 201 | G12: 185 | H12: 0 | I12: 0 | J12: 0 | K12: 185 | L12: 386
A13: 4 | B13: 175 | C13: 0 | D13: 0 | E13: 0 | F13: 175 | G13: 168 | H13: 0 | I13: 0 | J13: 0 | K13: 168 | L13: 343
A14: 5 | B14: 176 | C14: 0 | D14: 0 | E14: 0 | F14: 176 | G14: 172 | H14: 0 | I14: 0 | J14: 0 | K14: 172 | L14: 348
A15: 6 | B15: 178 | C15: 0 | D15: 0 | E15: 0 | F15: 178 | G15: 198 | H15: 0 | I15: 0 | J15: 0 | K15: 198 | L15: 376
A16: 7 | B16: 171 | C16: 0 | D16: 0 | E16: 0 | F16: 171 | G16: 158 | H16: 0 | I16: 0 | J16: 0 | K16: 158 | L16: 329
A17: 8 | B17: 158 | C17: 0 | D17: 0 | E17: 0 | F17: 158 | G17: 189 | H17: 0 | I17: 0 | J17: 0 | K17: 189 | L17: 347
A18: 9 | B18: 209 | C18: 0 | D18: 0 | E18: 0 | F18: 209 | G18: 190 | H18: 0 | I18: 0 | J18: 0 | K18: 190 | L18: 399
A19: 10 | B19: 181 | C19: 0 | D19: 0 | E19: 0 | F19: 181 | G19: 181 | H19: 0 | I19: 0 | J19: 0 | K19: 181 | L19: 362
A20: 11 | B20: 194 | C20: 0 | D20: 0 | E20: 0 | F20: 194 | G20: 154 | H20: 0 | I20: 0 | J20: 0 | K20: 154 | L20: 348
A21: 12 | B21: 187 | C21: 0 | D21: 0 | E21: 0 | F21: 187 | G21: 196 | H21: 0 | I21: 0 | J21: 0 | K21: 196 | L21: 383
A22: 13 | B22: 184 | C22: 0 | D22: 0 | E22: 0 | F22: 184 | G22: 173 | H22: 0 | I22: 0 | J22: 0 | K22: 173 | L22: 357
A23: 14 | B23: 208 | C23: 0 | D23: 0 | E23: 0 | F23: 208 | G23: 168 | H23: 0 | I23: 0 | J23: 0 | K23: 168 | L23: 376
A24: 15 | B24: 173 | C24: 0 | D24: 0 | E24: 0 | F24: 173 | G24: 167 | H24: 0 | I24: 0 | J24: 0 | K24: 167 | L24: 340
A25: 16 | B25: 167 | C25: 0 | D25: 0 | E25: 0 | F25: 167 | G25: 169 | H25: 0 | I25: 0 | J25: 0 | K25: 169 | L25: 336
A26: 17 | B26: 208 | C26: 0 | D26: 0 | E26: 0 | F26: 208 | G26: 190 | H26: 0 | I26: 0 | J26: 0 | K26: 190 | L26: 398
A27: 18 | B27: 175 | C27: 0 | D27: 0 | E27: 0 | F27: 175 | G27: 147 | H27: 1 | I27: 0 | J27: 0 | K27: 148 | L27: 323
A28: 19 | B28: 208 | C28: 0 | D28: 0 | E28: 0 | F28: 208 | G28: 171 | H28: 1 | I28: 0 | J28: 0 | K28: 172 | L28: 380
A29: 20 | B29: 214 | C29: 1 | D29: 0 | E29: 0 | F29: 215 | G29: 197 | H29: 1 | I29: 0 | J29: 0 | K29: 198 | L29: 413
A30: 21 | B30: 206 | C30: 0 | D30: 0 | E30: 0 | F30: 206 | G30: 167 | H30: 3 | I30: 0 | J30: 0 | K30: 170 | L30: 376
A31: 22 | B31: 211 | C31: 2 | D31: 0 | E31: 0 | F31: 213 | G31: 186 | H31: 14 | I31: 0 | J31: 0 | K31: 200 | L31: 413
A32: 23 | B32: 232 | C32: 4 | D32: 0 | E32: 0 | F32: 236 | G32: 198 | H32: 13 | I32: 0 | J32: 0 | K32: 211 | L32: 447
A33: 24 | B33: 208 | C33: 4 | D33: 0 | E33: 0 | F33: 212 | G33: 199 | H33: 27 | I33: 0 | J33: 0 | K33: 226 | L33: 438
A34: 25 | B34: 234 | C34: 11 | D34: 0 | E34: 0 | F34: 245 | G34: 189 | H34: 38 | I34: 0 | J34: 0 | K34: 227 | L34: 472
A35: 26 | B35: 188 | C35: 23 | D35: 0 | E35: 0 | F35: 211 | G35: 190 | H35: 63 | I35: 0 | J35: 0 | K35: 253 | L35: 464
A36: 27 | B36: 245 | C36: 31 | D36: 0 | E36: 0 | F36: 276 | G36: 204 | H36: 64 | I36: 1 | J36: 0 | K36: 269 | L36: 545
A37: 28 | B37: 216 | C37: 58 | D37: 0 | E37: 0 | F37: 274 | G37: 173 | H37: 114 | I37: 0 | J37: 0 | K37: 287 | L37: 561
A38: 29 | B38: 212 | C38: 70 | D38: 0 | E38: 0 | F38: 282 | G38: 175 | H38: 142 | I38: 1 | J38: 0 | K38: 318 | L38: 600
A39: 30 | B39: 205 | C39: 88 | D39: 2 | E39: 0 | F39: 295 | G39: 151 | H39: 171 | I39: 1 | J39: 2 | K39: 325 | L39: 620
A40: 31 | B40: 179 | C40: 119 | D40: 1 | E40: 0 | F40: 299 | G40: 123 | H40: 212 | I40: 2 | J40: 0 | K40: 337 | L40: 636
A41: 32 | B41: 167 | C41: 169 | D41: 0 | E41: 0 | F41: 336 | G41: 111 | H41: 208 | I41: 2 | J41: 1 | K41: 322 | L41: 658
A42: 33 | B42: 149 | C42: 174 | D42: 2 | E42: 1 | F42: 326 | G42: 90 | H42: 221 | I42: 4 | J42: 2 | K42: 317 | L42: 643
A43: 34 | B43: 113 | C43: 181 | D43: 1 | E43: 0 | F43: 295 | G43: 77 | H43: 258 | I43: 2 | J43: 1 | K43: 338 | L43: 633
A44: 35 | B44: 100 | C44: 206 | D44: 5 | E44: 0 | F44: 311 | G44: 66 | H44: 256 | I44: 8 | J44: 1 | K44: 331 | L44: 642
A45: 36 | B45: 85 | C45: 237 | D45: 4 | E45: 1 | F45: 327 | G45: 85 | H45: 285 | I45: 6 | J45: 6 | K45: 382 | L45: 709
A46: 37 | B46: 72 | C46: 231 | D46: 5 | E46: 1 | F46: 309 | G46: 60 | H46: 275 | I46: 10 | J46: 3 | K46: 348 | L46: 657
A47: 38 | B47: 79 | C47: 275 | D47: 3 | E47: 0 | F47: 357 | G47: 49 | H47: 325 | I47: 13 | J47: 2 | K47: 389 | L47: 746
A48: 39 | B48: 63 | C48: 259 | D48: 2 | E48: 0 | F48: 324 | G48: 35 | H48: 254 | I48: 8 | J48: 7 | K48: 304 | L48: 628
A49: 40 | B49: 50 | C49: 264 | D49: 8 | E49: 2 | F49: 324 | G49: 48 | H49: 269 | I49: 12 | J49: 5 | K49: 334 | L49: 658
A50: 41 | B50: 47 | C50: 241 | D50: 5 | E50: 1 | F50: 294 | G50: 34 | H50: 254 | I50: 15 | J50: 5 | K50: 308 | L50: 602
A51: 42 | B51: 33 | C51: 247 | D51: 3 | E51: 0 | F51: 283 | G51: 24 | H51: 253 | I51: 11 | J51: 4 | K51: 292 | L51: 575
A52: 43 | B52: 22 | C52: 247 | D52: 9 | E52: 3 | F52: 281 | G52: 33 | H52: 247 | I52: 11 | J52: 5 | K52: 296 | L52: 577
A53: 44 | B53: 27 | C53: 239 | D53: 6 | E53: 0 | F53: 272 | G53: 18 | H53: 257 | I53: 13 | J53: 5 | K53: 293 | L53: 565
A54: 45 | B54: 26 | C54: 223 | D54: 5 | E54: 2 | F54: 256 | G54: 21 | H54: 212 | I54: 11 | J54: 3 | K54: 247 | L54: 503
A55: 46 | B55: 21 | C55: 185 | D55: 5 | E55: 1 | F55: 212 | G55: 16 | H55: 245 | I55: 10 | J55: 9 | K55: 280 | L55: 492
A56: 47 | B56: 27 | C56: 232 | D56: 6 | E56: 1 | F56: 266 | G56: 17 | H56: 216 | I56: 10 | J56: 5 | K56: 248 | L56: 514
A57: 48 | B57: 27 | C57: 226 | D57: 5 | E57: 2 | F57: 260 | G57: 14 | H57: 232 | I57: 10 | J57: 8 | K57: 264 | L57: 524
A58: 49 | B58: 22 | C58: 213 | D58: 7 | E58: 2 | F58: 244 | G58: 13 | H58: 203 | I58: 10 | J58: 7 | K58: 233 | L58: 477
A59: 50 | B59: 10 | C59: 195 | D59: 7 | E59: 1 | F59: 213 | G59: 14 | H59: 223 | I59: 12 | J59: 11 | K59: 260 | L59: 473
A60: 51 | B60: 18 | C60: 199 | D60: 7 | E60: 3 | F60: 227 | G60: 17 | H60: 210 | I60: 8 | J60: 8 | K60: 243 | L60: 470
A61: 52 | B61: 18 | C61: 220 | D61: 6 | E61: 1 | F61: 245 | G61: 16 | H61: 190 | I61: 5 | J61: 16 | K61: 227 | L61: 472
A62: 53 | B62: 15 | C62: 200 | D62: 3 | E62: 3 | F62: 221 | G62: 13 | H62: 234 | I62: 4 | J62: 15 | K62: 266 | L62: 487
A63: 54 | B63: 14 | C63: 239 | D63: 6 | E63: 2 | F63: 261 | G63: 18 | H63: 215 | I63: 5 | J63: 14 | K63: 252 | L63: 513
A64: 55 | B64: 12 | C64: 226 | D64: 8 | E64: 7 | F64: 253 | G64: 8 | H64: 212 | I64: 9 | J64: 11 | K64: 240 | L64: 493
A65: 56 | B65: 11 | C65: 231 | D65: 4 | E65: 3 | F65: 249 | G65: 7 | H65: 228 | I65: 12 | J65: 24 | K65: 271 | L65: 520
A66: 57 | B66: 10 | C66: 171 | D66: 1 | E66: 5 | F66: 187 | G66: 12 | H66: 168 | I66: 2 | J66: 15 | K66: 197 | L66: 384
A67: 58 | B67: 11 | C67: 174 | D67: 7 | E67: 7 | F67: 199 | G67: 18 | H67: 147 | I67: 4 | J67: 15 | K67: 184 | L67: 383
A68: 59 | B68: 4 | C68: 174 | D68: 3 | E68: 2 | F68: 183 | G68: 7 | H68: 179 | I68: 6 | J68: 22 | K68: 214 | L68: 397
A69: 60 | B69: 6 | C69: 166 | D69: 5 | E69: 6 | F69: 183 | G69: 10 | H69: 164 | I69: 7 | J69: 36 | K69: 217 | L69: 400
A70: 61 | B70: 8 | C70: 179 | D70: 2 | E70: 5 | F70: 194 | G70: 10 | H70: 159 | I70: 3 | J70: 35 | K70: 207 | L70: 401
A71: 62 | B71: 5 | C71: 186 | D71: 4 | E71: 5 | F71: 200 | G71: 12 | H71: 195 | I71: 3 | J71: 38 | K71: 248 | L71: 448
A72: 63 | B72: 7 | C72: 171 | D72: 2 | E72: 2 | F72: 182 | G72: 18 | H72: 189 | I72: 5 | J72: 42 | K72: 254 | L72: 436
A73: 64 | B73: 5 | C73: 197 | D73: 1 | E73: 8 | F73: 211 | G73: 10 | H73: 159 | I73: 5 | J73: 42 | K73: 216 | L73: 427
A74: 65 | B74: 6 | C74: 197 | D74: 3 | E74: 10 | F74: 216 | G74: 10 | H74: 144 | I74: 2 | J74: 45 | K74: 201 | L74: 417
A75: 66 | B75: 5 | C75: 174 | D75: 0 | E75: 6 | F75: 185 | G75: 13 | H75: 129 | I75: 1 | J75: 59 | K75: 202 | L75: 387
A76: 67 | B76: 5 | C76: 152 | D76: 1 | E76: 11 | F76: 169 | G76: 10 | H76: 126 | I76: 7 | J76: 50 | K76: 193 | L76: 362
A77: 68 | B77: 4 | C77: 151 | D77: 2 | E77: 10 | F77: 167 | G77: 10 | H77: 130 | I77: 1 | J77: 53 | K77: 194 | L77: 361
A78: 69 | B78: 4 | C78: 126 | D78: 3 | E78: 12 | F78: 145 | G78: 9 | H78: 94 | I78: 0 | J78: 48 | K78: 151 | L78: 296
A79: 70 | B79: 5 | C79: 119 | D79: 2 | E79: 8 | F79: 134 | G79: 12 | H79: 102 | I79: 0 | J79: 47 | K79: 161 | L79: 295
A80: 71 | B80: 5 | C80: 125 | D80: 0 | E80: 8 | F80: 138 | G80: 5 | H80: 122 | I80: 0 | J80: 67 | K80: 194 | L80: 332
A81: 72 | B81: 5 | C81: 115 | D81: 0 | E81: 13 | F81: 133 | G81: 9 | H81: 100 | I81: 0 | J81: 75 | K81: 184 | L81: 317
A82: 73 | B82: 4 | C82: 112 | D82: 0 | E82: 11 | F82: 127 | G82: 6 | H82: 73 | I82: 2 | J82: 46 | K82: 127 | L82: 254
A83: 74 | B83: 4 | C83: 105 | D83: 1 | E83: 14 | F83: 124 | G83: 10 | H83: 71 | I83: 1 | J83: 60 | K83: 142 | L83: 266
A84: 75 | B84: 2 | C84: 81 | D84: 0 | E84: 17 | F84: 100 | G84: 3 | H84: 58 | I84: 2 | J84: 70 | K84: 133 | L84: 233
A85: 76 | B85: 3 | C85: 98 | D85: 0 | E85: 14 | F85: 115 | G85: 5 | H85: 63 | I85: 2 | J85: 68 | K85: 138 | L85: 253
A86: 77 | B86: 2 | C86: 74 | D86: 0 | E86: 7 | F86: 83 | G86: 9 | H86: 64 | I86: 2 | J86: 67 | K86: 142 | L86: 225
A87: 78 | B87: 4 | C87: 70 | D87: 2 | E87: 13 | F87: 89 | G87: 4 | H87: 34 | I87: 0 | J87: 71 | K87: 109 | L87: 198
A88: 79 | B88: 2 | C88: 68 | D88: 1 | E88: 7 | F88: 78 | G88: 6 | H88: 30 | I88: 1 | J88: 67 | K88: 104 | L88: 182
A89: 80 | B89: 0 | C89: 63 | D89: 0 | E89: 12 | F89: 75 | G89: 6 | H89: 46 | I89: 1 | J89: 64 | K89: 117 | L89: 192
A90: 81 | B90: 0 | C90: 47 | D90: 0 | E90: 14 | F90: 61 | G90: 6 | H90: 25 | I90: 0 | J90: 71 | K90: 102 | L90: 163
A91: 82 | B91: 2 | C91: 42 | D91: 0 | E91: 8 | F91: 52 | G91: 6 | H91: 22 | I91: 0 | J91: 59 | K91: 87 | L91: 139
A92: 83 | B92: 0 | C92: 28 | D92: 0 | E92: 7 | F92: 35 | G92: 2 | H92: 11 | I92: 0 | J92: 46 | K92: 59 | L92: 94
A93: 84 | B93: 0 | C93: 29 | D93: 0 | E93: 4 | F93: 33 | G93: 6 | H93: 10 | I93: 0 | J93: 33 | K93: 49 | L93: 82
A94: 85 | B94: 0 | C94: 13 | D94: 0 | E94: 6 | F94: 19 | G94: 3 | H94: 10 | I94: 0 | J94: 23 | K94: 36 | L94: 55
A95: 86 | B95: 1 | C95: 16 | D95: 0 | E95: 6 | F95: 23 | G95: 3 | H95: 3 | I95: 0 | J95: 36 | K95: 42 | L95: 65
A96: 87 | B96: 0 | C96: 19 | D96: 0 | E96: 3 | F96: 22 | G96: 2 | H96: 4 | I96: 0 | J96: 45 | K96: 51 | L96: 73
A97: 88 | B97: 0 | C97: 7 | D97: 0 | E97: 11 | F97: 18 | G97: 3 | H97: 4 | I97: 0 | J97: 33 | K97: 40 | L97: 58
A98: 89 | B98: 2 | C98: 8 | D98: 0 | E98: 2 | F98: 12 | G98: 2 | H98: 5 | I98: 0 | J98: 21 | K98: 28 | L98: 40
A99: 90 | B99: 1 | C99: 7 | D99: 0 | E99: 8 | F99: 16 | G99: 1 | H99: 2 | I99: 1 | J99: 22 | K99: 26 | L99: 42
A100: 91 | B100: 0 | C100: 3 | D100: 0 | E100: 7 | F100: 10 | G100: 0 | H100: 1 | I100: 0 | J100: 16 | K100: 17 | L100: 27
A101: 92 | B101: 0 | C101: 2 | D101: 0 | E101: 7 | F101: 9 | G101: 3 | H101: 0 | I101: 0 | J101: 16 | K101: 19 | L101: 28
A102: 93 | B102: 0 | C102: 0 | D102: 0 | E102: 4 | F102: 4 | G102: 3 | H102: 0 | I102: 0 | J102: 4 | K102: 7 | L102: 11
A103: 94 | B103: 0 | C103: 2 | D103: 0 | E103: 1 | F103: 3 | G103: 1 | H103: 1 | I103: 0 | J103: 3 | K103: 5 | L103: 8
A104: 95 | B104: 0 | C104: 0 | D104: 0 | E104: 4 | F104: 4 | G104: 0 | H104: 1 | I104: 0 | J104: 0 | K104: 1 | L104: 5
A105: 96 | B105: 0 | C105: 1 | D105: 0 | E105: 0 | F105: 1 | G105: 0 | H105: 0 | I105: 0 | J105: 4 | K105: 4 | L105: 5
A106: 97 | B106: 0 | C106: 0 | D106: 0 | E106: 0 | F106: 0 | G106: 0 | H106: 0 | I106: 0 | J106: 3 | K106: 3 | L106: 3
A107: 98 | B107: 0 | C107: 0 | D107: 0 | E107: 0 | F107: 0 | G107: 0 | H107: 1 | I107: 0 | J107: 1 | K107: 2 | L107: 2
A108: 99 | B108: 0 | C108: 0 | D108: 0 | E108: 0 | F108: 0 | G108: 0 | H108: 0 | I108: 0 | J108: 0 | K108: 0 | L108: 0
A109: 100 e pi� | B109: 0 | C109: 0 | D109: 0 | E109: 1 | F109: 1 | G109: 0 | H109: 0 | I109: 0 | J109: 0 | K109: 0 | L109: 1
B110: 0 | C110: 1 | D110: 0 | E110: 1 | F110: 2 | G110: 0 | H110: 1 | I110: 0 | J110: 8 | K110: 9 | L110: 11
A111: TOTALE | B111: 7570 | C111: 9442 | D111: 165 | E111: 343 | F111: 17520 | G111: 6819 | H111: 9692 | I111: 284 | J111: 1818 | K111: 18613 | L111: 36133

Sheet 2003 fasce
A1: torna all'indice
A2: Popolazione residente al 1 Gennaio 2003 per età, sesso e stato civile
A3: Comune: Ciampino
A4: Eta' | B4: Celibi | C4: Coniu | D4: Divorziati | E4: Vedovi | F4: Totale | G4: Nubili | H4: Coniu | I4: Divorziate | J4: Vedove | K4: Totale | L4: Maschi + femmine
C5: gati | F5: Maschi | H5: gate | K5: Femmine | L5: +
L6: Femmine
A7: da 0 a 5 | B7: 1069 | C7: 0 | D7: 0 | E7: 0 | F7: 1069 | G7: 1047 | H7: 0 | I7: 0 | J7: 0 | K7: 1047 | L7: 2116
A8: da 6 a 10 | B8: 897 | C8: 0 | D8: 0 | E8: 0 | F8: 897 | G8: 916 | H8: 0 | I8: 0 | J8: 0 | K8: 916 | L8: 1813
A9: da 11 a 15 | B9: 946 | C9: 0 | D9: 0 | E9: 0 | F9: 946 | G9: 858 | H9: 0 | I9: 0 | J9: 0 | K9: 858 | L9: 1804
A10: da 16 a 20 | B10: 972 | C10: 1 | D10: 0 | E10: 0 | F10: 973 | G10: 874 | H10: 3 | I10: 0 | J10: 0 | K10: 877 | L10: 1850
A11: da 21 a 25 | B11: 1091 | C11: 21 | D11: 0 | E11: 0 | F11: 1112 | G11: 939 | H11: 95 | I11: 0 | J11: 0 | K11: 1034 | L11: 2146
A12: da 26 a 30 | B12: 1066 | C12: 270 | D12: 2 | E12: 0 | F12: 1338 | G12: 893 | H12: 554 | I12: 3 | J12: 2 | K12: 1452 | L12: 2790
A13: da 31 a 35 | B13: 708 | C13: 849 | D13: 9 | E13: 1 | F13: 1567 | G13: 467 | H13: 1155 | I13: 18 | J13: 5 | K13: 1645 | L13: 3212
A14: da 36 a 40 | B14: 349 | C14: 1266 | D14: 22 | E14: 4 | F14: 1641 | G14: 277 | H14: 1408 | I14: 49 | J14: 23 | K14: 1757 | L14: 3398
A15: da 41 a 45 | B15: 155 | C15: 1197 | D15: 28 | E15: 6 | F15: 1386 | G15: 130 | H15: 1223 | I15: 61 | J15: 22 | K15: 1436 | L15: 2822
A16: da 46 a 50 | B16: 107 | C16: 1051 | D16: 30 | E16: 7 | F16: 1195 | G16: 74 | H16: 1119 | I16: 52 | J16: 40 | K16: 1285 | L16: 2480
A17: da 51 a 55 | B17: 77 | C17: 1084 | D17: 30 | E17: 16 | F17: 1207 | G17: 72 | H17: 1061 | I17: 31 | J17: 64 | K17: 1228 | L17: 2435
A18: da 56 a 60 | B18: 42 | C18: 916 | D18: 20 | E18: 23 | F18: 1001 | G18: 54 | H18: 886 | I18: 31 | J18: 112 | K18: 1083 | L18: 2084
A19: da 61 a 65 | B19: 31 | C19: 930 | D19: 12 | E19: 30 | F19: 1003 | G19: 60 | H19: 846 | I19: 18 | J19: 202 | K19: 1126 | L19: 2129
A20: da 66 a 70 | B20: 23 | C20: 722 | D20: 8 | E20: 47 | F20: 800 | G20: 54 | H20: 581 | I20: 9 | J20: 257 | K20: 901 | L20: 1701
A21: da 71 a 75 | B21: 20 | C21: 538 | D21: 1 | E21: 63 | F21: 622 | G21: 33 | H21: 424 | I21: 5 | J21: 318 | K21: 780 | L21: 1402
A22: da 76 a 80 | B22: 11 | C22: 373 | D22: 3 | E22: 53 | F22: 440 | G22: 30 | H22: 237 | I22: 6 | J22: 337 | K22: 610 | L22: 1050
A23: da 81 a 85 | B23: 2 | C23: 159 | D23: 0 | E23: 39 | F23: 200 | G23: 23 | H23: 78 | I23: 0 | J23: 232 | K23: 333 | L23: 533
A24: da 86 a 90 | B24: 4 | C24: 57 | D24: 0 | E24: 30 | F24: 91 | G24: 11 | H24: 18 | I24: 1 | J24: 157 | K24: 187 | L24: 278
A25: da 91 95 | B25: 0 | C25: 7 | D25: 0 | E25: 23 | F25: 30 | G25: 7 | H25: 3 | I25: 0 | J25: 39 | K25: 49 | L25: 79
A26: oltre 95 | B26: 0 | C26: 1 | D26: 0 | E26: 1 | F26: 2 | G26: 0 | H26: 1 | I26: 0 | J26: 8 | K26: 9 | L26: 11
A27: TOTALE | B27: =SUM(B7:B26) -> 7570 | C27: =SUM(C7:C26) -> 9442 | D27: 165 | E27: 343 | F27: 17520 | G27: 6819 | H27: 9692 | I27: 284 | J27: 1818 | K27: 18613 | L27: 36133
A100: Eta' | B100: Celibi | C100: Coniu | D100: Divorziati | E100: Vedovi | F100: Totale | G100: Nubili | H100: Coniu | I100: Divorziate | J100: Vedove | K100: Totale | L100: Maschi + femmine
C101: gati | F101: Maschi | H101: gate | K101: Femmine | L101: +
L102: Femmine
A103: da 0 a 5 | B103: 1069 | C103: 0 | D103: 0 | E103: 0 | F103: 1069 | G103: -1047 | H103: 0 | I103: 0 | J103: 0 | K103: -1047 | L103: 2116 | M103: =G103-(G103*2) -> 1047 | N103: =H103-(H103*2) -> 0 | O103: 0 | P103: 0 | Q103: 1047
A104: da 6 a 10 | B104: 897 | C104: 0 | D104: 0 | E104: 0 | F104: 897 | G104: -916 | H104: 0 | I104: 0 | J104: 0 | K104: -916 | L104: 1813 | M104: =G104-(G104*2) -> 916 | N104: =H104-(H104*2) -> 0 | O104: =I104-(I104*2) -> 0 | P104: =J104-(J104*2) -> 0 | Q104: =K104-(K104*2) -> 916
A105: da 11 a 15 | B105: 946 | C105: 0 | D105: 0 | E105: 0 | F105: 946 | G105: -858 | H105: 0 | I105: 0 | J105: 0 | K105: -858 | L105: 1804 | M105: 858 | N105: 0 | O105: 0 | P105: 0 | Q105: 858
A106: da 16 a 20 | B106: 972 | C106: 1 | D106: 0 | E106: 0 | F106: 973 | G106: -874 | H106: -3 | I106: 0 | J106: 0 | K106: -877 | L106: 1850 | M106: 874 | N106: 3 | O106: 0 | P106: 0 | Q106: 877
A107: da 21 a 25 | B107: 1091 | C107: 21 | D107: 0 | E107: 0 | F107: 1112 | G107: -939 | H107: -95 | I107: 0 | J107: 0 | K107: -1034 | L107: 2146 | M107: 939 | N107: 95 | O107: 0 | P107: 0 | Q107: 1034
A108: da 26 a 30 | B108: 1066 | C108: 270 | D108: 2 | E108: 0 | F108: 1338 | G108: -893 | H108: -554 | I108: -3 | J108: -2 | K108: -1452 | L108: 2790 | M108: 893 | N108: 554 | O108: 3 | P108: 2 | Q108: 1452
A109: da 31 a 35 | B109: 708 | C109: 849 | D109: 9 | E109: 1 | F109: 1567 | G109: -467 | H109: -1155 | I109: -18 | J109: -5 | K109: -1645 | L109: 3212 | M109: 467 | N109: 1155 | O109: 18 | P109: 5 | Q109: 1645
A110: da 36 a 40 | B110: 349 | C110: 1266 | D110: 22 | E110: 4 | F110: 1641 | G110: -277 | H110: -1408 | I110: -49 | J110: -23 | K110: -1757 | L110: 3398 | M110: 277 | N110: 1408 | O110: 49 | P110: 23 | Q110: 1757
A111: da 41 a 45 | B111: 155 | C111: 1197 | D111: 28 | E111: 6 | F111: 1386 | G111: -130 | H111: -1223 | I111: -61 | J111: -22 | K111: -1436 | L111: 2822 | M111: 130 | N111: 1223 | O111: 61 | P111: 22 | Q111: 1436
A112: da 46 a 50 | B112: 107 | C112: 1051 | D112: 30 | E112: 7 | F112: 1195 | G112: -74 | H112: -1119 | I112: -52 | J112: -40 | K112: -1285 | L112: 2480 | M112: 74 | N112: 1119 | O112: 52 | P112: 40 | Q112: 1285
A113: da 51 a 55 | B113: 77 | C113: 1084 | D113: 30 | E113: 16 | F113: 1207 | G113: -72 | H113: -1061 | I113: -31 | J113: -64 | K113: -1228 | L113: 2435 | M113: 72 | N113: 1061 | O113: 31 | P113: 64 | Q113: 1228
A114: da 56 a 60 | B114: 42 | C114: 916 | D114: 20 | E114: 23 | F114: 1001 | G114: -54 | H114: -886 | I114: -31 | J114: -112 | K114: -1083 | L114: 2084 | M114: 54 | N114: 886 | O114: 31 | P114: 112 | Q114: 1083
A115: da 61 a 65 | B115: 31 | C115: 930 | D115: 12 | E115: 30 | F115: 1003 | G115: -60 | H115: -846 | I115: -18 | J115: -202 | K115: -1126 | L115: 2129 | M115: 60 | N115: 846 | O115: 18 | P115: 202 | Q115: 1126
A116: da 66 a 70 | B116: 23 | C116: 722 | D116: 8 | E116: 47 | F116: 800 | G116: -54 | H116: -581 | I116: -9 | J116: -257 | K116: -901 | L116: 1701 | M116: 54 | N116: 581 | O116: 9 | P116: 257 | Q116: 901
A117: da 71 a 75 | B117: 20 | C117: 538 | D117: 1 | E117: 63 | F117: 622 | G117: -33 | H117: -424 | I117: -5 | J117: -318 | K117: -780 | L117: 1402 | M117: 33 | N117: 424 | O117: 5 | P117: 318 | Q117: 780
A118: da 76 a 80 | B118: 11 | C118: 373 | D118: 3 | E118: 53 | F118: 440 | G118: -30 | H118: -237 | I118: -6 | J118: -337 | K118: -610 | L118: 1050 | M118: 30 | N118: 237 | O118: 6 | P118: 337 | Q118: 610
A119: da 81 a 85 | B119: 2 | C119: 159 | D119: 0 | E119: 39 | F119: 200 | G119: -23 | H119: -78 | I119: 0 | J119: -232 | K119: -333 | L119: 533 | M119: 23 | N119: 78 | O119: 0 | P119: 232 | Q119: 333
A120: da 86 a 90 | B120: 4 | C120: 57 | D120: 0 | E120: 30 | F120: 91 | G120: -11 | H120: -18 | I120: -1 | J120: -157 | K120: -187 | L120: 278 | M120: 11 | N120: 18 | O120: 1 | P120: 157 | Q120: 187
A121: da 91 95 | B121: 0 | C121: 7 | D121: 0 | E121: 23 | F121: 30 | G121: -7 | H121: -3 | I121: 0 | J121: -39 | K121: -49 | L121: 79 | M121: 7 | N121: 3 | O121: 0 | P121: 39 | Q121: 49
A122: oltre 95 | B122: 0 | C122: 1 | D122: 0 | E122: 1 | F122: 2 | G122: 0 | H122: -1 | I122: 0 | J122: -8 | K122: -9 | L122: 11 | M122: 0 | N122: 1 | O122: 0 | P122: 8 | Q122: 9
A123: TOTALE | B123: =SUM(B103:B122) -> 7570 | C123: =SUM(C103:C122) -> 9442 | D123: 165 | E123: 343 | F123: 17520 | G123: -6819 | H123: -9692 | I123: -284 | J123: -1818 | K123: -18613 | L123: 36133

Sheet 2004
A1: torna all'indice
A3: Popolazione residente al 1 Gennaio 2004 per età, sesso e stato civile
A4: Comune: Ciampino
A6: Eta' | B6: Celibi | C6: Coniugati | D6: Divorziati | E6: Vedovi | F6: Totale Maschi | G6: Nubili | H6: Coniugate | I6: Divorziate | J6: Vedove | K6: Totale Femmine | L6: Maschi + femmine
L7: +
L8: Femmine
A9: 0 | B9: 199 | C9: 0 | D9: 0 | E9: 0 | F9: 199 | G9: 210 | H9: 0 | I9: 0 | J9: 0 | K9: 210 | L9: 409
A10: 1 | B10: 170 | C10: 0 | D10: 0 | E10: 0 | F10: 170 | G10: 172 | H10: 0 | I10: 0 | J10: 0 | K10: 172 | L10: 342
A11: 2 | B11: 185 | C11: 0 | D11: 0 | E11: 0 | F11: 185 | G11: 165 | H11: 0 | I11: 0 | J11: 0 | K11: 165 | L11: 350
A12: 3 | B12: 170 | C12: 0 | D12: 0 | E12: 0 | F12: 170 | G12: 195 | H12: 0 | I12: 0 | J12: 0 | K12: 195 | L12: 365
A13: 4 | B13: 200 | C13: 0 | D13: 0 | E13: 0 | F13: 200 | G13: 189 | H13: 0 | I13: 0 | J13: 0 | K13: 189 | L13: 389
A14: 5 | B14: 179 | C14: 0 | D14: 0 | E14: 0 | F14: 179 | G14: 172 | H14: 0 | I14: 0 | J14: 0 | K14: 172 | L14: 351
A15: 6 | B15: 180 | C15: 0 | D15: 0 | E15: 0 | F15: 180 | G15: 176 | H15: 0 | I15: 0 | J15: 0 | K15: 176 | L15: 356
A16: 7 | B16: 181 | C16: 0 | D16: 0 | E16: 0 | F16: 181 | G16: 202 | H16: 0 | I16: 0 | J16: 0 | K16: 202 | L16: 383
A17: 8 | B17: 176 | C17: 0 | D17: 0 | E17: 0 | F17: 176 | G17: 161 | H17: 0 | I17: 0 | J17: 0 | K17: 161 | L17: 337
A18: 9 | B18: 160 | C18: 0 | D18: 0 | E18: 0 | F18: 160 | G18: 192 | H18: 0 | I18: 0 | J18: 0 | K18: 192 | L18: 352
A19: 10 | B19: 211 | C19: 0 | D19: 0 | E19: 0 | F19: 211 | G19: 193 | H19: 0 | I19: 0 | J19: 0 | K19: 193 | L19: 404
A20: 11 | B20: 183 | C20: 0 | D20: 0 | E20: 0 | F20: 183 | G20: 183 | H20: 0 | I20: 0 | J20: 0 | K20: 183 | L20: 366
A21: 12 | B21: 196 | C21: 0 | D21: 0 | E21: 0 | F21: 196 | G21: 158 | H21: 0 | I21: 0 | J21: 0 | K21: 158 | L21: 354
A22: 13 | B22: 189 | C22: 0 | D22: 0 | E22: 0 | F22: 189 | G22: 198 | H22: 0 | I22: 0 | J22: 0 | K22: 198 | L22: 387
A23: 14 | B23: 186 | C23: 0 | D23: 0 | E23: 0 | F23: 186 | G23: 175 | H23: 0 | I23: 0 | J23: 0 | K23: 175 | L23: 361
A24: 15 | B24: 216 | C24: 0 | D24: 0 | E24: 0 | F24: 216 | G24: 170 | H24: 0 | I24: 0 | J24: 0 | K24: 170 | L24: 386
A25: 16 | B25: 176 | C25: 0 | D25: 0 | E25: 0 | F25: 176 | G25: 170 | H25: 0 | I25: 0 | J25: 0 | K25: 170 | L25: 346
A26: 17 | B26: 172 | C26: 0 | D26: 0 | E26: 0 | F26: 172 | G26: 172 | H26: 0 | I26: 0 | J26: 0 | K26: 172 | L26: 344
A27: 18 | B27: 212 | C27: 0 | D27: 0 | E27: 0 | F27: 212 | G27: 193 | H27: 1 | I27: 0 | J27: 0 | K27: 194 | L27: 406
A28: 19 | B28: 179 | C28: 0 | D28: 0 | E28: 0 | F28: 179 | G28: 149 | H28: 3 | I28: 0 | J28: 0 | K28: 152 | L28: 331
A29: 20 | B29: 213 | C29: 0 | D29: 0 | E29: 0 | F29: 213 | G29: 172 | H29: 2 | I29: 0 | J29: 0 | K29: 174 | L29: 387
A30: 21 | B30: 219 | C30: 3 | D30: 0 | E30: 0 | F30: 222 | G30: 204 | H30: 3 | I30: 0 | J30: 0 | K30: 207 | L30: 429
A31: 22 | B31: 204 | C31: 1 | D31: 0 | E31: 0 | F31: 205 | G31: 170 | H31: 4 | I31: 0 | J31: 0 | K31: 174 | L31: 379
A32: 23 | B32: 213 | C32: 3 | D32: 0 | E32: 0 | F32: 216 | G32: 184 | H32: 23 | I32: 0 | J32: 0 | K32: 207 | L32: 423
A33: 24 | B33: 230 | C33: 10 | D33: 0 | E33: 0 | F33: 240 | G33: 198 | H33: 16 | I33: 0 | J33: 0 | K33: 214 | L33: 454
A34: 25 | B34: 210 | C34: 9 | D34: 0 | E34: 0 | F34: 219 | G34: 190 | H34: 45 | I34: 0 | J34: 0 | K34: 235 | L34: 454
A35: 26 | B35: 226 | C35: 24 | D35: 0 | E35: 0 | F35: 250 | G35: 183 | H35: 61 | I35: 0 | J35: 0 | K35: 244 | L35: 494
A36: 27 | B36: 182 | C36: 36 | D36: 0 | E36: 0 | F36: 218 | G36: 188 | H36: 76 | I36: 1 | J36: 0 | K36: 265 | L36: 483
A37: 28 | B37: 235 | C37: 40 | D37: 1 | E37: 0 | F37: 276 | G37: 197 | H37: 84 | I37: 1 | J37: 1 | K37: 283 | L37: 559
A38: 29 | B38: 210 | C38: 82 | D38: 1 | E38: 0 | F38: 293 | G38: 165 | H38: 132 | I38: 1 | J38: 0 | K38: 298 | L38: 591
A39: 30 | B39: 205 | C39: 90 | D39: 0 | E39: 0 | F39: 295 | G39: 163 | H39: 166 | I39: 1 | J39: 0 | K39: 330 | L39: 625
A40: 31 | B40: 199 | C40: 108 | D40: 2 | E40: 0 | F40: 309 | G40: 140 | H40: 196 | I40: 2 | J40: 2 | K40: 340 | L40: 649
A41: 32 | B41: 200 | C41: 107 | D41: 0 | E41: 0 | F41: 307 | G41: 119 | H41: 231 | I41: 1 | J41: 0 | K41: 351 | L41: 658
A42: 33 | B42: 164 | C42: 188 | D42: 0 | E42: 0 | F42: 352 | G42: 110 | H42: 217 | I42: 2 | J42: 2 | K42: 331 | L42: 683
A43: 34 | B43: 140 | C43: 191 | D43: 2 | E43: 1 | F43: 334 | G43: 83 | H43: 238 | I43: 4 | J43: 3 | K43: 328 | L43: 662
A44: 35 | B44: 107 | C44: 194 | D44: 0 | E44: 0 | F44: 301 | G44: 75 | H44: 273 | I44: 2 | J44: 0 | K44: 350 | L44: 651
A45: 36 | B45: 98 | C45: 213 | D45: 6 | E45: 0 | F45: 317 | G45: 65 | H45: 266 | I45: 8 | J45: 2 | K45: 341 | L45: 658
A46: 37 | B46: 87 | C46: 241 | D46: 4 | E46: 1 | F46: 333 | G46: 82 | H46: 295 | I46: 6 | J46: 6 | K46: 389 | L46: 722
A47: 38 | B47: 78 | C47: 235 | D47: 6 | E47: 1 | F47: 320 | G47: 63 | H47: 279 | I47: 11 | J47: 4 | K47: 357 | L47: 677
A48: 39 | B48: 79 | C48: 276 | D48: 7 | E48: 0 | F48: 362 | G48: 49 | H48: 335 | I48: 12 | J48: 2 | K48: 398 | L48: 760
A49: 40 | B49: 64 | C49: 262 | D49: 3 | E49: 1 | F49: 330 | G49: 40 | H49: 258 | I49: 6 | J49: 7 | K49: 311 | L49: 641
A50: 41 | B50: 50 | C50: 265 | D50: 7 | E50: 2 | F50: 324 | G50: 51 | H50: 271 | I50: 13 | J50: 7 | K50: 342 | L50: 666
A51: 42 | B51: 46 | C51: 245 | D51: 6 | E51: 2 | F51: 299 | G51: 38 | H51: 255 | I51: 15 | J51: 5 | K51: 313 | L51: 612
A52: 43 | B52: 31 | C52: 253 | D52: 3 | E52: 0 | F52: 287 | G52: 26 | H52: 255 | I52: 11 | J52: 4 | K52: 296 | L52: 583
A53: 44 | B53: 26 | C53: 240 | D53: 15 | E53: 3 | F53: 284 | G53: 34 | H53: 246 | I53: 15 | J53: 7 | K53: 302 | L53: 586
A54: 45 | B54: 27 | C54: 244 | D54: 7 | E54: 1 | F54: 279 | G54: 18 | H54: 259 | I54: 15 | J54: 5 | K54: 297 | L54: 576
A55: 46 | B55: 27 | C55: 225 | D55: 4 | E55: 2 | F55: 258 | G55: 22 | H55: 210 | I55: 12 | J55: 5 | K55: 249 | L55: 507
A56: 47 | B56: 23 | C56: 182 | D56: 6 | E56: 2 | F56: 213 | G56: 17 | H56: 245 | I56: 11 | J56: 9 | K56: 282 | L56: 495
A57: 48 | B57: 25 | C57: 235 | D57: 7 | E57: 1 | F57: 268 | G57: 18 | H57: 218 | I57: 11 | J57: 4 | K57: 251 | L57: 519
A58: 49 | B58: 27 | C58: 230 | D58: 6 | E58: 1 | F58: 264 | G58: 14 | H58: 228 | I58: 12 | J58: 10 | K58: 264 | L58: 528
A59: 50 | B59: 23 | C59: 212 | D59: 8 | E59: 2 | F59: 245 | G59: 14 | H59: 202 | I59: 11 | J59: 7 | K59: 234 | L59: 479
A60: 51 | B60: 12 | C60: 193 | D60: 8 | E60: 1 | F60: 214 | G60: 13 | H60: 222 | I60: 14 | J60: 12 | K60: 261 | L60: 475
A61: 52 | B61: 19 | C61: 201 | D61: 6 | E61: 3 | F61: 229 | G61: 18 | H61: 210 | I61: 10 | J61: 8 | K61: 246 | L61: 475
A62: 53 | B62: 18 | C62: 223 | D62: 4 | E62: 1 | F62: 246 | G62: 16 | H62: 190 | I62: 7 | J62: 17 | K62: 230 | L62: 476
A63: 54 | B63: 17 | C63: 197 | D63: 4 | E63: 4 | F63: 222 | G63: 14 | H63: 235 | I63: 4 | J63: 16 | K63: 269 | L63: 491
A64: 55 | B64: 14 | C64: 235 | D64: 7 | E64: 5 | F64: 261 | G64: 17 | H64: 219 | I64: 5 | J64: 14 | K64: 255 | L64: 516
A65: 56 | B65: 13 | C65: 230 | D65: 7 | E65: 9 | F65: 259 | G65: 9 | H65: 217 | I65: 9 | J65: 11 | K65: 246 | L65: 505
A66: 57 | B66: 11 | C66: 229 | D66: 6 | E66: 4 | F66: 250 | G66: 9 | H66: 230 | I66: 12 | J66: 26 | K66: 277 | L66: 527
A67: 58 | B67: 8 | C67: 174 | D67: 2 | E67: 4 | F67: 188 | G67: 12 | H67: 167 | I67: 2 | J67: 18 | K67: 199 | L67: 387
A68: 59 | B68: 11 | C68: 174 | D68: 7 | E68: 8 | F68: 200 | G68: 16 | H68: 148 | I68: 4 | J68: 17 | K68: 185 | L68: 385
A69: 60 | B69: 4 | C69: 170 | D69: 4 | E69: 5 | F69: 183 | G69: 8 | H69: 179 | I69: 6 | J69: 21 | K69: 214 | L69: 397
A70: 61 | B70: 6 | C70: 164 | D70: 5 | E70: 7 | F70: 182 | G70: 13 | H70: 164 | I70: 8 | J70: 36 | K70: 221 | L70: 403
A71: 62 | B71: 10 | C71: 175 | D71: 3 | E71: 5 | F71: 193 | G71: 10 | H71: 160 | I71: 4 | J71: 34 | K71: 208 | L71: 401
A72: 63 | B72: 6 | C72: 183 | D72: 4 | E72: 6 | F72: 199 | G72: 11 | H72: 194 | I72: 3 | J72: 41 | K72: 249 | L72: 448
A73: 64 | B73: 6 | C73: 170 | D73: 2 | E73: 2 | F73: 180 | G73: 20 | H73: 188 | I73: 5 | J73: 44 | K73: 257 | L73: 437
A74: 65 | B74: 5 | C74: 192 | D74: 1 | E74: 10 | F74: 208 | G74: 10 | H74: 154 | I74: 5 | J74: 47 | K74: 216 | L74: 424
A75: 66 | B75: 5 | C75: 192 | D75: 3 | E75: 12 | F75: 212 | G75: 9 | H75: 146 | I75: 2 | J75: 48 | K75: 205 | L75: 417
A76: 67 | B76: 5 | C76: 173 | D76: 1 | E76: 6 | F76: 185 | G76: 14 | H76: 124 | I76: 2 | J76: 61 | K76: 201 | L76: 386
A77: 68 | B77: 5 | C77: 150 | D77: 1 | E77: 9 | F77: 165 | G77: 10 | H77: 124 | I77: 7 | J77: 53 | K77: 194 | L77: 359
A78: 69 | B78: 4 | C78: 149 | D78: 2 | E78: 12 | F78: 167 | G78: 11 | H78: 124 | I78: 1 | J78: 57 | K78: 193 | L78: 360
A79: 70 | B79: 4 | C79: 126 | D79: 2 | E79: 11 | F79: 143 | G79: 8 | H79: 92 | I79: 0 | J79: 49 | K79: 149 | L79: 292
A80: 71 | B80: 4 | C80: 122 | D80: 2 | E80: 9 | F80: 137 | G80: 12 | H80: 102 | I80: 0 | J80: 50 | K80: 164 | L80: 301
A81: 72 | B81: 6 | C81: 123 | D81: 0 | E81: 12 | F81: 141 | G81: 5 | H81: 123 | I81: 0 | J81: 68 | K81: 196 | L81: 337
A82: 73 | B82: 4 | C82: 120 | D82: 0 | E82: 12 | F82: 136 | G82: 9 | H82: 96 | I82: 0 | J82: 80 | K82: 185 | L82: 321
A83: 74 | B83: 5 | C83: 113 | D83: 0 | E83: 11 | F83: 129 | G83: 5 | H83: 67 | I83: 2 | J83: 51 | K83: 125 | L83: 254
A84: 75 | B84: 5 | C84: 99 | D84: 1 | E84: 14 | F84: 119 | G84: 11 | H84: 66 | I84: 1 | J84: 66 | K84: 144 | L84: 263
A85: 76 | B85: 2 | C85: 76 | D85: 0 | E85: 18 | F85: 96 | G85: 4 | H85: 55 | I85: 2 | J85: 73 | K85: 134 | L85: 230
A86: 77 | B86: 3 | C86: 96 | D86: 0 | E86: 16 | F86: 115 | G86: 7 | H86: 56 | I86: 2 | J86: 74 | K86: 139 | L86: 254
A87: 78 | B87: 2 | C87: 71 | D87: 0 | E87: 7 | F87: 80 | G87: 8 | H87: 54 | I87: 3 | J87: 72 | K87: 137 | L87: 217
A88: 79 | B88: 3 | C88: 68 | D88: 2 | E88: 13 | F88: 86 | G88: 4 | H88: 31 | I88: 0 | J88: 70 | K88: 105 | L88: 191
A89: 80 | B89: 3 | C89: 64 | D89: 1 | E89: 7 | F89: 75 | G89: 6 | H89: 26 | I89: 1 | J89: 74 | K89: 107 | L89: 182
A90: 81 | B90: 0 | C90: 59 | D90: 0 | E90: 12 | F90: 71 | G90: 6 | H90: 41 | I90: 1 | J90: 68 | K90: 116 | L90: 187
A91: 82 | B91: 0 | C91: 43 | D91: 0 | E91: 18 | F91: 61 | G91: 5 | H91: 21 | I91: 0 | J91: 71 | K91: 97 | L91: 158
A92: 83 | B92: 3 | C92: 36 | D92: 0 | E92: 9 | F92: 48 | G92: 6 | H92: 19 | I92: 0 | J92: 56 | K92: 81 | L92: 129
A93: 84 | B93: 0 | C93: 25 | D93: 0 | E93: 7 | F93: 32 | G93: 2 | H93: 8 | I93: 0 | J93: 44 | K93: 54 | L93: 86
A94: 85 | B94: 0 | C94: 21 | D94: 0 | E94: 7 | F94: 28 | G94: 6 | H94: 9 | I94: 0 | J94: 30 | K94: 45 | L94: 73
A95: 86 | B95: 0 | C95: 13 | D95: 0 | E95: 4 | F95: 17 | G95: 2 | H95: 5 | I95: 1 | J95: 24 | K95: 32 | L95: 49
A96: 87 | B96: 1 | C96: 13 | D96: 0 | E96: 8 | F96: 22 | G96: 4 | H96: 4 | I96: 0 | J96: 33 | K96: 41 | L96: 63
A97: 88 | B97: 0 | C97: 17 | D97: 0 | E97: 2 | F97: 19 | G97: 3 | H97: 3 | I97: 0 | J97: 40 | K97: 46 | L97: 65
A98: 89 | B98: 0 | C98: 7 | D98: 0 | E98: 9 | F98: 16 | G98: 2 | H98: 4 | I98: 0 | J98: 29 | K98: 35 | L98: 51
A99: 90 | B99: 1 | C99: 8 | D99: 0 | E99: 2 | F99: 11 | G99: 1 | H99: 5 | I99: 0 | J99: 17 | K99: 23 | L99: 34
A100: 91 | B100: 0 | C100: 5 | D100: 0 | E100: 7 | F100: 12 | G100: 1 | H100: 2 | I100: 1 | J100: 21 | K100: 25 | L100: 37
A101: 92 | B101: 0 | C101: 4 | D101: 0 | E101: 5 | F101: 9 | G101: 0 | H101: 0 | I101: 0 | J101: 19 | K101: 19 | L101: 28
A102: 93 | B102: 0 | C102: 2 | D102: 0 | E102: 5 | F102: 7 | G102: 3 | H102: 0 | I102: 0 | J102: 13 | K102: 16 | L102: 23
A103: 94 | B103: 0 | C103: 0 | D103: 0 | E103: 4 | F103: 4 | G103: 3 | H103: 0 | I103: 0 | J103: 4 | K103: 7 | L103: 11
A104: 95 | B104: 0 | C104: 1 | D104: 0 | E104: 0 | F104: 1 | G104: 1 | H104: 0 | I104: 0 | J104: 2 | K104: 3 | L104: 4
A105: 96 | B105: 0 | C105: 0 | D105: 0 | E105: 3 | F105: 3 | G105: 0 | H105: 0 | I105: 0 | J105: 1 | K105: 1 | L105: 4
A106: 97 | B106: 0 | C106: 1 | D106: 0 | E106: 0 | F106: 1 | G106: 0 | H106: 0 | I106: 0 | J106: 3 | K106: 3 | L106: 4
A107: 98 | B107: 0 | C107: 0 | D107: 0 | E107: 0 | F107: 0 | G107: 0 | H107: 0 | I107: 0 | J107: 3 | K107: 3 | L107: 3
A108: 99 | B108: 0 | C108: 0 | D108: 0 | E108: 0 | F108: 0 | G108: 0 | H108: 0 | I108: 0 | J108: 1 | K108: 1 | L108: 1
A109: 100 e pi� | B109: 0 | C109: 0 | D109: 0 | E109: 1 | F109: 1 | G109: 0 | H109: 0 | I109: 0 | J109: 0 | K109: 0 | L109: 1
A110: TOTALE | B110: 7813 | C110: 9551 | D110: 186 | E110: 366 | F110: 17916 | G110: 7051 | H110: 9877 | I110: 308 | J110: 1879 | K110: 19115 | L110: 37031

Sheet 2004 fasce
A1: torna all'indice
A2: Popolazione residente al 1 Gennaio 2004 per età, sesso e stato civile
A3: Comune: Ciampino
A4: Eta' | B4: Celibi | C4: Coniugati | D4: Divorziati | E4: Vedovi | F4: Totale Maschi | G4: Nubili | H4: Coniugate | I4: Divorziate | J4: Vedove | K4: Totale Femmine | L4: Maschi + femmine
L5: +
L6: Femmine
A7: da 0 a 5 | B7: 1103 | C7: 0 | D7: 0 | E7: 0 | F7: 1103 | G7: 1103 | H7: 0 | I7: 0 | J7: 0 | K7: 1103 | L7: 2206
A8: da 6 a 10 | B8: 908 | C8: 0 | D8: 0 | E8: 0 | F8: 908 | G8: 924 | H8: 0 | I8: 0 | J8: 0 | K8: 924 | L8: 1832
A9: da 11 a 15 | B9: 970 | C9: 0 | D9: 0 | E9: 0 | F9: 970 | G9: 884 | H9: 0 | I9: 0 | J9: 0 | K9: 884 | L9: 1854
A10: da 16 a 20 | B10: 952 | C10: 0 | D10: 0 | E10: 0 | F10: 952 | G10: 856 | H10: 6 | I10: 0 | J10: 0 | K10: 862 | L10: 1814
A11: da 21 a 25 | B11: 1076 | C11: 26 | D11: 0 | E11: 0 | F11: 1102 | G11: 946 | H11: 91 | I11: 0 | J11: 0 | K11: 1037 | L11: 2139
A12: da 26 a 30 | B12: 1058 | C12: 272 | D12: 2 | E12: 0 | F12: 1332 | G12: 896 | H12: 519 | I12: 4 | J12: 1 | K12: 1420 | L12: 2752
A13: da 31 a 35 | B13: 810 | C13: 788 | D13: 4 | E13: 1 | F13: 1603 | G13: 527 | H13: 1155 | I13: 11 | J13: 7 | K13: 1700 | L13: 3303
A14: da 36 a 40 | B14: 406 | C14: 1227 | D14: 26 | E14: 3 | F14: 1662 | G14: 299 | H14: 1433 | I14: 43 | J14: 21 | K14: 1796 | L14: 3458
A15: da 41 a 45 | B15: 180 | C15: 1247 | D15: 38 | E15: 8 | F15: 1473 | G15: 167 | H15: 1286 | I15: 69 | J15: 28 | K15: 1550 | L15: 3023
A16: da 46 a 50 | B16: 125 | C16: 1084 | D16: 31 | E16: 8 | F16: 1248 | G16: 85 | H16: 1103 | I16: 57 | J16: 35 | K16: 1280 | L16: 2528
A17: da 51 a 55 | B17: 80 | C17: 1049 | D17: 29 | E17: 14 | F17: 1172 | G17: 78 | H17: 1076 | I17: 40 | J17: 67 | K17: 1261 | L17: 2433
A18: da 56 a 60 | B18: 47 | C18: 977 | D18: 26 | E18: 30 | F18: 1080 | G18: 54 | H18: 941 | I18: 33 | J18: 93 | K18: 1121 | L18: 2201
A19: da 61 a 65 | B19: 33 | C19: 884 | D19: 15 | E19: 30 | F19: 962 | G19: 64 | H19: 860 | I19: 25 | J19: 202 | K19: 1151 | L19: 2113
A20: da 66 a 70 | B20: 23 | C20: 790 | D20: 9 | E20: 50 | F20: 872 | G20: 52 | H20: 610 | I20: 12 | J20: 268 | K20: 942 | L20: 1814
A21: da 71 a 75 | B21: 24 | C21: 577 | D21: 3 | E21: 58 | F21: 662 | G21: 42 | H21: 454 | I21: 3 | J21: 315 | K21: 814 | L21: 1476
A22: da 76 a 80 | B22: 13 | C22: 375 | D22: 3 | E22: 61 | F22: 452 | G22: 29 | H22: 222 | I22: 8 | J22: 363 | K22: 622 | L22: 1074
A23: da 81 a 85 | B23: 3 | C23: 184 | D23: 0 | E23: 53 | F23: 240 | G23: 25 | H23: 98 | I23: 1 | J23: 269 | K23: 393 | L23: 633
A24: da 86 a 90 | B24: 2 | C24: 58 | D24: 0 | E24: 25 | F24: 85 | G24: 12 | H24: 21 | I24: 1 | J24: 143 | K24: 177 | L24: 262
A25: da 91 95 | B25: 0 | C25: 12 | D25: 0 | E25: 21 | F25: 33 | G25: 8 | H25: 2 | I25: 1 | J25: 59 | K25: 70 | L25: 103
A26: oltre 95 | B26: 0 | C26: 1 | D26: 0 | E26: 4 | F26: 5 | G26: 0 | H26: 0 | I26: 0 | J26: 8 | K26: 8 | L26: 13
A27: TOTALE | B27: =SUM(B7:B26) -> 7813 | C27: =SUM(C7:C26) -> 9551 | D27: 186 | E27: 366 | F27: 17916 | G27: 7051 | H27: 9877 | I27: 308 | J27: 1879 | K27: 19115 | L27: 37031
A100: Eta' | B100: Celibi | C100: Coniu | D100: Divorziati | E100: Vedovi | F100: Totale | G100: Nubili | H100: Coniu | I100: Divorziate | J100: Vedove | K100: Totale | L100: Maschi + femmine
C101: gati | F101: Maschi | H101: gate | K101: Femmine | L101: +
L102: Femmine
A103: da 0 a 5 | B103: 1103 | C103: 0 | D103: 0 | E103: 0 | F103: 1103 | G103: -1103 | H103: 0 | I103: 0 | J103: 0 | K103: -1103 | L103: 2206 | M103: =G103-(G103*2) -> 1103 | N103: =H103-(H103*2) -> 0 | O103: 0 | P103: 0 | Q103: 1103
A104: da 6 a 10 | B104: 908 | C104: 0 | D104: 0 | E104: 0 | F104: 908 | G104: -924 | H104: 0 | I104: 0 | J104: 0 | K104: -924 | L104: 1832 | M104: =G104-(G104*2) -> 924 | N104: 0 | O104: 0 | P104: 0 | Q104: 924
A105: da 11 a 15 | B105: 970 | C105: 0 | D105: 0 | E105: 0 | F105: 970 | G105: -884 | H105: 0 | I105: 0 | J105: 0 | K105: -884 | L105: 1854 | M105: 884 | N105: 0 | O105: 0 | P105: 0 | Q105: 884
A106: da 16 a 20 | B106: 952 | C106: 0 | D106: 0 | E106: 0 | F106: 952 | G106: -856 | H106: -6 | I106: 0 | J106: 0 | K106: -862 | L106: 1814 | M106: 856 | N106: 6 | O106: 0 | P106: 0 | Q106: 862
A107: da 21 a 25 | B107: 1076 | C107: 26 | D107: 0 | E107: 0 | F107: 1102 | G107: -946 | H107: -91 | I107: 0 | J107: 0 | K107: -1037 | L107: 2139 | M107: 946 | N107: 91 | O107: 0 | P107: 0 | Q107: 1037
A108: da 26 a 30 | B108: 1058 | C108: 272 | D108: 2 | E108: 0 | F108: 1332 | G108: -896 | H108: -519 | I108: -4 | J108: -1 | K108: -1420 | L108: 2752 | M108: 896 | N108: 519 | O108: 4 | P108: 1 | Q108: 1420
A109: da 31 a 35 | B109: 810 | C109: 788 | D109: 4 | E109: 1 | F109: 1603 | G109: -527 | H109: -1155 | I109: -11 | J109: -7 | K109: -1700 | L109: 3303 | M109: 527 | N109: 1155 | O109: 11 | P109: 7 | Q109: 1700
A110: da 36 a 40 | B110: 406 | C110: 1227 | D110: 26 | E110: 3 | F110: 1662 | G110: -299 | H110: -1433 | I110: -43 | J110: -21 | K110: -1796 | L110: 3458 | M110: 299 | N110: 1433 | O110: 43 | P110: 21 | Q110: 1796
A111: da 41 a 45 | B111: 180 | C111: 1247 | D111: 38 | E111: 8 | F111: 1473 | G111: -167 | H111: -1286 | I111: -69 | J111: -28 | K111: -1550 | L111: 3023 | M111: 167 | N111: 1286 | O111: 69 | P111: 28 | Q111: 1550
A112: da 46 a 50 | B112: 125 | C112: 1084 | D112: 31 | E112: 8 | F112: 1248 | G112: -85 | H112: -1103 | I112: -57 | J112: -35 | K112: -1280 | L112: 2528 | M112: 85 | N112: 1103 | O112: 57 | P112: 35 | Q112: 1280
A113: da 51 a 55 | B113: 80 | C113: 1049 | D113: 29 | E113: 14 | F113: 1172 | G113: -78 | H113: -1076 | I113: -40 | J113: -67 | K113: -1261 | L113: 2433 | M113: 78 | N113: 1076 | O113: 40 | P113: 67 | Q113: 1261
A114: da 56 a 60 | B114: 47 | C114: 977 | D114: 26 | E114: 30 | F114: 1080 | G114: -54 | H114: -941 | I114: -33 | J114: -93 | K114: -1121 | L114: 2201 | M114: 54 | N114: 941 | O114: 33 | P114: 93 | Q114: 1121
A115: da 61 a 65 | B115: 33 | C115: 884 | D115: 15 | E115: 30 | F115: 962 | G115: -64 | H115: -860 | I115: -25 | J115: -202 | K115: -1151 | L115: 2113 | M115: 64 | N115: 860 | O115: 25 | P115: 202 | Q115: 1151
A116: da 66 a 70 | B116: 23 | C116: 790 | D116: 9 | E116: 50 | F116: 872 | G116: -52 | H116: -610 | I116: -12 | J116: -268 | K116: -942 | L116: 1814 | M116: 52 | N116: 610 | O116: 12 | P116: 268 | Q116: 942
A117: da 71 a 75 | B117: 24 | C117: 577 | D117: 3 | E117: 58 | F117: 662 | G117: -42 | H117: -454 | I117: -3 | J117: -315 | K117: -814 | L117: 1476 | M117: 42 | N117: 454 | O117: 3 | P117: 315 | Q117: 814
A118: da 76 a 80 | B118: 13 | C118: 375 | D118: 3 | E118: 61 | F118: 452 | G118: -29 | H118: -222 | I118: -8 | J118: -363 | K118: -622 | L118: 1074 | M118: 29 | N118: 222 | O118: 8 | P118: 363 | Q118: 622
A119: da 81 a 85 | B119: 3 | C119: 184 | D119: 0 | E119: 53 | F119: 240 | G119: -25 | H119: -98 | I119: -1 | J119: -269 | K119: -393 | L119: 633 | M119: 25 | N119: 98 | O119: 1 | P119: 269 | Q119: 393
A120: da 86 a 90 | B120: 2 | C120: 58 | D120: 0 | E120: 25 | F120: 85 | G120: -12 | H120: -21 | I120: -1 | J120: -143 | K120: -177 | L120: 262 | M120: 12 | N120: 21 | O120: 1 | P120: 143 | Q120: 177
A121: da 91 95 | B121: 0 | C121: 12 | D121: 0 | E121: 21 | F121: 33 | G121: -8 | H121: -2 | I121: -1 | J121: -59 | K121: -70 | L121: 103 | M121: 8 | N121: 2 | O121: 1 | P121: 59 | Q121: 70
A122: oltre 95 | B122: 0 | C122: 1 | D122: 0 | E122: 4 | F122: 5 | G122: 0 | H122: 0 | I122: 0 | J122: -8 | K122: -8 | L122: 13 | M122: 0 | N122: 0 | O122: 0 | P122: 8 | Q122: 8
A123: TOTALE | B123: =SUM(B103:B122) -> 7813 | C123: =SUM(C103:C122) -> 9551 | D123: 186 | E123: 366 | F123: 17916 | G123: -7051 | H123: -9877 | I123: -308 | J123: -1879 | K123: -19115 | L123: 37031

Sheet 2005
A1: torna all'indice
A3: Popolazione residente al 1 Gennaio 2005 per età, sesso e stato civile
A4: Comune: Ciampino
A6: Eta' | B6: Celibi | C6: Coniugati | D6: Divorziati | E6: Vedovi | F6: Totale Maschi | G6: Nubili | H6: Coniugate | I6: Divorziate | J6: Vedove | K6: Totale Femmine | L6: Maschi +femmine
L7: +
L8: Femmine
A9: 0 | B9: 188 | C9: 0 | D9: 0 | E9: 0 | F9: 188 | G9: 189 | H9: 0 | I9: 0 | J9: 0 | K9: 189 | L9: 377
A10: 1 | B10: 201 | C10: 0 | D10: 0 | E10: 0 | F10: 201 | G10: 212 | H10: 0 | I10: 0 | J10: 0 | K10: 212 | L10: 413
A11: 2 | B11: 171 | C11: 0 | D11: 0 | E11: 0 | F11: 171 | G11: 175 | H11: 0 | I11: 0 | J11: 0 | K11: 175 | L11: 346
A12: 3 | B12: 199 | C12: 0 | D12: 0 | E12: 0 | F12: 199 | G12: 169 | H12: 0 | I12: 0 | J12: 0 | K12: 169 | L12: 368
A13: 4 | B13: 175 | C13: 0 | D13: 0 | E13: 0 | F13: 175 | G13: 192 | H13: 0 | I13: 0 | J13: 0 | K13: 192 | L13: 367
A14: 5 | B14: 203 | C14: 0 | D14: 0 | E14: 0 | F14: 203 | G14: 194 | H14: 0 | I14: 0 | J14: 0 | K14: 194 | L14: 397
A15: 6 | B15: 182 | C15: 0 | D15: 0 | E15: 0 | F15: 182 | G15: 172 | H15: 0 | I15: 0 | J15: 0 | K15: 172 | L15: 354
A16: 7 | B16: 189 | C16: 0 | D16: 0 | E16: 0 | F16: 189 | G16: 186 | H16: 0 | I16: 0 | J16: 0 | K16: 186 | L16: 375
A17: 8 | B17: 186 | C17: 0 | D17: 0 | E17: 0 | F17: 186 | G17: 202 | H17: 0 | I17: 0 | J17: 0 | K17: 202 | L17: 388
A18: 9 | B18: 174 | C18: 0 | D18: 0 | E18: 0 | F18: 174 | G18: 164 | H18: 0 | I18: 0 | J18: 0 | K18: 164 | L18: 338
A19: 10 | B19: 163 | C19: 0 | D19: 0 | E19: 0 | F19: 163 | G19: 194 | H19: 0 | I19: 0 | J19: 0 | K19: 194 | L19: 357
A20: 11 | B20: 216 | C20: 0 | D20: 0 | E20: 0 | F20: 216 | G20: 203 | H20: 0 | I20: 0 | J20: 0 | K20: 203 | L20: 419
A21: 12 | B21: 181 | C21: 0 | D21: 0 | E21: 0 | F21: 181 | G21: 189 | H21: 0 | I21: 0 | J21: 0 | K21: 189 | L21: 370
A22: 13 | B22: 200 | C22: 0 | D22: 0 | E22: 0 | F22: 200 | G22: 156 | H22: 0 | I22: 0 | J22: 0 | K22: 156 | L22: 356
A23: 14 | B23: 193 | C23: 0 | D23: 0 | E23: 0 | F23: 193 | G23: 196 | H23: 0 | I23: 0 | J23: 0 | K23: 196 | L23: 389
A24: 15 | B24: 190 | C24: 0 | D24: 0 | E24: 0 | F24: 190 | G24: 177 | H24: 0 | I24: 0 | J24: 0 | K24: 177 | L24: 367
A25: 16 | B25: 221 | C25: 0 | D25: 0 | E25: 0 | F25: 221 | G25: 175 | H25: 0 | I25: 0 | J25: 0 | K25: 175 | L25: 396
A26: 17 | B26: 177 | C26: 0 | D26: 0 | E26: 0 | F26: 177 | G26: 174 | H26: 0 | I26: 0 | J26: 0 | K26: 174 | L26: 351
A27: 18 | B27: 174 | C27: 0 | D27: 0 | E27: 0 | F27: 174 | G27: 173 | H27: 0 | I27: 0 | J27: 0 | K27: 173 | L27: 347
A28: 19 | B28: 213 | C28: 0 | D28: 0 | E28: 0 | F28: 213 | G28: 192 | H28: 1 | I28: 0 | J28: 0 | K28: 193 | L28: 406
A29: 20 | B29: 188 | C29: 0 | D29: 0 | E29: 0 | F29: 188 | G29: 147 | H29: 3 | I29: 0 | J29: 0 | K29: 150 | L29: 338
A30: 21 | B30: 222 | C30: 0 | D30: 0 | E30: 0 | F30: 222 | G30: 169 | H30: 3 | I30: 0 | J30: 0 | K30: 172 | L30: 394
A31: 22 | B31: 226 | C31: 2 | D31: 0 | E31: 1 | F31: 229 | G31: 199 | H31: 7 | I31: 0 | J31: 0 | K31: 206 | L31: 435
A32: 23 | B32: 203 | C32: 1 | D32: 0 | E32: 0 | F32: 204 | G32: 165 | H32: 5 | I32: 0 | J32: 0 | K32: 170 | L32: 374
A33: 24 | B33: 210 | C33: 7 | D33: 0 | E33: 1 | F33: 218 | G33: 182 | H33: 34 | I33: 0 | J33: 0 | K33: 216 | L33: 434
A34: 25 | B34: 232 | C34: 17 | D34: 0 | E34: 1 | F34: 250 | G34: 195 | H34: 26 | I34: 0 | J34: 0 | K34: 221 | L34: 471
A35: 26 | B35: 199 | C35: 16 | D35: 0 | E35: 0 | F35: 215 | G35: 189 | H35: 48 | I35: 0 | J35: 0 | K35: 237 | L35: 452
A36: 27 | B36: 223 | C36: 27 | D36: 0 | E36: 0 | F36: 250 | G36: 171 | H36: 72 | I36: 0 | J36: 0 | K36: 243 | L36: 493
A37: 28 | B37: 184 | C37: 47 | D37: 0 | E37: 0 | F37: 231 | G37: 174 | H37: 99 | I37: 2 | J37: 0 | K37: 275 | L37: 506
A38: 29 | B38: 219 | C38: 53 | D38: 1 | E38: 0 | F38: 273 | G38: 172 | H38: 102 | I38: 1 | J38: 1 | K38: 276 | L38: 549
A39: 30 | B39: 188 | C39: 99 | D39: 1 | E39: 0 | F39: 288 | G39: 155 | H39: 142 | I39: 1 | J39: 0 | K39: 298 | L39: 586
A40: 31 | B40: 200 | C40: 105 | D40: 0 | E40: 0 | F40: 305 | G40: 155 | H40: 183 | I40: 2 | J40: 1 | K40: 341 | L40: 646
A41: 32 | B41: 178 | C41: 124 | D41: 2 | E41: 0 | F41: 304 | G41: 130 | H41: 211 | I41: 4 | J41: 2 | K41: 347 | L41: 651
A42: 33 | B42: 150 | C42: 149 | D42: 0 | E42: 0 | F42: 299 | G42: 111 | H42: 248 | I42: 3 | J42: 0 | K42: 362 | L42: 661
A43: 34 | B43: 153 | C43: 191 | D43: 1 | E43: 0 | F43: 345 | G43: 91 | H43: 245 | I43: 2 | J43: 2 | K43: 340 | L43: 685
A44: 35 | B44: 128 | C44: 211 | D44: 1 | E44: 0 | F44: 340 | G44: 81 | H44: 245 | I44: 5 | J44: 1 | K44: 332 | L44: 672
A45: 36 | B45: 94 | C45: 215 | D45: 1 | E45: 0 | F45: 310 | G45: 80 | H45: 269 | I45: 7 | J45: 1 | K45: 357 | L45: 667
A46: 37 | B46: 93 | C46: 226 | D46: 5 | E46: 0 | F46: 324 | G46: 61 | H46: 269 | I46: 9 | J46: 1 | K46: 340 | L46: 664
A47: 38 | B47: 83 | C47: 266 | D47: 5 | E47: 0 | F47: 354 | G47: 69 | H47: 295 | I47: 8 | J47: 7 | K47: 379 | L47: 733
A48: 39 | B48: 70 | C48: 242 | D48: 5 | E48: 1 | F48: 318 | G48: 53 | H48: 289 | I48: 10 | J48: 4 | K48: 356 | L48: 674
A49: 40 | B49: 70 | C49: 292 | D49: 7 | E49: 1 | F49: 370 | G49: 43 | H49: 335 | I49: 16 | J49: 2 | K49: 396 | L49: 766
A50: 41 | B50: 61 | C50: 266 | D50: 2 | E50: 1 | F50: 330 | G50: 36 | H50: 269 | I50: 6 | J50: 7 | K50: 318 | L50: 648
A51: 42 | B51: 45 | C51: 269 | D51: 5 | E51: 2 | F51: 321 | G51: 44 | H51: 276 | I51: 14 | J51: 7 | K51: 341 | L51: 662
A52: 43 | B52: 39 | C52: 258 | D52: 4 | E52: 2 | F52: 303 | G52: 32 | H52: 271 | I52: 19 | J52: 5 | K52: 327 | L52: 630
A53: 44 | B53: 30 | C53: 258 | D53: 3 | E53: 0 | F53: 291 | G53: 22 | H53: 258 | I53: 12 | J53: 4 | K53: 296 | L53: 587
A54: 45 | B54: 23 | C54: 243 | D54: 10 | E54: 3 | F54: 279 | G54: 36 | H54: 243 | I54: 13 | J54: 8 | K54: 300 | L54: 579
A55: 46 | B55: 24 | C55: 244 | D55: 7 | E55: 1 | F55: 276 | G55: 20 | H55: 263 | I55: 15 | J55: 4 | K55: 302 | L55: 578
A56: 47 | B56: 24 | C56: 227 | D56: 6 | E56: 2 | F56: 259 | G56: 21 | H56: 217 | I56: 15 | J56: 4 | K56: 257 | L56: 516
A57: 48 | B57: 24 | C57: 189 | D57: 4 | E57: 2 | F57: 219 | G57: 17 | H57: 252 | I57: 9 | J57: 10 | K57: 288 | L57: 507
A58: 49 | B58: 24 | C58: 236 | D58: 6 | E58: 1 | F58: 267 | G58: 19 | H58: 225 | I58: 11 | J58: 3 | K58: 258 | L58: 525
A59: 50 | B59: 27 | C59: 231 | D59: 6 | E59: 2 | F59: 266 | G59: 14 | H59: 231 | I59: 12 | J59: 10 | K59: 267 | L59: 533
A60: 51 | B60: 22 | C60: 215 | D60: 6 | E60: 2 | F60: 245 | G60: 14 | H60: 198 | I60: 11 | J60: 9 | K60: 232 | L60: 477
A61: 52 | B61: 12 | C61: 201 | D61: 6 | E61: 2 | F61: 221 | G61: 14 | H61: 221 | I61: 13 | J61: 12 | K61: 260 | L61: 481
A62: 53 | B62: 16 | C62: 207 | D62: 4 | E62: 4 | F62: 231 | G62: 15 | H62: 218 | I62: 9 | J62: 8 | K62: 250 | L62: 481
A63: 54 | B63: 17 | C63: 227 | D63: 3 | E63: 1 | F63: 248 | G63: 16 | H63: 191 | I63: 5 | J63: 17 | K63: 229 | L63: 477
A64: 55 | B64: 18 | C64: 203 | D64: 3 | E64: 5 | F64: 229 | G64: 14 | H64: 233 | I64: 4 | J64: 17 | K64: 268 | L64: 497
A65: 56 | B65: 13 | C65: 241 | D65: 5 | E65: 5 | F65: 264 | G65: 16 | H65: 213 | I65: 8 | J65: 16 | K65: 253 | L65: 517
A66: 57 | B66: 11 | C66: 236 | D66: 6 | E66: 7 | F66: 260 | G66: 8 | H66: 211 | I66: 8 | J66: 17 | K66: 244 | L66: 504
A67: 58 | B67: 10 | C67: 232 | D67: 6 | E67: 4 | F67: 252 | G67: 7 | H67: 236 | I67: 11 | J67: 27 | K67: 281 | L67: 533
A68: 59 | B68: 6 | C68: 176 | D68: 2 | E68: 5 | F68: 189 | G68: 11 | H68: 167 | I68: 2 | J68: 20 | K68: 200 | L68: 389
A69: 60 | B69: 9 | C69: 177 | D69: 6 | E69: 8 | F69: 200 | G69: 15 | H69: 149 | I69: 4 | J69: 19 | K69: 187 | L69: 387
A70: 61 | B70: 4 | C70: 172 | D70: 2 | E70: 6 | F70: 184 | G70: 7 | H70: 178 | I70: 6 | J70: 21 | K70: 212 | L70: 396
A71: 62 | B71: 7 | C71: 163 | D71: 3 | E71: 10 | F71: 183 | G71: 12 | H71: 165 | I71: 7 | J71: 38 | K71: 222 | L71: 405
A72: 63 | B72: 8 | C72: 172 | D72: 2 | E72: 6 | F72: 188 | G72: 9 | H72: 154 | I72: 3 | J72: 39 | K72: 205 | L72: 393
A73: 64 | B73: 6 | C73: 183 | D73: 4 | E73: 6 | F73: 199 | G73: 11 | H73: 187 | I73: 2 | J73: 48 | K73: 248 | L73: 447
A74: 65 | B74: 6 | C74: 175 | D74: 1 | E74: 2 | F74: 184 | G74: 18 | H74: 184 | I74: 7 | J74: 48 | K74: 257 | L74: 441
A75: 66 | B75: 4 | C75: 189 | D75: 1 | E75: 12 | F75: 206 | G75: 9 | H75: 148 | I75: 5 | J75: 51 | K75: 213 | L75: 419
A76: 67 | B76: 5 | C76: 186 | D76: 3 | E76: 12 | F76: 206 | G76: 9 | H76: 144 | I76: 3 | J76: 47 | K76: 203 | L76: 409
A77: 68 | B77: 4 | C77: 167 | D77: 1 | E77: 8 | F77: 180 | G77: 13 | H77: 122 | I77: 2 | J77: 68 | K77: 205 | L77: 385
A78: 69 | B78: 5 | C78: 154 | D78: 2 | E78: 9 | F78: 170 | G78: 10 | H78: 120 | I78: 7 | J78: 55 | K78: 192 | L78: 362
A79: 70 | B79: 4 | C79: 144 | D79: 2 | E79: 13 | F79: 163 | G79: 9 | H79: 123 | I79: 2 | J79: 60 | K79: 194 | L79: 357
A80: 71 | B80: 4 | C80: 122 | D80: 2 | E80: 9 | F80: 137 | G80: 8 | H80: 87 | I80: 0 | J80: 52 | K80: 147 | L80: 284
A81: 72 | B81: 4 | C81: 119 | D81: 1 | E81: 9 | F81: 133 | G81: 12 | H81: 100 | I81: 0 | J81: 52 | K81: 164 | L81: 297
A82: 73 | B82: 6 | C82: 121 | D82: 0 | E82: 12 | F82: 139 | G82: 6 | H82: 114 | I82: 0 | J82: 75 | K82: 195 | L82: 334
A83: 74 | B83: 3 | C83: 115 | D83: 0 | E83: 14 | F83: 132 | G83: 9 | H83: 91 | I83: 0 | J83: 83 | K83: 183 | L83: 315
A84: 75 | B84: 5 | C84: 107 | D84: 1 | E84: 13 | F84: 126 | G84: 4 | H84: 64 | I84: 2 | J84: 56 | K84: 126 | L84: 252
A85: 76 | B85: 4 | C85: 90 | D85: 1 | E85: 15 | F85: 110 | G85: 11 | H85: 60 | I85: 1 | J85: 66 | K85: 138 | L85: 248
A86: 77 | B86: 2 | C86: 71 | D86: 0 | E86: 17 | F86: 90 | G86: 5 | H86: 46 | I86: 1 | J86: 76 | K86: 128 | L86: 218
A87: 78 | B87: 3 | C87: 90 | D87: 0 | E87: 17 | F87: 110 | G87: 5 | H87: 50 | I87: 2 | J87: 79 | K87: 136 | L87: 246
A88: 79 | B88: 2 | C88: 68 | D88: 0 | E88: 5 | F88: 75 | G88: 9 | H88: 55 | I88: 2 | J88: 74 | K88: 140 | L88: 215
A89: 80 | B89: 3 | C89: 62 | D89: 2 | E89: 13 | F89: 80 | G89: 4 | H89: 28 | I89: 0 | J89: 67 | K89: 99 | L89: 179
A90: 81 | B90: 3 | C90: 57 | D90: 1 | E90: 9 | F90: 70 | G90: 6 | H90: 23 | I90: 0 | J90: 72 | K90: 101 | L90: 171
A91: 82 | B91: 0 | C91: 54 | D91: 0 | E91: 12 | F91: 66 | G91: 6 | H91: 36 | I91: 1 | J91: 65 | K91: 108 | L91: 174
A92: 83 | B92: 0 | C92: 40 | D92: 0 | E92: 19 | F92: 59 | G92: 5 | H92: 16 | I92: 0 | J92: 68 | K92: 89 | L92: 148
A93: 84 | B93: 2 | C93: 34 | D93: 0 | E93: 7 | F93: 43 | G93: 6 | H93: 16 | I93: 0 | J93: 60 | K93: 82 | L93: 125
A94: 85 | B94: 0 | C94: 23 | D94: 0 | E94: 6 | F94: 29 | G94: 3 | H94: 5 | I94: 0 | J94: 45 | K94: 53 | L94: 82
A95: 86 | B95: 0 | C95: 19 | D95: 0 | E95: 6 | F95: 25 | G95: 4 | H95: 6 | I95: 0 | J95: 31 | K95: 41 | L95: 66
A96: 87 | B96: 0 | C96: 10 | D96: 0 | E96: 5 | F96: 15 | G96: 2 | H96: 4 | I96: 1 | J96: 22 | K96: 29 | L96: 44
A97: 88 | B97: 0 | C97: 10 | D97: 0 | E97: 8 | F97: 18 | G97: 5 | H97: 3 | I97: 0 | J97: 31 | K97: 39 | L97: 57
A98: 89 | B98: 0 | C98: 12 | D98: 0 | E98: 3 | F98: 15 | G98: 2 | H98: 2 | I98: 1 | J98: 34 | K98: 39 | L98: 54
A99: 90 | B99: 0 | C99: 5 | D99: 0 | E99: 9 | F99: 14 | G99: 2 | H99: 3 | I99: 0 | J99: 29 | K99: 34 | L99: 48
A100: 91 | B100: 1 | C100: 6 | D100: 0 | E100: 1 | F100: 8 | G100: 1 | H100: 3 | I100: 0 | J100: 15 | K100: 19 | L100: 27
A101: 92 | B101: 0 | C101: 5 | D101: 0 | E101: 5 | F101: 10 | G101: 0 | H101: 0 | I101: 1 | J101: 21 | K101: 22 | L101: 32
A102: 93 | B102: 0 | C102: 1 | D102: 0 | E102: 4 | F102: 5 | G102: 1 | H102: 0 | I102: 0 | J102: 16 | K102: 17 | L102: 22
A103: 94 | B103: 0 | C103: 0 | D103: 0 | E103: 5 | F103: 5 | G103: 2 | H103: 0 | I103: 0 | J103: 9 | K103: 11 | L103: 16
A104: 95 | B104: 0 | C104: 0 | D104: 0 | E104: 2 | F104: 2 | G104: 3 | H104: 0 | I104: 0 | J104: 3 | K104: 6 | L104: 8
A105: 96 | B105: 0 | C105: 0 | D105: 0 | E105: 0 | F105: 0 | G105: 1 | H105: 0 | I105: 0 | J105: 2 | K105: 3 | L105: 3
A106: 97 | B106: 0 | C106: 0 | D106: 0 | E106: 3 | F106: 3 | G106: 0 | H106: 0 | I106: 0 | J106: 1 | K106: 1 | L106: 4
A107: 98 | B107: 0 | C107: 0 | D107: 0 | E107: 0 | F107: 0 | G107: 0 | H107: 0 | I107: 0 | J107: 2 | K107: 2 | L107: 2
A108: 99 | B108: 0 | C108: 0 | D108: 0 | E108: 0 | F108: 0 | G108: 0 | H108: 0 | I108: 0 | J108: 3 | K108: 3 | L108: 3
A109: 100 e pi� | B109: 0 | C109: 0 | D109: 0 | E109: 0 | F109: 0 | G109: 0 | H109: 0 | I109: 0 | J109: 1 | K109: 1 | L109: 1
A110: TOTALE | B110: 7859 | C110: 9772 | D110: 158 | E110: 376 | F110: 18165 | G110: 7096 | H110: 10010 | I110: 327 | J110: 1931 | K110: 19364 | L110: 37529

Sheet 2005 fasce
A1: torna all'indice
A2: Popolazione residente al 1 Gennaio 2005 per età, sesso e stato civile
A3: Comune: Ciampino
A4: Eta' | B4: Celibi | C4: Coniugati | D4: Divorziati | E4: Vedovi | F4: Totale Maschi | G4: Nubili | H4: Coniugate | I4: Divorziate | J4: Vedove | K4: Totale Femmine | L4: Maschi + femmine
L5: +
L6: Femmine
A7: da 0 a 5 | B7: 1137 | C7: 0 | D7: 0 | E7: 0 | F7: 1137 | G7: 1131 | H7: 0 | I7: 0 | J7: 0 | K7: 1131 | L7: 2268
A8: da 6 a 10 | B8: 894 | C8: 0 | D8: 0 | E8: 0 | F8: 894 | G8: 918 | H8: 0 | I8: 0 | J8: 0 | K8: 918 | L8: 1812
A9: da 11 a 15 | B9: 980 | C9: 0 | D9: 0 | E9: 0 | F9: 980 | G9: 921 | H9: 0 | I9: 0 | J9: 0 | K9: 921 | L9: 1901
A10: da 16 a 20 | B10: 973 | C10: 0 | D10: 0 | E10: 0 | F10: 973 | G10: 861 | H10: 4 | I10: 0 | J10: 0 | K10: 865 | L10: 1838
A11: da 21 a 25 | B11: 1093 | C11: 27 | D11: 0 | E11: 3 | F11: 1123 | G11: 910 | H11: 75 | I11: 0 | J11: 0 | K11: 985 | L11: 2108
A12: da 26 a 30 | B12: 1013 | C12: 242 | D12: 2 | E12: 0 | F12: 1257 | G12: 861 | H12: 463 | I12: 4 | J12: 1 | K12: 1329 | L12: 2586
A13: da 31 a 35 | B13: 809 | C13: 780 | D13: 4 | E13: 0 | F13: 1593 | G13: 568 | H13: 1132 | I13: 16 | J13: 6 | K13: 1722 | L13: 3315
A14: da 36 a 40 | B14: 410 | C14: 1241 | D14: 23 | E14: 2 | F14: 1676 | G14: 306 | H14: 1457 | I14: 50 | J14: 15 | K14: 1828 | L14: 3504
A15: da 41 a 45 | B15: 198 | C15: 1294 | D15: 24 | E15: 8 | F15: 1524 | G15: 170 | H15: 1317 | I15: 64 | J15: 31 | K15: 1582 | L15: 3106
A16: da 46 a 50 | B16: 123 | C16: 1127 | D16: 29 | E16: 8 | F16: 1287 | G16: 91 | H16: 1188 | I16: 62 | J16: 31 | K16: 1372 | L16: 2659
A17: da 51 a 55 | B17: 85 | C17: 1053 | D17: 22 | E17: 14 | F17: 1174 | G17: 73 | H17: 1061 | I17: 42 | J17: 63 | K17: 1239 | L17: 2413
A18: da 56 a 60 | B18: 49 | C18: 1062 | D18: 25 | E18: 29 | F18: 1165 | G18: 57 | H18: 976 | I18: 33 | J18: 99 | K18: 1165 | L18: 2330
A19: da 61 a 65 | B19: 31 | C19: 865 | D19: 12 | E19: 30 | F19: 938 | G19: 57 | H19: 868 | I19: 25 | J19: 194 | K19: 1144 | L19: 2082
A20: da 66 a 70 | B20: 22 | C20: 840 | D20: 9 | E20: 54 | F20: 925 | G20: 50 | H20: 657 | I20: 19 | J20: 281 | K20: 1007 | L20: 1932
A21: da 71 a 75 | B21: 22 | C21: 584 | D21: 4 | E21: 57 | F21: 667 | G21: 39 | H21: 456 | I21: 2 | J21: 318 | K21: 815 | L21: 1482
A22: da 76 a 80 | B22: 14 | C22: 381 | D22: 3 | E22: 67 | F22: 465 | G22: 34 | H22: 239 | I22: 6 | J22: 362 | K22: 641 | L22: 1106
A23: da 81 a 85 | B23: 5 | C23: 208 | D23: 1 | E23: 53 | F23: 267 | G23: 26 | H23: 96 | I23: 1 | J23: 310 | K23: 433 | L23: 700
A24: da 86 a 90 | B24: 0 | C24: 56 | D24: 0 | E24: 31 | F24: 87 | G24: 15 | H24: 18 | I24: 2 | J24: 147 | K24: 182 | L24: 269
A25: da 91 95 | B25: 1 | C25: 12 | D25: 0 | E25: 17 | F25: 30 | G25: 7 | H25: 3 | I25: 1 | J25: 64 | K25: 75 | L25: 105
A26: oltre 95 | B26: 0 | C26: 0 | D26: 0 | E26: 3 | F26: 3 | G26: 1 | H26: 0 | I26: 0 | J26: 9 | K26: 10 | L26: 13
A27: TOTALE | B27: =SUM(B7:B26) -> 7859 | C27: =SUM(C7:C26) -> 9772 | D27: 158 | E27: 376 | F27: 18165 | G27: 7096 | H27: 10010 | I27: 327 | J27: 1931 | K27: 19364 | L27: 37529
A100: Eta' | B100: Celibi | C100: Coniugati | D100: Divorziati | E100: Vedovi | F100: Totale Maschi | G100: Nubili | H100: Coniugate | I100: Divorziate | J100: Vedove | K100: Totale Femmine | L100: Maschi + femmine
L101: +
L102: Femmine
A103: da 0 a 5 | B103: 1137 | C103: 0 | D103: 0 | E103: 0 | F103: 1137 | G103: -1131 | H103: 0 | I103: 0 | J103: 0 | K103: -1131 | L103: 2268 | M103: =G103-(G103*2) -> 1131 | N103: =H103-(H103*2) -> 0 | O103: 0 | P103: 0 | Q103: 1131
A104: da 6 a 10 | B104: 894 | C104: 0 | D104: 0 | E104: 0 | F104: 894 | G104: -918 | H104: 0 | I104: 0 | J104: 0 | K104: -918 | L104: 1812 | M104: =G104-(G104*2) -> 918 | N104: =H104-(H104*2) -> 0 | O104: =I104-(I104*2) -> 0 | P104: =J104-(J104*2) -> 0 | Q104: =K104-(K104*2) -> 918
A105: da 11 a 15 | B105: 980 | C105: 0 | D105: 0 | E105: 0 | F105: 980 | G105: -921 | H105: 0 | I105: 0 | J105: 0 | K105: -921 | L105: 1901 | M105: 921 | N105: 0 | O105: 0 | P105: 0 | Q105: 921
A106: da 16 a 20 | B106: 973 | C106: 0 | D106: 0 | E106: 0 | F106: 973 | G106: -861 | H106: -4 | I106: 0 | J106: 0 | K106: -865 | L106: 1838 | M106: 861 | N106: 4 | O106: 0 | P106: 0 | Q106: 865
A107: da 21 a 25 | B107: 1093 | C107: 27 | D107: 0 | E107: 3 | F107: 1123 | G107: -910 | H107: -75 | I107: 0 | J107: 0 | K107: -985 | L107: 2108 | M107: 910 | N107: 75 | O107: 0 | P107: 0 | Q107: 985
A108: da 26 a 30 | B108: 1013 | C108: 242 | D108: 2 | E108: 0 | F108: 1257 | G108: -861 | H108: -463 | I108: -4 | J108: -1 | K108: -1329 | L108: 2586 | M108: 861 | N108: 463 | O108: 4 | P108: 1 | Q108: 1329
A109: da 31 a 35 | B109: 809 | C109: 780 | D109: 4 | E109: 0 | F109: 1593 | G109: -568 | H109: -1132 | I109: -16 | J109: -6 | K109: -1722 | L109: 3315 | M109: 568 | N109: 1132 | O109: 16 | P109: 6 | Q109: 1722
A110: da 36 a 40 | B110: 410 | C110: 1241 | D110: 23 | E110: 2 | F110: 1676 | G110: -306 | H110: -1457 | I110: -50 | J110: -15 | K110: -1828 | L110: 3504 | M110: 306 | N110: 1457 | O110: 50 | P110: 15 | Q110: 1828
A111: da 41 a 45 | B111: 198 | C111: 1294 | D111: 24 | E111: 8 | F111: 1524 | G111: -170 | H111: -1317 | I111: -64 | J111: -31 | K111: -1582 | L111: 3106 | M111: 170 | N111: 1317 | O111: 64 | P111: 31 | Q111: 1582
A112: da 46 a 50 | B112: 123 | C112: 1127 | D112: 29 | E112: 8 | F112: 1287 | G112: -91 | H112: -1188 | I112: -62 | J112: -31 | K112: -1372 | L112: 2659 | M112: 91 | N112: 1188 | O112: 62 | P112: 31 | Q112: 1372
A113: da 51 a 55 | B113: 85 | C113: 1053 | D113: 22 | E113: 14 | F113: 1174 | G113: -73 | H113: -1061 | I113: -42 | J113: -63 | K113: -1239 | L113: 2413 | M113: 73 | N113: 1061 | O113: 42 | P113: 63 | Q113: 1239
A114: da 56 a 60 | B114: 49 | C114: 1062 | D114: 25 | E114: 29 | F114: 1165 | G114: -57 | H114: -976 | I114: -33 | J114: -99 | K114: -1165 | L114: 2330 | M114: 57 | N114: 976 | O114: 33 | P114: 99 | Q114: 1165
A115: da 61 a 65 | B115: 31 | C115: 865 | D115: 12 | E115: 30 | F115: 938 | G115: -57 | H115: -868 | I115: -25 | J115: -194 | K115: -1144 | L115: 2082 | M115: 57 | N115: 868 | O115: 25 | P115: 194 | Q115: 1144
A116: da 66 a 70 | B116: 22 | C116: 840 | D116: 9 | E116: 54 | F116: 925 | G116: -50 | H116: -657 | I116: -19 | J116: -281 | K116: -1007 | L116: 1932 | M116: 50 | N116: 657 | O116: 19 | P116: 281 | Q116: 1007
A117: da 71 a 75 | B117: 22 | C117: 584 | D117: 4 | E117: 57 | F117: 667 | G117: -39 | H117: -456 | I117: -2 | J117: -318 | K117: -815 | L117: 1482 | M117: 39 | N117: 456 | O117: 2 | P117: 318 | Q117: 815
A118: da 76 a 80 | B118: 14 | C118: 381 | D118: 3 | E118: 67 | F118: 465 | G118: -34 | H118: -239 | I118: -6 | J118: -362 | K118: -641 | L118: 1106 | M118: 34 | N118: 239 | O118: 6 | P118: 362 | Q118: 641
A119: da 81 a 85 | B119: 5 | C119: 208 | D119: 1 | E119: 53 | F119: 267 | G119: -26 | H119: -96 | I119: -1 | J119: -310 | K119: -433 | L119: 700 | M119: 26 | N119: 96 | O119: 1 | P119: 310 | Q119: 433
A120: da 86 a 90 | B120: 0 | C120: 56 | D120: 0 | E120: 31 | F120: 87 | G120: -15 | H120: -18 | I120: -2 | J120: -147 | K120: -182 | L120: 269 | M120: 15 | N120: 18 | O120: 2 | P120: 147 | Q120: 182
A121: da 91 95 | B121: 1 | C121: 12 | D121: 0 | E121: 17 | F121: 30 | G121: -7 | H121: -3 | I121: -1 | J121: -64 | K121: -75 | L121: 105 | M121: 7 | N121: 3 | O121: 1 | P121: 64 | Q121: 75
A122: oltre 95 | B122: 0 | C122: 0 | D122: 0 | E122: 3 | F122: 3 | G122: -1 | H122: 0 | I122: 0 | J122: -9 | K122: -10 | L122: 13 | M122: 1 | N122: 0 | O122: 0 | P122: 9 | Q122: 10
A123: TOTALE | B123: =SUM(B103:B122) -> 7859 | C123: =SUM(C103:C122) -> 9772 | D123: 158 | E123: 376 | F123: 18165 | G123: -7096 | H123: -10010 | I123: -327 | J123: -1931 | K123: -19364 | L123: 37529

Sheet 2006
A1: torna all'indice
A3: Popolazione residente al 1 Gennaio 2006 per et�, sesso e stato civile
A4: Comune: Ciampino
A6: Eta' | B6: Celibi | C6: Coniugati | D6: Divorziati | E6: Vedovi | F6: Totale Maschi | G6: Nubili | H6: Coniugate | I6: Divorziate | J6: Vedove | K6: Totale Femmine | L6: Maschi
L7: +
L8: Femmine
A9: 0 | B9: 172 | C9: 0 | D9: 0 | E9: 0 | F9: 172 | G9: 198 | H9: 0 | I9: 0 | J9: 0 | K9: 198 | L9: 370
A10: 1 | B10: 186 | C10: 0 | D10: 0 | E10: 0 | F10: 186 | G10: 184 | H10: 0 | I10: 0 | J10: 0 | K10: 184 | L10: 370
A11: 2 | B11: 204 | C11: 0 | D11: 0 | E11: 0 | F11: 204 | G11: 215 | H11: 0 | I11: 0 | J11: 0 | K11: 215 | L11: 419
A12: 3 | B12: 164 | C12: 0 | D12: 0 | E12: 0 | F12: 164 | G12: 189 | H12: 0 | I12: 0 | J12: 0 | K12: 189 | L12: 353
A13: 4 | B13: 202 | C13: 0 | D13: 0 | E13: 0 | F13: 202 | G13: 180 | H13: 0 | I13: 0 | J13: 0 | K13: 180 | L13: 382
A14: 5 | B14: 179 | C14: 0 | D14: 0 | E14: 0 | F14: 179 | G14: 192 | H14: 0 | I14: 0 | J14: 0 | K14: 192 | L14: 371
A15: 6 | B15: 208 | C15: 0 | D15: 0 | E15: 0 | F15: 208 | G15: 198 | H15: 0 | I15: 0 | J15: 0 | K15: 198 | L15: 406
A16: 7 | B16: 184 | C16: 0 | D16: 0 | E16: 0 | F16: 184 | G16: 169 | H16: 0 | I16: 0 | J16: 0 | K16: 169 | L16: 353
A17: 8 | B17: 196 | C17: 0 | D17: 0 | E17: 0 | F17: 196 | G17: 186 | H17: 0 | I17: 0 | J17: 0 | K17: 186 | L17: 382
A18: 9 | B18: 197 | C18: 0 | D18: 0 | E18: 0 | F18: 197 | G18: 205 | H18: 0 | I18: 0 | J18: 0 | K18: 205 | L18: 402
A19: 10 | B19: 179 | C19: 0 | D19: 0 | E19: 0 | F19: 179 | G19: 173 | H19: 0 | I19: 0 | J19: 0 | K19: 173 | L19: 352
A20: 11 | B20: 171 | C20: 0 | D20: 0 | E20: 0 | F20: 171 | G20: 195 | H20: 0 | I20: 0 | J20: 0 | K20: 195 | L20: 366
A21: 12 | B21: 215 | C21: 0 | D21: 0 | E21: 0 | F21: 215 | G21: 211 | H21: 0 | I21: 0 | J21: 0 | K21: 211 | L21: 426
A22: 13 | B22: 184 | C22: 0 | D22: 0 | E22: 0 | F22: 184 | G22: 195 | H22: 0 | I22: 0 | J22: 0 | K22: 195 | L22: 379
A23: 14 | B23: 204 | C23: 0 | D23: 0 | E23: 0 | F23: 204 | G23: 160 | H23: 0 | I23: 0 | J23: 0 | K23: 160 | L23: 364
A24: 15 | B24: 199 | C24: 0 | D24: 0 | E24: 0 | F24: 199 | G24: 194 | H24: 0 | I24: 0 | J24: 0 | K24: 194 | L24: 393
A25: 16 | B25: 200 | C25: 0 | D25: 0 | E25: 0 | F25: 200 | G25: 183 | H25: 0 | I25: 0 | J25: 0 | K25: 183 | L25: 383
A26: 17 | B26: 225 | C26: 0 | D26: 0 | E26: 0 | F26: 225 | G26: 174 | H26: 0 | I26: 0 | J26: 0 | K26: 174 | L26: 399
A27: 18 | B27: 177 | C27: 0 | D27: 0 | E27: 0 | F27: 177 | G27: 175 | H27: 1 | I27: 0 | J27: 0 | K27: 176 | L27: 353
A28: 19 | B28: 175 | C28: 0 | D28: 1 | E28: 0 | F28: 176 | G28: 174 | H28: 0 | I28: 1 | J28: 0 | K28: 175 | L28: 351
A29: 20 | B29: 215 | C29: 0 | D29: 0 | E29: 0 | F29: 215 | G29: 194 | H29: 1 | I29: 0 | J29: 0 | K29: 195 | L29: 410
A30: 21 | B30: 192 | C30: 0 | D30: 0 | E30: 0 | F30: 192 | G30: 143 | H30: 5 | I30: 0 | J30: 0 | K30: 148 | L30: 340
A31: 22 | B31: 225 | C31: 2 | D31: 0 | E31: 0 | F31: 227 | G31: 166 | H31: 4 | I31: 0 | J31: 0 | K31: 170 | L31: 397
A32: 23 | B32: 230 | C32: 3 | D32: 0 | E32: 1 | F32: 234 | G32: 200 | H32: 12 | I32: 0 | J32: 0 | K32: 212 | L32: 446
A33: 24 | B33: 201 | C33: 5 | D33: 0 | E33: 1 | F33: 207 | G33: 163 | H33: 18 | I33: 0 | J33: 0 | K33: 181 | L33: 388
A34: 25 | B34: 210 | C34: 13 | D34: 0 | E34: 1 | F34: 224 | G34: 172 | H34: 43 | I34: 0 | J34: 0 | K34: 215 | L34: 439
A35: 26 | B35: 233 | C35: 15 | D35: 0 | E35: 1 | F35: 249 | G35: 188 | H35: 39 | I35: 0 | J35: 0 | K35: 227 | L35: 476
A36: 27 | B36: 189 | C36: 21 | D36: 0 | E36: 0 | F36: 210 | G36: 173 | H36: 62 | I36: 0 | J36: 0 | K36: 235 | L36: 445
A37: 28 | B37: 215 | C37: 40 | D37: 0 | E37: 0 | F37: 255 | G37: 159 | H37: 90 | I37: 1 | J37: 0 | K37: 250 | L37: 505
A38: 29 | B38: 181 | C38: 55 | D38: 0 | E38: 0 | F38: 236 | G38: 161 | H38: 118 | I38: 3 | J38: 0 | K38: 282 | L38: 518
A39: 30 | B39: 209 | C39: 70 | D39: 2 | E39: 0 | F39: 281 | G39: 163 | H39: 127 | I39: 2 | J39: 1 | K39: 293 | L39: 574
A40: 31 | B40: 177 | C40: 113 | D40: 1 | E40: 0 | F40: 291 | G40: 153 | H40: 154 | I40: 3 | J40: 1 | K40: 311 | L40: 602
A41: 32 | B41: 187 | C41: 123 | D41: 0 | E41: 0 | F41: 310 | G41: 150 | H41: 193 | I41: 2 | J41: 1 | K41: 346 | L41: 656
A42: 33 | B42: 174 | C42: 143 | D42: 1 | E42: 0 | F42: 318 | G42: 118 | H42: 225 | I42: 5 | J42: 5 | K42: 353 | L42: 671
A43: 34 | B43: 132 | C43: 162 | D43: 0 | E43: 0 | F43: 294 | G43: 98 | H43: 253 | I43: 5 | J43: 0 | K43: 356 | L43: 650
A44: 35 | B44: 151 | C44: 205 | D44: 1 | E44: 0 | F44: 357 | G44: 85 | H44: 250 | I44: 7 | J44: 4 | K44: 346 | L44: 703
A45: 36 | B45: 128 | C45: 222 | D45: 4 | E45: 1 | F45: 355 | G45: 72 | H45: 265 | I45: 9 | J45: 3 | K45: 349 | L45: 704
A46: 37 | B46: 87 | C46: 222 | D46: 5 | E46: 1 | F46: 315 | G46: 76 | H46: 286 | I46: 5 | J46: 1 | K46: 368 | L46: 683
A47: 38 | B47: 90 | C47: 229 | D47: 5 | E47: 0 | F47: 324 | G47: 58 | H47: 273 | I47: 9 | J47: 2 | K47: 342 | L47: 666
A48: 39 | B48: 78 | C48: 280 | D48: 6 | E48: 1 | F48: 365 | G48: 69 | H48: 293 | I48: 11 | J48: 7 | K48: 380 | L48: 745
A49: 40 | B49: 67 | C49: 244 | D49: 6 | E49: 1 | F49: 318 | G49: 54 | H49: 294 | I49: 12 | J49: 5 | K49: 365 | L49: 683
A50: 41 | B50: 64 | C50: 299 | D50: 3 | E50: 1 | F50: 367 | G50: 42 | H50: 332 | I50: 17 | J50: 3 | K50: 394 | L50: 761
A51: 42 | B51: 61 | C51: 263 | D51: 4 | E51: 1 | F51: 329 | G51: 38 | H51: 269 | I51: 8 | J51: 8 | K51: 323 | L51: 652
A52: 43 | B52: 45 | C52: 262 | D52: 8 | E52: 1 | F52: 316 | G52: 47 | H52: 269 | I52: 13 | J52: 6 | K52: 335 | L52: 651
A53: 44 | B53: 36 | C53: 253 | D53: 5 | E53: 1 | F53: 295 | G53: 32 | H53: 270 | I53: 23 | J53: 6 | K53: 331 | L53: 626
A54: 45 | B54: 30 | C54: 252 | D54: 3 | E54: 0 | F54: 285 | G54: 22 | H54: 260 | I54: 12 | J54: 5 | K54: 299 | L54: 584
A55: 46 | B55: 26 | C55: 243 | D55: 12 | E55: 2 | F55: 283 | G55: 35 | H55: 242 | I55: 11 | J55: 9 | K55: 297 | L55: 580
A56: 47 | B56: 21 | C56: 244 | D56: 9 | E56: 1 | F56: 275 | G56: 20 | H56: 257 | I56: 14 | J56: 4 | K56: 295 | L56: 570
A57: 48 | B57: 25 | C57: 227 | D57: 8 | E57: 2 | F57: 262 | G57: 21 | H57: 216 | I57: 16 | J57: 4 | K57: 257 | L57: 519
A58: 49 | B58: 23 | C58: 197 | D58: 4 | E58: 2 | F58: 226 | G58: 18 | H58: 251 | I58: 11 | J58: 11 | K58: 291 | L58: 517
A59: 50 | B59: 24 | C59: 239 | D59: 6 | E59: 1 | F59: 270 | G59: 19 | H59: 227 | I59: 10 | J59: 4 | K59: 260 | L59: 530
A60: 51 | B60: 27 | C60: 232 | D60: 8 | E60: 2 | F60: 269 | G60: 16 | H60: 225 | I60: 14 | J60: 10 | K60: 265 | L60: 534
A61: 52 | B61: 22 | C61: 219 | D61: 6 | E61: 2 | F61: 249 | G61: 14 | H61: 194 | I61: 9 | J61: 11 | K61: 228 | L61: 477
A62: 53 | B62: 12 | C62: 198 | D62: 6 | E62: 3 | F62: 219 | G62: 15 | H62: 219 | I62: 12 | J62: 15 | K62: 261 | L62: 480
A63: 54 | B63: 16 | C63: 207 | D63: 2 | E63: 4 | F63: 229 | G63: 13 | H63: 217 | I63: 8 | J63: 8 | K63: 246 | L63: 475
A64: 55 | B64: 17 | C64: 226 | D64: 4 | E64: 2 | F64: 249 | G64: 14 | H64: 189 | I64: 6 | J64: 20 | K64: 229 | L64: 478
A65: 56 | B65: 17 | C65: 204 | D65: 4 | E65: 4 | F65: 229 | G65: 14 | H65: 230 | I65: 3 | J65: 20 | K65: 267 | L65: 496
A66: 57 | B66: 14 | C66: 239 | D66: 6 | E66: 4 | F66: 263 | G66: 16 | H66: 208 | I66: 9 | J66: 21 | K66: 254 | L66: 517
A67: 58 | B67: 11 | C67: 237 | D67: 7 | E67: 6 | F67: 261 | G67: 9 | H67: 210 | I67: 8 | J67: 17 | K67: 244 | L67: 505
A68: 59 | B68: 9 | C68: 230 | D68: 6 | E68: 4 | F68: 249 | G68: 8 | H68: 234 | I68: 11 | J68: 30 | K68: 283 | L68: 532
A69: 60 | B69: 5 | C69: 174 | D69: 2 | E69: 5 | F69: 186 | G69: 11 | H69: 168 | I69: 3 | J69: 19 | K69: 201 | L69: 387
A70: 61 | B70: 8 | C70: 172 | D70: 6 | E70: 10 | F70: 196 | G70: 15 | H70: 145 | I70: 4 | J70: 23 | K70: 187 | L70: 383
A71: 62 | B71: 4 | C71: 170 | D71: 3 | E71: 7 | F71: 184 | G71: 8 | H71: 178 | I71: 6 | J71: 24 | K71: 216 | L71: 400
A72: 63 | B72: 7 | C72: 168 | D72: 5 | E72: 8 | F72: 188 | G72: 11 | H72: 163 | I72: 7 | J72: 42 | K72: 223 | L72: 411
A73: 64 | B73: 9 | C73: 169 | D73: 2 | E73: 8 | F73: 188 | G73: 9 | H73: 152 | I73: 3 | J73: 39 | K73: 203 | L73: 391
A74: 65 | B74: 6 | C74: 189 | D74: 4 | E74: 6 | F74: 205 | G74: 11 | H74: 185 | I74: 3 | J74: 51 | K74: 250 | L74: 455
A75: 66 | B75: 6 | C75: 180 | D75: 1 | E75: 2 | F75: 189 | G75: 18 | H75: 178 | I75: 7 | J75: 54 | K75: 257 | L75: 446
A76: 67 | B76: 4 | C76: 182 | D76: 0 | E76: 12 | F76: 198 | G76: 8 | H76: 148 | I76: 5 | J76: 51 | K76: 212 | L76: 410
A77: 68 | B77: 5 | C77: 187 | D77: 2 | E77: 12 | F77: 206 | G77: 8 | H77: 141 | I77: 3 | J77: 51 | K77: 203 | L77: 409
A78: 69 | B78: 4 | C78: 162 | D78: 1 | E78: 9 | F78: 176 | G78: 13 | H78: 121 | I78: 2 | J78: 68 | K78: 204 | L78: 380
A79: 70 | B79: 6 | C79: 151 | D79: 2 | E79: 10 | F79: 169 | G79: 9 | H79: 115 | I79: 7 | J79: 55 | K79: 186 | L79: 355
A80: 71 | B80: 4 | C80: 141 | D80: 2 | E80: 14 | F80: 161 | G80: 9 | H80: 118 | I80: 2 | J80: 62 | K80: 191 | L80: 352
A81: 72 | B81: 4 | C81: 120 | D81: 2 | E81: 9 | F81: 135 | G81: 7 | H81: 85 | I81: 0 | J81: 54 | K81: 146 | L81: 281
A82: 73 | B82: 4 | C82: 113 | D82: 1 | E82: 9 | F82: 127 | G82: 11 | H82: 92 | I82: 0 | J82: 60 | K82: 163 | L82: 290
A83: 74 | B83: 6 | C83: 113 | D83: 0 | E83: 14 | F83: 133 | G83: 6 | H83: 105 | I83: 0 | J83: 79 | K83: 190 | L83: 323
A84: 75 | B84: 3 | C84: 103 | D84: 0 | E84: 15 | F84: 121 | G84: 9 | H84: 78 | I84: 0 | J84: 92 | K84: 179 | L84: 300
A85: 76 | B85: 4 | C85: 98 | D85: 1 | E85: 12 | F85: 115 | G85: 5 | H85: 55 | I85: 2 | J85: 62 | K85: 124 | L85: 239
A86: 77 | B86: 3 | C86: 85 | D86: 1 | E86: 16 | F86: 105 | G86: 11 | H86: 57 | I86: 1 | J86: 67 | K86: 136 | L86: 241
A87: 78 | B87: 1 | C87: 65 | D87: 0 | E87: 18 | F87: 84 | G87: 3 | H87: 45 | I87: 1 | J87: 74 | K87: 123 | L87: 207
A88: 79 | B88: 3 | C88: 83 | D88: 0 | E88: 17 | F88: 103 | G88: 5 | H88: 44 | I88: 2 | J88: 78 | K88: 129 | L88: 232
A89: 80 | B89: 2 | C89: 61 | D89: 0 | E89: 8 | F89: 71 | G89: 9 | H89: 49 | I89: 2 | J89: 76 | K89: 136 | L89: 207
A90: 81 | B90: 3 | C90: 54 | D90: 1 | E90: 13 | F90: 71 | G90: 4 | H90: 22 | I90: 0 | J90: 71 | K90: 97 | L90: 168
A91: 82 | B91: 3 | C91: 50 | D91: 0 | E91: 8 | F91: 61 | G91: 6 | H91: 20 | I91: 0 | J91: 70 | K91: 96 | L91: 157
A92: 83 | B92: 0 | C92: 51 | D92: 0 | E92: 14 | F92: 65 | G92: 6 | H92: 33 | I92: 1 | J92: 63 | K92: 103 | L92: 168
A93: 84 | B93: 0 | C93: 36 | D93: 0 | E93: 20 | F93: 56 | G93: 5 | H93: 11 | I93: 0 | J93: 65 | K93: 81 | L93: 137
A94: 85 | B94: 2 | C94: 29 | D94: 0 | E94: 6 | F94: 37 | G94: 5 | H94: 13 | I94: 0 | J94: 57 | K94: 75 | L94: 112
A95: 86 | B95: 0 | C95: 17 | D95: 0 | E95: 6 | F95: 23 | G95: 3 | H95: 3 | I95: 0 | J95: 42 | K95: 48 | L95: 71
A96: 87 | B96: 0 | C96: 14 | D96: 0 | E96: 6 | F96: 20 | G96: 3 | H96: 4 | I96: 0 | J96: 26 | K96: 33 | L96: 53
A97: 88 | B97: 0 | C97: 6 | D97: 0 | E97: 6 | F97: 12 | G97: 1 | H97: 4 | I97: 1 | J97: 20 | K97: 26 | L97: 38
A98: 89 | B98: 0 | C98: 6 | D98: 0 | E98: 8 | F98: 14 | G98: 5 | H98: 3 | I98: 0 | J98: 28 | K98: 36 | L98: 50
A99: 90 | B99: 0 | C99: 12 | D99: 0 | E99: 0 | F99: 12 | G99: 2 | H99: 3 | I99: 0 | J99: 29 | K99: 34 | L99: 46
A100: 91 | B100: 0 | C100: 4 | D100: 0 | E100: 6 | F100: 10 | G100: 2 | H100: 2 | I100: 0 | J100: 25 | K100: 29 | L100: 39
A101: 92 | B101: 1 | C101: 3 | D101: 0 | E101: 0 | F101: 4 | G101: 0 | H101: 2 | I101: 0 | J101: 12 | K101: 14 | L101: 18
A102: 93 | B102: 0 | C102: 1 | D102: 0 | E102: 4 | F102: 5 | G102: 0 | H102: 0 | I102: 1 | J102: 19 | K102: 20 | L102: 25
A103: 94 | B103: 0 | C103: 1 | D103: 0 | E103: 3 | F103: 4 | G103: 0 | H103: 0 | I103: 0 | J103: 13 | K103: 13 | L103: 17
A104: 95 | B104: 0 | C104: 0 | D104: 0 | E104: 2 | F104: 2 | G104: 1 | H104: 0 | I104: 0 | J104: 6 | K104: 7 | L104: 9
A105: 96 | B105: 0 | C105: 0 | D105: 0 | E105: 0 | F105: 0 | G105: 2 | H105: 0 | I105: 0 | J105: 4 | K105: 6 | L105: 6
A106: 97 | B106: 0 | C106: 0 | D106: 0 | E106: 0 | F106: 0 | G106: 1 | H106: 0 | I106: 0 | J106: 2 | K106: 3 | L106: 3
A107: 98 | B107: 0 | C107: 0 | D107: 0 | E107: 3 | F107: 3 | G107: 0 | H107: 0 | I107: 0 | J107: 1 | K107: 1 | L107: 4
A108: 99 | B108: 0 | C108: 0 | D108: 0 | E108: 0 | F108: 0 | G108: 0 | H108: 0 | I108: 0 | J108: 1 | K108: 1 | L108: 1
A109: 100 e pi� | B109: 0 | C109: 0 | D109: 0 | E109: 0 | F109: 0 | G109: 1 | H109: 0 | I109: 0 | J109: 3 | K109: 4 | L109: 4
A110: TOTALE | B110: 7999 | C110: 9808 | D110: 179 | E110: 377 | F110: 18363 | G110: 7221 | H110: 10067 | I110: 353 | J110: 1980 | K110: 19621 | L110: 37984

Sheet 2006 fasce
A1: torna all'indice
A2: Popolazione residente al 1 Gennaio 2006 per et�, sesso e stato civile
A3: Comune: Ciampino
A4: Eta' | B4: Celibi | C4: Coniugati | D4: Divorziati | E4: Vedovi | F4: Totale Maschi | G4: Nubili | H4: Coniugate | I4: Divorziate | J4: Vedove | K4: Totale Femmine | L4: Maschi
L5: +
L6: Femmine
A7: da 0 a 5 | B7: 1107 | C7: 0 | D7: 0 | E7: 0 | F7: 1107 | G7: 1158 | H7: 0 | I7: 0 | J7: 0 | K7: 1158 | L7: 2265
A8: da 6 a 10 | B8: 964 | C8: 0 | D8: 0 | E8: 0 | F8: 964 | G8: 931 | H8: 0 | I8: 0 | J8: 0 | K8: 931 | L8: 1895
A9: da 11 a 15 | B9: 973 | C9: 0 | D9: 0 | E9: 0 | F9: 973 | G9: 955 | H9: 0 | I9: 0 | J9: 0 | K9: 955 | L9: 1928
A10: da 16 a 20 | B10: 992 | C10: 0 | D10: 1 | E10: 0 | F10: 993 | G10: 900 | H10: 2 | I10: 1 | J10: 0 | K10: 903 | L10: 1896
A11: da 21 a 25 | B11: 1058 | C11: 23 | D11: 0 | E11: 3 | F11: 1084 | G11: 844 | H11: 82 | I11: 0 | J11: 0 | K11: 926 | L11: 2010
A12: da 26 a 30 | B12: 1027 | C12: 201 | D12: 2 | E12: 1 | F12: 1231 | G12: 844 | H12: 436 | I12: 6 | J12: 1 | K12: 1287 | L12: 2518
A13: da 31 a 35 | B13: 821 | C13: 746 | D13: 3 | E13: 0 | F13: 1570 | G13: 604 | H13: 1075 | I13: 22 | J13: 11 | K13: 1712 | L13: 3282
A14: da 36 a 40 | B14: 450 | C14: 1197 | D14: 26 | E14: 4 | F14: 1677 | G14: 329 | H14: 1411 | I14: 46 | J14: 18 | K14: 1804 | L14: 3481
A15: da 41 a 45 | B15: 236 | C15: 1329 | D15: 23 | E15: 4 | F15: 1592 | G15: 181 | H15: 1400 | I15: 73 | J15: 28 | K15: 1682 | L15: 3274
A16: da 46 a 50 | B16: 119 | C16: 1150 | D16: 39 | E16: 8 | F16: 1316 | G16: 113 | H16: 1193 | I16: 62 | J16: 32 | K16: 1400 | L16: 2716
A17: da 51 a 55 | B17: 94 | C17: 1082 | D17: 26 | E17: 13 | F17: 1215 | G17: 72 | H17: 1044 | I17: 49 | J17: 64 | K17: 1229 | L17: 2444
A18: da 56 a 60 | B18: 56 | C18: 1084 | D18: 25 | E18: 23 | F18: 1188 | G18: 58 | H18: 1050 | I18: 34 | J18: 107 | K18: 1249 | L18: 2437
A19: da 61 a 65 | B19: 34 | C19: 868 | D19: 20 | E19: 39 | F19: 961 | G19: 54 | H19: 823 | I19: 23 | J19: 179 | K19: 1079 | L19: 2040
A20: da 66 a 70 | B20: 25 | C20: 862 | D20: 6 | E20: 45 | F20: 938 | G20: 56 | H20: 703 | I20: 24 | J20: 279 | K20: 1062 | L20: 2000
A21: da 71 a 75 | B21: 21 | C21: 590 | D21: 5 | E21: 61 | F21: 677 | G21: 42 | H21: 478 | I21: 2 | J21: 347 | K21: 869 | L21: 1546
A22: da 76 a 80 | B22: 13 | C22: 392 | D22: 2 | E22: 71 | F22: 478 | G22: 33 | H22: 250 | I22: 8 | J22: 357 | K22: 648 | L22: 1126
A23: da 81 a 85 | B23: 8 | C23: 220 | D23: 1 | E23: 61 | F23: 290 | G23: 26 | H23: 99 | I23: 1 | J23: 326 | K23: 452 | L23: 742
A24: da 86 a 90 | B24: 0 | C24: 55 | D24: 0 | E24: 26 | F24: 81 | G24: 14 | H24: 17 | I24: 1 | J24: 145 | K24: 177 | L24: 258
A25: da 91 95 | B25: 1 | C25: 9 | D25: 0 | E25: 15 | F25: 25 | G25: 3 | H25: 4 | I25: 1 | J25: 75 | K25: 83 | L25: 108
A26: oltre 95 | B26: 0 | C26: 0 | D26: 0 | E26: 3 | F26: 3 | G26: 4 | H26: 0 | I26: 0 | J26: 11 | K26: 15 | L26: 18
A27: TOTALE | B27: =SUM(B7:B26) -> 7999 | C27: =SUM(C7:C26) -> 9808 | D27: 179 | E27: 377 | F27: 18363 | G27: 7221 | H27: 10067 | I27: 353 | J27: 1980 | K27: 19621 | L27: 37984
A100: Eta' | B100: Celibi | C100: Coniugati | D100: Divorziati | E100: Vedovi | F100: Totale Maschi | G100: Nubili | H100: Coniugate | I100: Divorziate | J100: Vedove | K100: Totale Femmine | L100: Maschi
L101: +
L102: Femmine
A103: da 0 a 5 | B103: 1107 | C103: 0 | D103: 0 | E103: 0 | F103: 1107 | G103: -1158 | H103: 0 | I103: 0 | J103: 0 | K103: -1158 | L103: 2265 | M103: =G103-(G103*2) -> 1158 | N103: =H103-(H103*2) -> 0 | O103: 0 | P103: 0 | Q103: 1158
A104: da 6 a 10 | B104: 964 | C104: 0 | D104: 0 | E104: 0 | F104: 964 | G104: -931 | H104: 0 | I104: 0 | J104: 0 | K104: -931 | L104: 1895 | M104: =G104-(G104*2) -> 931 | N104: =H104-(H104*2) -> 0 | O104: =I104-(I104*2) -> 0 | P104: =J104-(J104*2) -> 0 | Q104: =K104-(K104*2) -> 931
A105: da 11 a 15 | B105: 973 | C105: 0 | D105: 0 | E105: 0 | F105: 973 | G105: -955 | H105: 0 | I105: 0 | J105: 0 | K105: -955 | L105: 1928 | M105: 955 | N105: 0 | O105: 0 | P105: 0 | Q105: 955
A106: da 16 a 20 | B106: 992 | C106: 0 | D106: 1 | E106: 0 | F106: 993 | G106: -900 | H106: -2 | I106: -1 | J106: 0 | K106: -903 | L106: 1896 | M106: 900 | N106: 2 | O106: 1 | P106: 0 | Q106: 903
A107: da 21 a 25 | B107: 1058 | C107: 23 | D107: 0 | E107: 3 | F107: 1084 | G107: -844 | H107: -82 | I107: 0 | J107: 0 | K107: -926 | L107: 2010 | M107: 844 | N107: 82 | O107: 0 | P107: 0 | Q107: 926
A108: da 26 a 30 | B108: 1027 | C108: 201 | D108: 2 | E108: 1 | F108: 1231 | G108: -844 | H108: -436 | I108: -6 | J108: -1 | K108: -1287 | L108: 2518 | M108: 844 | N108: 436 | O108: 6 | P108: 1 | Q108: 1287
A109: da 31 a 35 | B109: 821 | C109: 746 | D109: 3 | E109: 0 | F109: 1570 | G109: -604 | H109: -1075 | I109: -22 | J109: -11 | K109: -1712 | L109: 3282 | M109: 604 | N109: 1075 | O109: 22 | P109: 11 | Q109: 1712
A110: da 36 a 40 | B110: 450 | C110: 1197 | D110: 26 | E110: 4 | F110: 1677 | G110: -329 | H110: -1411 | I110: -46 | J110: -18 | K110: -1804 | L110: 3481 | M110: 329 | N110: 1411 | O110: 46 | P110: 18 | Q110: 1804
A111: da 41 a 45 | B111: 236 | C111: 1329 | D111: 23 | E111: 4 | F111: 1592 | G111: -181 | H111: -1400 | I111: -73 | J111: -28 | K111: -1682 | L111: 3274 | M111: 181 | N111: 1400 | O111: 73 | P111: 28 | Q111: 1682
A112: da 46 a 50 | B112: 119 | C112: 1150 | D112: 39 | E112: 8 | F112: 1316 | G112: -113 | H112: -1193 | I112: -62 | J112: -32 | K112: -1400 | L112: 2716 | M112: 113 | N112: 1193 | O112: 62 | P112: 32 | Q112: 1400
A113: da 51 a 55 | B113: 94 | C113: 1082 | D113: 26 | E113: 13 | F113: 1215 | G113: -72 | H113: -1044 | I113: -49 | J113: -64 | K113: -1229 | L113: 2444 | M113: 72 | N113: 1044 | O113: 49 | P113: 64 | Q113: 1229
A114: da 56 a 60 | B114: 56 | C114: 1084 | D114: 25 | E114: 23 | F114: 1188 | G114: -58 | H114: -1050 | I114: -34 | J114: -107 | K114: -1249 | L114: 2437 | M114: 58 | N114: 1050 | O114: 34 | P114: 107 | Q114: 1249
A115: da 61 a 65 | B115: 34 | C115: 868 | D115: 20 | E115: 39 | F115: 961 | G115: -54 | H115: -823 | I115: -23 | J115: -179 | K115: -1079 | L115: 2040 | M115: 54 | N115: 823 | O115: 23 | P115: 179 | Q115: 1079
A116: da 66 a 70 | B116: 25 | C116: 862 | D116: 6 | E116: 45 | F116: 938 | G116: -56 | H116: -703 | I116: -24 | J116: -279 | K116: -1062 | L116: 2000 | M116: 56 | N116: 703 | O116: 24 | P116: 279 | Q116: 1062
A117: da 71 a 75 | B117: 21 | C117: 590 | D117: 5 | E117: 61 | F117: 677 | G117: -42 | H117: -478 | I117: -2 | J117: -347 | K117: -869 | L117: 1546 | M117: 42 | N117: 478 | O117: 2 | P117: 347 | Q117: 869
A118: da 76 a 80 | B118: 13 | C118: 392 | D118: 2 | E118: 71 | F118: 478 | G118: -33 | H118: -250 | I118: -8 | J118: -357 | K118: -648 | L118: 1126 | M118: 33 | N118: 250 | O118: 8 | P118: 357 | Q118: 648
A119: da 81 a 85 | B119: 8 | C119: 220 | D119: 1 | E119: 61 | F119: 290 | G119: -26 | H119: -99 | I119: -1 | J119: -326 | K119: -452 | L119: 742 | M119: 26 | N119: 99 | O119: 1 | P119: 326 | Q119: 452
A120: da 86 a 90 | B120: 0 | C120: 55 | D120: 0 | E120: 26 | F120: 81 | G120: -14 | H120: -17 | I120: -1 | J120: -145 | K120: -177 | L120: 258 | M120: 14 | N120: 17 | O120: 1 | P120: 145 | Q120: 177
A121: da 91 95 | B121: 1 | C121: 9 | D121: 0 | E121: 15 | F121: 25 | G121: -3 | H121: -4 | I121: -1 | J121: -75 | K121: -83 | L121: 108 | M121: 3 | N121: 4 | O121: 1 | P121: 75 | Q121: 83
A122: oltre 95 | B122: 0 | C122: 0 | D122: 0 | E122: 3 | F122: 3 | G122: -4 | H122: 0 | I122: 0 | J122: -11 | K122: -15 | L122: 18 | M122: 4 | N122: 0 | O122: 0 | P122: 11 | Q122: 15
A123: TOTALE | B123: =SUM(B103:B122) -> 7999 | C123: =SUM(C103:C122) -> 9808 | D123: 179 | E123: 377 | F123: 18363 | G123: -7221 | H123: -10067 | I123: -353 | J123: -1980 | K123: -19621 | L123: 37984

Sheet 2007
A1: torna all'indice
A3: Popolazione residente al 1 Gennaio 2007 per et�, sesso e stato civile
A4: Comune: Ciampino
A6: Eta' | B6: Celibi | C6: Coniugati | D6: Divorziati | E6: Vedovi | F6: Totale Maschi | G6: Nubili | H6: Coniugate | I6: Divorziate | J6: Vedove | K6: Totale Femmine | L6: Maschi
L7: +
L8: Femmine
A9: 0 | B9: 187 | C9: 0 | D9: 0 | E9: 0 | F9: 187 | G9: 189 | H9: 0 | I9: 0 | J9: 0 | K9: 189 | L9: 376
A10: 1 | B10: 166 | C10: 0 | D10: 0 | E10: 0 | F10: 166 | G10: 203 | H10: 0 | I10: 0 | J10: 0 | K10: 203 | L10: 369
A11: 2 | B11: 183 | C11: 0 | D11: 0 | E11: 0 | F11: 183 | G11: 183 | H11: 0 | I11: 0 | J11: 0 | K11: 183 | L11: 366
A12: 3 | B12: 205 | C12: 0 | D12: 0 | E12: 0 | F12: 205 | G12: 215 | H12: 0 | I12: 0 | J12: 0 | K12: 215 | L12: 420
A13: 4 | B13: 167 | C13: 0 | D13: 0 | E13: 0 | F13: 167 | G13: 182 | H13: 0 | I13: 0 | J13: 0 | K13: 182 | L13: 349
A14: 5 | B14: 198 | C14: 0 | D14: 0 | E14: 0 | F14: 198 | G14: 175 | H14: 0 | I14: 0 | J14: 0 | K14: 175 | L14: 373
A15: 6 | B15: 180 | C15: 0 | D15: 0 | E15: 0 | F15: 180 | G15: 186 | H15: 0 | I15: 0 | J15: 0 | K15: 186 | L15: 366
A16: 7 | B16: 208 | C16: 0 | D16: 0 | E16: 0 | F16: 208 | G16: 199 | H16: 0 | I16: 0 | J16: 0 | K16: 199 | L16: 407
A17: 8 | B17: 180 | C17: 0 | D17: 0 | E17: 0 | F17: 180 | G17: 170 | H17: 0 | I17: 0 | J17: 0 | K17: 170 | L17: 350
A18: 9 | B18: 197 | C18: 0 | D18: 0 | E18: 0 | F18: 197 | G18: 185 | H18: 0 | I18: 0 | J18: 0 | K18: 185 | L18: 382
A19: 10 | B19: 195 | C19: 0 | D19: 0 | E19: 0 | F19: 195 | G19: 206 | H19: 0 | I19: 0 | J19: 0 | K19: 206 | L19: 401
A20: 11 | B20: 182 | C20: 0 | D20: 0 | E20: 0 | F20: 182 | G20: 171 | H20: 0 | I20: 0 | J20: 0 | K20: 171 | L20: 353
A21: 12 | B21: 175 | C21: 0 | D21: 0 | E21: 0 | F21: 175 | G21: 190 | H21: 0 | I21: 0 | J21: 0 | K21: 190 | L21: 365
A22: 13 | B22: 216 | C22: 0 | D22: 0 | E22: 0 | F22: 216 | G22: 210 | H22: 0 | I22: 0 | J22: 0 | K22: 210 | L22: 426
A23: 14 | B23: 183 | C23: 0 | D23: 0 | E23: 0 | F23: 183 | G23: 195 | H23: 0 | I23: 0 | J23: 0 | K23: 195 | L23: 378
A24: 15 | B24: 199 | C24: 0 | D24: 0 | E24: 0 | F24: 199 | G24: 156 | H24: 0 | I24: 0 | J24: 0 | K24: 156 | L24: 355
A25: 16 | B25: 197 | C25: 0 | D25: 0 | E25: 0 | F25: 197 | G25: 196 | H25: 0 | I25: 0 | J25: 0 | K25: 196 | L25: 393
A26: 17 | B26: 203 | C26: 0 | D26: 0 | E26: 0 | F26: 203 | G26: 185 | H26: 0 | I26: 0 | J26: 0 | K26: 185 | L26: 388
A27: 18 | B27: 227 | C27: 0 | D27: 0 | E27: 0 | F27: 227 | G27: 171 | H27: 0 | I27: 0 | J27: 0 | K27: 171 | L27: 398
A28: 19 | B28: 178 | C28: 0 | D28: 0 | E28: 0 | F28: 178 | G28: 173 | H28: 2 | I28: 0 | J28: 0 | K28: 175 | L28: 353
A29: 20 | B29: 180 | C29: 1 | D29: 0 | E29: 0 | F29: 181 | G29: 170 | H29: 3 | I29: 0 | J29: 0 | K29: 173 | L29: 354
A30: 21 | B30: 213 | C30: 1 | D30: 0 | E30: 0 | F30: 214 | G30: 188 | H30: 2 | I30: 0 | J30: 0 | K30: 190 | L30: 404
A31: 22 | B31: 193 | C31: 0 | D31: 0 | E31: 0 | F31: 193 | G31: 140 | H31: 5 | I31: 0 | J31: 0 | K31: 145 | L31: 338
A32: 23 | B32: 225 | C32: 3 | D32: 0 | E32: 0 | F32: 228 | G32: 159 | H32: 7 | I32: 0 | J32: 0 | K32: 166 | L32: 394
A33: 24 | B33: 230 | C33: 4 | D33: 0 | E33: 1 | F33: 235 | G33: 198 | H33: 16 | I33: 0 | J33: 0 | K33: 214 | L33: 449
A34: 25 | B34: 203 | C34: 6 | D34: 0 | E34: 1 | F34: 210 | G34: 152 | H34: 23 | I34: 0 | J34: 0 | K34: 175 | L34: 385
A35: 26 | B35: 205 | C35: 23 | D35: 0 | E35: 1 | F35: 229 | G35: 158 | H35: 48 | I35: 0 | J35: 0 | K35: 206 | L35: 435
A36: 27 | B36: 222 | C36: 19 | D36: 0 | E36: 1 | F36: 242 | G36: 181 | H36: 47 | I36: 0 | J36: 0 | K36: 228 | L36: 470
A37: 28 | B37: 186 | C37: 22 | D37: 0 | E37: 0 | F37: 208 | G37: 166 | H37: 76 | I37: 0 | J37: 0 | K37: 242 | L37: 450
A38: 29 | B38: 196 | C38: 55 | D38: 0 | E38: 0 | F38: 251 | G38: 152 | H38: 99 | I38: 1 | J38: 0 | K38: 252 | L38: 503
A39: 30 | B39: 172 | C39: 63 | D39: 0 | E39: 0 | F39: 235 | G39: 148 | H39: 130 | I39: 3 | J39: 0 | K39: 281 | L39: 516
A40: 31 | B40: 200 | C40: 80 | D40: 1 | E40: 0 | F40: 281 | G40: 145 | H40: 141 | I40: 2 | J40: 1 | K40: 289 | L40: 570
A41: 32 | B41: 163 | C41: 123 | D41: 1 | E41: 0 | F41: 287 | G41: 135 | H41: 161 | I41: 4 | J41: 1 | K41: 301 | L41: 588
A42: 33 | B42: 185 | C42: 123 | D42: 0 | E42: 0 | F42: 308 | G42: 143 | H42: 193 | I42: 5 | J42: 1 | K42: 342 | L42: 650
A43: 34 | B43: 165 | C43: 152 | D43: 1 | E43: 0 | F43: 318 | G43: 107 | H43: 238 | I43: 3 | J43: 4 | K43: 352 | L43: 670
A44: 35 | B44: 121 | C44: 173 | D44: 0 | E44: 0 | F44: 294 | G44: 97 | H44: 254 | I44: 6 | J44: 0 | K44: 357 | L44: 651
A45: 36 | B45: 137 | C45: 205 | D45: 4 | E45: 0 | F45: 346 | G45: 78 | H45: 257 | I45: 7 | J45: 3 | K45: 345 | L45: 691
A46: 37 | B46: 124 | C46: 226 | D46: 6 | E46: 1 | F46: 357 | G46: 68 | H46: 268 | I46: 9 | J46: 3 | K46: 348 | L46: 705
A47: 38 | B47: 83 | C47: 227 | D47: 4 | E47: 1 | F47: 315 | G47: 71 | H47: 285 | I47: 6 | J47: 1 | K47: 363 | L47: 678
A48: 39 | B48: 73 | C48: 240 | D48: 8 | E48: 0 | F48: 321 | G48: 53 | H48: 274 | I48: 12 | J48: 2 | K48: 341 | L48: 662
A49: 40 | B49: 77 | C49: 287 | D49: 6 | E49: 0 | F49: 370 | G49: 68 | H49: 299 | I49: 12 | J49: 8 | K49: 387 | L49: 757
A50: 41 | B50: 65 | C50: 251 | D50: 4 | E50: 1 | F50: 321 | G50: 51 | H50: 289 | I50: 12 | J50: 6 | K50: 358 | L50: 679
A51: 42 | B51: 61 | C51: 298 | D51: 3 | E51: 2 | F51: 364 | G51: 40 | H51: 327 | I51: 18 | J51: 3 | K51: 388 | L51: 752
A52: 43 | B52: 60 | C52: 263 | D52: 4 | E52: 1 | F52: 328 | G52: 37 | H52: 268 | I52: 11 | J52: 8 | K52: 324 | L52: 652
A53: 44 | B53: 40 | C53: 259 | D53: 12 | E53: 1 | F53: 312 | G53: 46 | H53: 272 | I53: 15 | J53: 5 | K53: 338 | L53: 650
A54: 45 | B54: 33 | C54: 255 | D54: 7 | E54: 1 | F54: 296 | G54: 31 | H54: 273 | I54: 24 | J54: 7 | K54: 335 | L54: 631
A55: 46 | B55: 30 | C55: 255 | D55: 3 | E55: 1 | F55: 289 | G55: 22 | H55: 264 | I55: 10 | J55: 6 | K55: 302 | L55: 591
A56: 47 | B56: 26 | C56: 243 | D56: 13 | E56: 2 | F56: 284 | G56: 35 | H56: 245 | I56: 11 | J56: 9 | K56: 300 | L56: 584
A57: 48 | B57: 20 | C57: 239 | D57: 11 | E57: 1 | F57: 271 | G57: 22 | H57: 259 | I57: 14 | J57: 4 | K57: 299 | L57: 570
A58: 49 | B58: 25 | C58: 225 | D58: 10 | E58: 2 | F58: 262 | G58: 22 | H58: 217 | I58: 14 | J58: 4 | K58: 257 | L58: 519
A59: 50 | B59: 22 | C59: 194 | D59: 3 | E59: 2 | F59: 221 | G59: 17 | H59: 254 | I59: 10 | J59: 12 | K59: 293 | L59: 514
A60: 51 | B60: 22 | C60: 240 | D60: 8 | E60: 3 | F60: 273 | G60: 20 | H60: 224 | I60: 10 | J60: 4 | K60: 258 | L60: 531
A61: 52 | B61: 27 | C61: 233 | D61: 8 | E61: 2 | F61: 270 | G61: 15 | H61: 225 | I61: 16 | J61: 11 | K61: 267 | L61: 537
A62: 53 | B62: 21 | C62: 219 | D62: 6 | E62: 1 | F62: 247 | G62: 13 | H62: 191 | I62: 9 | J62: 10 | K62: 223 | L62: 470
A63: 54 | B63: 13 | C63: 197 | D63: 5 | E63: 4 | F63: 219 | G63: 15 | H63: 217 | I63: 12 | J63: 17 | K63: 261 | L63: 480
A64: 55 | B64: 17 | C64: 202 | D64: 3 | E64: 3 | F64: 225 | G64: 14 | H64: 208 | I64: 8 | J64: 10 | K64: 240 | L64: 465
A65: 56 | B65: 17 | C65: 226 | D65: 4 | E65: 2 | F65: 249 | G65: 14 | H65: 184 | I65: 5 | J65: 20 | K65: 223 | L65: 472
A66: 57 | B66: 17 | C66: 201 | D66: 2 | E66: 5 | F66: 225 | G66: 12 | H66: 227 | I66: 4 | J66: 21 | K66: 264 | L66: 489
A67: 58 | B67: 14 | C67: 237 | D67: 7 | E67: 4 | F67: 262 | G67: 16 | H67: 204 | I67: 10 | J67: 24 | K67: 254 | L67: 516
A68: 59 | B68: 11 | C68: 237 | D68: 8 | E68: 5 | F68: 261 | G68: 11 | H68: 203 | I68: 9 | J68: 20 | K68: 243 | L68: 504
A69: 60 | B69: 8 | C69: 228 | D69: 5 | E69: 6 | F69: 247 | G69: 8 | H69: 233 | I69: 10 | J69: 32 | K69: 283 | L69: 530
A70: 61 | B70: 5 | C70: 172 | D70: 2 | E70: 5 | F70: 184 | G70: 9 | H70: 171 | I70: 3 | J70: 22 | K70: 205 | L70: 389
A71: 62 | B71: 7 | C71: 167 | D71: 6 | E71: 10 | F71: 190 | G71: 15 | H71: 141 | I71: 4 | J71: 27 | K71: 187 | L71: 377
A72: 63 | B72: 4 | C72: 167 | D72: 4 | E72: 10 | F72: 185 | G72: 8 | H72: 168 | I72: 6 | J72: 29 | K72: 211 | L72: 396
A73: 64 | B73: 7 | C73: 163 | D73: 6 | E73: 7 | F73: 183 | G73: 11 | H73: 158 | I73: 8 | J73: 46 | K73: 223 | L73: 406
A74: 65 | B74: 9 | C74: 168 | D74: 1 | E74: 9 | F74: 187 | G74: 9 | H74: 147 | I74: 3 | J74: 40 | K74: 199 | L74: 386
A75: 66 | B75: 4 | C75: 184 | D75: 4 | E75: 7 | F75: 199 | G75: 11 | H75: 181 | I75: 3 | J75: 54 | K75: 249 | L75: 448
A76: 67 | B76: 6 | C76: 174 | D76: 1 | E76: 2 | F76: 183 | G76: 17 | H76: 172 | I76: 7 | J76: 56 | K76: 252 | L76: 435
A77: 68 | B77: 4 | C77: 179 | D77: 0 | E77: 12 | F77: 195 | G77: 8 | H77: 142 | I77: 5 | J77: 54 | K77: 209 | L77: 404
A78: 69 | B78: 5 | C78: 182 | D78: 2 | E78: 13 | F78: 202 | G78: 9 | H78: 133 | I78: 3 | J78: 54 | K78: 199 | L78: 401
A79: 70 | B79: 4 | C79: 159 | D79: 1 | E79: 10 | F79: 174 | G79: 13 | H79: 117 | I79: 2 | J79: 68 | K79: 200 | L79: 374
A80: 71 | B80: 6 | C80: 147 | D80: 2 | E80: 11 | F80: 166 | G80: 11 | H80: 109 | I80: 8 | J80: 60 | K80: 188 | L80: 354
A81: 72 | B81: 4 | C81: 136 | D81: 2 | E81: 14 | F81: 156 | G81: 9 | H81: 110 | I81: 2 | J81: 69 | K81: 190 | L81: 346
A82: 73 | B82: 4 | C82: 116 | D82: 1 | E82: 9 | F82: 130 | G82: 6 | H82: 79 | I82: 0 | J82: 58 | K82: 143 | L82: 273
A83: 74 | B83: 3 | C83: 108 | D83: 1 | E83: 9 | F83: 121 | G83: 10 | H83: 87 | I83: 0 | J83: 66 | K83: 163 | L83: 284
A84: 75 | B84: 6 | C84: 107 | D84: 0 | E84: 14 | F84: 127 | G84: 6 | H84: 99 | I84: 0 | J84: 83 | K84: 188 | L84: 315
A85: 76 | B85: 4 | C85: 101 | D85: 0 | E85: 13 | F85: 118 | G85: 9 | H85: 74 | I85: 0 | J85: 92 | K85: 175 | L85: 293
A86: 77 | B86: 4 | C86: 92 | D86: 1 | E86: 15 | F86: 112 | G86: 6 | H86: 48 | I86: 2 | J86: 63 | K86: 119 | L86: 231
A87: 78 | B87: 2 | C87: 77 | D87: 1 | E87: 15 | F87: 95 | G87: 11 | H87: 53 | I87: 1 | J87: 68 | K87: 133 | L87: 228
A88: 79 | B88: 1 | C88: 61 | D88: 0 | E88: 18 | F88: 80 | G88: 3 | H88: 40 | I88: 1 | J88: 75 | K88: 119 | L88: 199
A89: 80 | B89: 2 | C89: 77 | D89: 0 | E89: 17 | F89: 96 | G89: 5 | H89: 39 | I89: 2 | J89: 77 | K89: 123 | L89: 219
A90: 81 | B90: 2 | C90: 53 | D90: 0 | E90: 8 | F90: 63 | G90: 9 | H90: 41 | I90: 1 | J90: 76 | K90: 127 | L90: 190
A91: 82 | B91: 2 | C91: 48 | D91: 1 | E91: 14 | F91: 65 | G91: 3 | H91: 18 | I91: 0 | J91: 69 | K91: 90 | L91: 155
A92: 83 | B92: 2 | C92: 44 | D92: 0 | E92: 9 | F92: 55 | G92: 7 | H92: 16 | I92: 0 | J92: 68 | K92: 91 | L92: 146
A93: 84 | B93: 0 | C93: 47 | D93: 0 | E93: 13 | F93: 60 | G93: 6 | H93: 28 | I93: 1 | J93: 64 | K93: 99 | L93: 159
A94: 85 | B94: 0 | C94: 30 | D94: 0 | E94: 17 | F94: 47 | G94: 5 | H94: 8 | I94: 0 | J94: 65 | K94: 78 | L94: 125
A95: 86 | B95: 2 | C95: 22 | D95: 0 | E95: 7 | F95: 31 | G95: 5 | H95: 11 | I95: 0 | J95: 54 | K95: 70 | L95: 101
A96: 87 | B96: 0 | C96: 15 | D96: 0 | E96: 7 | F96: 22 | G96: 3 | H96: 3 | I96: 0 | J96: 39 | K96: 45 | L96: 67
A97: 88 | B97: 0 | C97: 11 | D97: 0 | E97: 6 | F97: 17 | G97: 3 | H97: 3 | I97: 0 | J97: 24 | K97: 30 | L97: 47
A98: 89 | B98: 0 | C98: 6 | D98: 0 | E98: 6 | F98: 12 | G98: 0 | H98: 3 | I98: 1 | J98: 18 | K98: 22 | L98: 34
A99: 90 | B99: 0 | C99: 5 | D99: 0 | E99: 8 | F99: 13 | G99: 5 | H99: 3 | I99: 0 | J99: 24 | K99: 32 | L99: 45
A100: 91 | B100: 0 | C100: 7 | D100: 0 | E100: 0 | F100: 7 | G100: 2 | H100: 2 | I100: 0 | J100: 24 | K100: 28 | L100: 35
A101: 92 | B101: 0 | C101: 2 | D101: 0 | E101: 7 | F101: 9 | G101: 2 | H101: 1 | I101: 0 | J101: 21 | K101: 24 | L101: 33
A102: 93 | B102: 1 | C102: 2 | D102: 0 | E102: 1 | F102: 4 | G102: 0 | H102: 2 | I102: 0 | J102: 7 | K102: 9 | L102: 13
A103: 94 | B103: 0 | C103: 1 | D103: 0 | E103: 3 | F103: 4 | G103: 0 | H103: 0 | I103: 1 | J103: 15 | K103: 16 | L103: 20
A104: 95 | B104: 0 | C104: 1 | D104: 0 | E104: 2 | F104: 3 | G104: 0 | H104: 0 | I104: 0 | J104: 10 | K104: 10 | L104: 13
A105: 96 | B105: 0 | C105: 0 | D105: 0 | E105: 1 | F105: 1 | G105: 0 | H105: 0 | I105: 0 | J105: 5 | K105: 5 | L105: 6
A106: 97 | B106: 0 | C106: 0 | D106: 0 | E106: 0 | F106: 0 | G106: 0 | H106: 0 | I106: 0 | J106: 2 | K106: 2 | L106: 2
A107: 98 | B107: 0 | C107: 0 | D107: 0 | E107: 0 | F107: 0 | G107: 1 | H107: 0 | I107: 0 | J107: 0 | K107: 1 | L107: 1
A108: 99 | B108: 0 | C108: 0 | D108: 0 | E108: 2 | F108: 2 | G108: 0 | H108: 0 | I108: 0 | J108: 2 | K108: 2 | L108: 4
A109: 100 e pi� | B109: 0 | C109: 0 | D109: 0 | E109: 0 | F109: 0 | G109: 1 | H109: 0 | I109: 0 | J109: 4 | K109: 5 | L109: 5
A110: TOTALE | B110: 8028 | C110: 9766 | D110: 193 | E110: 386 | F110: 18373 | G110: 7216 | H110: 10019 | I110: 366 | J110: 2009 | K110: 19610 | L110: 37983

Sheet 2007 fasce
A1: torna all'indice
A2: Popolazione residente al 1 Gennaio 2007 per et�, sesso e stato civile
A3: Comune: Ciampino
A4: Eta' | B4: Celibi | C4: Coniugati | D4: Divorziati | E4: Vedovi | F4: Totale Maschi | G4: Nubili | H4: Coniugate | I4: Divorziate | J4: Vedove | K4: Totale Femmine | L4: Maschi
L5: +
L6: Femmine
A7: da 0 a 5 | B7: 1106 | C7: 0 | D7: 0 | E7: 0 | F7: 1106 | G7: 1147 | H7: 0 | I7: 0 | J7: 0 | K7: 1147 | L7: 2253
A8: da 6 a 10 | B8: 960 | C8: 0 | D8: 0 | E8: 0 | F8: 960 | G8: 946 | H8: 0 | I8: 0 | J8: 0 | K8: 946 | L8: 1906
A9: da 11 a 15 | B9: 955 | C9: 0 | D9: 0 | E9: 0 | F9: 955 | G9: 922 | H9: 0 | I9: 0 | J9: 0 | K9: 922 | L9: 1877
A10: da 16 a 20 | B10: 985 | C10: 1 | D10: 0 | E10: 0 | F10: 986 | G10: 895 | H10: 5 | I10: 0 | J10: 0 | K10: 900 | L10: 1886
A11: da 21 a 25 | B11: 1064 | C11: 14 | D11: 0 | E11: 2 | F11: 1080 | G11: 837 | H11: 53 | I11: 0 | J11: 0 | K11: 890 | L11: 1970
A12: da 26 a 30 | B12: 981 | C12: 182 | D12: 0 | E12: 2 | F12: 1165 | G12: 805 | H12: 400 | I12: 4 | J12: 0 | K12: 1209 | L12: 2374
A13: da 31 a 35 | B13: 834 | C13: 651 | D13: 3 | E13: 0 | F13: 1488 | G13: 627 | H13: 987 | I13: 20 | J13: 7 | K13: 1641 | L13: 3129
A14: da 36 a 40 | B14: 494 | C14: 1185 | D14: 28 | E14: 2 | F14: 1709 | G14: 338 | H14: 1383 | I14: 46 | J14: 17 | K14: 1784 | L14: 3493
A15: da 41 a 45 | B15: 259 | C15: 1326 | D15: 30 | E15: 6 | F15: 1621 | G15: 205 | H15: 1429 | I15: 80 | J15: 29 | K15: 1743 | L15: 3364
A16: da 46 a 50 | B16: 123 | C16: 1156 | D16: 40 | E16: 8 | F16: 1327 | G16: 118 | H16: 1239 | I16: 59 | J16: 35 | K16: 1451 | L16: 2778
A17: da 51 a 55 | B17: 100 | C17: 1091 | D17: 30 | E17: 13 | F17: 1234 | G17: 77 | H17: 1065 | I17: 55 | J17: 52 | K17: 1249 | L17: 2483
A18: da 56 a 60 | B18: 67 | C18: 1129 | D18: 26 | E18: 22 | F18: 1244 | G18: 61 | H18: 1051 | I18: 38 | J18: 117 | K18: 1267 | L18: 2511
A19: da 61 a 65 | B19: 32 | C19: 837 | D19: 19 | E19: 41 | F19: 929 | G19: 52 | H19: 785 | I19: 24 | J19: 164 | K19: 1025 | L19: 1954
A20: da 66 a 70 | B20: 23 | C20: 878 | D20: 8 | E20: 44 | F20: 953 | G20: 58 | H20: 745 | I20: 20 | J20: 286 | K20: 1109 | L20: 2062
A21: da 71 a 75 | B21: 23 | C21: 614 | D21: 6 | E21: 57 | F21: 700 | G21: 42 | H21: 484 | I21: 10 | J21: 336 | K21: 872 | L21: 1572
A22: da 76 a 80 | B22: 13 | C22: 408 | D22: 2 | E22: 78 | F22: 501 | G22: 34 | H22: 254 | I22: 6 | J22: 375 | K22: 669 | L22: 1170
A23: da 81 a 85 | B23: 6 | C23: 222 | D23: 1 | E23: 61 | F23: 290 | G23: 30 | H23: 111 | I23: 2 | J23: 342 | K23: 485 | L23: 775
A24: da 86 a 90 | B24: 2 | C24: 59 | D24: 0 | E24: 34 | F24: 95 | G24: 16 | H24: 23 | I24: 1 | J24: 159 | K24: 199 | L24: 294
A25: da 91 95 | B25: 1 | C25: 13 | D25: 0 | E25: 13 | F25: 27 | G25: 4 | H25: 5 | I25: 1 | J25: 77 | K25: 87 | L25: 114
A26: oltre 95 | B26: 0 | C26: 0 | D26: 0 | E26: 3 | F26: 3 | G26: 2 | H26: 0 | I26: 0 | J26: 13 | K26: 15 | L26: 18
A27: TOTALE | B27: =SUM(B7:B26) -> 8028 | C27: =SUM(C7:C26) -> 9766 | D27: 193 | E27: 386 | F27: 18373 | G27: 7216 | H27: 10019 | I27: 366 | J27: 2009 | K27: 19610 | L27: 37983
A100: Eta' | B100: Celibi | C100: Coniugati | D100: Divorziati | E100: Vedovi | F100: Totale Maschi | G100: Nubili | H100: Coniugate | I100: Divorziate | J100: Vedove | K100: Totale Femmine | L100: Maschi
L101: +
L102: Femmine
A103: da 0 a 5 | B103: 1106 | C103: 0 | D103: 0 | E103: 0 | F103: 1106 | G103: -1147 | H103: 0 | I103: 0 | J103: 0 | K103: -1147 | L103: 2253 | M103: =G103-(G103*2) -> 1147 | N103: =H103-(H103*2) -> 0 | O103: 0 | P103: 0 | Q103: 1147
A104: da 6 a 10 | B104: 960 | C104: 0 | D104: 0 | E104: 0 | F104: 960 | G104: -946 | H104: 0 | I104: 0 | J104: 0 | K104: -946 | L104: 1906 | M104: =G104-(G104*2) -> 946 | N104: =H104-(H104*2) -> 0 | O104: =I104-(I104*2) -> 0 | P104: =J104-(J104*2) -> 0 | Q104: =K104-(K104*2) -> 946
A105: da 11 a 15 | B105: 955 | C105: 0 | D105: 0 | E105: 0 | F105: 955 | G105: -922 | H105: 0 | I105: 0 | J105: 0 | K105: -922 | L105: 1877 | M105: 922 | N105: 0 | O105: 0 | P105: 0 | Q105: 922
A106: da 16 a 20 | B106: 985 | C106: 1 | D106: 0 | E106: 0 | F106: 986 | G106: -895 | H106: -5 | I106: 0 | J106: 0 | K106: -900 | L106: 1886 | M106: 895 | N106: 5 | O106: 0 | P106: 0 | Q106: 900
A107: da 21 a 25 | B107: 1064 | C107: 14 | D107: 0 | E107: 2 | F107: 1080 | G107: -837 | H107: -53 | I107: 0 | J107: 0 | K107: -890 | L107: 1970 | M107: 837 | N107: 53 | O107: 0 | P107: 0 | Q107: 890
A108: da 26 a 30 | B108: 981 | C108: 182 | D108: 0 | E108: 2 | F108: 1165 | G108: -805 | H108: -400 | I108: -4 | J108: 0 | K108: -1209 | L108: 2374 | M108: 805 | N108: 400 | O108: 4 | P108: 0 | Q108: 1209
A109: da 31 a 35 | B109: 834 | C109: 651 | D109: 3 | E109: 0 | F109: 1488 | G109: -627 | H109: -987 | I109: -20 | J109: -7 | K109: -1641 | L109: 3129 | M109: 627 | N109: 987 | O109: 20 | P109: 7 | Q109: 1641
A110: da 36 a 40 | B110: 494 | C110: 1185 | D110: 28 | E110: 2 | F110: 1709 | G110: -338 | H110: -1383 | I110: -46 | J110: -17 | K110: -1784 | L110: 3493 | M110: 338 | N110: 1383 | O110: 46 | P110: 17 | Q110: 1784
A111: da 41 a 45 | B111: 259 | C111: 1326 | D111: 30 | E111: 6 | F111: 1621 | G111: -205 | H111: -1429 | I111: -80 | J111: -29 | K111: -1743 | L111: 3364 | M111: 205 | N111: 1429 | O111: 80 | P111: 29 | Q111: 1743
A112: da 46 a 50 | B112: 123 | C112: 1156 | D112: 40 | E112: 8 | F112: 1327 | G112: -118 | H112: -1239 | I112: -59 | J112: -35 | K112: -1451 | L112: 2778 | M112: 118 | N112: 1239 | O112: 59 | P112: 35 | Q112: 1451
A113: da 51 a 55 | B113: 100 | C113: 1091 | D113: 30 | E113: 13 | F113: 1234 | G113: -77 | H113: -1065 | I113: -55 | J113: -52 | K113: -1249 | L113: 2483 | M113: 77 | N113: 1065 | O113: 55 | P113: 52 | Q113: 1249
A114: da 56 a 60 | B114: 67 | C114: 1129 | D114: 26 | E114: 22 | F114: 1244 | G114: -61 | H114: -1051 | I114: -38 | J114: -117 | K114: -1267 | L114: 2511 | M114: 61 | N114: 1051 | O114: 38 | P114: 117 | Q114: 1267
A115: da 61 a 65 | B115: 32 | C115: 837 | D115: 19 | E115: 41 | F115: 929 | G115: -52 | H115: -785 | I115: -24 | J115: -164 | K115: -1025 | L115: 1954 | M115: 52 | N115: 785 | O115: 24 | P115: 164 | Q115: 1025
A116: da 66 a 70 | B116: 23 | C116: 878 | D116: 8 | E116: 44 | F116: 953 | G116: -58 | H116: -745 | I116: -20 | J116: -286 | K116: -1109 | L116: 2062 | M116: 58 | N116: 745 | O116: 20 | P116: 286 | Q116: 1109
A117: da 71 a 75 | B117: 23 | C117: 614 | D117: 6 | E117: 57 | F117: 700 | G117: -42 | H117: -484 | I117: -10 | J117: -336 | K117: -872 | L117: 1572 | M117: 42 | N117: 484 | O117: 10 | P117: 336 | Q117: 872
A118: da 76 a 80 | B118: 13 | C118: 408 | D118: 2 | E118: 78 | F118: 501 | G118: -34 | H118: -254 | I118: -6 | J118: -375 | K118: -669 | L118: 1170 | M118: 34 | N118: 254 | O118: 6 | P118: 375 | Q118: 669
A119: da 81 a 85 | B119: 6 | C119: 222 | D119: 1 | E119: 61 | F119: 290 | G119: -30 | H119: -111 | I119: -2 | J119: -342 | K119: -485 | L119: 775 | M119: 30 | N119: 111 | O119: 2 | P119: 342 | Q119: 485
A120: da 86 a 90 | B120: 2 | C120: 59 | D120: 0 | E120: 34 | F120: 95 | G120: -16 | H120: -23 | I120: -1 | J120: -159 | K120: -199 | L120: 294 | M120: 16 | N120: 23 | O120: 1 | P120: 159 | Q120: 199
A121: da 91 95 | B121: 1 | C121: 13 | D121: 0 | E121: 13 | F121: 27 | G121: -4 | H121: -5 | I121: -1 | J121: -77 | K121: -87 | L121: 114 | M121: 4 | N121: 5 | O121: 1 | P121: 77 | Q121: 87
A122: oltre 95 | B122: 0 | C122: 0 | D122: 0 | E122: 3 | F122: 3 | G122: -2 | H122: 0 | I122: 0 | J122: -13 | K122: -15 | L122: 18 | M122: 2 | N122: 0 | O122: 0 | P122: 13 | Q122: 15
A123: TOTALE | B123: =SUM(B103:B122) -> 8028 | C123: =SUM(C103:C122) -> 9766 | D123: 193 | E123: 386 | F123: 18373 | G123: -7216 | H123: -10019 | I123: -366 | J123: -2009 | K123: -19610 | L123: 37983

Sheet 2008
A1: torna all'indice
A3: Popolazione residente al 1 Gennaio 2008 per et�, sesso e stato civile
A4: Comune: Ciampino
A6: Eta' | B6: Celibi | C6: Coniugati | D6: Divorziati | E6: Vedovi | F6: Totale Maschi | G6: Nubili | H6: Coniugate | I6: Divorziate | J6: Vedove | K6: Totale Femmine | L6: Maschi
L7: +
L8: Femmine
A9: 0 | B9: 177 | C9: 0 | D9: 0 | E9: 0 | F9: 177 | G9: 199 | H9: 0 | I9: 0 | J9: 0 | K9: 199 | L9: 376
A10: 1 | B10: 198 | C10: 0 | D10: 0 | E10: 0 | F10: 198 | G10: 194 | H10: 0 | I10: 0 | J10: 0 | K10: 194 | L10: 392
A11: 2 | B11: 163 | C11: 0 | D11: 0 | E11: 0 | F11: 163 | G11: 203 | H11: 0 | I11: 0 | J11: 0 | K11: 203 | L11: 366
A12: 3 | B12: 180 | C12: 0 | D12: 0 | E12: 0 | F12: 180 | G12: 182 | H12: 0 | I12: 0 | J12: 0 | K12: 182 | L12: 362
A13: 4 | B13: 177 | C13: 0 | D13: 0 | E13: 0 | F13: 177 | G13: 191 | H13: 0 | I13: 0 | J13: 0 | K13: 191 | L13: 368
A14: 5 | B14: 166 | C14: 0 | D14: 0 | E14: 0 | F14: 166 | G14: 187 | H14: 0 | I14: 0 | J14: 0 | K14: 187 | L14: 353
A15: 6 | B15: 197 | C15: 0 | D15: 0 | E15: 0 | F15: 197 | G15: 181 | H15: 0 | I15: 0 | J15: 0 | K15: 181 | L15: 378
A16: 7 | B16: 199 | C16: 0 | D16: 0 | E16: 0 | F16: 199 | G16: 187 | H16: 0 | I16: 0 | J16: 0 | K16: 187 | L16: 386
A17: 8 | B17: 212 | C17: 0 | D17: 0 | E17: 0 | F17: 212 | G17: 182 | H17: 0 | I17: 0 | J17: 0 | K17: 182 | L17: 394
A18: 9 | B18: 179 | C18: 0 | D18: 0 | E18: 0 | F18: 179 | G18: 177 | H18: 0 | I18: 0 | J18: 0 | K18: 177 | L18: 356
A19: 10 | B19: 200 | C19: 0 | D19: 0 | E19: 0 | F19: 200 | G19: 191 | H19: 0 | I19: 0 | J19: 0 | K19: 191 | L19: 391
A20: 11 | B20: 198 | C20: 0 | D20: 0 | E20: 0 | F20: 198 | G20: 199 | H20: 0 | I20: 0 | J20: 0 | K20: 199 | L20: 397
A21: 12 | B21: 183 | C21: 0 | D21: 0 | E21: 0 | F21: 183 | G21: 171 | H21: 0 | I21: 0 | J21: 0 | K21: 171 | L21: 354
A22: 13 | B22: 183 | C22: 0 | D22: 0 | E22: 0 | F22: 183 | G22: 192 | H22: 0 | I22: 0 | J22: 0 | K22: 192 | L22: 375
A23: 14 | B23: 215 | C23: 0 | D23: 0 | E23: 0 | F23: 215 | G23: 217 | H23: 0 | I23: 0 | J23: 0 | K23: 217 | L23: 432
A24: 15 | B24: 183 | C24: 0 | D24: 0 | E24: 0 | F24: 183 | G24: 191 | H24: 0 | I24: 0 | J24: 0 | K24: 191 | L24: 374
A25: 16 | B25: 204 | C25: 0 | D25: 0 | E25: 0 | F25: 204 | G25: 155 | H25: 0 | I25: 0 | J25: 0 | K25: 155 | L25: 359
A26: 17 | B26: 197 | C26: 0 | D26: 0 | E26: 0 | F26: 197 | G26: 192 | H26: 1 | I26: 0 | J26: 0 | K26: 193 | L26: 390
A27: 18 | B27: 200 | C27: 0 | D27: 0 | E27: 0 | F27: 200 | G27: 185 | H27: 1 | I27: 0 | J27: 0 | K27: 186 | L27: 386
A28: 19 | B28: 219 | C28: 0 | D28: 0 | E28: 0 | F28: 219 | G28: 172 | H28: 1 | I28: 0 | J28: 0 | K28: 173 | L28: 392
A29: 20 | B29: 182 | C29: 0 | D29: 0 | E29: 0 | F29: 182 | G29: 179 | H29: 4 | I29: 0 | J29: 0 | K29: 183 | L29: 365
A30: 21 | B30: 173 | C30: 1 | D30: 0 | E30: 0 | F30: 174 | G30: 172 | H30: 3 | I30: 0 | J30: 0 | K30: 175 | L30: 349
A31: 22 | B31: 205 | C31: 2 | D31: 0 | E31: 0 | F31: 207 | G31: 182 | H31: 8 | I31: 0 | J31: 0 | K31: 190 | L31: 397
A32: 23 | B32: 187 | C32: 1 | D32: 0 | E32: 0 | F32: 188 | G32: 136 | H32: 8 | I32: 1 | J32: 0 | K32: 145 | L32: 333
A33: 24 | B33: 209 | C33: 3 | D33: 0 | E33: 0 | F33: 212 | G33: 154 | H33: 17 | I33: 0 | J33: 0 | K33: 171 | L33: 383
A34: 25 | B34: 212 | C34: 7 | D34: 0 | E34: 1 | F34: 220 | G34: 193 | H34: 34 | I34: 0 | J34: 0 | K34: 227 | L34: 447
A35: 26 | B35: 198 | C35: 17 | D35: 0 | E35: 0 | F35: 215 | G35: 143 | H35: 43 | I35: 0 | J35: 0 | K35: 186 | L35: 401
A36: 27 | B36: 195 | C36: 32 | D36: 0 | E36: 0 | F36: 227 | G36: 150 | H36: 66 | I36: 0 | J36: 0 | K36: 216 | L36: 443
A37: 28 | B37: 217 | C37: 32 | D37: 0 | E37: 1 | F37: 250 | G37: 158 | H37: 54 | I37: 1 | J37: 0 | K37: 213 | L37: 463
A38: 29 | B38: 178 | C38: 36 | D38: 0 | E38: 0 | F38: 214 | G38: 139 | H38: 97 | I38: 0 | J38: 0 | K38: 236 | L38: 450
A39: 30 | B39: 172 | C39: 69 | D39: 0 | E39: 0 | F39: 241 | G39: 135 | H39: 117 | I39: 2 | J39: 0 | K39: 254 | L39: 495
A40: 31 | B40: 160 | C40: 81 | D40: 0 | E40: 1 | F40: 242 | G40: 123 | H40: 130 | I40: 4 | J40: 0 | K40: 257 | L40: 499
A41: 32 | B41: 186 | C41: 105 | D41: 0 | E41: 0 | F41: 291 | G41: 139 | H41: 150 | I41: 4 | J41: 1 | K41: 294 | L41: 585
A42: 33 | B42: 143 | C42: 132 | D42: 1 | E42: 0 | F42: 276 | G42: 121 | H42: 178 | I42: 7 | J42: 2 | K42: 308 | L42: 584
A43: 34 | B43: 166 | C43: 132 | D43: 1 | E43: 0 | F43: 299 | G43: 126 | H43: 212 | I43: 4 | J43: 1 | K43: 343 | L43: 642
A44: 35 | B44: 152 | C44: 156 | D44: 2 | E44: 0 | F44: 310 | G44: 92 | H44: 233 | I44: 3 | J44: 4 | K44: 332 | L44: 642
A45: 36 | B45: 104 | C45: 180 | D45: 2 | E45: 0 | F45: 286 | G45: 94 | H45: 265 | I45: 8 | J45: 0 | K45: 367 | L45: 653
A46: 37 | B46: 122 | C46: 219 | D46: 3 | E46: 0 | F46: 344 | G46: 70 | H46: 238 | I46: 4 | J46: 3 | K46: 315 | L46: 659
A47: 38 | B47: 114 | C47: 232 | D47: 6 | E47: 2 | F47: 354 | G47: 71 | H47: 270 | I47: 16 | J47: 5 | K47: 362 | L47: 716
A48: 39 | B48: 82 | C48: 253 | D48: 5 | E48: 1 | F48: 341 | G48: 69 | H48: 290 | I48: 10 | J48: 4 | K48: 373 | L48: 714
A49: 40 | B49: 75 | C49: 245 | D49: 7 | E49: 0 | F49: 327 | G49: 46 | H49: 274 | I49: 20 | J49: 3 | K49: 343 | L49: 670
A50: 41 | B50: 76 | C50: 285 | D50: 6 | E50: 0 | F50: 367 | G50: 68 | H50: 299 | I50: 14 | J50: 8 | K50: 389 | L50: 756
A51: 42 | B51: 67 | C51: 252 | D51: 9 | E51: 1 | F51: 329 | G51: 51 | H51: 293 | I51: 16 | J51: 7 | K51: 367 | L51: 696
A52: 43 | B52: 61 | C52: 289 | D52: 6 | E52: 2 | F52: 358 | G52: 38 | H52: 330 | I52: 20 | J52: 5 | K52: 393 | L52: 751
A53: 44 | B53: 60 | C53: 266 | D53: 6 | E53: 1 | F53: 333 | G53: 40 | H53: 276 | I53: 13 | J53: 8 | K53: 337 | L53: 670
A54: 45 | B54: 39 | C54: 256 | D54: 14 | E54: 1 | F54: 310 | G54: 48 | H54: 276 | I54: 15 | J54: 4 | K54: 343 | L54: 653
A55: 46 | B55: 35 | C55: 251 | D55: 8 | E55: 1 | F55: 295 | G55: 31 | H55: 271 | I55: 24 | J55: 8 | K55: 334 | L55: 629
A56: 47 | B56: 29 | C56: 244 | D56: 8 | E56: 1 | F56: 282 | G56: 23 | H56: 260 | I56: 14 | J56: 6 | K56: 303 | L56: 585
A57: 48 | B57: 27 | C57: 240 | D57: 13 | E57: 2 | F57: 282 | G57: 35 | H57: 247 | I57: 11 | J57: 9 | K57: 302 | L57: 584
A58: 49 | B58: 22 | C58: 228 | D58: 10 | E58: 1 | F58: 261 | G58: 22 | H58: 254 | I58: 15 | J58: 5 | K58: 296 | L58: 557
A59: 50 | B59: 27 | C59: 221 | D59: 8 | E59: 2 | F59: 258 | G59: 21 | H59: 209 | I59: 15 | J59: 4 | K59: 249 | L59: 507
A60: 51 | B60: 21 | C60: 187 | D60: 4 | E60: 2 | F60: 214 | G60: 18 | H60: 235 | I60: 8 | J60: 13 | K60: 274 | L60: 488
A61: 52 | B61: 22 | C61: 235 | D61: 6 | E61: 3 | F61: 266 | G61: 19 | H61: 230 | I61: 10 | J61: 4 | K61: 263 | L61: 529
A62: 53 | B62: 27 | C62: 215 | D62: 9 | E62: 2 | F62: 253 | G62: 14 | H62: 213 | I62: 17 | J62: 15 | K62: 259 | L62: 512
A63: 54 | B63: 19 | C63: 213 | D63: 7 | E63: 1 | F63: 240 | G63: 14 | H63: 194 | I63: 10 | J63: 10 | K63: 228 | L63: 468
A64: 55 | B64: 12 | C64: 200 | D64: 6 | E64: 4 | F64: 222 | G64: 16 | H64: 209 | I64: 14 | J64: 22 | K64: 261 | L64: 483
A65: 56 | B65: 17 | C65: 199 | D65: 4 | E65: 2 | F65: 222 | G65: 13 | H65: 209 | I65: 10 | J65: 12 | K65: 244 | L65: 466
A66: 57 | B66: 17 | C66: 201 | D66: 4 | E66: 3 | F66: 225 | G66: 13 | H66: 182 | I66: 6 | J66: 19 | K66: 220 | L66: 445
A67: 58 | B67: 18 | C67: 194 | D67: 3 | E67: 6 | F67: 221 | G67: 12 | H67: 219 | I67: 6 | J67: 25 | K67: 262 | L67: 483
A68: 59 | B68: 14 | C68: 233 | D68: 6 | E68: 5 | F68: 258 | G68: 16 | H68: 193 | I68: 7 | J68: 28 | K68: 244 | L68: 502
A69: 60 | B69: 9 | C69: 216 | D69: 6 | E69: 5 | F69: 236 | G69: 9 | H69: 196 | I69: 6 | J69: 25 | K69: 236 | L69: 472
A70: 61 | B70: 8 | C70: 224 | D70: 5 | E70: 9 | F70: 246 | G70: 8 | H70: 207 | I70: 11 | J70: 31 | K70: 257 | L70: 503
A71: 62 | B71: 4 | C71: 169 | D71: 2 | E71: 5 | F71: 180 | G71: 8 | H71: 168 | I71: 3 | J71: 27 | K71: 206 | L71: 386
A72: 63 | B72: 6 | C72: 162 | D72: 6 | E72: 10 | F72: 184 | G72: 16 | H72: 137 | I72: 5 | J72: 27 | K72: 185 | L72: 369
A73: 64 | B73: 3 | C73: 158 | D73: 4 | E73: 9 | F73: 174 | G73: 8 | H73: 161 | I73: 6 | J73: 31 | K73: 206 | L73: 380
A74: 65 | B74: 7 | C74: 152 | D74: 5 | E74: 9 | F74: 173 | G74: 10 | H74: 137 | I74: 6 | J74: 45 | K74: 198 | L74: 371
A75: 66 | B75: 9 | C75: 162 | D75: 1 | E75: 8 | F75: 180 | G75: 11 | H75: 147 | I75: 3 | J75: 41 | K75: 202 | L75: 382
A76: 67 | B76: 4 | C76: 182 | D76: 4 | E76: 7 | F76: 197 | G76: 12 | H76: 174 | I76: 4 | J76: 59 | K76: 249 | L76: 446
A77: 68 | B77: 5 | C77: 168 | D77: 1 | E77: 3 | F77: 177 | G77: 16 | H77: 166 | I77: 7 | J77: 61 | K77: 250 | L77: 427
A78: 69 | B78: 4 | C78: 162 | D78: 0 | E78: 13 | F78: 179 | G78: 8 | H78: 139 | I78: 5 | J78: 57 | K78: 209 | L78: 388
A79: 70 | B79: 5 | C79: 182 | D79: 1 | E79: 15 | F79: 203 | G79: 9 | H79: 131 | I79: 3 | J79: 52 | K79: 195 | L79: 398
A80: 71 | B80: 4 | C80: 157 | D80: 1 | E80: 11 | F80: 173 | G80: 12 | H80: 111 | I80: 2 | J80: 72 | K80: 197 | L80: 370
A81: 72 | B81: 6 | C81: 143 | D81: 2 | E81: 12 | F81: 163 | G81: 11 | H81: 102 | I81: 8 | J81: 69 | K81: 190 | L81: 353
A82: 73 | B82: 4 | C82: 130 | D82: 2 | E82: 16 | F82: 152 | G82: 10 | H82: 110 | I82: 3 | J82: 70 | K82: 193 | L82: 345
A83: 74 | B83: 4 | C83: 110 | D83: 1 | E83: 9 | F83: 124 | G83: 7 | H83: 82 | I83: 0 | J83: 65 | K83: 154 | L83: 278
A84: 75 | B84: 2 | C84: 101 | D84: 1 | E84: 12 | F84: 116 | G84: 10 | H84: 81 | I84: 0 | J84: 70 | K84: 161 | L84: 277
A85: 76 | B85: 5 | C85: 98 | D85: 0 | E85: 17 | F85: 120 | G85: 6 | H85: 91 | I85: 0 | J85: 85 | K85: 182 | L85: 302
A86: 77 | B86: 4 | C86: 98 | D86: 0 | E86: 13 | F86: 115 | G86: 9 | H86: 64 | I86: 0 | J86: 98 | K86: 171 | L86: 286
A87: 78 | B87: 4 | C87: 86 | D87: 1 | E87: 14 | F87: 105 | G87: 4 | H87: 44 | I87: 2 | J87: 63 | K87: 113 | L87: 218
A88: 79 | B88: 2 | C88: 69 | D88: 1 | E88: 16 | F88: 88 | G88: 10 | H88: 49 | I88: 1 | J88: 69 | K88: 129 | L88: 217
A89: 80 | B89: 1 | C89: 54 | D89: 0 | E89: 17 | F89: 72 | G89: 3 | H89: 34 | I89: 1 | J89: 78 | K89: 116 | L89: 188
A90: 81 | B90: 2 | C90: 72 | D90: 0 | E90: 14 | F90: 88 | G90: 5 | H90: 34 | I90: 1 | J90: 76 | K90: 116 | L90: 204
A91: 82 | B91: 3 | C91: 48 | D91: 0 | E91: 10 | F91: 61 | G91: 9 | H91: 32 | I91: 1 | J91: 81 | K91: 123 | L91: 184
A92: 83 | B92: 2 | C92: 45 | D92: 1 | E92: 15 | F92: 63 | G92: 2 | H92: 16 | I92: 0 | J92: 68 | K92: 86 | L92: 149
A93: 84 | B93: 2 | C93: 40 | D93: 0 | E93: 12 | F93: 54 | G93: 6 | H93: 13 | I93: 1 | J93: 61 | K93: 81 | L93: 135
A94: 85 | B94: 0 | C94: 38 | D94: 0 | E94: 14 | F94: 52 | G94: 5 | H94: 22 | I94: 1 | J94: 65 | K94: 93 | L94: 145
A95: 86 | B95: 0 | C95: 19 | D95: 0 | E95: 17 | F95: 36 | G95: 4 | H95: 5 | I95: 0 | J95: 61 | K95: 70 | L95: 106
A96: 87 | B96: 1 | C96: 19 | D96: 0 | E96: 6 | F96: 26 | G96: 5 | H96: 9 | I96: 0 | J96: 49 | K96: 63 | L96: 89
A97: 88 | B97: 0 | C97: 11 | D97: 0 | E97: 7 | F97: 18 | G97: 2 | H97: 2 | I97: 0 | J97: 40 | K97: 44 | L97: 62
A98: 89 | B98: 0 | C98: 9 | D98: 0 | E98: 6 | F98: 15 | G98: 4 | H98: 2 | I98: 0 | J98: 27 | K98: 33 | L98: 48
A99: 90 | B99: 0 | C99: 5 | D99: 0 | E99: 5 | F99: 10 | G99: 0 | H99: 1 | I99: 1 | J99: 17 | K99: 19 | L99: 29
A100: 91 | B100: 0 | C100: 4 | D100: 0 | E100: 8 | F100: 12 | G100: 3 | H100: 1 | I100: 0 | J100: 24 | K100: 28 | L100: 40
A101: 92 | B101: 0 | C101: 6 | D101: 0 | E101: 0 | F101: 6 | G101: 2 | H101: 2 | I101: 0 | J101: 18 | K101: 22 | L101: 28
A102: 93 | B102: 0 | C102: 2 | D102: 0 | E102: 6 | F102: 8 | G102: 3 | H102: 0 | I102: 0 | J102: 15 | K102: 18 | L102: 26
A103: 94 | B103: 1 | C103: 1 | D103: 0 | E103: 1 | F103: 3 | G103: 0 | H103: 1 | I103: 0 | J103: 7 | K103: 8 | L103: 11
A104: 95 | B104: 0 | C104: 1 | D104: 0 | E104: 1 | F104: 2 | G104: 0 | H104: 0 | I104: 1 | J104: 8 | K104: 9 | L104: 11
A105: 96 | B105: 0 | C105: 0 | D105: 0 | E105: 2 | F105: 2 | G105: 0 | H105: 0 | I105: 0 | J105: 10 | K105: 10 | L105: 12
A106: 97 | B106: 0 | C106: 0 | D106: 0 | E106: 0 | F106: 0 | G106: 0 | H106: 0 | I106: 0 | J106: 5 | K106: 5 | L106: 5
A107: 98 | B107: 0 | C107: 0 | D107: 0 | E107: 0 | F107: 0 | G107: 0 | H107: 1 | I107: 0 | J107: 2 | K107: 3 | L107: 3
A108: 99 | B108: 0 | C108: 0 | D108: 0 | E108: 0 | F108: 0 | G108: 1 | H108: 0 | I108: 0 | J108: 0 | K108: 1 | L108: 1
A109: 100 e pi� | B109: 0 | C109: 0 | D109: 0 | E109: 0 | F109: 0 | G109: 1 | H109: 0 | I109: 0 | J109: 5 | K109: 6 | L109: 6
A110: TOTALE | B110: 7983 | C110: 9647 | D110: 209 | E110: 400 | F110: 18239 | G110: 7201 | H110: 9965 | I110: 411 | J110: 2069 | K110: 19646 | L110: 37885

Sheet 2008 fasce
A1: torna all'indice
A2: Popolazione residente al 1 Gennaio 2008 per et�, sesso e stato civile
A3: Comune: Ciampino
A4: Eta' | B4: Celibi | C4: Coniugati | D4: Divorziati | E4: Vedovi | F4: Totale Maschi | G4: Nubili | H4: Coniugate | I4: Divorziate | J4: Vedove | K4: Totale Femmine | L4: Maschi
L5: +
L6: Femmine
A7: da 0 a 5 | B7: 1061 | C7: 0 | D7: 0 | E7: 0 | F7: 1061 | G7: 1156 | H7: 0 | I7: 0 | J7: 0 | K7: 1156 | L7: 2217
A8: da 6 a 10 | B8: 987 | C8: 0 | D8: 0 | E8: 0 | F8: 987 | G8: 918 | H8: 0 | I8: 0 | J8: 0 | K8: 918 | L8: 1905
A9: da 11 a 15 | B9: 962 | C9: 0 | D9: 0 | E9: 0 | F9: 962 | G9: 970 | H9: 0 | I9: 0 | J9: 0 | K9: 970 | L9: 1932
A10: da 16 a 20 | B10: 1002 | C10: 0 | D10: 0 | E10: 0 | F10: 1002 | G10: 883 | H10: 7 | I10: 0 | J10: 0 | K10: 890 | L10: 1892
A11: da 21 a 25 | B11: 986 | C11: 14 | D11: 0 | E11: 1 | F11: 1001 | G11: 837 | H11: 70 | I11: 1 | J11: 0 | K11: 908 | L11: 1909
A12: da 26 a 30 | B12: 960 | C12: 186 | D12: 0 | E12: 1 | F12: 1147 | G12: 725 | H12: 377 | I12: 3 | J12: 0 | K12: 1105 | L12: 2252
A13: da 31 a 35 | B13: 807 | C13: 606 | D13: 4 | E13: 1 | F13: 1418 | G13: 601 | H13: 903 | I13: 22 | J13: 8 | K13: 1534 | L13: 2952
A14: da 36 a 40 | B14: 497 | C14: 1129 | D14: 23 | E14: 3 | F14: 1652 | G14: 350 | H14: 1337 | I14: 58 | J14: 15 | K14: 1760 | L14: 3412
A15: da 41 a 45 | B15: 303 | C15: 1348 | D15: 41 | E15: 5 | F15: 1697 | G15: 245 | H15: 1474 | I15: 78 | J15: 32 | K15: 1829 | L15: 3526
A16: da 46 a 50 | B16: 140 | C16: 1184 | D16: 47 | E16: 7 | F16: 1378 | G16: 132 | H16: 1241 | I16: 79 | J16: 32 | K16: 1484 | L16: 2862
A17: da 51 a 55 | B17: 101 | C17: 1050 | D17: 32 | E17: 12 | F17: 1195 | G17: 81 | H17: 1081 | I17: 59 | J17: 64 | K17: 1285 | L17: 2480
A18: da 56 a 60 | B18: 75 | C18: 1043 | D18: 23 | E18: 21 | F18: 1162 | G18: 63 | H18: 999 | I18: 35 | J18: 109 | K18: 1206 | L18: 2368
A19: da 61 a 65 | B19: 28 | C19: 865 | D19: 22 | E19: 42 | F19: 957 | G19: 50 | H19: 810 | I19: 31 | J19: 161 | K19: 1052 | L19: 2009
A20: da 66 a 70 | B20: 27 | C20: 856 | D20: 7 | E20: 46 | F20: 936 | G20: 56 | H20: 757 | I20: 22 | J20: 270 | K20: 1105 | L20: 2041
A21: da 71 a 75 | B21: 20 | C21: 641 | D21: 7 | E21: 60 | F21: 728 | G21: 50 | H21: 486 | I21: 13 | J21: 346 | K21: 895 | L21: 1623
A22: da 76 a 80 | B22: 16 | C22: 405 | D22: 2 | E22: 77 | F22: 500 | G22: 32 | H22: 282 | I22: 4 | J22: 393 | K22: 711 | L22: 1211
A23: da 81 a 85 | B23: 9 | C23: 243 | D23: 1 | E23: 65 | F23: 318 | G23: 27 | H23: 117 | I23: 4 | J23: 351 | K23: 499 | L23: 817
A24: da 86 a 90 | B24: 1 | C24: 63 | D24: 0 | E24: 41 | F24: 105 | G24: 15 | H24: 19 | I24: 1 | J24: 194 | K24: 229 | L24: 334
A25: da 91 95 | B25: 1 | C25: 14 | D25: 0 | E25: 16 | F25: 31 | G25: 8 | H25: 4 | I25: 1 | J25: 72 | K25: 85 | L25: 116
A26: oltre 95 | B26: 0 | C26: 0 | D26: 0 | E26: 2 | F26: 2 | G26: 2 | H26: 1 | I26: 0 | J26: 22 | K26: 25 | L26: 27
A27: TOTALE | B27: =SUM(B7:B26) -> 7983 | C27: =SUM(C7:C26) -> 9647 | D27: 209 | E27: 400 | F27: 18239 | G27: 7201 | H27: 9965 | I27: 411 | J27: 2069 | K27: 19646 | L27: 37885
A100: Eta' | B100: Celibi | C100: Coniugati | D100: Divorziati | E100: Vedovi | F100: Totale Maschi | G100: Nubili | H100: Coniugate | I100: Divorziate | J100: Vedove | K100: Totale Femmine | L100: Maschi
L101: +
L102: Femmine
A103: da 0 a 5 | B103: 1061 | C103: 0 | D103: 0 | E103: 0 | F103: 1061 | G103: -1156 | H103: 0 | I103: 0 | J103: 0 | K103: -1156 | L103: 2217 | M103: =G103-(G103*2) -> 1156 | N103: =H103-(H103*2) -> 0 | O103: 0 | P103: 0 | Q103: 1156
A104: da 6 a 10 | B104: 987 | C104: 0 | D104: 0 | E104: 0 | F104: 987 | G104: -918 | H104: 0 | I104: 0 | J104: 0 | K104: -918 | L104: 1905 | M104: =G104-(G104*2) -> 918 | N104: =H104-(H104*2) -> 0 | O104: =I104-(I104*2) -> 0 | P104: =J104-(J104*2) -> 0 | Q104: =K104-(K104*2) -> 918
A105: da 11 a 15 | B105: 962 | C105: 0 | D105: 0 | E105: 0 | F105: 962 | G105: -970 | H105: 0 | I105: 0 | J105: 0 | K105: -970 | L105: 1932 | M105: 970 | N105: 0 | O105: 0 | P105: 0 | Q105: 970
A106: da 16 a 20 | B106: 1002 | C106: 0 | D106: 0 | E106: 0 | F106: 1002 | G106: -883 | H106: -7 | I106: 0 | J106: 0 | K106: -890 | L106: 1892 | M106: 883 | N106: 7 | O106: 0 | P106: 0 | Q106: 890
A107: da 21 a 25 | B107: 986 | C107: 14 | D107: 0 | E107: 1 | F107: 1001 | G107: -837 | H107: -70 | I107: -1 | J107: 0 | K107: -908 | L107: 1909 | M107: 837 | N107: 70 | O107: 1 | P107: 0 | Q107: 908
A108: da 26 a 30 | B108: 960 | C108: 186 | D108: 0 | E108: 1 | F108: 1147 | G108: -725 | H108: -377 | I108: -3 | J108: 0 | K108: -1105 | L108: 2252 | M108: 725 | N108: 377 | O108: 3 | P108: 0 | Q108: 1105
A109: da 31 a 35 | B109: 807 | C109: 606 | D109: 4 | E109: 1 | F109: 1418 | G109: -601 | H109: -903 | I109: -22 | J109: -8 | K109: -1534 | L109: 2952 | M109: 601 | N109: 903 | O109: 22 | P109: 8 | Q109: 1534
A110: da 36 a 40 | B110: 497 | C110: 1129 | D110: 23 | E110: 3 | F110: 1652 | G110: -350 | H110: -1337 | I110: -58 | J110: -15 | K110: -1760 | L110: 3412 | M110: 350 | N110: 1337 | O110: 58 | P110: 15 | Q110: 1760
A111: da 41 a 45 | B111: 303 | C111: 1348 | D111: 41 | E111: 5 | F111: 1697 | G111: -245 | H111: -1474 | I111: -78 | J111: -32 | K111: -1829 | L111: 3526 | M111: 245 | N111: 1474 | O111: 78 | P111: 32 | Q111: 1829
A112: da 46 a 50 | B112: 140 | C112: 1184 | D112: 47 | E112: 7 | F112: 1378 | G112: -132 | H112: -1241 | I112: -79 | J112: -32 | K112: -1484 | L112: 2862 | M112: 132 | N112: 1241 | O112: 79 | P112: 32 | Q112: 1484
A113: da 51 a 55 | B113: 101 | C113: 1050 | D113: 32 | E113: 12 | F113: 1195 | G113: -81 | H113: -1081 | I113: -59 | J113: -64 | K113: -1285 | L113: 2480 | M113: 81 | N113: 1081 | O113: 59 | P113: 64 | Q113: 1285
A114: da 56 a 60 | B114: 75 | C114: 1043 | D114: 23 | E114: 21 | F114: 1162 | G114: -63 | H114: -999 | I114: -35 | J114: -109 | K114: -1206 | L114: 2368 | M114: 63 | N114: 999 | O114: 35 | P114: 109 | Q114: 1206
A115: da 61 a 65 | B115: 28 | C115: 865 | D115: 22 | E115: 42 | F115: 957 | G115: -50 | H115: -810 | I115: -31 | J115: -161 | K115: -1052 | L115: 2009 | M115: 50 | N115: 810 | O115: 31 | P115: 161 | Q115: 1052
A116: da 66 a 70 | B116: 27 | C116: 856 | D116: 7 | E116: 46 | F116: 936 | G116: -56 | H116: -757 | I116: -22 | J116: -270 | K116: -1105 | L116: 2041 | M116: 56 | N116: 757 | O116: 22 | P116: 270 | Q116: 1105
A117: da 71 a 75 | B117: 20 | C117: 641 | D117: 7 | E117: 60 | F117: 728 | G117: -50 | H117: -486 | I117: -13 | J117: -346 | K117: -895 | L117: 1623 | M117: 50 | N117: 486 | O117: 13 | P117: 346 | Q117: 895
A118: da 76 a 80 | B118: 16 | C118: 405 | D118: 2 | E118: 77 | F118: 500 | G118: -32 | H118: -282 | I118: -4 | J118: -393 | K118: -711 | L118: 1211 | M118: 32 | N118: 282 | O118: 4 | P118: 393 | Q118: 711
A119: da 81 a 85 | B119: 9 | C119: 243 | D119: 1 | E119: 65 | F119: 318 | G119: -27 | H119: -117 | I119: -4 | J119: -351 | K119: -499 | L119: 817 | M119: 27 | N119: 117 | O119: 4 | P119: 351 | Q119: 499
A120: da 86 a 90 | B120: 1 | C120: 63 | D120: 0 | E120: 41 | F120: 105 | G120: -15 | H120: -19 | I120: -1 | J120: -194 | K120: -229 | L120: 334 | M120: 15 | N120: 19 | O120: 1 | P120: 194 | Q120: 229
A121: da 91 95 | B121: 1 | C121: 14 | D121: 0 | E121: 16 | F121: 31 | G121: -8 | H121: -4 | I121: -1 | J121: -72 | K121: -85 | L121: 116 | M121: 8 | N121: 4 | O121: 1 | P121: 72 | Q121: 85
A122: oltre 95 | B122: 0 | C122: 0 | D122: 0 | E122: 2 | F122: 2 | G122: -2 | H122: -1 | I122: 0 | J122: -22 | K122: -25 | L122: 27 | M122: 2 | N122: 1 | O122: 0 | P122: 22 | Q122: 25
A123: TOTALE | B123: =SUM(B103:B122) -> 7983 | C123: =SUM(C103:C122) -> 9647 | D123: 209 | E123: 400 | F123: 18239 | G123: -7201 | H123: -9965 | I123: -411 | J123: -2069 | K123: -19646 | L123: 37885

Sheet 2009
A1: torna all'indice
A3: Popolazione residente al 1 Gennaio 2009 per età, sesso e stato civile
A4: Comune: Ciampino
A6: Eta' | B6: Celibi | C6: Coniugati | D6: Divorziati | E6: Vedovi | F6: Totale Maschi | G6: Nubili | H6: Coniugate | I6: Divorziate | J6: Vedove | K6: Totale Femmine | L6: Maschi
L7: +
L8: Femmine
A9: 0 | B9: 190 | C9: 0 | D9: 0 | E9: 0 | F9: 190 | G9: 190 | H9: 0 | I9: 0 | J9: 0 | K9: 190 | L9: 380
A10: 1 | B10: 197 | C10: 0 | D10: 0 | E10: 0 | F10: 197 | G10: 198 | H10: 0 | I10: 0 | J10: 0 | K10: 198 | L10: 395
A11: 2 | B11: 189 | C11: 0 | D11: 0 | E11: 0 | F11: 189 | G11: 195 | H11: 0 | I11: 0 | J11: 0 | K11: 195 | L11: 384
A12: 3 | B12: 166 | C12: 0 | D12: 0 | E12: 0 | F12: 166 | G12: 201 | H12: 0 | I12: 0 | J12: 0 | K12: 201 | L12: 367
A13: 4 | B13: 175 | C13: 0 | D13: 0 | E13: 0 | F13: 175 | G13: 183 | H13: 0 | I13: 0 | J13: 0 | K13: 183 | L13: 358
A14: 5 | B14: 182 | C14: 0 | D14: 0 | E14: 0 | F14: 182 | G14: 194 | H14: 0 | I14: 0 | J14: 0 | K14: 194 | L14: 376
A15: 6 | B15: 172 | C15: 0 | D15: 0 | E15: 0 | F15: 172 | G15: 188 | H15: 0 | I15: 0 | J15: 0 | K15: 188 | L15: 360
A16: 7 | B16: 194 | C16: 0 | D16: 0 | E16: 0 | F16: 194 | G16: 182 | H16: 0 | I16: 0 | J16: 0 | K16: 182 | L16: 376
A17: 8 | B17: 202 | C17: 0 | D17: 0 | E17: 0 | F17: 202 | G17: 190 | H17: 0 | I17: 0 | J17: 0 | K17: 190 | L17: 392
A18: 9 | B18: 217 | C18: 0 | D18: 0 | E18: 0 | F18: 217 | G18: 178 | H18: 0 | I18: 0 | J18: 0 | K18: 178 | L18: 395
A19: 10 | B19: 182 | C19: 0 | D19: 0 | E19: 0 | F19: 182 | G19: 180 | H19: 0 | I19: 0 | J19: 0 | K19: 180 | L19: 362
A20: 11 | B20: 199 | C20: 0 | D20: 0 | E20: 0 | F20: 199 | G20: 191 | H20: 0 | I20: 0 | J20: 0 | K20: 191 | L20: 390
A21: 12 | B21: 194 | C21: 0 | D21: 0 | E21: 0 | F21: 194 | G21: 200 | H21: 0 | I21: 0 | J21: 0 | K21: 200 | L21: 394
A22: 13 | B22: 185 | C22: 0 | D22: 0 | E22: 0 | F22: 185 | G22: 172 | H22: 0 | I22: 0 | J22: 0 | K22: 172 | L22: 357
A23: 14 | B23: 180 | C23: 0 | D23: 0 | E23: 0 | F23: 180 | G23: 196 | H23: 0 | I23: 0 | J23: 0 | K23: 196 | L23: 376
A24: 15 | B24: 216 | C24: 0 | D24: 0 | E24: 0 | F24: 216 | G24: 221 | H24: 0 | I24: 0 | J24: 0 | K24: 221 | L24: 437
A25: 16 | B25: 183 | C25: 0 | D25: 0 | E25: 0 | F25: 183 | G25: 194 | H25: 0 | I25: 0 | J25: 0 | K25: 194 | L25: 377
A26: 17 | B26: 210 | C26: 0 | D26: 0 | E26: 0 | F26: 210 | G26: 157 | H26: 0 | I26: 0 | J26: 0 | K26: 157 | L26: 367
A27: 18 | B27: 192 | C27: 0 | D27: 0 | E27: 0 | F27: 192 | G27: 190 | H27: 0 | I27: 0 | J27: 0 | K27: 190 | L27: 382
A28: 19 | B28: 204 | C28: 0 | D28: 0 | E28: 0 | F28: 204 | G28: 181 | H28: 1 | I28: 0 | J28: 0 | K28: 182 | L28: 386
A29: 20 | B29: 215 | C29: 0 | D29: 0 | E29: 0 | F29: 215 | G29: 177 | H29: 2 | I29: 0 | J29: 0 | K29: 179 | L29: 394
A30: 21 | B30: 179 | C30: 1 | D30: 0 | E30: 0 | F30: 180 | G30: 179 | H30: 7 | I30: 0 | J30: 0 | K30: 186 | L30: 366
A31: 22 | B31: 177 | C31: 1 | D31: 0 | E31: 0 | F31: 178 | G31: 176 | H31: 5 | I31: 0 | J31: 0 | K31: 181 | L31: 359
A32: 23 | B32: 208 | C32: 3 | D32: 0 | E32: 0 | F32: 211 | G32: 182 | H32: 10 | I32: 2 | J32: 0 | K32: 194 | L32: 405
A33: 24 | B33: 187 | C33: 3 | D33: 0 | E33: 0 | F33: 190 | G33: 141 | H33: 13 | I33: 1 | J33: 0 | K33: 155 | L33: 345
A34: 25 | B34: 208 | C34: 6 | D34: 0 | E34: 0 | F34: 214 | G34: 151 | H34: 17 | I34: 0 | J34: 1 | K34: 169 | L34: 383
A35: 26 | B35: 207 | C35: 9 | D35: 0 | E35: 0 | F35: 216 | G35: 181 | H35: 42 | I35: 0 | J35: 0 | K35: 223 | L35: 439
A36: 27 | B36: 192 | C36: 23 | D36: 0 | E36: 0 | F36: 215 | G36: 140 | H36: 44 | I36: 0 | J36: 0 | K36: 184 | L36: 399
A37: 28 | B37: 189 | C37: 39 | D37: 0 | E37: 0 | F37: 228 | G37: 139 | H37: 73 | I37: 0 | J37: 0 | K37: 212 | L37: 440
A38: 29 | B38: 206 | C38: 42 | D38: 0 | E38: 1 | F38: 249 | G38: 147 | H38: 67 | I38: 2 | J38: 0 | K38: 216 | L38: 465
A39: 30 | B39: 176 | C39: 46 | D39: 1 | E39: 0 | F39: 223 | G39: 135 | H39: 111 | I39: 0 | J39: 0 | K39: 246 | L39: 469
A40: 31 | B40: 167 | C40: 73 | D40: 0 | E40: 0 | F40: 240 | G40: 121 | H40: 128 | I40: 2 | J40: 1 | K40: 252 | L40: 492
A41: 32 | B41: 145 | C41: 96 | D41: 0 | E41: 1 | F41: 242 | G41: 123 | H41: 131 | I41: 4 | J41: 0 | K41: 258 | L41: 500
A42: 33 | B42: 172 | C42: 111 | D42: 1 | E42: 0 | F42: 284 | G42: 126 | H42: 160 | I42: 3 | J42: 1 | K42: 290 | L42: 574
A43: 34 | B43: 133 | C43: 146 | D43: 2 | E43: 0 | F43: 281 | G43: 117 | H43: 182 | I43: 8 | J43: 2 | K43: 309 | L43: 590
A44: 35 | B44: 159 | C44: 146 | D44: 1 | E44: 0 | F44: 306 | G44: 123 | H44: 220 | I44: 4 | J44: 1 | K44: 348 | L44: 654
A45: 36 | B45: 142 | C45: 164 | D45: 2 | E45: 0 | F45: 308 | G45: 91 | H45: 239 | I45: 4 | J45: 4 | K45: 338 | L45: 646
A46: 37 | B46: 93 | C46: 175 | D46: 5 | E46: 0 | F46: 273 | G46: 93 | H46: 269 | I46: 12 | J46: 0 | K46: 374 | L46: 647
A47: 38 | B47: 117 | C47: 223 | D47: 5 | E47: 0 | F47: 345 | G47: 67 | H47: 238 | I47: 7 | J47: 2 | K47: 314 | L47: 659
A48: 39 | B48: 113 | C48: 234 | D48: 6 | E48: 2 | F48: 355 | G48: 59 | H48: 277 | I48: 17 | J48: 5 | K48: 358 | L48: 713
A49: 40 | B49: 77 | C49: 260 | D49: 8 | E49: 1 | F49: 346 | G49: 67 | H49: 288 | I49: 12 | J49: 4 | K49: 371 | L49: 717
A50: 41 | B50: 71 | C50: 244 | D50: 9 | E50: 0 | F50: 324 | G50: 47 | H50: 271 | I50: 22 | J50: 3 | K50: 343 | L50: 667
A51: 42 | B51: 76 | C51: 282 | D51: 9 | E51: 0 | F51: 367 | G51: 66 | H51: 301 | I51: 15 | J51: 8 | K51: 390 | L51: 757
A52: 43 | B52: 65 | C52: 256 | D52: 8 | E52: 1 | F52: 330 | G52: 50 | H52: 293 | I52: 14 | J52: 6 | K52: 363 | L52: 693
A53: 44 | B53: 58 | C53: 283 | D53: 8 | E53: 2 | F53: 351 | G53: 38 | H53: 333 | I53: 25 | J53: 6 | K53: 402 | L53: 753
A54: 45 | B54: 60 | C54: 263 | D54: 8 | E54: 1 | F54: 332 | G54: 40 | H54: 271 | I54: 15 | J54: 7 | K54: 333 | L54: 665
A55: 46 | B55: 38 | C55: 257 | D55: 13 | E55: 1 | F55: 309 | G55: 49 | H55: 279 | I55: 16 | J55: 4 | K55: 348 | L55: 657
A56: 47 | B56: 34 | C56: 254 | D56: 9 | E56: 1 | F56: 298 | G56: 31 | H56: 267 | I56: 23 | J56: 8 | K56: 329 | L56: 627
A57: 48 | B57: 28 | C57: 245 | D57: 8 | E57: 1 | F57: 282 | G57: 21 | H57: 251 | I57: 15 | J57: 6 | K57: 293 | L57: 575
A58: 49 | B58: 27 | C58: 237 | D58: 15 | E58: 3 | F58: 282 | G58: 36 | H58: 245 | I58: 11 | J58: 8 | K58: 300 | L58: 582
A59: 50 | B59: 22 | C59: 226 | D59: 12 | E59: 0 | F59: 260 | G59: 22 | H59: 251 | I59: 15 | J59: 5 | K59: 293 | L59: 553
A60: 51 | B60: 24 | C60: 220 | D60: 8 | E60: 2 | F60: 254 | G60: 21 | H60: 206 | I60: 17 | J60: 4 | K60: 248 | L60: 502
A61: 52 | B61: 21 | C61: 188 | D61: 3 | E61: 2 | F61: 214 | G61: 18 | H61: 230 | I61: 8 | J61: 15 | K61: 271 | L61: 485
A62: 53 | B62: 22 | C62: 230 | D62: 8 | E62: 3 | F62: 263 | G62: 18 | H62: 228 | I62: 12 | J62: 4 | K62: 262 | L62: 525
A63: 54 | B63: 27 | C63: 215 | D63: 10 | E63: 2 | F63: 254 | G63: 15 | H63: 213 | I63: 17 | J63: 15 | K63: 260 | L63: 514
A64: 55 | B64: 18 | C64: 214 | D64: 6 | E64: 1 | F64: 239 | G64: 15 | H64: 188 | I64: 9 | J64: 11 | K64: 223 | L64: 462
A65: 56 | B65: 10 | C65: 201 | D65: 4 | E65: 4 | F65: 219 | G65: 16 | H65: 209 | I65: 16 | J65: 23 | K65: 264 | L65: 483
A66: 57 | B66: 17 | C66: 198 | D66: 3 | E66: 2 | F66: 220 | G66: 12 | H66: 208 | I66: 10 | J66: 11 | K66: 241 | L66: 461
A67: 58 | B67: 17 | C67: 198 | D67: 3 | E67: 3 | F67: 221 | G67: 12 | H67: 182 | I67: 6 | J67: 21 | K67: 221 | L67: 442
A68: 59 | B68: 18 | C68: 190 | D68: 3 | E68: 6 | F68: 217 | G68: 13 | H68: 219 | I68: 6 | J68: 25 | K68: 263 | L68: 480
A69: 60 | B69: 15 | C69: 229 | D69: 6 | E69: 5 | F69: 255 | G69: 16 | H69: 191 | I69: 7 | J69: 29 | K69: 243 | L69: 498
A70: 61 | B70: 8 | C70: 210 | D70: 6 | E70: 6 | F70: 230 | G70: 9 | H70: 190 | I70: 7 | J70: 32 | K70: 238 | L70: 468
A71: 62 | B71: 8 | C71: 218 | D71: 6 | E71: 7 | F71: 239 | G71: 9 | H71: 204 | I71: 9 | J71: 29 | K71: 251 | L71: 490
A72: 63 | B72: 4 | C72: 168 | D72: 2 | E72: 6 | F72: 180 | G72: 8 | H72: 164 | I72: 3 | J72: 25 | K72: 200 | L72: 380
A73: 64 | B73: 6 | C73: 161 | D73: 7 | E73: 10 | F73: 184 | G73: 16 | H73: 136 | I73: 5 | J73: 27 | K73: 184 | L73: 368
A74: 65 | B74: 3 | C74: 158 | D74: 4 | E74: 10 | F74: 175 | G74: 8 | H74: 159 | I74: 5 | J74: 33 | K74: 205 | L74: 380
A75: 66 | B75: 6 | C75: 151 | D75: 5 | E75: 9 | F75: 171 | G75: 9 | H75: 132 | I75: 8 | J75: 48 | K75: 197 | L75: 368
A76: 67 | B76: 11 | C76: 159 | D76: 1 | E76: 8 | F76: 179 | G76: 12 | H76: 144 | I76: 3 | J76: 44 | K76: 203 | L76: 382
A77: 68 | B77: 3 | C77: 177 | D77: 3 | E77: 7 | F77: 190 | G77: 14 | H77: 172 | I77: 4 | J77: 58 | K77: 248 | L77: 438
A78: 69 | B78: 5 | C78: 166 | D78: 1 | E78: 4 | F78: 176 | G78: 16 | H78: 164 | I78: 7 | J78: 64 | K78: 251 | L78: 427
A79: 70 | B79: 3 | C79: 158 | D79: 0 | E79: 14 | F79: 175 | G79: 8 | H79: 137 | I79: 5 | J79: 61 | K79: 211 | L79: 386
A80: 71 | B80: 4 | C80: 176 | D80: 1 | E80: 17 | F80: 198 | G80: 9 | H80: 123 | I80: 3 | J80: 54 | K80: 189 | L80: 387
A81: 72 | B81: 4 | C81: 151 | D81: 1 | E81: 12 | F81: 168 | G81: 12 | H81: 99 | I81: 3 | J81: 73 | K81: 187 | L81: 355
A82: 73 | B82: 6 | C82: 138 | D82: 2 | E82: 14 | F82: 160 | G82: 11 | H82: 97 | I82: 8 | J82: 72 | K82: 188 | L82: 348
A83: 74 | B83: 4 | C83: 130 | D83: 2 | E83: 16 | F83: 152 | G83: 8 | H83: 105 | I83: 3 | J83: 75 | K83: 191 | L83: 343
A84: 75 | B84: 3 | C84: 108 | D84: 1 | E84: 9 | F84: 121 | G84: 8 | H84: 77 | I84: 0 | J84: 66 | K84: 151 | L84: 272
A85: 76 | B85: 1 | C85: 99 | D85: 1 | E85: 14 | F85: 115 | G85: 8 | H85: 80 | I85: 0 | J85: 73 | K85: 161 | L85: 276
A86: 77 | B86: 4 | C86: 91 | D86: 0 | E86: 16 | F86: 111 | G86: 6 | H86: 83 | I86: 0 | J86: 88 | K86: 177 | L86: 288
A87: 78 | B87: 4 | C87: 94 | D87: 0 | E87: 12 | F87: 110 | G87: 11 | H87: 59 | I87: 0 | J87: 99 | K87: 169 | L87: 279
A88: 79 | B88: 3 | C88: 83 | D88: 1 | E88: 14 | F88: 101 | G88: 4 | H88: 42 | I88: 2 | J88: 64 | K88: 112 | L88: 213
A89: 80 | B89: 2 | C89: 63 | D89: 1 | E89: 16 | F89: 82 | G89: 9 | H89: 47 | I89: 1 | J89: 66 | K89: 123 | L89: 205
A90: 81 | B90: 2 | C90: 47 | D90: 1 | E90: 18 | F90: 68 | G90: 3 | H90: 33 | I90: 1 | J90: 77 | K90: 114 | L90: 182
A91: 82 | B91: 2 | C91: 65 | D91: 0 | E91: 15 | F91: 82 | G91: 5 | H91: 32 | I91: 1 | J91: 77 | K91: 115 | L91: 197
A92: 83 | B92: 2 | C92: 39 | D92: 0 | E92: 8 | F92: 49 | G92: 8 | H92: 25 | I92: 0 | J92: 80 | K92: 113 | L92: 162
A93: 84 | B93: 2 | C93: 40 | D93: 2 | E93: 14 | F93: 58 | G93: 2 | H93: 13 | I93: 0 | J93: 69 | K93: 84 | L93: 142
A94: 85 | B94: 2 | C94: 33 | D94: 0 | E94: 14 | F94: 49 | G94: 6 | H94: 8 | I94: 1 | J94: 62 | K94: 77 | L94: 126
A95: 86 | B95: 0 | C95: 32 | D95: 0 | E95: 13 | F95: 45 | G95: 5 | H95: 20 | I95: 1 | J95: 64 | K95: 90 | L95: 135
A96: 87 | B96: 0 | C96: 18 | D96: 0 | E96: 17 | F96: 35 | G96: 3 | H96: 3 | I96: 0 | J96: 58 | K96: 64 | L96: 99
A97: 88 | B97: 1 | C97: 16 | D97: 0 | E97: 6 | F97: 23 | G97: 5 | H97: 5 | I97: 0 | J97: 48 | K97: 58 | L97: 81
A98: 89 | B98: 0 | C98: 10 | D98: 0 | E98: 8 | F98: 18 | G98: 2 | H98: 1 | I98: 0 | J98: 37 | K98: 40 | L98: 58
A99: 90 | B99: 0 | C99: 7 | D99: 0 | E99: 3 | F99: 10 | G99: 2 | H99: 2 | I99: 0 | J99: 20 | K99: 24 | L99: 34
A100: 91 | B100: 0 | C100: 5 | D100: 0 | E100: 6 | F100: 11 | G100: 0 | H100: 1 | I100: 1 | J100: 12 | K100: 14 | L100: 25
A101: 92 | B101: 0 | C101: 3 | D101: 0 | E101: 8 | F101: 11 | G101: 3 | H101: 0 | I101: 0 | J101: 21 | K101: 24 | L101: 35
A102: 93 | B102: 0 | C102: 5 | D102: 0 | E102: 1 | F102: 6 | G102: 2 | H102: 1 | I102: 0 | J102: 14 | K102: 17 | L102: 23
A103: 94 | B103: 0 | C103: 0 | D103: 0 | E103: 4 | F103: 4 | G103: 2 | H103: 0 | I103: 0 | J103: 14 | K103: 16 | L103: 20
A104: 95 | B104: 1 | C104: 1 | D104: 0 | E104: 0 | F104: 2 | G104: 0 | H104: 1 | I104: 0 | J104: 7 | K104: 8 | L104: 10
A105: 96 | B105: 0 | C105: 0 | D105: 0 | E105: 2 | F105: 2 | G105: 0 | H105: 0 | I105: 0 | J105: 6 | K105: 6 | L105: 8
A106: 97 | B106: 0 | C106: 0 | D106: 0 | E106: 2 | F106: 2 | G106: 0 | H106: 0 | I106: 0 | J106: 6 | K106: 6 | L106: 8
A107: 98 | B107: 0 | C107: 0 | D107: 0 | E107: 0 | F107: 0 | G107: 0 | H107: 0 | I107: 0 | J107: 4 | K107: 4 | L107: 4
A108: 99 | B108: 0 | C108: 0 | D108: 0 | E108: 0 | F108: 0 | G108: 0 | H108: 1 | I108: 0 | J108: 2 | K108: 3 | L108: 3
A109: 100 e più | B109: 0 | C109: 0 | D109: 0 | E109: 0 | F109: 0 | G109: 2 | H109: 0 | I109: 0 | J109: 3 | K109: 5 | L109: 5
A110: TOTALE | B110: 8063 | C110: 9611 | D110: 232 | E110: 405 | F110: 18311 | G110: 7317 | H110: 9920 | I110: 438 | J110: 2072 | K110: 19747 | L110: 38058

Sheet 2009 fasce
A1: torna all'indice
A2: Popolazione residente al 1 Gennaio 2009 per età, sesso e stato civile
A3: Comune: Ciampino
A4: Eta' | B4: Celibi | C4: Coniugati | D4: Divorziati | E4: Vedovi | F4: Totale Maschi | G4: Nubili | H4: Coniugate | I4: Divorziate | J4: Vedove | K4: Totale Femmine | L4: Maschi
L5: +
L6: Femmine
A7: da 0 a 5 | B7: 1099 | C7: 0 | D7: 0 | E7: 0 | F7: 1099 | G7: 1161 | H7: 0 | I7: 0 | J7: 0 | K7: 1161 | L7: 2260
A8: da 6 a 10 | B8: 967 | C8: 0 | D8: 0 | E8: 0 | F8: 967 | G8: 918 | H8: 0 | I8: 0 | J8: 0 | K8: 918 | L8: 1885
A9: da 11 a 15 | B9: 974 | C9: 0 | D9: 0 | E9: 0 | F9: 974 | G9: 980 | H9: 0 | I9: 0 | J9: 0 | K9: 980 | L9: 1954
A10: da 16 a 20 | B10: 1004 | C10: 0 | D10: 0 | E10: 0 | F10: 1004 | G10: 899 | H10: 3 | I10: 0 | J10: 0 | K10: 902 | L10: 1906
A11: da 21 a 25 | B11: 959 | C11: 14 | D11: 0 | E11: 0 | F11: 973 | G11: 829 | H11: 52 | I11: 3 | J11: 1 | K11: 885 | L11: 1858
A12: da 26 a 30 | B12: 970 | C12: 159 | D12: 1 | E12: 1 | F12: 1131 | G12: 742 | H12: 337 | I12: 2 | J12: 0 | K12: 1081 | L12: 2212
A13: da 31 a 35 | B13: 776 | C13: 572 | D13: 4 | E13: 1 | F13: 1353 | G13: 610 | H13: 821 | I13: 21 | J13: 5 | K13: 1457 | L13: 2810
A14: da 36 a 40 | B14: 542 | C14: 1056 | D14: 26 | E14: 3 | F14: 1627 | G14: 377 | H14: 1311 | I14: 52 | J14: 15 | K14: 1755 | L14: 3382
A15: da 41 a 45 | B15: 330 | C15: 1328 | D15: 42 | E15: 4 | F15: 1704 | G15: 241 | H15: 1469 | I15: 91 | J15: 30 | K15: 1831 | L15: 3535
A16: da 46 a 50 | B16: 149 | C16: 1219 | D16: 57 | E16: 6 | F16: 1431 | G16: 159 | H16: 1293 | I16: 80 | J16: 31 | K16: 1563 | L16: 2994
A17: da 51 a 55 | B17: 112 | C17: 1067 | D17: 35 | E17: 10 | F17: 1224 | G17: 87 | H17: 1065 | I17: 63 | J17: 49 | K17: 1264 | L17: 2488
A18: da 56 a 60 | B18: 77 | C18: 1016 | D18: 19 | E18: 20 | F18: 1132 | G18: 69 | H18: 1009 | I18: 45 | J18: 109 | K18: 1232 | L18: 2364
A19: da 61 a 65 | B19: 29 | C19: 915 | D19: 25 | E19: 39 | F19: 1008 | G19: 50 | H19: 853 | I19: 29 | J19: 146 | K19: 1078 | L19: 2086
A20: da 66 a 70 | B20: 28 | C20: 811 | D20: 10 | E20: 42 | F20: 891 | G20: 59 | H20: 749 | I20: 27 | J20: 275 | K20: 1110 | L20: 2001
A21: da 71 a 75 | B21: 21 | C21: 703 | D21: 7 | E21: 68 | F21: 799 | G21: 48 | H21: 501 | I21: 17 | J21: 340 | K21: 906 | L21: 1705
A22: da 76 a 80 | B22: 14 | C22: 430 | D22: 3 | E22: 72 | F22: 519 | G22: 38 | H22: 311 | I22: 3 | J22: 390 | K22: 742 | L22: 1261
A23: da 81 a 85 | B23: 10 | C23: 224 | D23: 3 | E23: 69 | F23: 306 | G23: 24 | H23: 111 | I23: 3 | J23: 365 | K23: 503 | L23: 809
A24: da 86 a 90 | B24: 1 | C24: 83 | D24: 0 | E24: 47 | F24: 131 | G24: 17 | H24: 31 | I24: 1 | J24: 227 | K24: 276 | L24: 407
A25: da 91 95 | B25: 1 | C25: 14 | D25: 0 | E25: 19 | F25: 34 | G25: 7 | H25: 3 | I25: 1 | J25: 68 | K25: 79 | L25: 113
A26: oltre 95 | B26: 0 | C26: 0 | D26: 0 | E26: 4 | F26: 4 | G26: 2 | H26: 1 | I26: 0 | J26: 21 | K26: 24 | L26: 28
A27: TOTALE | B27: =SUM(B7:B26) -> 8063 | C27: =SUM(C7:C26) -> 9611 | D27: 232 | E27: 405 | F27: 18311 | G27: 7317 | H27: 9920 | I27: 438 | J27: 2072 | K27: 19747 | L27: 38058
A100: Eta' | B100: Celibi | C100: Coniugati | D100: Divorziati | E100: Vedovi | F100: Totale Maschi | G100: Nubili | H100: Coniugate | I100: Divorziate | J100: Vedove | K100: Totale Femmine | L100: Maschi
L101: +
L102: Femmine
A103: da 0 a 5 | B103: 1099 | C103: 0 | D103: 0 | E103: 0 | F103: 1099 | G103: -1161 | H103: 0 | I103: 0 | J103: 0 | K103: -1161 | L103: 2260 | M103: =G103-(G103*2) -> 1161 | N103: =H103-(H103*2) -> 0 | O103: 0 | P103: 0 | Q103: 1161
A104: da 6 a 10 | B104: 967 | C104: 0 | D104: 0 | E104: 0 | F104: 967 | G104: -918 | H104: 0 | I104: 0 | J104: 0 | K104: -918 | L104: 1885 | M104: =G104-(G104*2) -> 918 | N104: =H104-(H104*2) -> 0 | O104: =I104-(I104*2) -> 0 | P104: =J104-(J104*2) -> 0 | Q104: =K104-(K104*2) -> 918
A105: da 11 a 15 | B105: 974 | C105: 0 | D105: 0 | E105: 0 | F105: 974 | G105: -980 | H105: 0 | I105: 0 | J105: 0 | K105: -980 | L105: 1954 | M105: 980 | N105: 0 | O105: 0 | P105: 0 | Q105: 980
A106: da 16 a 20 | B106: 1004 | C106: 0 | D106: 0 | E106: 0 | F106: 1004 | G106: -899 | H106: -3 | I106: 0 | J106: 0 | K106: -902 | L106: 1906 | M106: 899 | N106: 3 | O106: 0 | P106: 0 | Q106: 902
A107: da 21 a 25 | B107: 959 | C107: 14 | D107: 0 | E107: 0 | F107: 973 | G107: -829 | H107: -52 | I107: -3 | J107: -1 | K107: -885 | L107: 1858 | M107: 829 | N107: 52 | O107: 3 | P107: 1 | Q107: 885
A108: da 26 a 30 | B108: 970 | C108: 159 | D108: 1 | E108: 1 | F108: 1131 | G108: -742 | H108: -337 | I108: -2 | J108: 0 | K108: -1081 | L108: 2212 | M108: 742 | N108: 337 | O108: 2 | P108: 0 | Q108: 1081
A109: da 31 a 35 | B109: 776 | C109: 572 | D109: 4 | E109: 1 | F109: 1353 | G109: -610 | H109: -821 | I109: -21 | J109: -5 | K109: -1457 | L109: 2810 | M109: 610 | N109: 821 | O109: 21 | P109: 5 | Q109: 1457
A110: da 36 a 40 | B110: 542 | C110: 1056 | D110: 26 | E110: 3 | F110: 1627 | G110: -377 | H110: -1311 | I110: -52 | J110: -15 | K110: -1755 | L110: 3382 | M110: 377 | N110: 1311 | O110: 52 | P110: 15 | Q110: 1755
A111: da 41 a 45 | B111: 330 | C111: 1328 | D111: 42 | E111: 4 | F111: 1704 | G111: -241 | H111: -1469 | I111: -91 | J111: -30 | K111: -1831 | L111: 3535 | M111: 241 | N111: 1469 | O111: 91 | P111: 30 | Q111: 1831
A112: da 46 a 50 | B112: 149 | C112: 1219 | D112: 57 | E112: 6 | F112: 1431 | G112: -159 | H112: -1293 | I112: -80 | J112: -31 | K112: -1563 | L112: 2994 | M112: 159 | N112: 1293 | O112: 80 | P112: 31 | Q112: 1563
A113: da 51 a 55 | B113: 112 | C113: 1067 | D113: 35 | E113: 10 | F113: 1224 | G113: -87 | H113: -1065 | I113: -63 | J113: -49 | K113: -1264 | L113: 2488 | M113: 87 | N113: 1065 | O113: 63 | P113: 49 | Q113: 1264
A114: da 56 a 60 | B114: 77 | C114: 1016 | D114: 19 | E114: 20 | F114: 1132 | G114: -69 | H114: -1009 | I114: -45 | J114: -109 | K114: -1232 | L114: 2364 | M114: 69 | N114: 1009 | O114: 45 | P114: 109 | Q114: 1232
A115: da 61 a 65 | B115: 29 | C115: 915 | D115: 25 | E115: 39 | F115: 1008 | G115: -50 | H115: -853 | I115: -29 | J115: -146 | K115: -1078 | L115: 2086 | M115: 50 | N115: 853 | O115: 29 | P115: 146 | Q115: 1078
A116: da 66 a 70 | B116: 28 | C116: 811 | D116: 10 | E116: 42 | F116: 891 | G116: -59 | H116: -749 | I116: -27 | J116: -275 | K116: -1110 | L116: 2001 | M116: 59 | N116: 749 | O116: 27 | P116: 275 | Q116: 1110
A117: da 71 a 75 | B117: 21 | C117: 703 | D117: 7 | E117: 68 | F117: 799 | G117: -48 | H117: -501 | I117: -17 | J117: -340 | K117: -906 | L117: 1705 | M117: 48 | N117: 501 | O117: 17 | P117: 340 | Q117: 906
A118: da 76 a 80 | B118: 14 | C118: 430 | D118: 3 | E118: 72 | F118: 519 | G118: -38 | H118: -311 | I118: -3 | J118: -390 | K118: -742 | L118: 1261 | M118: 38 | N118: 311 | O118: 3 | P118: 390 | Q118: 742
A119: da 81 a 85 | B119: 10 | C119: 224 | D119: 3 | E119: 69 | F119: 306 | G119: -24 | H119: -111 | I119: -3 | J119: -365 | K119: -503 | L119: 809 | M119: 24 | N119: 111 | O119: 3 | P119: 365 | Q119: 503
A120: da 86 a 90 | B120: 1 | C120: 83 | D120: 0 | E120: 47 | F120: 131 | G120: -17 | H120: -31 | I120: -1 | J120: -227 | K120: -276 | L120: 407 | M120: 17 | N120: 31 | O120: 1 | P120: 227 | Q120: 276
A121: da 91 95 | B121: 1 | C121: 14 | D121: 0 | E121: 19 | F121: 34 | G121: -7 | H121: -3 | I121: -1 | J121: -68 | K121: -79 | L121: 113 | M121: 7 | N121: 3 | O121: 1 | P121: 68 | Q121: 79
A122: oltre 95 | B122: 0 | C122: 0 | D122: 0 | E122: 4 | F122: 4 | G122: -2 | H122: -1 | I122: 0 | J122: -21 | K122: -24 | L122: 28 | M122: 2 | N122: 1 | O122: 0 | P122: 21 | Q122: 24
A123: TOTALE | B123: =SUM(B103:B122) -> 8063 | C123: =SUM(C103:C122) -> 9611 | D123: 232 | E123: 405 | F123: 18311 | G123: -7317 | H123: -9920 | I123: -438 | J123: -2072 | K123: -19747 | L123: 38058

Sheet 2010
A1: torna all'indice
A3: Popolazione residente al 1 Gennaio 2010 per età, sesso e stato civile
A4: Comune: Ciampino
A6: Eta' | B6: Celibi | C6: Coniugati | D6: Divorziati | E6: Vedovi | F6: Totale Maschi | G6: Nubili | H6: Coniugate | I6: Divorziate | J6: Vedove | K6: Totale Femmine | L6: Maschi
L7: +
L8: Femmine
A9: 0 | B9: 179 | C9: 0 | D9: 0 | E9: 0 | F9: 179 | G9: 188 | H9: 0 | I9: 0 | J9: 0 | K9: 188 | L9: 367
A10: 1 | B10: 171 | C10: 0 | D10: 0 | E10: 0 | F10: 171 | G10: 171 | H10: 0 | I10: 0 | J10: 0 | K10: 171 | L10: 342
A11: 2 | B11: 199 | C11: 0 | D11: 0 | E11: 0 | F11: 199 | G11: 204 | H11: 0 | I11: 0 | J11: 0 | K11: 204 | L11: 403
A12: 3 | B12: 189 | C12: 0 | D12: 0 | E12: 0 | F12: 189 | G12: 180 | H12: 0 | I12: 0 | J12: 0 | K12: 180 | L12: 369
A13: 4 | B13: 167 | C13: 0 | D13: 0 | E13: 0 | F13: 167 | G13: 204 | H13: 0 | I13: 0 | J13: 0 | K13: 204 | L13: 371
A14: 5 | B14: 182 | C14: 0 | D14: 0 | E14: 0 | F14: 182 | G14: 183 | H14: 0 | I14: 0 | J14: 0 | K14: 183 | L14: 365
A15: 6 | B15: 184 | C15: 0 | D15: 0 | E15: 0 | F15: 184 | G15: 195 | H15: 0 | I15: 0 | J15: 0 | K15: 195 | L15: 379
A16: 7 | B16: 174 | C16: 0 | D16: 0 | E16: 0 | F16: 174 | G16: 191 | H16: 0 | I16: 0 | J16: 0 | K16: 191 | L16: 365
A17: 8 | B17: 195 | C17: 0 | D17: 0 | E17: 0 | F17: 195 | G17: 181 | H17: 0 | I17: 0 | J17: 0 | K17: 181 | L17: 376
A18: 9 | B18: 201 | C18: 0 | D18: 0 | E18: 0 | F18: 201 | G18: 189 | H18: 0 | I18: 0 | J18: 0 | K18: 189 | L18: 390
A19: 10 | B19: 218 | C19: 0 | D19: 0 | E19: 0 | F19: 218 | G19: 183 | H19: 0 | I19: 0 | J19: 0 | K19: 183 | L19: 401
A20: 11 | B20: 184 | C20: 0 | D20: 0 | E20: 0 | F20: 184 | G20: 184 | H20: 0 | I20: 0 | J20: 0 | K20: 184 | L20: 368
A21: 12 | B21: 197 | C21: 0 | D21: 0 | E21: 0 | F21: 197 | G21: 195 | H21: 0 | I21: 0 | J21: 0 | K21: 195 | L21: 392
A22: 13 | B22: 196 | C22: 0 | D22: 0 | E22: 0 | F22: 196 | G22: 200 | H22: 0 | I22: 0 | J22: 0 | K22: 200 | L22: 396
A23: 14 | B23: 187 | C23: 0 | D23: 0 | E23: 0 | F23: 187 | G23: 173 | H23: 0 | I23: 0 | J23: 0 | K23: 173 | L23: 360
A24: 15 | B24: 176 | C24: 0 | D24: 0 | E24: 0 | F24: 176 | G24: 193 | H24: 0 | I24: 0 | J24: 0 | K24: 193 | L24: 369
A25: 16 | B25: 221 | C25: 0 | D25: 0 | E25: 0 | F25: 221 | G25: 215 | H25: 0 | I25: 0 | J25: 0 | K25: 215 | L25: 436
A26: 17 | B26: 186 | C26: 0 | D26: 0 | E26: 0 | F26: 186 | G26: 193 | H26: 0 | I26: 0 | J26: 0 | K26: 193 | L26: 379
A27: 18 | B27: 211 | C27: 0 | D27: 0 | E27: 0 | F27: 211 | G27: 164 | H27: 0 | I27: 0 | J27: 0 | K27: 164 | L27: 375
A28: 19 | B28: 190 | C28: 1 | D28: 0 | E28: 0 | F28: 191 | G28: 189 | H28: 0 | I28: 0 | J28: 0 | K28: 189 | L28: 380
A29: 20 | B29: 203 | C29: 0 | D29: 0 | E29: 0 | F29: 203 | G29: 182 | H29: 1 | I29: 0 | J29: 0 | K29: 183 | L29: 386
A30: 21 | B30: 214 | C30: 1 | D30: 0 | E30: 0 | F30: 215 | G30: 177 | H30: 6 | I30: 0 | J30: 0 | K30: 183 | L30: 398
A31: 22 | B31: 178 | C31: 1 | D31: 0 | E31: 0 | F31: 179 | G31: 174 | H31: 11 | I31: 0 | J31: 0 | K31: 185 | L31: 364
A32: 23 | B32: 180 | C32: 3 | D32: 0 | E32: 0 | F32: 183 | G32: 176 | H32: 5 | I32: 0 | J32: 0 | K32: 181 | L32: 364
A33: 24 | B33: 207 | C33: 2 | D33: 0 | E33: 0 | F33: 209 | G33: 176 | H33: 13 | I33: 1 | J33: 0 | K33: 190 | L33: 399
A34: 25 | B34: 185 | C34: 3 | D34: 0 | E34: 0 | F34: 188 | G34: 155 | H34: 18 | I34: 3 | J34: 0 | K34: 176 | L34: 364
A35: 26 | B35: 206 | C35: 11 | D35: 0 | E35: 0 | F35: 217 | G35: 147 | H35: 32 | I35: 0 | J35: 1 | K35: 180 | L35: 397
A36: 27 | B36: 200 | C36: 18 | D36: 0 | E36: 0 | F36: 218 | G36: 176 | H36: 54 | I36: 0 | J36: 0 | K36: 230 | L36: 448
A37: 28 | B37: 178 | C37: 33 | D37: 0 | E37: 0 | F37: 211 | G37: 140 | H37: 58 | I37: 0 | J37: 0 | K37: 198 | L37: 409
A38: 29 | B38: 178 | C38: 54 | D38: 0 | E38: 0 | F38: 232 | G38: 127 | H38: 87 | I38: 2 | J38: 1 | K38: 217 | L38: 449
A39: 30 | B39: 188 | C39: 64 | D39: 0 | E39: 1 | F39: 253 | G39: 125 | H39: 88 | I39: 2 | J39: 0 | K39: 215 | L39: 468
A40: 31 | B40: 167 | C40: 62 | D40: 1 | E40: 0 | F40: 230 | G40: 126 | H40: 121 | I40: 4 | J40: 1 | K40: 252 | L40: 482
A41: 32 | B41: 165 | C41: 75 | D41: 1 | E41: 0 | F41: 241 | G41: 113 | H41: 142 | I41: 6 | J41: 1 | K41: 262 | L41: 503
A42: 33 | B42: 139 | C42: 102 | D42: 0 | E42: 1 | F42: 242 | G42: 111 | H42: 140 | I42: 6 | J42: 0 | K42: 257 | L42: 499
A43: 34 | B43: 163 | C43: 125 | D43: 1 | E43: 0 | F43: 289 | G43: 120 | H43: 170 | I43: 4 | J43: 1 | K43: 295 | L43: 584
A44: 35 | B44: 126 | C44: 155 | D44: 2 | E44: 0 | F44: 283 | G44: 115 | H44: 189 | I44: 10 | J44: 2 | K44: 316 | L44: 599
A45: 36 | B45: 145 | C45: 160 | D45: 2 | E45: 0 | F45: 307 | G45: 120 | H45: 232 | I45: 6 | J45: 1 | K45: 359 | L45: 666
A46: 37 | B46: 142 | C46: 160 | D46: 5 | E46: 0 | F46: 307 | G46: 84 | H46: 244 | I46: 10 | J46: 4 | K46: 342 | L46: 649
A47: 38 | B47: 87 | C47: 187 | D47: 2 | E47: 0 | F47: 276 | G47: 91 | H47: 273 | I47: 12 | J47: 1 | K47: 377 | L47: 653
A48: 39 | B48: 118 | C48: 215 | D48: 7 | E48: 0 | F48: 340 | G48: 68 | H48: 242 | I48: 8 | J48: 2 | K48: 320 | L48: 660
A49: 40 | B49: 111 | C49: 244 | D49: 7 | E49: 2 | F49: 364 | G49: 58 | H49: 287 | I49: 17 | J49: 4 | K49: 366 | L49: 730
A50: 41 | B50: 77 | C50: 258 | D50: 8 | E50: 1 | F50: 344 | G50: 62 | H50: 283 | I50: 14 | J50: 4 | K50: 363 | L50: 707
A51: 42 | B51: 71 | C51: 240 | D51: 14 | E51: 0 | F51: 325 | G51: 47 | H51: 275 | I51: 26 | J51: 2 | K51: 350 | L51: 675
A52: 43 | B52: 70 | C52: 276 | D52: 14 | E52: 0 | F52: 360 | G52: 66 | H52: 298 | I52: 20 | J52: 10 | K52: 394 | L52: 754
A53: 44 | B53: 64 | C53: 259 | D53: 7 | E53: 1 | F53: 331 | G53: 51 | H53: 288 | I53: 18 | J53: 6 | K53: 363 | L53: 694
A54: 45 | B54: 59 | C54: 287 | D54: 6 | E54: 2 | F54: 354 | G54: 40 | H54: 335 | I54: 24 | J54: 6 | K54: 405 | L54: 759
A55: 46 | B55: 59 | C55: 266 | D55: 7 | E55: 1 | F55: 333 | G55: 37 | H55: 272 | I55: 16 | J55: 9 | K55: 334 | L55: 667
A56: 47 | B56: 37 | C56: 251 | D56: 13 | E56: 2 | F56: 303 | G56: 49 | H56: 266 | I56: 22 | J56: 5 | K56: 342 | L56: 645
A57: 48 | B57: 35 | C57: 249 | D57: 11 | E57: 1 | F57: 296 | G57: 28 | H57: 264 | I57: 25 | J57: 7 | K57: 324 | L57: 620
A58: 49 | B58: 27 | C58: 247 | D58: 8 | E58: 1 | F58: 283 | G58: 21 | H58: 256 | I58: 15 | J58: 8 | K58: 300 | L58: 583
A59: 50 | B59: 26 | C59: 230 | D59: 14 | E59: 3 | F59: 273 | G59: 35 | H59: 243 | I59: 13 | J59: 11 | K59: 302 | L59: 575
A60: 51 | B60: 23 | C60: 230 | D60: 11 | E60: 0 | F60: 264 | G60: 21 | H60: 252 | I60: 17 | J60: 7 | K60: 297 | L60: 561
A61: 52 | B61: 24 | C61: 222 | D61: 11 | E61: 2 | F61: 259 | G61: 21 | H61: 205 | I61: 16 | J61: 8 | K61: 250 | L61: 509
A62: 53 | B62: 22 | C62: 184 | D62: 3 | E62: 2 | F62: 211 | G62: 17 | H62: 225 | I62: 10 | J62: 15 | K62: 267 | L62: 478
A63: 54 | B63: 22 | C63: 233 | D63: 6 | E63: 4 | F63: 265 | G63: 18 | H63: 227 | I63: 15 | J63: 5 | K63: 265 | L63: 530
A64: 55 | B64: 24 | C64: 218 | D64: 7 | E64: 3 | F64: 252 | G64: 14 | H64: 211 | I64: 19 | J64: 15 | K64: 259 | L64: 511
A65: 56 | B65: 17 | C65: 210 | D65: 9 | E65: 1 | F65: 237 | G65: 15 | H65: 184 | I65: 10 | J65: 12 | K65: 221 | L65: 458
A66: 57 | B66: 10 | C66: 200 | D66: 5 | E66: 4 | F66: 219 | G66: 15 | H66: 206 | I66: 16 | J66: 27 | K66: 264 | L66: 483
A67: 58 | B67: 14 | C67: 193 | D67: 5 | E67: 2 | F67: 214 | G67: 11 | H67: 206 | I67: 10 | J67: 13 | K67: 240 | L67: 454
A68: 59 | B68: 15 | C68: 198 | D68: 3 | E68: 4 | F68: 220 | G68: 12 | H68: 179 | I68: 6 | J68: 21 | K68: 218 | L68: 438
A69: 60 | B69: 17 | C69: 189 | D69: 3 | E69: 6 | F69: 215 | G69: 12 | H69: 219 | I69: 6 | J69: 26 | K69: 263 | L69: 478
A70: 61 | B70: 16 | C70: 230 | D70: 6 | E70: 4 | F70: 256 | G70: 16 | H70: 196 | I70: 7 | J70: 30 | K70: 249 | L70: 505
A71: 62 | B71: 8 | C71: 210 | D71: 6 | E71: 7 | F71: 231 | G71: 9 | H71: 185 | I71: 6 | J71: 35 | K71: 235 | L71: 466
A72: 63 | B72: 5 | C72: 210 | D72: 6 | E72: 9 | F72: 230 | G72: 7 | H72: 197 | I72: 9 | J72: 36 | K72: 249 | L72: 479
A73: 64 | B73: 4 | C73: 163 | D73: 1 | E73: 6 | F73: 174 | G73: 8 | H73: 158 | I73: 4 | J73: 26 | K73: 196 | L73: 370
A74: 65 | B74: 6 | C74: 161 | D74: 7 | E74: 11 | F74: 185 | G74: 15 | H74: 135 | I74: 6 | J74: 27 | K74: 183 | L74: 368
A75: 66 | B75: 2 | C75: 157 | D75: 4 | E75: 10 | F75: 173 | G75: 8 | H75: 156 | I75: 5 | J75: 35 | K75: 204 | L75: 377
A76: 67 | B76: 7 | C76: 148 | D76: 7 | E76: 11 | F76: 173 | G76: 9 | H76: 125 | I76: 8 | J76: 50 | K76: 192 | L76: 365
A77: 68 | B77: 10 | C77: 155 | D77: 1 | E77: 9 | F77: 175 | G77: 12 | H77: 142 | I77: 3 | J77: 43 | K77: 200 | L77: 375
A78: 69 | B78: 3 | C78: 174 | D78: 3 | E78: 7 | F78: 187 | G78: 14 | H78: 168 | I78: 3 | J78: 62 | K78: 247 | L78: 434
A79: 70 | B79: 6 | C79: 159 | D79: 1 | E79: 7 | F79: 173 | G79: 16 | H79: 159 | I79: 7 | J79: 63 | K79: 245 | L79: 418
A80: 71 | B80: 3 | C80: 153 | D80: 0 | E80: 17 | F80: 173 | G80: 7 | H80: 134 | I80: 6 | J80: 62 | K80: 209 | L80: 382
A81: 72 | B81: 4 | C81: 170 | D81: 1 | E81: 19 | F81: 194 | G81: 9 | H81: 114 | I81: 4 | J81: 59 | K81: 186 | L81: 380
A82: 73 | B82: 4 | C82: 145 | D82: 1 | E82: 13 | F82: 163 | G82: 11 | H82: 93 | I82: 3 | J82: 74 | K82: 181 | L82: 344
A83: 74 | B83: 6 | C83: 132 | D83: 2 | E83: 12 | F83: 152 | G83: 11 | H83: 92 | I83: 8 | J83: 76 | K83: 187 | L83: 339
A84: 75 | B84: 3 | C84: 123 | D84: 2 | E84: 16 | F84: 144 | G84: 8 | H84: 100 | I84: 2 | J84: 77 | K84: 187 | L84: 331
A85: 76 | B85: 5 | C85: 102 | D85: 0 | E85: 8 | F85: 115 | G85: 8 | H85: 71 | I85: 0 | J85: 66 | K85: 145 | L85: 260
A86: 77 | B86: 1 | C86: 95 | D86: 2 | E86: 16 | F86: 114 | G86: 8 | H86: 72 | I86: 0 | J86: 76 | K86: 156 | L86: 270
A87: 78 | B87: 3 | C87: 87 | D87: 0 | E87: 16 | F87: 106 | G87: 6 | H87: 74 | I87: 0 | J87: 92 | K87: 172 | L87: 278
A88: 79 | B88: 2 | C88: 90 | D88: 0 | E88: 11 | F88: 103 | G88: 9 | H88: 57 | I88: 0 | J88: 99 | K88: 165 | L88: 268
A89: 80 | B89: 3 | C89: 73 | D89: 1 | E89: 15 | F89: 92 | G89: 5 | H89: 38 | I89: 2 | J89: 66 | K89: 111 | L89: 203
A90: 81 | B90: 2 | C90: 62 | D90: 1 | E90: 16 | F90: 81 | G90: 8 | H90: 42 | I90: 1 | J90: 68 | K90: 119 | L90: 200
A91: 82 | B91: 2 | C91: 43 | D91: 0 | E91: 19 | F91: 64 | G91: 3 | H91: 29 | I91: 0 | J91: 73 | K91: 105 | L91: 169
A92: 83 | B92: 2 | C92: 57 | D92: 0 | E92: 16 | F92: 75 | G92: 5 | H92: 24 | I92: 1 | J92: 76 | K92: 106 | L92: 181
A93: 84 | B93: 2 | C93: 35 | D93: 0 | E93: 10 | F93: 47 | G93: 8 | H93: 23 | I93: 0 | J93: 73 | K93: 104 | L93: 151
A94: 85 | B94: 0 | C94: 37 | D94: 2 | E94: 10 | F94: 49 | G94: 1 | H94: 11 | I94: 0 | J94: 61 | K94: 73 | L94: 122
A95: 86 | B95: 2 | C95: 26 | D95: 0 | E95: 13 | F95: 41 | G95: 6 | H95: 8 | I95: 1 | J95: 57 | K95: 72 | L95: 113
A96: 87 | B96: 0 | C96: 28 | D96: 0 | E96: 14 | F96: 42 | G96: 5 | H96: 15 | I96: 0 | J96: 63 | K96: 83 | L96: 125
A97: 88 | B97: 0 | C97: 16 | D97: 0 | E97: 13 | F97: 29 | G97: 3 | H97: 4 | I97: 0 | J97: 52 | K97: 59 | L97: 88
A98: 89 | B98: 1 | C98: 13 | D98: 0 | E98: 4 | F98: 18 | G98: 5 | H98: 4 | I98: 0 | J98: 43 | K98: 52 | L98: 70
A99: 90 | B99: 0 | C99: 7 | D99: 0 | E99: 6 | F99: 13 | G99: 1 | H99: 1 | I99: 0 | J99: 33 | K99: 35 | L99: 48
A100: 91 | B100: 0 | C100: 5 | D100: 0 | E100: 3 | F100: 8 | G100: 2 | H100: 2 | I100: 0 | J100: 20 | K100: 24 | L100: 32
A101: 92 | B101: 0 | C101: 5 | D101: 0 | E101: 5 | F101: 10 | G101: 0 | H101: 0 | I101: 1 | J101: 11 | K101: 12 | L101: 22
A102: 93 | B102: 0 | C102: 3 | D102: 0 | E102: 6 | F102: 9 | G102: 3 | H102: 0 | I102: 0 | J102: 17 | K102: 20 | L102: 29
A103: 94 | B103: 0 | C103: 2 | D103: 0 | E103: 1 | F103: 3 | G103: 2 | H103: 1 | I103: 0 | J103: 9 | K103: 12 | L103: 15
A104: 95 | B104: 0 | C104: 0 | D104: 0 | E104: 3 | F104: 3 | G104: 2 | H104: 0 | I104: 0 | J104: 9 | K104: 11 | L104: 14
A105: 96 | B105: 0 | C105: 1 | D105: 0 | E105: 0 | F105: 1 | G105: 0 | H105: 0 | I105: 0 | J105: 6 | K105: 6 | L105: 7
A106: 97 | B106: 0 | C106: 0 | D106: 0 | E106: 1 | F106: 1 | G106: 0 | H106: 0 | I106: 0 | J106: 5 | K106: 5 | L106: 6
A107: 98 | B107: 0 | C107: 0 | D107: 0 | E107: 2 | F107: 2 | G107: 0 | H107: 0 | I107: 0 | J107: 3 | K107: 3 | L107: 5
A108: 99 | B108: 0 | C108: 0 | D108: 0 | E108: 0 | F108: 0 | G108: 0 | H108: 0 | I108: 0 | J108: 3 | K108: 3 | L108: 3
A109: 100 e più | B109: 0 | C109: 0 | D109: 0 | E109: 0 | F109: 0 | G109: 0 | H109: 0 | I109: 0 | J109: 6 | K109: 6 | L109: 6
A110: TOTALE | B110: 8112 | C110: 9593 | D110: 247 | E110: 410 | F110: 18362 | G110: 7378 | H110: 9937 | I110: 496 | J110: 2078 | K110: 19889 | L110: 38251

Sheet 2010 fasce
A1: torna all'indice
A2: Popolazione residente al 1 Gennaio 2010 per età, sesso e stato civile
A3: Comune: Ciampino
A4: Eta' | B4: Celibi | C4: Coniugati | D4: Divorziati | E4: Vedovi | F4: Totale Maschi | G4: Nubili | H4: Coniugate | I4: Divorziate | J4: Vedove | K4: Totale Femmine | L4: Maschi
L5: +
L6: Femmine
A7: da 0 a 5 | B7: 1087 | C7: 0 | D7: 0 | E7: 0 | F7: 1087 | G7: 1130 | H7: 0 | I7: 0 | J7: 0 | K7: 1130 | L7: 2217
A8: da 6 a 10 | B8: 972 | C8: 0 | D8: 0 | E8: 0 | F8: 972 | G8: 939 | H8: 0 | I8: 0 | J8: 0 | K8: 939 | L8: 1911
A9: da 11 a 15 | B9: 940 | C9: 0 | D9: 0 | E9: 0 | F9: 940 | G9: 945 | H9: 0 | I9: 0 | J9: 0 | K9: 945 | L9: 1885
A10: da 16 a 20 | B10: 1011 | C10: 1 | D10: 0 | E10: 0 | F10: 1012 | G10: 943 | H10: 1 | I10: 0 | J10: 0 | K10: 944 | L10: 1956
A11: da 21 a 25 | B11: 964 | C11: 10 | D11: 0 | E11: 0 | F11: 974 | G11: 858 | H11: 53 | I11: 4 | J11: 0 | K11: 915 | L11: 1889
A12: da 26 a 30 | B12: 950 | C12: 180 | D12: 0 | E12: 1 | F12: 1131 | G12: 715 | H12: 319 | I12: 4 | J12: 2 | K12: 1040 | L12: 2171
A13: da 31 a 35 | B13: 760 | C13: 519 | D13: 5 | E13: 1 | F13: 1285 | G13: 585 | H13: 762 | I13: 30 | J13: 5 | K13: 1382 | L13: 2667
A14: da 36 a 40 | B14: 603 | C14: 966 | D14: 23 | E14: 2 | F14: 1594 | G14: 421 | H14: 1278 | I14: 53 | J14: 12 | K14: 1764 | L14: 3358
A15: da 41 a 45 | B15: 341 | C15: 1320 | D15: 49 | E15: 4 | F15: 1714 | G15: 266 | H15: 1479 | I15: 102 | J15: 28 | K15: 1875 | L15: 3589
A16: da 46 a 50 | B16: 184 | C16: 1243 | D16: 53 | E16: 8 | F16: 1488 | G16: 170 | H16: 1301 | I16: 91 | J16: 40 | K16: 1602 | L16: 3090
A17: da 51 a 55 | B17: 115 | C17: 1087 | D17: 38 | E17: 11 | F17: 1251 | G17: 91 | H17: 1120 | I17: 77 | J17: 50 | K17: 1338 | L17: 2589
A18: da 56 a 60 | B18: 73 | C18: 990 | D18: 25 | E18: 17 | F18: 1105 | G18: 65 | H18: 994 | I18: 48 | J18: 99 | K18: 1206 | L18: 2311
A19: da 61 a 65 | B19: 39 | C19: 974 | D19: 26 | E19: 37 | F19: 1076 | G19: 55 | H19: 871 | I19: 32 | J19: 154 | K19: 1112 | L19: 2188
A20: da 66 a 70 | B20: 28 | C20: 793 | D20: 16 | E20: 44 | F20: 881 | G20: 59 | H20: 750 | I20: 26 | J20: 253 | K20: 1088 | L20: 1969
A21: da 71 a 75 | B21: 20 | C21: 723 | D21: 6 | E21: 77 | F21: 826 | G21: 46 | H21: 533 | I21: 23 | J21: 348 | K21: 950 | L21: 1776
A22: da 76 a 80 | B22: 14 | C22: 447 | D22: 3 | E22: 66 | F22: 530 | G22: 36 | H22: 312 | I22: 2 | J22: 399 | K22: 749 | L22: 1279
A23: da 81 a 85 | B23: 8 | C23: 234 | D23: 3 | E23: 71 | F23: 316 | G23: 25 | H23: 129 | I23: 2 | J23: 351 | K23: 507 | L23: 823
A24: da 86 a 90 | B24: 3 | C24: 90 | D24: 0 | E24: 50 | F24: 143 | G24: 20 | H24: 32 | I24: 1 | J24: 248 | K24: 301 | L24: 444
A25: da 91 95 | B25: 0 | C25: 15 | D25: 0 | E25: 18 | F25: 33 | G25: 9 | H25: 3 | I25: 1 | J25: 66 | K25: 79 | L25: 112
A26: oltre 95 | B26: 0 | C26: 1 | D26: 0 | E26: 3 | F26: 4 | G26: 0 | H26: 0 | I26: 0 | J26: 23 | K26: 23 | L26: 27
A27: TOTALE | B27: =SUM(B7:B26) -> 8112 | C27: =SUM(C7:C26) -> 9593 | D27: 247 | E27: 410 | F27: 18362 | G27: 7378 | H27: 9937 | I27: 496 | J27: 2078 | K27: 19889 | L27: 38251
A100: Eta' | B100: Celibi | C100: Coniugati | D100: Divorziati | E100: Vedovi | F100: Totale Maschi | G100: Nubili | H100: Coniugate | I100: Divorziate | J100: Vedove | K100: Totale Femmine | L100: Maschi
L101: +
L102: Femmine
A103: da 0 a 5 | B103: 1087 | C103: 0 | D103: 0 | E103: 0 | F103: 1087 | G103: -1130 | H103: 0 | I103: 0 | J103: 0 | K103: -1130 | L103: 2217 | M103: =G103-(G103*2) -> 1130 | N103: =H103-(H103*2) -> 0 | O103: 0 | P103: 0 | Q103: 1130
A104: da 6 a 10 | B104: 972 | C104: 0 | D104: 0 | E104: 0 | F104: 972 | G104: -939 | H104: 0 | I104: 0 | J104: 0 | K104: -939 | L104: 1911 | M104: =G104-(G104*2) -> 939 | N104: =H104-(H104*2) -> 0 | O104: =I104-(I104*2) -> 0 | P104: =J104-(J104*2) -> 0 | Q104: =K104-(K104*2) -> 939
A105: da 11 a 15 | B105: 940 | C105: 0 | D105: 0 | E105: 0 | F105: 940 | G105: -945 | H105: 0 | I105: 0 | J105: 0 | K105: -945 | L105: 1885 | M105: 945 | N105: 0 | O105: 0 | P105: 0 | Q105: 945
A106: da 16 a 20 | B106: 1011 | C106: 1 | D106: 0 | E106: 0 | F106: 1012 | G106: -943 | H106: -1 | I106: 0 | J106: 0 | K106: -944 | L106: 1956 | M106: 943 | N106: 1 | O106: 0 | P106: 0 | Q106: 944
A107: da 21 a 25 | B107: 964 | C107: 10 | D107: 0 | E107: 0 | F107: 974 | G107: -858 | H107: -53 | I107: -4 | J107: 0 | K107: -915 | L107: 1889 | M107: 858 | N107: 53 | O107: 4 | P107: 0 | Q107: 915
A108: da 26 a 30 | B108: 950 | C108: 180 | D108: 0 | E108: 1 | F108: 1131 | G108: -715 | H108: -319 | I108: -4 | J108: -2 | K108: -1040 | L108: 2171 | M108: 715 | N108: 319 | O108: 4 | P108: 2 | Q108: 1040
A109: da 31 a 35 | B109: 760 | C109: 519 | D109: 5 | E109: 1 | F109: 1285 | G109: -585 | H109: -762 | I109: -30 | J109: -5 | K109: -1382 | L109: 2667 | M109: 585 | N109: 762 | O109: 30 | P109: 5 | Q109: 1382
A110: da 36 a 40 | B110: 603 | C110: 966 | D110: 23 | E110: 2 | F110: 1594 | G110: -421 | H110: -1278 | I110: -53 | J110: -12 | K110: -1764 | L110: 3358 | M110: 421 | N110: 1278 | O110: 53 | P110: 12 | Q110: 1764
A111: da 41 a 45 | B111: 341 | C111: 1320 | D111: 49 | E111: 4 | F111: 1714 | G111: -266 | H111: -1479 | I111: -102 | J111: -28 | K111: -1875 | L111: 3589 | M111: 266 | N111: 1479 | O111: 102 | P111: 28 | Q111: 1875
A112: da 46 a 50 | B112: 184 | C112: 1243 | D112: 53 | E112: 8 | F112: 1488 | G112: -170 | H112: -1301 | I112: -91 | J112: -40 | K112: -1602 | L112: 3090 | M112: 170 | N112: 1301 | O112: 91 | P112: 40 | Q112: 1602
A113: da 51 a 55 | B113: 115 | C113: 1087 | D113: 38 | E113: 11 | F113: 1251 | G113: -91 | H113: -1120 | I113: -77 | J113: -50 | K113: -1338 | L113: 2589 | M113: 91 | N113: 1120 | O113: 77 | P113: 50 | Q113: 1338
A114: da 56 a 60 | B114: 73 | C114: 990 | D114: 25 | E114: 17 | F114: 1105 | G114: -65 | H114: -994 | I114: -48 | J114: -99 | K114: -1206 | L114: 2311 | M114: 65 | N114: 994 | O114: 48 | P114: 99 | Q114: 1206
A115: da 61 a 65 | B115: 39 | C115: 974 | D115: 26 | E115: 37 | F115: 1076 | G115: -55 | H115: -871 | I115: -32 | J115: -154 | K115: -1112 | L115: 2188 | M115: 55 | N115: 871 | O115: 32 | P115: 154 | Q115: 1112
A116: da 66 a 70 | B116: 28 | C116: 793 | D116: 16 | E116: 44 | F116: 881 | G116: -59 | H116: -750 | I116: -26 | J116: -253 | K116: -1088 | L116: 1969 | M116: 59 | N116: 750 | O116: 26 | P116: 253 | Q116: 1088
A117: da 71 a 75 | B117: 20 | C117: 723 | D117: 6 | E117: 77 | F117: 826 | G117: -46 | H117: -533 | I117: -23 | J117: -348 | K117: -950 | L117: 1776 | M117: 46 | N117: 533 | O117: 23 | P117: 348 | Q117: 950
A118: da 76 a 80 | B118: 14 | C118: 447 | D118: 3 | E118: 66 | F118: 530 | G118: -36 | H118: -312 | I118: -2 | J118: -399 | K118: -749 | L118: 1279 | M118: 36 | N118: 312 | O118: 2 | P118: 399 | Q118: 749
A119: da 81 a 85 | B119: 8 | C119: 234 | D119: 3 | E119: 71 | F119: 316 | G119: -25 | H119: -129 | I119: -2 | J119: -351 | K119: -507 | L119: 823 | M119: 25 | N119: 129 | O119: 2 | P119: 351 | Q119: 507
A120: da 86 a 90 | B120: 3 | C120: 90 | D120: 0 | E120: 50 | F120: 143 | G120: -20 | H120: -32 | I120: -1 | J120: -248 | K120: -301 | L120: 444 | M120: 20 | N120: 32 | O120: 1 | P120: 248 | Q120: 301
A121: da 91 95 | B121: 0 | C121: 15 | D121: 0 | E121: 18 | F121: 33 | G121: -9 | H121: -3 | I121: -1 | J121: -66 | K121: -79 | L121: 112 | M121: 9 | N121: 3 | O121: 1 | P121: 66 | Q121: 79
A122: oltre 95 | B122: 0 | C122: 1 | D122: 0 | E122: 3 | F122: 4 | G122: 0 | H122: 0 | I122: 0 | J122: -23 | K122: -23 | L122: 27 | M122: 0 | N122: 0 | O122: 0 | P122: 23 | Q122: 23
A123: TOTALE | B123: =SUM(B103:B122) -> 8112 | C123: =SUM(C103:C122) -> 9593 | D123: 247 | E123: 410 | F123: 18362 | G123: -7378 | H123: -9937 | I123: -496 | J123: -2078 | K123: -19889 | L123: 38251

Sheet 2011
A1: torna all'indice
A3: Popolazione residente al 1 Gennaio 2011 per età, sesso e stato civile
A4: Comune: Ciampino
A6: Eta' | B6: Celibi | C6: Coniugati | D6: Divorziati | E6: Vedovi | F6: Totale Maschi | G6: Nubili | H6: Coniugate | I6: Divorziate | J6: Vedove | K6: Totale Femmine | L6: Maschi
L7: +
L8: Femmine
A9: 0 | B9: 199 | C9: 0 | D9: 0 | E9: 0 | F9: 199 | G9: 183 | H9: 0 | I9: 0 | J9: 0 | K9: 183 | L9: 382
A10: 1 | B10: 186 | C10: 0 | D10: 0 | E10: 0 | F10: 186 | G10: 190 | H10: 0 | I10: 0 | J10: 0 | K10: 190 | L10: 376
A11: 2 | B11: 176 | C11: 0 | D11: 0 | E11: 0 | F11: 176 | G11: 174 | H11: 0 | I11: 0 | J11: 0 | K11: 174 | L11: 350
A12: 3 | B12: 202 | C12: 0 | D12: 0 | E12: 0 | F12: 202 | G12: 204 | H12: 0 | I12: 0 | J12: 0 | K12: 204 | L12: 406
A13: 4 | B13: 192 | C13: 0 | D13: 0 | E13: 0 | F13: 192 | G13: 189 | H13: 0 | I13: 0 | J13: 0 | K13: 189 | L13: 381
A14: 5 | B14: 167 | C14: 0 | D14: 0 | E14: 0 | F14: 167 | G14: 199 | H14: 0 | I14: 0 | J14: 0 | K14: 199 | L14: 366
A15: 6 | B15: 181 | C15: 0 | D15: 0 | E15: 0 | F15: 181 | G15: 187 | H15: 0 | I15: 0 | J15: 0 | K15: 187 | L15: 368
A16: 7 | B16: 181 | C16: 0 | D16: 0 | E16: 0 | F16: 181 | G16: 200 | H16: 0 | I16: 0 | J16: 0 | K16: 200 | L16: 381
A17: 8 | B17: 171 | C17: 0 | D17: 0 | E17: 0 | F17: 171 | G17: 193 | H17: 0 | I17: 0 | J17: 0 | K17: 193 | L17: 364
A18: 9 | B18: 190 | C18: 0 | D18: 0 | E18: 0 | F18: 190 | G18: 183 | H18: 0 | I18: 0 | J18: 0 | K18: 183 | L18: 373
A19: 10 | B19: 202 | C19: 0 | D19: 0 | E19: 0 | F19: 202 | G19: 184 | H19: 0 | I19: 0 | J19: 0 | K19: 184 | L19: 386
A20: 11 | B20: 219 | C20: 0 | D20: 0 | E20: 0 | F20: 219 | G20: 182 | H20: 0 | I20: 0 | J20: 0 | K20: 182 | L20: 401
A21: 12 | B21: 185 | C21: 0 | D21: 0 | E21: 0 | F21: 185 | G21: 183 | H21: 0 | I21: 0 | J21: 0 | K21: 183 | L21: 368
A22: 13 | B22: 197 | C22: 0 | D22: 0 | E22: 0 | F22: 197 | G22: 195 | H22: 0 | I22: 0 | J22: 0 | K22: 195 | L22: 392
A23: 14 | B23: 197 | C23: 0 | D23: 0 | E23: 0 | F23: 197 | G23: 199 | H23: 0 | I23: 0 | J23: 0 | K23: 199 | L23: 396
A24: 15 | B24: 189 | C24: 0 | D24: 0 | E24: 0 | F24: 189 | G24: 170 | H24: 0 | I24: 0 | J24: 0 | K24: 170 | L24: 359
A25: 16 | B25: 180 | C25: 0 | D25: 0 | E25: 0 | F25: 180 | G25: 196 | H25: 0 | I25: 0 | J25: 0 | K25: 196 | L25: 376
A26: 17 | B26: 222 | C26: 0 | D26: 0 | E26: 0 | F26: 222 | G26: 219 | H26: 0 | I26: 0 | J26: 0 | K26: 219 | L26: 441
A27: 18 | B27: 184 | C27: 0 | D27: 0 | E27: 0 | F27: 184 | G27: 189 | H27: 0 | I27: 0 | J27: 0 | K27: 189 | L27: 373
A28: 19 | B28: 216 | C28: 0 | D28: 0 | E28: 0 | F28: 216 | G28: 162 | H28: 0 | I28: 0 | J28: 0 | K28: 162 | L28: 378
A29: 20 | B29: 190 | C29: 2 | D29: 0 | E29: 0 | F29: 192 | G29: 191 | H29: 1 | I29: 0 | J29: 0 | K29: 192 | L29: 384
A30: 21 | B30: 204 | C30: 0 | D30: 0 | E30: 0 | F30: 204 | G30: 186 | H30: 5 | I30: 0 | J30: 0 | K30: 191 | L30: 395
A31: 22 | B31: 218 | C31: 0 | D31: 0 | E31: 0 | F31: 218 | G31: 183 | H31: 10 | I31: 0 | J31: 0 | K31: 193 | L31: 411
A32: 23 | B32: 182 | C32: 4 | D32: 0 | E32: 0 | F32: 186 | G32: 178 | H32: 15 | I32: 0 | J32: 0 | K32: 193 | L32: 379
A33: 24 | B33: 177 | C33: 4 | D33: 0 | E33: 0 | F33: 181 | G33: 182 | H33: 12 | I33: 0 | J33: 0 | K33: 194 | L33: 375
A34: 25 | B34: 205 | C34: 5 | D34: 0 | E34: 0 | F34: 210 | G34: 174 | H34: 20 | I34: 1 | J34: 0 | K34: 195 | L34: 405
A35: 26 | B35: 182 | C35: 8 | D35: 0 | E35: 0 | F35: 190 | G35: 152 | H35: 28 | I35: 3 | J35: 0 | K35: 183 | L35: 373
A36: 27 | B36: 202 | C36: 17 | D36: 0 | E36: 0 | F36: 219 | G36: 141 | H36: 39 | I36: 0 | J36: 1 | K36: 181 | L36: 400
A37: 28 | B37: 186 | C37: 29 | D37: 0 | E37: 0 | F37: 215 | G37: 167 | H37: 64 | I37: 0 | J37: 0 | K37: 231 | L37: 446
A38: 29 | B38: 176 | C38: 45 | D38: 0 | E38: 0 | F38: 221 | G38: 135 | H38: 72 | I38: 0 | J38: 0 | K38: 207 | L38: 428
A39: 30 | B39: 171 | C39: 65 | D39: 0 | E39: 0 | F39: 236 | G39: 128 | H39: 92 | I39: 2 | J39: 1 | K39: 223 | L39: 459
A40: 31 | B40: 171 | C40: 71 | D40: 0 | E40: 1 | F40: 243 | G40: 117 | H40: 98 | I40: 1 | J40: 0 | K40: 216 | L40: 459
A41: 32 | B41: 155 | C41: 72 | D41: 1 | E41: 0 | F41: 228 | G41: 127 | H41: 131 | I41: 4 | J41: 1 | K41: 263 | L41: 491
A42: 33 | B42: 154 | C42: 94 | D42: 1 | E42: 0 | F42: 249 | G42: 113 | H42: 146 | I42: 9 | J42: 2 | K42: 270 | L42: 519
A43: 34 | B43: 131 | C43: 112 | D43: 1 | E43: 1 | F43: 245 | G43: 105 | H43: 153 | I43: 8 | J43: 0 | K43: 266 | L43: 511
A44: 35 | B44: 155 | C44: 134 | D44: 3 | E44: 0 | F44: 292 | G44: 128 | H44: 171 | I44: 7 | J44: 1 | K44: 307 | L44: 599
A45: 36 | B45: 123 | C45: 163 | D45: 1 | E45: 0 | F45: 287 | G45: 108 | H45: 201 | I45: 11 | J45: 3 | K45: 323 | L45: 610
A46: 37 | B46: 138 | C46: 177 | D46: 5 | E46: 0 | F46: 320 | G46: 116 | H46: 230 | I46: 8 | J46: 1 | K46: 355 | L46: 675
A47: 38 | B47: 144 | C47: 165 | D47: 4 | E47: 0 | F47: 313 | G47: 86 | H47: 248 | I47: 10 | J47: 4 | K47: 348 | L47: 661
A48: 39 | B48: 89 | C48: 189 | D48: 1 | E48: 0 | F48: 279 | G48: 95 | H48: 272 | I48: 13 | J48: 1 | K48: 381 | L48: 660
A49: 40 | B49: 115 | C49: 227 | D49: 7 | E49: 0 | F49: 349 | G49: 65 | H49: 244 | I49: 7 | J49: 2 | K49: 318 | L49: 667
A50: 41 | B50: 104 | C50: 240 | D50: 8 | E50: 2 | F50: 354 | G50: 62 | H50: 288 | I50: 18 | J50: 4 | K50: 372 | L50: 726
A51: 42 | B51: 76 | C51: 254 | D51: 7 | E51: 1 | F51: 338 | G51: 61 | H51: 283 | I51: 13 | J51: 4 | K51: 361 | L51: 699
A52: 43 | B52: 66 | C52: 241 | D52: 14 | E52: 0 | F52: 321 | G52: 48 | H52: 270 | I52: 26 | J52: 3 | K52: 347 | L52: 668
A53: 44 | B53: 69 | C53: 278 | D53: 11 | E53: 0 | F53: 358 | G53: 68 | H53: 297 | I53: 21 | J53: 10 | K53: 396 | L53: 754
A54: 45 | B54: 59 | C54: 263 | D54: 12 | E54: 1 | F54: 335 | G54: 53 | H54: 286 | I54: 19 | J54: 7 | K54: 365 | L54: 700
A55: 46 | B55: 59 | C55: 288 | D55: 5 | E55: 2 | F55: 354 | G55: 40 | H55: 340 | I55: 21 | J55: 7 | K55: 408 | L55: 762
A56: 47 | B56: 54 | C56: 266 | D56: 8 | E56: 2 | F56: 330 | G56: 36 | H56: 277 | I56: 18 | J56: 10 | K56: 341 | L56: 671
A57: 48 | B57: 35 | C57: 248 | D57: 17 | E57: 3 | F57: 303 | G57: 47 | H57: 267 | I57: 28 | J57: 4 | K57: 346 | L57: 649
A58: 49 | B58: 33 | C58: 249 | D58: 13 | E58: 1 | F58: 296 | G58: 27 | H58: 261 | I58: 24 | J58: 7 | K58: 319 | L58: 615
A59: 50 | B59: 25 | C59: 248 | D59: 7 | E59: 2 | F59: 282 | G59: 21 | H59: 251 | I59: 15 | J59: 9 | K59: 296 | L59: 578
A60: 51 | B60: 28 | C60: 229 | D60: 13 | E60: 4 | F60: 274 | G60: 33 | H60: 242 | I60: 14 | J60: 11 | K60: 300 | L60: 574
A61: 52 | B61: 21 | C61: 226 | D61: 10 | E61: 1 | F61: 258 | G61: 22 | H61: 248 | I61: 20 | J61: 8 | K61: 298 | L61: 556
A62: 53 | B62: 24 | C62: 228 | D62: 9 | E62: 1 | F62: 262 | G62: 21 | H62: 209 | I62: 14 | J62: 9 | K62: 253 | L62: 515
A63: 54 | B63: 20 | C63: 186 | D63: 3 | E63: 2 | F63: 211 | G63: 19 | H63: 223 | I63: 10 | J63: 16 | K63: 268 | L63: 479
A64: 55 | B64: 21 | C64: 232 | D64: 8 | E64: 4 | F64: 265 | G64: 18 | H64: 222 | I64: 13 | J64: 6 | K64: 259 | L64: 524
A65: 56 | B65: 25 | C65: 213 | D65: 7 | E65: 3 | F65: 248 | G65: 15 | H65: 210 | I65: 19 | J65: 17 | K65: 261 | L65: 509
A66: 57 | B66: 18 | C66: 207 | D66: 7 | E66: 1 | F66: 233 | G66: 15 | H66: 180 | I66: 11 | J66: 15 | K66: 221 | L66: 454
A67: 58 | B67: 10 | C67: 202 | D67: 4 | E67: 4 | F67: 220 | G67: 14 | H67: 210 | I67: 17 | J67: 29 | K67: 270 | L67: 490
A68: 59 | B68: 13 | C68: 194 | D68: 5 | E68: 2 | F68: 214 | G68: 10 | H68: 198 | I68: 9 | J68: 15 | K68: 232 | L68: 446
A69: 60 | B69: 15 | C69: 197 | D69: 2 | E69: 5 | F69: 219 | G69: 12 | H69: 173 | I69: 7 | J69: 23 | K69: 215 | L69: 434
A70: 61 | B70: 16 | C70: 186 | D70: 4 | E70: 6 | F70: 212 | G70: 11 | H70: 214 | I70: 7 | J70: 28 | K70: 260 | L70: 472
A71: 62 | B71: 15 | C71: 226 | D71: 7 | E71: 3 | F71: 251 | G71: 16 | H71: 190 | I71: 8 | J71: 34 | K71: 248 | L71: 499
A72: 63 | B72: 7 | C72: 205 | D72: 6 | E72: 7 | F72: 225 | G72: 10 | H72: 183 | I72: 5 | J72: 35 | K72: 233 | L72: 458
A73: 64 | B73: 5 | C73: 207 | D73: 4 | E73: 11 | F73: 227 | G73: 7 | H73: 196 | I73: 9 | J73: 36 | K73: 248 | L73: 475
A74: 65 | B74: 4 | C74: 156 | D74: 1 | E74: 6 | F74: 167 | G74: 8 | H74: 153 | I74: 7 | J74: 27 | K74: 195 | L74: 362
A75: 66 | B75: 5 | C75: 157 | D75: 6 | E75: 11 | F75: 179 | G75: 14 | H75: 134 | I75: 6 | J75: 30 | K75: 184 | L75: 363
A76: 67 | B76: 2 | C76: 153 | D76: 5 | E76: 10 | F76: 170 | G76: 8 | H76: 151 | I76: 5 | J76: 38 | K76: 202 | L76: 372
A77: 68 | B77: 7 | C77: 145 | D77: 6 | E77: 11 | F77: 169 | G77: 8 | H77: 122 | I77: 8 | J77: 52 | K77: 190 | L77: 359
A78: 69 | B78: 10 | C78: 157 | D78: 0 | E78: 11 | F78: 178 | G78: 12 | H78: 139 | I78: 3 | J78: 45 | K78: 199 | L78: 377
A79: 70 | B79: 3 | C79: 173 | D79: 3 | E79: 8 | F79: 187 | G79: 15 | H79: 162 | I79: 3 | J79: 63 | K79: 243 | L79: 430
A80: 71 | B80: 6 | C80: 154 | D80: 0 | E80: 8 | F80: 168 | G80: 16 | H80: 148 | I80: 8 | J80: 70 | K80: 242 | L80: 410
A81: 72 | B81: 4 | C81: 149 | D81: 1 | E81: 18 | F81: 172 | G81: 6 | H81: 128 | I81: 6 | J81: 63 | K81: 203 | L81: 375
A82: 73 | B82: 4 | C82: 161 | D82: 1 | E82: 19 | F82: 185 | G82: 9 | H82: 111 | I82: 4 | J82: 62 | K82: 186 | L82: 371
A83: 74 | B83: 3 | C83: 139 | D83: 2 | E83: 14 | F83: 158 | G83: 11 | H83: 92 | I83: 3 | J83: 76 | K83: 182 | L83: 340
A84: 75 | B84: 6 | C84: 131 | D84: 2 | E84: 14 | F84: 153 | G84: 11 | H84: 90 | I84: 6 | J84: 78 | K84: 185 | L84: 338
A85: 76 | B85: 3 | C85: 119 | D85: 1 | E85: 15 | F85: 138 | G85: 8 | H85: 95 | I85: 2 | J85: 77 | K85: 182 | L85: 320
A86: 77 | B86: 4 | C86: 98 | D86: 1 | E86: 6 | F86: 109 | G86: 9 | H86: 66 | I86: 1 | J86: 69 | K86: 145 | L86: 254
A87: 78 | B87: 1 | C87: 87 | D87: 2 | E87: 16 | F87: 106 | G87: 0 | H87: 78 | I87: 3 | J87: 74 | K87: 155 | L87: 261
A88: 79 | B88: 3 | C88: 83 | D88: 1 | E88: 16 | F88: 103 | G88: 6 | H88: 63 | I88: 9 | J88: 95 | K88: 173 | L88: 276
A89: 80 | B89: 2 | C89: 83 | D89: 0 | E89: 11 | F89: 96 | G89: 7 | H89: 47 | I89: 0 | J89: 103 | K89: 157 | L89: 253
A90: 81 | B90: 3 | C90: 71 | D90: 1 | E90: 14 | F90: 89 | G90: 5 | H90: 37 | I90: 2 | J90: 69 | K90: 113 | L90: 202
A91: 82 | B91: 2 | C91: 58 | D91: 1 | E91: 14 | F91: 75 | G91: 7 | H91: 32 | I91: 1 | J91: 74 | K91: 114 | L91: 189
A92: 83 | B92: 2 | C92: 37 | D92: 0 | E92: 19 | F92: 58 | G92: 2 | H92: 25 | I92: 0 | J92: 71 | K92: 98 | L92: 156
A93: 84 | B93: 1 | C93: 51 | D93: 0 | E93: 12 | F93: 64 | G93: 5 | H93: 19 | I93: 1 | J93: 74 | K93: 99 | L93: 163
A94: 85 | B94: 2 | C94: 31 | D94: 0 | E94: 11 | F94: 44 | G94: 6 | H94: 21 | I94: 0 | J94: 75 | K94: 102 | L94: 146
A95: 86 | B95: 0 | C95: 31 | D95: 2 | E95: 8 | F95: 41 | G95: 1 | H95: 7 | I95: 0 | J95: 52 | K95: 60 | L95: 101
A96: 87 | B96: 2 | C96: 21 | D96: 0 | E96: 13 | F96: 36 | G96: 6 | H96: 7 | I96: 1 | J96: 49 | K96: 63 | L96: 99
A97: 88 | B97: 0 | C97: 21 | D97: 0 | E97: 13 | F97: 34 | G97: 4 | H97: 11 | I97: 0 | J97: 51 | K97: 66 | L97: 100
A98: 89 | B98: 0 | C98: 13 | D98: 0 | E98: 8 | F98: 21 | G98: 3 | H98: 3 | I98: 0 | J98: 44 | K98: 50 | L98: 71
A99: 90 | B99: 0 | C99: 11 | D99: 0 | E99: 3 | F99: 14 | G99: 4 | H99: 3 | I99: 0 | J99: 36 | K99: 43 | L99: 57
A100: 91 | B100: 0 | C100: 6 | D100: 0 | E100: 6 | F100: 12 | G100: 1 | H100: 1 | I100: 0 | J100: 27 | K100: 29 | L100: 41
A101: 92 | B101: 0 | C101: 2 | D101: 0 | E101: 2 | F101: 4 | G101: 1 | H101: 2 | I101: 0 | J101: 17 | K101: 20 | L101: 24
A102: 93 | B102: 0 | C102: 3 | D102: 0 | E102: 6 | F102: 9 | G102: 0 | H102: 0 | I102: 1 | J102: 9 | K102: 10 | L102: 19
A103: 94 | B103: 0 | C103: 3 | D103: 0 | E103: 6 | F103: 9 | G103: 3 | H103: 0 | I103: 0 | J103: 14 | K103: 17 | L103: 26
A104: 95 | B104: 0 | C104: 1 | D104: 0 | E104: 1 | F104: 2 | G104: 0 | H104: 0 | I104: 0 | J104: 7 | K104: 7 | L104: 9
A105: 96 | B105: 0 | C105: 0 | D105: 0 | E105: 2 | F105: 2 | G105: 2 | H105: 0 | I105: 0 | J105: 9 | K105: 11 | L105: 13
A106: 97 | B106: 0 | C106: 1 | D106: 0 | E106: 0 | F106: 1 | G106: 0 | H106: 0 | I106: 0 | J106: 6 | K106: 6 | L106: 7
A107: 98 | B107: 0 | C107: 0 | D107: 0 | E107: 1 | F107: 1 | G107: 0 | H107: 0 | I107: 0 | J107: 5 | K107: 5 | L107: 6
A108: 99 | B108: 0 | C108: 0 | D108: 0 | E108: 2 | F108: 2 | G108: 0 | H108: 0 | I108: 0 | J108: 2 | K108: 2 | L108: 4
A109: 100 e più | B109: 0 | C109: 0 | D109: 0 | E109: 0 | F109: 0 | G109: 0 | H109: 0 | I109: 0 | J109: 4 | K109: 4 | L109: 4
A110: TOTALE | B110: 8201 | C110: 9602 | D110: 251 | E110: 405 | F110: 18459 | G110: 7542 | H110: 9917 | I110: 530 | J110: 2081 | K110: 20070 | L110: 38529

Sheet 2011 fasce
A1: torna all'indice
A2: Popolazione residente al 1 Gennaio 2011 per età, sesso e stato civile
A3: Comune: Ciampino
A4: Eta' | B4: Celibi | C4: Coniugati | D4: Divorziati | E4: Vedovi | F4: Totale Maschi | G4: Nubili | H4: Coniugate | I4: Divorziate | J4: Vedove | K4: Totale Femmine | L4: Maschi
L5: +
L6: Femmine
A7: da 0 a 5 | B7: 1122 | C7: 0 | D7: 0 | E7: 0 | F7: 1122 | G7: 1139 | H7: 0 | I7: 0 | J7: 0 | K7: 1139 | L7: 2261
A8: da 6 a 10 | B8: 925 | C8: 0 | D8: 0 | E8: 0 | F8: 925 | G8: 947 | H8: 0 | I8: 0 | J8: 0 | K8: 947 | L8: 1872
A9: da 11 a 15 | B9: 987 | C9: 0 | D9: 0 | E9: 0 | F9: 987 | G9: 929 | H9: 0 | I9: 0 | J9: 0 | K9: 929 | L9: 1916
A10: da 16 a 20 | B10: 992 | C10: 2 | D10: 0 | E10: 0 | F10: 994 | G10: 957 | H10: 1 | I10: 0 | J10: 0 | K10: 958 | L10: 1952
A11: da 21 a 25 | B11: 986 | C11: 13 | D11: 0 | E11: 0 | F11: 999 | G11: 903 | H11: 62 | I11: 1 | J11: 0 | K11: 966 | L11: 1965
A12: da 26 a 30 | B12: 917 | C12: 164 | D12: 0 | E12: 0 | F12: 1081 | G12: 723 | H12: 295 | I12: 5 | J12: 2 | K12: 1025 | L12: 2106
A13: da 31 a 35 | B13: 766 | C13: 483 | D13: 6 | E13: 2 | F13: 1257 | G13: 590 | H13: 699 | I13: 29 | J13: 4 | K13: 1322 | L13: 2579
A14: da 36 a 40 | B14: 609 | C14: 921 | D14: 18 | E14: 0 | F14: 1548 | G14: 470 | H14: 1195 | I14: 49 | J14: 11 | K14: 1725 | L14: 3273
A15: da 41 a 45 | B15: 374 | C15: 1276 | D15: 52 | E15: 4 | F15: 1706 | G15: 292 | H15: 1424 | I15: 97 | J15: 28 | K15: 1841 | L15: 3547
A16: da 46 a 50 | B16: 206 | C16: 1299 | D16: 50 | E16: 10 | F16: 1565 | G16: 171 | H16: 1396 | I16: 106 | J16: 37 | K16: 1710 | L16: 3275
A17: da 51 a 55 | B17: 114 | C17: 1101 | D17: 43 | E17: 12 | F17: 1270 | G17: 113 | H17: 1144 | I17: 71 | J17: 50 | K17: 1378 | L17: 2648
A18: da 56 a 60 | B18: 81 | C18: 1013 | D18: 25 | E18: 15 | F18: 1134 | G18: 66 | H18: 971 | I18: 63 | J18: 99 | K18: 1199 | L18: 2333
A19: da 61 a 65 | B19: 47 | C19: 980 | D19: 22 | E19: 33 | F19: 1082 | G19: 52 | H19: 936 | I19: 36 | J19: 160 | K19: 1184 | L19: 2266
A20: da 66 a 70 | B20: 27 | C20: 785 | D20: 20 | E20: 51 | F20: 883 | G20: 57 | H20: 708 | I20: 25 | J20: 228 | K20: 1018 | L20: 1901
A21: da 71 a 75 | B21: 23 | C21: 734 | D21: 6 | E21: 73 | F21: 836 | G21: 53 | H21: 569 | I21: 27 | J21: 349 | K21: 998 | L21: 1834
A22: da 76 a 80 | B22: 13 | C22: 470 | D22: 5 | E22: 64 | F22: 552 | G22: 30 | H22: 349 | I22: 15 | J22: 418 | K22: 812 | L22: 1364
A23: da 81 a 85 | B23: 10 | C23: 248 | D23: 2 | E23: 70 | F23: 330 | G23: 25 | H23: 134 | I23: 4 | J23: 363 | K23: 526 | L23: 856
A24: da 86 a 90 | B24: 2 | C24: 97 | D24: 2 | E24: 45 | F24: 146 | G24: 18 | H24: 31 | I24: 1 | J24: 232 | K24: 282 | L24: 428
A25: da 91 95 | B25: 0 | C25: 15 | D25: 0 | E25: 21 | F25: 36 | G25: 5 | H25: 3 | I25: 1 | J25: 74 | K25: 83 | L25: 119
A26: oltre 95 | B26: 0 | C26: 1 | D26: 0 | E26: 5 | F26: 6 | G26: 2 | H26: 0 | I26: 0 | J26: 26 | K26: 28 | L26: 34
A27: TOTALE | B27: =SUM(B7:B26) -> 8201 | C27: =SUM(C7:C26) -> 9602 | D27: 251 | E27: 405 | F27: 18459 | G27: 7542 | H27: 9917 | I27: 530 | J27: 2081 | K27: 20070 | L27: 38529
A100: Eta' | B100: Celibi | C100: Coniugati | D100: Divorziati | E100: Vedovi | F100: Totale Maschi | G100: Nubili | H100: Coniugate | I100: Divorziate | J100: Vedove | K100: Totale Femmine | L100: Maschi
L101: +
L102: Femmine
A103: da 0 a 5 | B103: 1122 | C103: 0 | D103: 0 | E103: 0 | F103: 1122 | G103: -1139 | H103: 0 | I103: 0 | J103: 0 | K103: -1139 | L103: 2261 | M103: =G103-(G103*2) -> 1139 | N103: =H103-(H103*2) -> 0 | O103: 0 | P103: 0 | Q103: 1139
A104: da 6 a 10 | B104: 925 | C104: 0 | D104: 0 | E104: 0 | F104: 925 | G104: -947 | H104: 0 | I104: 0 | J104: 0 | K104: -947 | L104: 1872 | M104: =G104-(G104*2) -> 947 | N104: =H104-(H104*2) -> 0 | O104: =I104-(I104*2) -> 0 | P104: =J104-(J104*2) -> 0 | Q104: =K104-(K104*2) -> 947
A105: da 11 a 15 | B105: 987 | C105: 0 | D105: 0 | E105: 0 | F105: 987 | G105: -929 | H105: 0 | I105: 0 | J105: 0 | K105: -929 | L105: 1916 | M105: 929 | N105: 0 | O105: 0 | P105: 0 | Q105: 929
A106: da 16 a 20 | B106: 992 | C106: 2 | D106: 0 | E106: 0 | F106: 994 | G106: -957 | H106: -1 | I106: 0 | J106: 0 | K106: -958 | L106: 1952 | M106: 957 | N106: 1 | O106: 0 | P106: 0 | Q106: 958
A107: da 21 a 25 | B107: 986 | C107: 13 | D107: 0 | E107: 0 | F107: 999 | G107: -903 | H107: -62 | I107: -1 | J107: 0 | K107: -966 | L107: 1965 | M107: 903 | N107: 62 | O107: 1 | P107: 0 | Q107: 966
A108: da 26 a 30 | B108: 917 | C108: 164 | D108: 0 | E108: 0 | F108: 1081 | G108: -723 | H108: -295 | I108: -5 | J108: -2 | K108: -1025 | L108: 2106 | M108: 723 | N108: 295 | O108: 5 | P108: 2 | Q108: 1025
A109: da 31 a 35 | B109: 766 | C109: 483 | D109: 6 | E109: 2 | F109: 1257 | G109: -590 | H109: -699 | I109: -29 | J109: -4 | K109: -1322 | L109: 2579 | M109: 590 | N109: 699 | O109: 29 | P109: 4 | Q109: 1322
A110: da 36 a 40 | B110: 609 | C110: 921 | D110: 18 | E110: 0 | F110: 1548 | G110: -470 | H110: -1195 | I110: -49 | J110: -11 | K110: -1725 | L110: 3273 | M110: 470 | N110: 1195 | O110: 49 | P110: 11 | Q110: 1725
A111: da 41 a 45 | B111: 374 | C111: 1276 | D111: 52 | E111: 4 | F111: 1706 | G111: -292 | H111: -1424 | I111: -97 | J111: -28 | K111: -1841 | L111: 3547 | M111: 292 | N111: 1424 | O111: 97 | P111: 28 | Q111: 1841
A112: da 46 a 50 | B112: 206 | C112: 1299 | D112: 50 | E112: 10 | F112: 1565 | G112: -171 | H112: -1396 | I112: -106 | J112: -37 | K112: -1710 | L112: 3275 | M112: 171 | N112: 1396 | O112: 106 | P112: 37 | Q112: 1710
A113: da 51 a 55 | B113: 114 | C113: 1101 | D113: 43 | E113: 12 | F113: 1270 | G113: -113 | H113: -1144 | I113: -71 | J113: -50 | K113: -1378 | L113: 2648 | M113: 113 | N113: 1144 | O113: 71 | P113: 50 | Q113: 1378
A114: da 56 a 60 | B114: 81 | C114: 1013 | D114: 25 | E114: 15 | F114: 1134 | G114: -66 | H114: -971 | I114: -63 | J114: -99 | K114: -1199 | L114: 2333 | M114: 66 | N114: 971 | O114: 63 | P114: 99 | Q114: 1199
A115: da 61 a 65 | B115: 47 | C115: 980 | D115: 22 | E115: 33 | F115: 1082 | G115: -52 | H115: -936 | I115: -36 | J115: -160 | K115: -1184 | L115: 2266 | M115: 52 | N115: 936 | O115: 36 | P115: 160 | Q115: 1184
A116: da 66 a 70 | B116: 27 | C116: 785 | D116: 20 | E116: 51 | F116: 883 | G116: -57 | H116: -708 | I116: -25 | J116: -228 | K116: -1018 | L116: 1901 | M116: 57 | N116: 708 | O116: 25 | P116: 228 | Q116: 1018
A117: da 71 a 75 | B117: 23 | C117: 734 | D117: 6 | E117: 73 | F117: 836 | G117: -53 | H117: -569 | I117: -27 | J117: -349 | K117: -998 | L117: 1834 | M117: 53 | N117: 569 | O117: 27 | P117: 349 | Q117: 998
A118: da 76 a 80 | B118: 13 | C118: 470 | D118: 5 | E118: 64 | F118: 552 | G118: -30 | H118: -349 | I118: -15 | J118: -418 | K118: -812 | L118: 1364 | M118: 30 | N118: 349 | O118: 15 | P118: 418 | Q118: 812
A119: da 81 a 85 | B119: 10 | C119: 248 | D119: 2 | E119: 70 | F119: 330 | G119: -25 | H119: -134 | I119: -4 | J119: -363 | K119: -526 | L119: 856 | M119: 25 | N119: 134 | O119: 4 | P119: 363 | Q119: 526
A120: da 86 a 90 | B120: 2 | C120: 97 | D120: 2 | E120: 45 | F120: 146 | G120: -18 | H120: -31 | I120: -1 | J120: -232 | K120: -282 | L120: 428 | M120: 18 | N120: 31 | O120: 1 | P120: 232 | Q120: 282
A121: da 91 95 | B121: 0 | C121: 15 | D121: 0 | E121: 21 | F121: 36 | G121: -5 | H121: -3 | I121: -1 | J121: -74 | K121: -83 | L121: 119 | M121: 5 | N121: 3 | O121: 1 | P121: 74 | Q121: 83
A122: oltre 95 | B122: 0 | C122: 1 | D122: 0 | E122: 5 | F122: 6 | G122: -2 | H122: 0 | I122: 0 | J122: -26 | K122: -28 | L122: 34 | M122: 2 | N122: 0 | O122: 0 | P122: 26 | Q122: 28
A123: TOTALE | B123: =SUM(B103:B122) -> 8201 | C123: =SUM(C103:C122) -> 9602 | D123: 251 | E123: 405 | F123: 18459 | G123: -7542 | H123: -9917 | I123: -530 | J123: -2081 | K123: -20070 | L123: 38529

Sheet 2012
A1: torna all'indice
A3: Popolazione residente al 1 Gennaio 2012 per età, sesso e stato civile
A4: Comune: Ciampino
A6: Eta' | B6: Celibi | C6: Coniugati | D6: Divorziati | E6: Vedovi | F6: Totale Maschi | G6: Nubili | H6: Coniugate | I6: Divorziate | J6: Vedove | K6: Totale Femmine | L6: Maschi
L7: +
L8: Femmine
A9: 0 | B9: 191 | C9: 0 | D9: 0 | E9: 0 | F9: 191 | G9: 169 | H9: 0 | I9: 0 | J9: 0 | K9: 169 | L9: 360
A10: 1 | B10: 176 | C10: 0 | D10: 0 | E10: 0 | F10: 176 | G10: 184 | H10: 0 | I10: 0 | J10: 0 | K10: 184 | L10: 360
A11: 2 | B11: 189 | C11: 0 | D11: 0 | E11: 0 | F11: 189 | G11: 181 | H11: 0 | I11: 0 | J11: 0 | K11: 181 | L11: 370
A12: 3 | B12: 174 | C12: 0 | D12: 0 | E12: 0 | F12: 174 | G12: 161 | H12: 0 | I12: 0 | J12: 0 | K12: 161 | L12: 335
A13: 4 | B13: 198 | C13: 0 | D13: 0 | E13: 0 | F13: 198 | G13: 204 | H13: 0 | I13: 0 | J13: 0 | K13: 204 | L13: 402
A14: 5 | B14: 175 | C14: 0 | D14: 0 | E14: 0 | F14: 175 | G14: 191 | H14: 0 | I14: 0 | J14: 0 | K14: 191 | L14: 366
A15: 6 | B15: 165 | C15: 0 | D15: 0 | E15: 0 | F15: 165 | G15: 194 | H15: 0 | I15: 0 | J15: 0 | K15: 194 | L15: 359
A16: 7 | B16: 173 | C16: 0 | D16: 0 | E16: 0 | F16: 173 | G16: 182 | H16: 0 | I16: 0 | J16: 0 | K16: 182 | L16: 355
A17: 8 | B17: 166 | C17: 0 | D17: 0 | E17: 0 | F17: 166 | G17: 193 | H17: 0 | I17: 0 | J17: 0 | K17: 193 | L17: 359
A18: 9 | B18: 163 | C18: 0 | D18: 0 | E18: 0 | F18: 163 | G18: 188 | H18: 0 | I18: 0 | J18: 0 | K18: 188 | L18: 351
A19: 10 | B19: 180 | C19: 0 | D19: 0 | E19: 0 | F19: 180 | G19: 169 | H19: 0 | I19: 0 | J19: 0 | K19: 169 | L19: 349
A20: 11 | B20: 181 | C20: 0 | D20: 0 | E20: 0 | F20: 181 | G20: 180 | H20: 0 | I20: 0 | J20: 0 | K20: 180 | L20: 361
A21: 12 | B21: 197 | C21: 0 | D21: 0 | E21: 0 | F21: 197 | G21: 167 | H21: 0 | I21: 0 | J21: 0 | K21: 167 | L21: 364
A22: 13 | B22: 177 | C22: 0 | D22: 0 | E22: 0 | F22: 177 | G22: 175 | H22: 0 | I22: 0 | J22: 0 | K22: 175 | L22: 352
A23: 14 | B23: 195 | C23: 0 | D23: 0 | E23: 0 | F23: 195 | G23: 185 | H23: 0 | I23: 0 | J23: 0 | K23: 185 | L23: 380
A24: 15 | B24: 190 | C24: 0 | D24: 0 | E24: 0 | F24: 190 | G24: 188 | H24: 0 | I24: 0 | J24: 0 | K24: 188 | L24: 378
A25: 16 | B25: 181 | C25: 0 | D25: 0 | E25: 0 | F25: 181 | G25: 167 | H25: 0 | I25: 0 | J25: 0 | K25: 167 | L25: 348
A26: 17 | B26: 173 | C26: 0 | D26: 0 | E26: 0 | F26: 173 | G26: 187 | H26: 0 | I26: 0 | J26: 0 | K26: 187 | L26: 360
A27: 18 | B27: 206 | C27: 0 | D27: 0 | E27: 0 | F27: 206 | G27: 209 | H27: 0 | I27: 0 | J27: 0 | K27: 209 | L27: 415
A28: 19 | B28: 181 | C28: 0 | D28: 0 | E28: 0 | F28: 181 | G28: 188 | H28: 1 | I28: 0 | J28: 0 | K28: 189 | L28: 370
A29: 20 | B29: 214 | C29: 0 | D29: 0 | E29: 0 | F29: 214 | G29: 155 | H29: 1 | I29: 0 | J29: 0 | K29: 156 | L29: 370
A30: 21 | B30: 191 | C30: 2 | D30: 0 | E30: 0 | F30: 193 | G30: 184 | H30: 3 | I30: 0 | J30: 0 | K30: 187 | L30: 380
A31: 22 | B31: 201 | C31: 1 | D31: 0 | E31: 0 | F31: 202 | G31: 176 | H31: 7 | I31: 0 | J31: 0 | K31: 183 | L31: 385
A32: 23 | B32: 204 | C32: 2 | D32: 0 | E32: 0 | F32: 206 | G32: 169 | H32: 12 | I32: 0 | J32: 0 | K32: 181 | L32: 387
A33: 24 | B33: 175 | C33: 7 | D33: 0 | E33: 0 | F33: 182 | G33: 169 | H33: 18 | I33: 1 | J33: 0 | K33: 188 | L33: 370
A34: 25 | B34: 173 | C34: 8 | D34: 0 | E34: 0 | F34: 181 | G34: 164 | H34: 25 | I34: 0 | J34: 0 | K34: 189 | L34: 370
A35: 26 | B35: 201 | C35: 9 | D35: 0 | E35: 0 | F35: 210 | G35: 156 | H35: 25 | I35: 0 | J35: 0 | K35: 181 | L35: 391
A36: 27 | B36: 171 | C36: 16 | D36: 0 | E36: 0 | F36: 187 | G36: 148 | H36: 33 | I36: 3 | J36: 0 | K36: 184 | L36: 371
A37: 28 | B37: 194 | C37: 27 | D37: 0 | E37: 0 | F37: 221 | G37: 132 | H37: 45 | I37: 0 | J37: 1 | K37: 178 | L37: 399
A38: 29 | B38: 160 | C38: 36 | D38: 0 | E38: 0 | F38: 196 | G38: 145 | H38: 63 | I38: 1 | J38: 0 | K38: 209 | L38: 405
A39: 30 | B39: 151 | C39: 47 | D39: 0 | E39: 0 | F39: 198 | G39: 125 | H39: 81 | I39: 0 | J39: 0 | K39: 206 | L39: 404
A40: 31 | B40: 168 | C40: 71 | D40: 0 | E40: 0 | F40: 239 | G40: 115 | H40: 103 | I40: 2 | J40: 1 | K40: 221 | L40: 460
A41: 32 | B41: 141 | C41: 74 | D41: 0 | E41: 0 | F41: 215 | G41: 97 | H41: 101 | I41: 1 | J41: 0 | K41: 199 | L41: 414
A42: 33 | B42: 144 | C42: 77 | D42: 1 | E42: 0 | F42: 222 | G42: 115 | H42: 136 | I42: 2 | J42: 1 | K42: 254 | L42: 476
A43: 34 | B43: 136 | C43: 110 | D43: 1 | E43: 0 | F43: 247 | G43: 99 | H43: 147 | I43: 8 | J43: 2 | K43: 256 | L43: 503
A44: 35 | B44: 112 | C44: 110 | D44: 1 | E44: 1 | F44: 224 | G44: 87 | H44: 152 | I44: 9 | J44: 1 | K44: 249 | L44: 473
A45: 36 | B45: 139 | C45: 141 | D45: 2 | E45: 0 | F45: 282 | G45: 117 | H45: 171 | I45: 8 | J45: 2 | K45: 298 | L45: 580
A46: 37 | B46: 121 | C46: 163 | D46: 2 | E46: 0 | F46: 286 | G46: 104 | H46: 208 | I46: 10 | J46: 3 | K46: 325 | L46: 611
A47: 38 | B47: 126 | C47: 176 | D47: 4 | E47: 0 | F47: 306 | G47: 108 | H47: 236 | I47: 4 | J47: 1 | K47: 349 | L47: 655
A48: 39 | B48: 125 | C48: 156 | D48: 3 | E48: 0 | F48: 284 | G48: 75 | H48: 234 | I48: 12 | J48: 3 | K48: 324 | L48: 608
A49: 40 | B49: 85 | C49: 190 | D49: 2 | E49: 0 | F49: 277 | G49: 83 | H49: 262 | I49: 11 | J49: 1 | K49: 357 | L49: 634
A50: 41 | B50: 104 | C50: 229 | D50: 9 | E50: 0 | F50: 342 | G50: 57 | H50: 227 | I50: 7 | J50: 2 | K50: 293 | L50: 635
A51: 42 | B51: 98 | C51: 232 | D51: 8 | E51: 2 | F51: 340 | G51: 58 | H51: 276 | I51: 18 | J51: 4 | K51: 356 | L51: 696
A52: 43 | B52: 77 | C52: 228 | D52: 6 | E52: 1 | F52: 312 | G52: 58 | H52: 270 | I52: 11 | J52: 4 | K52: 343 | L52: 655
A53: 44 | B53: 61 | C53: 230 | D53: 12 | E53: 0 | F53: 303 | G53: 41 | H53: 256 | I53: 25 | J53: 3 | K53: 325 | L53: 628
A54: 45 | B54: 66 | C54: 266 | D54: 13 | E54: 0 | F54: 345 | G54: 67 | H54: 285 | I54: 22 | J54: 12 | K54: 386 | L54: 731
A55: 46 | B55: 56 | C55: 250 | D55: 12 | E55: 1 | F55: 319 | G55: 49 | H55: 272 | I55: 19 | J55: 6 | K55: 346 | L55: 665
A56: 47 | B56: 52 | C56: 270 | D56: 6 | E56: 2 | F56: 330 | G56: 38 | H56: 331 | I56: 20 | J56: 8 | K56: 397 | L56: 727
A57: 48 | B57: 47 | C57: 245 | D57: 7 | E57: 2 | F57: 301 | G57: 31 | H57: 262 | I57: 20 | J57: 11 | K57: 324 | L57: 625
A58: 49 | B58: 34 | C58: 244 | D58: 18 | E58: 3 | F58: 299 | G58: 47 | H58: 258 | I58: 26 | J58: 10 | K58: 341 | L58: 640
A59: 50 | B59: 31 | C59: 230 | D59: 14 | E59: 1 | F59: 276 | G59: 25 | H59: 246 | I59: 24 | J59: 6 | K59: 301 | L59: 577
A60: 51 | B60: 22 | C60: 243 | D60: 7 | E60: 2 | F60: 274 | G60: 22 | H60: 250 | I60: 12 | J60: 9 | K60: 293 | L60: 567
A61: 52 | B61: 26 | C61: 208 | D61: 11 | E61: 4 | F61: 249 | G61: 31 | H61: 226 | I61: 14 | J61: 11 | K61: 282 | L61: 531
A62: 53 | B62: 20 | C62: 213 | D62: 11 | E62: 1 | F62: 245 | G62: 22 | H62: 242 | I62: 24 | J62: 7 | K62: 295 | L62: 540
A63: 54 | B63: 22 | C63: 211 | D63: 9 | E63: 2 | F63: 244 | G63: 23 | H63: 202 | I63: 15 | J63: 10 | K63: 250 | L63: 494
A64: 55 | B64: 20 | C64: 184 | D64: 4 | E64: 2 | F64: 210 | G64: 21 | H64: 215 | I64: 12 | J64: 17 | K64: 265 | L64: 475
A65: 56 | B65: 21 | C65: 219 | D65: 6 | E65: 5 | F65: 251 | G65: 18 | H65: 210 | I65: 14 | J65: 7 | K65: 249 | L65: 500
A66: 57 | B66: 23 | C66: 200 | D66: 8 | E66: 4 | F66: 235 | G66: 15 | H66: 196 | I66: 18 | J66: 19 | K66: 248 | L66: 483
A67: 58 | B67: 17 | C67: 195 | D67: 7 | E67: 1 | F67: 220 | G67: 15 | H67: 176 | I67: 12 | J67: 15 | K67: 218 | L67: 438
A68: 59 | B68: 9 | C68: 190 | D68: 6 | E68: 4 | F68: 209 | G68: 13 | H68: 191 | I68: 15 | J68: 32 | K68: 251 | L68: 460
A69: 60 | B69: 11 | C69: 177 | D69: 3 | E69: 4 | F69: 195 | G69: 10 | H69: 189 | I69: 10 | J69: 16 | K69: 225 | L69: 420
A70: 61 | B70: 14 | C70: 179 | D70: 3 | E70: 7 | F70: 203 | G70: 10 | H70: 171 | I70: 8 | J70: 22 | K70: 211 | L70: 414
A71: 62 | B71: 15 | C71: 169 | D71: 4 | E71: 7 | F71: 195 | G71: 13 | H71: 205 | I71: 6 | J71: 31 | K71: 255 | L71: 450
A72: 63 | B72: 14 | C72: 220 | D72: 7 | E72: 3 | F72: 244 | G72: 15 | H72: 185 | I72: 8 | J72: 33 | K72: 241 | L72: 485
A73: 64 | B73: 7 | C73: 203 | D73: 5 | E73: 7 | F73: 222 | G73: 10 | H73: 175 | I73: 6 | J73: 37 | K73: 228 | L73: 450
A74: 65 | B74: 5 | C74: 197 | D74: 4 | E74: 11 | F74: 217 | G74: 8 | H74: 186 | I74: 8 | J74: 38 | K74: 240 | L74: 457
A75: 66 | B75: 4 | C75: 152 | D75: 1 | E75: 8 | F75: 165 | G75: 7 | H75: 148 | I75: 7 | J75: 29 | K75: 191 | L75: 356
A76: 67 | B76: 5 | C76: 149 | D76: 6 | E76: 10 | F76: 170 | G76: 14 | H76: 126 | I76: 6 | J76: 34 | K76: 180 | L76: 350
A77: 68 | B77: 2 | C77: 148 | D77: 5 | E77: 10 | F77: 165 | G77: 8 | H77: 143 | I77: 5 | J77: 38 | K77: 194 | L77: 359
A78: 69 | B78: 7 | C78: 141 | D78: 6 | E78: 11 | F78: 165 | G78: 9 | H78: 116 | I78: 9 | J78: 53 | K78: 187 | L78: 352
A79: 70 | B79: 10 | C79: 147 | D79: 0 | E79: 14 | F79: 171 | G79: 13 | H79: 133 | I79: 3 | J79: 47 | K79: 196 | L79: 367
A80: 71 | B80: 3 | C80: 168 | D80: 3 | E80: 8 | F80: 182 | G80: 14 | H80: 150 | I80: 3 | J80: 62 | K80: 229 | L80: 411
A81: 72 | B81: 6 | C81: 145 | D81: 1 | E81: 8 | F81: 160 | G81: 16 | H81: 141 | I81: 7 | J81: 69 | K81: 233 | L81: 393
A82: 73 | B82: 4 | C82: 143 | D82: 1 | E82: 20 | F82: 168 | G82: 6 | H82: 120 | I82: 6 | J82: 64 | K82: 196 | L82: 364
A83: 74 | B83: 4 | C83: 151 | D83: 1 | E83: 19 | F83: 175 | G83: 9 | H83: 102 | I83: 4 | J83: 65 | K83: 180 | L83: 355
A84: 75 | B84: 2 | C84: 128 | D84: 2 | E84: 16 | F84: 148 | G84: 11 | H84: 82 | I84: 3 | J84: 79 | K84: 175 | L84: 323
A85: 76 | B85: 6 | C85: 124 | D85: 2 | E85: 16 | F85: 148 | G85: 9 | H85: 85 | I85: 6 | J85: 76 | K85: 176 | L85: 324
A86: 77 | B86: 3 | C86: 107 | D86: 1 | E86: 17 | F86: 128 | G86: 7 | H86: 86 | I86: 2 | J86: 76 | K86: 171 | L86: 299
A87: 78 | B87: 4 | C87: 89 | D87: 1 | E87: 8 | F87: 102 | G87: 7 | H87: 62 | I87: 1 | J87: 67 | K87: 137 | L87: 239
A88: 79 | B88: 1 | C88: 78 | D88: 1 | E88: 14 | F88: 94 | G88: 7 | H88: 61 | I88: 0 | J88: 78 | K88: 146 | L88: 240
A89: 80 | B89: 3 | C89: 78 | D89: 1 | E89: 17 | F89: 99 | G89: 6 | H89: 61 | I89: 0 | J89: 91 | K89: 158 | L89: 257
A90: 81 | B90: 2 | C90: 76 | D90: 0 | E90: 13 | F90: 91 | G90: 7 | H90: 40 | I90: 0 | J90: 100 | K90: 147 | L90: 238
A91: 82 | B91: 3 | C91: 67 | D91: 1 | E91: 16 | F91: 87 | G91: 4 | H91: 34 | I91: 2 | J91: 66 | K91: 106 | L91: 193
A92: 83 | B92: 2 | C92: 52 | D92: 1 | E92: 15 | F92: 70 | G92: 7 | H92: 24 | I92: 1 | J92: 72 | K92: 104 | L92: 174
A93: 84 | B93: 2 | C93: 32 | D93: 1 | E93: 19 | F93: 54 | G93: 1 | H93: 23 | I93: 0 | J93: 73 | K93: 97 | L93: 151
A94: 85 | B94: 0 | C94: 44 | D94: 0 | E94: 13 | F94: 57 | G94: 5 | H94: 17 | I94: 1 | J94: 68 | K94: 91 | L94: 148
A95: 86 | B95: 1 | C95: 25 | D95: 0 | E95: 11 | F95: 37 | G95: 6 | H95: 17 | I95: 0 | J95: 65 | K95: 88 | L95: 125
A96: 87 | B96: 0 | C96: 25 | D96: 2 | E96: 10 | F96: 37 | G96: 1 | H96: 6 | I96: 0 | J96: 47 | K96: 54 | L96: 91
A97: 88 | B97: 2 | C97: 16 | D97: 0 | E97: 12 | F97: 30 | G97: 6 | H97: 4 | I97: 1 | J97: 46 | K97: 57 | L97: 87
A98: 89 | B98: 0 | C98: 19 | D98: 0 | E98: 8 | F98: 27 | G98: 3 | H98: 7 | I98: 0 | J98: 44 | K98: 54 | L98: 81
A99: 90 | B99: 0 | C99: 5 | D99: 0 | E99: 11 | F99: 16 | G99: 3 | H99: 1 | I99: 0 | J99: 38 | K99: 42 | L99: 58
A100: 91 | B100: 0 | C100: 9 | D100: 0 | E100: 2 | F100: 11 | G100: 3 | H100: 3 | I100: 0 | J100: 30 | K100: 36 | L100: 47
A101: 92 | B101: 0 | C101: 5 | D101: 0 | E101: 6 | F101: 11 | G101: 1 | H101: 0 | I101: 0 | J101: 19 | K101: 20 | L101: 31
A102: 93 | B102: 0 | C102: 1 | D102: 0 | E102: 0 | F102: 1 | G102: 0 | H102: 2 | I102: 0 | J102: 12 | K102: 14 | L102: 15
A103: 94 | B103: 0 | C103: 3 | D103: 0 | E103: 4 | F103: 7 | G103: 0 | H103: 0 | I103: 1 | J103: 7 | K103: 8 | L103: 15
A104: 95 | B104: 0 | C104: 1 | D104: 0 | E104: 3 | F104: 4 | G104: 3 | H104: 0 | I104: 0 | J104: 12 | K104: 15 | L104: 19
A105: 96 | B105: 0 | C105: 1 | D105: 0 | E105: 1 | F105: 2 | G105: 0 | H105: 0 | I105: 0 | J105: 4 | K105: 4 | L105: 6
A106: 97 | B106: 0 | C106: 0 | D106: 0 | E106: 2 | F106: 2 | G106: 1 | H106: 0 | I106: 0 | J106: 8 | K106: 9 | L106: 11
A107: 98 | B107: 0 | C107: 1 | D107: 0 | E107: 0 | F107: 1 | G107: 0 | H107: 0 | I107: 0 | J107: 6 | K107: 6 | L107: 7
A108: 99 | B108: 0 | C108: 0 | D108: 0 | E108: 1 | F108: 1 | G108: 0 | H108: 0 | I108: 0 | J108: 3 | K108: 3 | L108: 4
A109: 100 e più | B109: 0 | C109: 0 | D109: 0 | E109: 2 | F109: 2 | G109: 0 | H109: 0 | I109: 0 | J109: 5 | K109: 5 | L109: 7
A110: TOTALE | B110: 7911 | C110: 9185 | D110: 253 | E110: 422 | F110: 17771 | G110: 7296 | H110: 9560 | I110: 514 | J110: 2039 | K110: 19409 | L110: 37180

Sheet 2012 fasce
A1: torna all'indice
A2: Popolazione residente al 1 Gennaio 2012 per età, sesso e stato civile
A3: Comune: Ciampino
A4: Eta' | B4: Celibi | C4: Coniugati | D4: Divorziati | E4: Vedovi | F4: Totale Maschi | G4: Nubili | H4: Coniugate | I4: Divorziate | J4: Vedove | K4: Totale Femmine | L4: Maschi
L5: +
L6: Femmine
A7: da 0 a 5 | B7: 1103 | C7: 0 | D7: 0 | E7: 0 | F7: 1103 | G7: 1090 | H7: 0 | I7: 0 | J7: 0 | K7: 1090 | L7: 2193
A8: da 6 a 10 | B8: 847 | C8: 0 | D8: 0 | E8: 0 | F8: 847 | G8: 926 | H8: 0 | I8: 0 | J8: 0 | K8: 926 | L8: 1773
A9: da 11 a 15 | B9: 940 | C9: 0 | D9: 0 | E9: 0 | F9: 940 | G9: 895 | H9: 0 | I9: 0 | J9: 0 | K9: 895 | L9: 1835
A10: da 16 a 20 | B10: 955 | C10: 0 | D10: 0 | E10: 0 | F10: 955 | G10: 906 | H10: 2 | I10: 0 | J10: 0 | K10: 908 | L10: 1863
A11: da 21 a 25 | B11: 944 | C11: 20 | D11: 0 | E11: 0 | F11: 964 | G11: 862 | H11: 65 | I11: 1 | J11: 0 | K11: 928 | L11: 1892
A12: da 26 a 30 | B12: 877 | C12: 135 | D12: 0 | E12: 0 | F12: 1012 | G12: 706 | H12: 247 | I12: 4 | J12: 1 | K12: 958 | L12: 1970
A13: da 31 a 35 | B13: 701 | C13: 442 | D13: 3 | E13: 1 | F13: 1147 | G13: 513 | H13: 639 | I13: 22 | J13: 5 | K13: 1179 | L13: 2326
A14: da 36 a 40 | B14: 596 | C14: 826 | D14: 13 | E14: 0 | F14: 1435 | G14: 487 | H14: 1111 | I14: 45 | J14: 10 | K14: 1653 | L14: 3088
A15: da 41 a 45 | B15: 406 | C15: 1185 | D15: 48 | E15: 3 | F15: 1642 | G15: 281 | H15: 1314 | I15: 83 | J15: 25 | K15: 1703 | L15: 3345
A16: da 46 a 50 | B16: 220 | C16: 1239 | D16: 57 | E16: 9 | F16: 1525 | G16: 190 | H16: 1369 | I16: 109 | J16: 41 | K16: 1709 | L16: 3234
A17: da 51 a 55 | B17: 110 | C17: 1059 | D17: 42 | E17: 11 | F17: 1222 | G17: 119 | H17: 1135 | I17: 77 | J17: 54 | K17: 1385 | L17: 2607
A18: da 56 a 60 | B18: 81 | C18: 981 | D18: 30 | E18: 18 | F18: 1110 | G18: 71 | H18: 962 | I18: 69 | J18: 89 | K18: 1191 | L18: 2301
A19: da 61 a 65 | B19: 55 | C19: 968 | D19: 23 | E19: 35 | F19: 1081 | G19: 56 | H19: 922 | I19: 36 | J19: 161 | K19: 1175 | L19: 2256
A20: da 66 a 70 | B20: 28 | C20: 737 | D20: 18 | E20: 53 | F20: 836 | G20: 51 | H20: 666 | I20: 30 | J20: 201 | K20: 948 | L20: 1784
A21: da 71 a 75 | B21: 19 | C21: 735 | D21: 8 | E21: 71 | F21: 833 | G21: 56 | H21: 595 | I21: 23 | J21: 339 | K21: 1013 | L21: 1846
A22: da 76 a 80 | B22: 17 | C22: 476 | D22: 6 | E22: 72 | F22: 571 | G22: 36 | H22: 355 | I22: 9 | J22: 388 | K22: 788 | L22: 1359
A23: da 81 a 85 | B23: 9 | C23: 271 | D23: 3 | E23: 76 | F23: 359 | G23: 24 | H23: 138 | I23: 4 | J23: 379 | K23: 545 | L23: 904
A24: da 86 a 90 | B24: 3 | C24: 90 | D24: 2 | E24: 52 | F24: 147 | G24: 19 | H24: 35 | I24: 1 | J24: 240 | K24: 295 | L24: 442
A25: da 91 95 | B25: 0 | C25: 19 | D25: 0 | E25: 15 | F25: 34 | G25: 7 | H25: 5 | I25: 1 | J25: 80 | K25: 93 | L25: 127
A26: oltre 95 | B26: 0 | C26: 2 | D26: 0 | E26: 6 | F26: 8 | G26: 1 | H26: 0 | I26: 0 | J26: 26 | K26: 27 | L26: 35
A27: TOTALE | B27: =SUM(B7:B26) -> 7911 | C27: =SUM(C7:C26) -> 9185 | D27: 253 | E27: 422 | F27: 17771 | G27: 7296 | H27: 9560 | I27: 514 | J27: 2039 | K27: 19409 | L27: 37180
A100: Eta' | B100: Celibi | C100: Coniugati | D100: Divorziati | E100: Vedovi | F100: Totale Maschi | G100: Nubili | H100: Coniugate | I100: Divorziate | J100: Vedove | K100: Totale Femmine | L100: Maschi
L101: +
L102: Femmine
A103: da 0 a 5 | B103: 1103 | C103: 0 | D103: 0 | E103: 0 | F103: 1103 | G103: -1090 | H103: 0 | I103: 0 | J103: 0 | K103: -1090 | L103: 2193 | M103: =G103-(G103*2) -> 1090 | N103: =H103-(H103*2) -> 0 | O103: 0 | P103: 0 | Q103: 1090
A104: da 6 a 10 | B104: 847 | C104: 0 | D104: 0 | E104: 0 | F104: 847 | G104: -926 | H104: 0 | I104: 0 | J104: 0 | K104: -926 | L104: 1773 | M104: =G104-(G104*2) -> 926 | N104: =H104-(H104*2) -> 0 | O104: =I104-(I104*2) -> 0 | P104: =J104-(J104*2) -> 0 | Q104: =K104-(K104*2) -> 926
A105: da 11 a 15 | B105: 940 | C105: 0 | D105: 0 | E105: 0 | F105: 940 | G105: -895 | H105: 0 | I105: 0 | J105: 0 | K105: -895 | L105: 1835 | M105: 895 | N105: 0 | O105: 0 | P105: 0 | Q105: 895
A106: da 16 a 20 | B106: 955 | C106: 0 | D106: 0 | E106: 0 | F106: 955 | G106: -906 | H106: -2 | I106: 0 | J106: 0 | K106: -908 | L106: 1863 | M106: 906 | N106: 2 | O106: 0 | P106: 0 | Q106: 908
A107: da 21 a 25 | B107: 944 | C107: 20 | D107: 0 | E107: 0 | F107: 964 | G107: -862 | H107: -65 | I107: -1 | J107: 0 | K107: -928 | L107: 1892 | M107: 862 | N107: 65 | O107: 1 | P107: 0 | Q107: 928
A108: da 26 a 30 | B108: 877 | C108: 135 | D108: 0 | E108: 0 | F108: 1012 | G108: -706 | H108: -247 | I108: -4 | J108: -1 | K108: -958 | L108: 1970 | M108: 706 | N108: 247 | O108: 4 | P108: 1 | Q108: 958
A109: da 31 a 35 | B109: 701 | C109: 442 | D109: 3 | E109: 1 | F109: 1147 | G109: -513 | H109: -639 | I109: -22 | J109: -5 | K109: -1179 | L109: 2326 | M109: 513 | N109: 639 | O109: 22 | P109: 5 | Q109: 1179
A110: da 36 a 40 | B110: 596 | C110: 826 | D110: 13 | E110: 0 | F110: 1435 | G110: -487 | H110: -1111 | I110: -45 | J110: -10 | K110: -1653 | L110: 3088 | M110: 487 | N110: 1111 | O110: 45 | P110: 10 | Q110: 1653
A111: da 41 a 45 | B111: 406 | C111: 1185 | D111: 48 | E111: 3 | F111: 1642 | G111: -281 | H111: -1314 | I111: -83 | J111: -25 | K111: -1703 | L111: 3345 | M111: 281 | N111: 1314 | O111: 83 | P111: 25 | Q111: 1703
A112: da 46 a 50 | B112: 220 | C112: 1239 | D112: 57 | E112: 9 | F112: 1525 | G112: -190 | H112: -1369 | I112: -109 | J112: -41 | K112: -1709 | L112: 3234 | M112: 190 | N112: 1369 | O112: 109 | P112: 41 | Q112: 1709
A113: da 51 a 55 | B113: 110 | C113: 1059 | D113: 42 | E113: 11 | F113: 1222 | G113: -119 | H113: -1135 | I113: -77 | J113: -54 | K113: -1385 | L113: 2607 | M113: 119 | N113: 1135 | O113: 77 | P113: 54 | Q113: 1385
A114: da 56 a 60 | B114: 81 | C114: 981 | D114: 30 | E114: 18 | F114: 1110 | G114: -71 | H114: -962 | I114: -69 | J114: -89 | K114: -1191 | L114: 2301 | M114: 71 | N114: 962 | O114: 69 | P114: 89 | Q114: 1191
A115: da 61 a 65 | B115: 55 | C115: 968 | D115: 23 | E115: 35 | F115: 1081 | G115: -56 | H115: -922 | I115: -36 | J115: -161 | K115: -1175 | L115: 2256 | M115: 56 | N115: 922 | O115: 36 | P115: 161 | Q115: 1175
A116: da 66 a 70 | B116: 28 | C116: 737 | D116: 18 | E116: 53 | F116: 836 | G116: -51 | H116: -666 | I116: -30 | J116: -201 | K116: -948 | L116: 1784 | M116: 51 | N116: 666 | O116: 30 | P116: 201 | Q116: 948
A117: da 71 a 75 | B117: 19 | C117: 735 | D117: 8 | E117: 71 | F117: 833 | G117: -56 | H117: -595 | I117: -23 | J117: -339 | K117: -1013 | L117: 1846 | M117: 56 | N117: 595 | O117: 23 | P117: 339 | Q117: 1013
A118: da 76 a 80 | B118: 17 | C118: 476 | D118: 6 | E118: 72 | F118: 571 | G118: -36 | H118: -355 | I118: -9 | J118: -388 | K118: -788 | L118: 1359 | M118: 36 | N118: 355 | O118: 9 | P118: 388 | Q118: 788
A119: da 81 a 85 | B119: 9 | C119: 271 | D119: 3 | E119: 76 | F119: 359 | G119: -24 | H119: -138 | I119: -4 | J119: -379 | K119: -545 | L119: 904 | M119: 24 | N119: 138 | O119: 4 | P119: 379 | Q119: 545
A120: da 86 a 90 | B120: 3 | C120: 90 | D120: 2 | E120: 52 | F120: 147 | G120: -19 | H120: -35 | I120: -1 | J120: -240 | K120: -295 | L120: 442 | M120: 19 | N120: 35 | O120: 1 | P120: 240 | Q120: 295
A121: da 91 95 | B121: 0 | C121: 19 | D121: 0 | E121: 15 | F121: 34 | G121: -7 | H121: -5 | I121: -1 | J121: -80 | K121: -93 | L121: 127 | M121: 7 | N121: 5 | O121: 1 | P121: 80 | Q121: 93
A122: oltre 95 | B122: 0 | C122: 2 | D122: 0 | E122: 6 | F122: 8 | G122: -1 | H122: 0 | I122: 0 | J122: -26 | K122: -27 | L122: 35 | M122: 1 | N122: 0 | O122: 0 | P122: 26 | Q122: 27
A123: TOTALE | B123: =SUM(B103:B122) -> 7911 | C123: =SUM(C103:C122) -> 9185 | D123: 253 | E123: 422 | F123: 17771 | G123: -7296 | H123: -9560 | I123: -514 | J123: -2039 | K123: -19409 | L123: 37180

Sheet 2013
A1: torna all'indice
A3: Popolazione residente al 1° Gennaio 2013 per età, sesso e stato civile
A4: Comune: Ciampino
A6: Eta' | B6: Celibi | C6: Coniugati | D6: Divorziati | E6: Vedovi | F6: Totale Maschi | G6: Nubili | H6: Coniugate | I6: Divorziate | J6: Vedove | K6: Totale Femmine | L6: Maschi
L7: +
L8: Femmine
A9: 0 | B9: 181 | C9: 0 | D9: 0 | E9: 0 | F9: 181 | G9: 157 | H9: 0 | I9: 0 | J9: 0 | K9: 157 | L9: 338
A10: 1 | B10: 189 | C10: 0 | D10: 0 | E10: 0 | F10: 189 | G10: 177 | H10: 0 | I10: 0 | J10: 0 | K10: 177 | L10: 366
A11: 2 | B11: 186 | C11: 0 | D11: 0 | E11: 0 | F11: 186 | G11: 189 | H11: 0 | I11: 0 | J11: 0 | K11: 189 | L11: 375
A12: 3 | B12: 194 | C12: 0 | D12: 0 | E12: 0 | F12: 194 | G12: 189 | H12: 0 | I12: 0 | J12: 0 | K12: 189 | L12: 383
A13: 4 | B13: 182 | C13: 0 | D13: 0 | E13: 0 | F13: 182 | G13: 160 | H13: 0 | I13: 0 | J13: 0 | K13: 160 | L13: 342
A14: 5 | B14: 201 | C14: 0 | D14: 0 | E14: 0 | F14: 201 | G14: 202 | H14: 0 | I14: 0 | J14: 0 | K14: 202 | L14: 403
A15: 6 | B15: 175 | C15: 0 | D15: 0 | E15: 0 | F15: 175 | G15: 190 | H15: 0 | I15: 0 | J15: 0 | K15: 190 | L15: 365
A16: 7 | B16: 167 | C16: 0 | D16: 0 | E16: 0 | F16: 167 | G16: 192 | H16: 0 | I16: 0 | J16: 0 | K16: 192 | L16: 359
A17: 8 | B17: 172 | C17: 0 | D17: 0 | E17: 0 | F17: 172 | G17: 181 | H17: 0 | I17: 0 | J17: 0 | K17: 181 | L17: 353
A18: 9 | B18: 165 | C18: 0 | D18: 0 | E18: 0 | F18: 165 | G18: 198 | H18: 0 | I18: 0 | J18: 0 | K18: 198 | L18: 363
A19: 10 | B19: 161 | C19: 0 | D19: 0 | E19: 0 | F19: 161 | G19: 192 | H19: 0 | I19: 0 | J19: 0 | K19: 192 | L19: 353
A20: 11 | B20: 185 | C20: 0 | D20: 0 | E20: 0 | F20: 185 | G20: 172 | H20: 0 | I20: 0 | J20: 0 | K20: 172 | L20: 357
A21: 12 | B21: 179 | C21: 0 | D21: 0 | E21: 0 | F21: 179 | G21: 179 | H21: 0 | I21: 0 | J21: 0 | K21: 179 | L21: 358
A22: 13 | B22: 195 | C22: 0 | D22: 0 | E22: 0 | F22: 195 | G22: 166 | H22: 0 | I22: 0 | J22: 0 | K22: 166 | L22: 361
A23: 14 | B23: 183 | C23: 0 | D23: 0 | E23: 0 | F23: 183 | G23: 174 | H23: 0 | I23: 0 | J23: 0 | K23: 174 | L23: 357
A24: 15 | B24: 189 | C24: 0 | D24: 0 | E24: 0 | F24: 189 | G24: 184 | H24: 0 | I24: 0 | J24: 0 | K24: 184 | L24: 373
A25: 16 | B25: 187 | C25: 0 | D25: 0 | E25: 0 | F25: 187 | G25: 192 | H25: 0 | I25: 0 | J25: 0 | K25: 192 | L25: 379
A26: 17 | B26: 182 | C26: 0 | D26: 0 | E26: 0 | F26: 182 | G26: 167 | H26: 0 | I26: 0 | J26: 0 | K26: 167 | L26: 349
A27: 18 | B27: 169 | C27: 0 | D27: 0 | E27: 0 | F27: 169 | G27: 187 | H27: 0 | I27: 0 | J27: 0 | K27: 187 | L27: 356
A28: 19 | B28: 214 | C28: 0 | D28: 0 | E28: 0 | F28: 214 | G28: 211 | H28: 0 | I28: 0 | J28: 0 | K28: 211 | L28: 425
A29: 20 | B29: 187 | C29: 0 | D29: 0 | E29: 0 | F29: 187 | G29: 190 | H29: 2 | I29: 0 | J29: 0 | K29: 192 | L29: 379
A30: 21 | B30: 210 | C30: 0 | D30: 0 | E30: 0 | F30: 210 | G30: 158 | H30: 0 | I30: 1 | J30: 0 | K30: 159 | L30: 369
A31: 22 | B31: 190 | C31: 3 | D31: 0 | E31: 0 | F31: 193 | G31: 187 | H31: 5 | I31: 0 | J31: 0 | K31: 192 | L31: 385
A32: 23 | B32: 192 | C32: 1 | D32: 0 | E32: 0 | F32: 193 | G32: 173 | H32: 9 | I32: 0 | J32: 0 | K32: 182 | L32: 375
A33: 24 | B33: 210 | C33: 3 | D33: 0 | E33: 0 | F33: 213 | G33: 173 | H33: 20 | I33: 0 | J33: 0 | K33: 193 | L33: 406
A34: 25 | B34: 171 | C34: 8 | D34: 0 | E34: 0 | F34: 179 | G34: 161 | H34: 29 | I34: 1 | J34: 0 | K34: 191 | L34: 370
A35: 26 | B35: 176 | C35: 9 | D35: 0 | E35: 0 | F35: 185 | G35: 171 | H35: 37 | I35: 0 | J35: 0 | K35: 208 | L35: 393
A36: 27 | B36: 199 | C36: 15 | D36: 0 | E36: 0 | F36: 214 | G36: 156 | H36: 33 | I36: 0 | J36: 0 | K36: 189 | L36: 403
A37: 28 | B37: 177 | C37: 22 | D37: 0 | E37: 0 | F37: 199 | G37: 145 | H37: 48 | I37: 2 | J37: 0 | K37: 195 | L37: 394
A38: 29 | B38: 192 | C38: 32 | D38: 0 | E38: 0 | F38: 224 | G38: 133 | H38: 56 | I38: 1 | J38: 1 | K38: 191 | L38: 415
A39: 30 | B39: 158 | C39: 45 | D39: 0 | E39: 0 | F39: 203 | G39: 135 | H39: 75 | I39: 1 | J39: 0 | K39: 211 | L39: 414
A40: 31 | B40: 154 | C40: 60 | D40: 0 | E40: 0 | F40: 214 | G40: 116 | H40: 91 | I40: 2 | J40: 0 | K40: 209 | L40: 423
A41: 32 | B41: 151 | C41: 91 | D41: 0 | E41: 1 | F41: 243 | G41: 114 | H41: 118 | I41: 1 | J41: 1 | K41: 234 | L41: 477
A42: 33 | B42: 132 | C42: 83 | D42: 1 | E42: 0 | F42: 216 | G42: 95 | H42: 105 | I42: 0 | J42: 0 | K42: 200 | L42: 416
A43: 34 | B43: 133 | C43: 86 | D43: 1 | E43: 0 | F43: 220 | G43: 113 | H43: 149 | I43: 3 | J43: 1 | K43: 266 | L43: 486
A44: 35 | B44: 130 | C44: 129 | D44: 2 | E44: 0 | F44: 261 | G44: 95 | H44: 148 | I44: 11 | J44: 3 | K44: 257 | L44: 518
A45: 36 | B45: 115 | C45: 123 | D45: 0 | E45: 1 | F45: 239 | G45: 77 | H45: 159 | I45: 11 | J45: 3 | K45: 250 | L45: 489
A46: 37 | B46: 125 | C46: 144 | D46: 2 | E46: 0 | F46: 271 | G46: 113 | H46: 175 | I46: 8 | J46: 3 | K46: 299 | L46: 570
A47: 38 | B47: 116 | C47: 160 | D47: 1 | E47: 0 | F47: 277 | G47: 97 | H47: 210 | I47: 10 | J47: 2 | K47: 319 | L47: 596
A48: 39 | B48: 120 | C48: 179 | D48: 5 | E48: 0 | F48: 304 | G48: 107 | H48: 240 | I48: 5 | J48: 2 | K48: 354 | L48: 658
A49: 40 | B49: 118 | C49: 161 | D49: 3 | E49: 0 | F49: 282 | G49: 70 | H49: 242 | I49: 11 | J49: 3 | K49: 326 | L49: 608
A50: 41 | B50: 85 | C50: 187 | D50: 1 | E50: 0 | F50: 273 | G50: 85 | H50: 271 | I50: 12 | J50: 1 | K50: 369 | L50: 642
A51: 42 | B51: 101 | C51: 225 | D51: 9 | E51: 0 | F51: 335 | G51: 57 | H51: 224 | I51: 8 | J51: 3 | K51: 292 | L51: 627
A52: 43 | B52: 90 | C52: 233 | D52: 8 | E52: 1 | F52: 332 | G52: 57 | H52: 274 | I52: 19 | J52: 4 | K52: 354 | L52: 686
A53: 44 | B53: 72 | C53: 225 | D53: 10 | E53: 1 | F53: 308 | G53: 59 | H53: 279 | I53: 13 | J53: 4 | K53: 355 | L53: 663
A54: 45 | B54: 59 | C54: 228 | D54: 12 | E54: 0 | F54: 299 | G54: 42 | H54: 252 | I54: 25 | J54: 3 | K54: 322 | L54: 621
A55: 46 | B55: 66 | C55: 259 | D55: 14 | E55: 0 | F55: 339 | G55: 68 | H55: 284 | I55: 22 | J55: 11 | K55: 385 | L55: 724
A56: 47 | B56: 53 | C56: 256 | D56: 16 | E56: 2 | F56: 327 | G56: 50 | H56: 266 | I56: 18 | J56: 7 | K56: 341 | L56: 668
A57: 48 | B57: 48 | C57: 269 | D57: 6 | E57: 2 | F57: 325 | G57: 36 | H57: 334 | I57: 20 | J57: 8 | K57: 398 | L57: 723
A58: 49 | B58: 48 | C58: 251 | D58: 10 | E58: 2 | F58: 311 | G58: 33 | H58: 260 | I58: 22 | J58: 13 | K58: 328 | L58: 639
A59: 50 | B59: 32 | C59: 232 | D59: 17 | E59: 4 | F59: 285 | G59: 48 | H59: 253 | I59: 25 | J59: 12 | K59: 338 | L59: 623
A60: 51 | B60: 29 | C60: 228 | D60: 13 | E60: 1 | F60: 271 | G60: 24 | H60: 240 | I60: 26 | J60: 7 | K60: 297 | L60: 568
A61: 52 | B61: 24 | C61: 234 | D61: 5 | E61: 1 | F61: 264 | G61: 21 | H61: 251 | I61: 15 | J61: 8 | K61: 295 | L61: 559
A62: 53 | B62: 24 | C62: 207 | D62: 11 | E62: 4 | F62: 246 | G62: 31 | H62: 227 | I62: 19 | J62: 13 | K62: 290 | L62: 536
A63: 54 | B63: 19 | C63: 216 | D63: 13 | E63: 2 | F63: 250 | G63: 22 | H63: 232 | I63: 24 | J63: 7 | K63: 285 | L63: 535
A64: 55 | B64: 23 | C64: 212 | D64: 8 | E64: 4 | F64: 247 | G64: 22 | H64: 202 | I64: 14 | J64: 10 | K64: 248 | L64: 495
A65: 56 | B65: 19 | C65: 181 | D65: 6 | E65: 3 | F65: 209 | G65: 21 | H65: 215 | I65: 11 | J65: 18 | K65: 265 | L65: 474
A66: 57 | B66: 21 | C66: 218 | D66: 8 | E66: 5 | F66: 252 | G66: 17 | H66: 207 | I66: 14 | J66: 9 | K66: 247 | L66: 499
A67: 58 | B67: 22 | C67: 199 | D67: 10 | E67: 3 | F67: 234 | G67: 12 | H67: 191 | I67: 17 | J67: 19 | K67: 239 | L67: 473
A68: 59 | B68: 15 | C68: 199 | D68: 6 | E68: 1 | F68: 221 | G68: 15 | H68: 173 | I68: 11 | J68: 17 | K68: 216 | L68: 437
A69: 60 | B69: 10 | C69: 187 | D69: 7 | E69: 3 | F69: 207 | G69: 13 | H69: 186 | I69: 14 | J69: 34 | K69: 247 | L69: 454
A70: 61 | B70: 11 | C70: 172 | D70: 3 | E70: 5 | F70: 191 | G70: 10 | H70: 183 | I70: 11 | J70: 20 | K70: 224 | L70: 415
A71: 62 | B71: 13 | C71: 174 | D71: 3 | E71: 8 | F71: 198 | G71: 8 | H71: 169 | I71: 8 | J71: 22 | K71: 207 | L71: 405
A72: 63 | B72: 16 | C72: 171 | D72: 4 | E72: 7 | F72: 198 | G72: 13 | H72: 199 | I72: 6 | J72: 33 | K72: 251 | L72: 449
A73: 64 | B73: 14 | C73: 215 | D73: 7 | E73: 3 | F73: 239 | G73: 17 | H73: 180 | I73: 8 | J73: 33 | K73: 238 | L73: 477
A74: 65 | B74: 8 | C74: 188 | D74: 4 | E74: 9 | F74: 209 | G74: 10 | H74: 167 | I74: 8 | J74: 39 | K74: 224 | L74: 433
A75: 66 | B75: 5 | C75: 189 | D75: 4 | E75: 13 | F75: 211 | G75: 9 | H75: 181 | I75: 8 | J75: 37 | K75: 235 | L75: 446
A76: 67 | B76: 3 | C76: 151 | D76: 2 | E76: 7 | F76: 163 | G76: 9 | H76: 140 | I76: 7 | J76: 36 | K76: 192 | L76: 355
A77: 68 | B77: 5 | C77: 149 | D77: 5 | E77: 11 | F77: 170 | G77: 13 | H77: 118 | I77: 7 | J77: 36 | K77: 174 | L77: 344
A78: 69 | B78: 2 | C78: 145 | D78: 4 | E78: 12 | F78: 163 | G78: 8 | H78: 137 | I78: 6 | J78: 41 | K78: 192 | L78: 355
A79: 70 | B79: 5 | C79: 137 | D79: 5 | E79: 9 | F79: 156 | G79: 9 | H79: 113 | I79: 9 | J79: 54 | K79: 185 | L79: 341
A80: 71 | B80: 8 | C80: 145 | D80: 0 | E80: 16 | F80: 169 | G80: 13 | H80: 133 | I80: 3 | J80: 47 | K80: 196 | L80: 365
A81: 72 | B81: 3 | C81: 156 | D81: 3 | E81: 11 | F81: 173 | G81: 13 | H81: 140 | I81: 3 | J81: 68 | K81: 224 | L81: 397
A82: 73 | B82: 3 | C82: 138 | D82: 1 | E82: 9 | F82: 151 | G82: 16 | H82: 135 | I82: 7 | J82: 69 | K82: 227 | L82: 378
A83: 74 | B83: 3 | C83: 137 | D83: 1 | E83: 19 | F83: 160 | G83: 6 | H83: 115 | I83: 6 | J83: 66 | K83: 193 | L83: 353
A84: 75 | B84: 4 | C84: 146 | D84: 1 | E84: 17 | F84: 168 | G84: 8 | H84: 95 | I84: 4 | J84: 69 | K84: 176 | L84: 344
A85: 76 | B85: 2 | C85: 122 | D85: 1 | E85: 15 | F85: 140 | G85: 11 | H85: 74 | I85: 3 | J85: 86 | K85: 174 | L85: 314
A86: 77 | B86: 6 | C86: 119 | D86: 2 | E86: 15 | F86: 142 | G86: 9 | H86: 81 | I86: 6 | J86: 78 | K86: 174 | L86: 316
A87: 78 | B87: 3 | C87: 104 | D87: 1 | E87: 17 | F87: 125 | G87: 7 | H87: 81 | I87: 2 | J87: 77 | K87: 167 | L87: 292
A88: 79 | B88: 3 | C88: 84 | D88: 1 | E88: 10 | F88: 98 | G88: 7 | H88: 57 | I88: 1 | J88: 66 | K88: 131 | L88: 229
A89: 80 | B89: 1 | C89: 74 | D89: 1 | E89: 14 | F89: 90 | G89: 7 | H89: 57 | I89: 0 | J89: 73 | K89: 137 | L89: 227
A90: 81 | B90: 3 | C90: 73 | D90: 1 | E90: 17 | F90: 94 | G90: 6 | H90: 54 | I90: 0 | J90: 95 | K90: 155 | L90: 249
A91: 82 | B91: 2 | C91: 66 | D91: 0 | E91: 10 | F91: 78 | G91: 6 | H91: 33 | I91: 0 | J91: 101 | K91: 140 | L91: 218
A92: 83 | B92: 2 | C92: 59 | D92: 1 | E92: 18 | F92: 80 | G92: 5 | H92: 33 | I92: 1 | J92: 61 | K92: 100 | L92: 180
A93: 84 | B93: 2 | C93: 44 | D93: 1 | E93: 17 | F93: 64 | G93: 7 | H93: 20 | I93: 1 | J93: 71 | K93: 99 | L93: 163
A94: 85 | B94: 1 | C94: 32 | D94: 1 | E94: 17 | F94: 51 | G94: 1 | H94: 16 | I94: 0 | J94: 72 | K94: 89 | L94: 140
A95: 86 | B95: 0 | C95: 40 | D95: 0 | E95: 10 | F95: 50 | G95: 5 | H95: 13 | I95: 1 | J95: 62 | K95: 81 | L95: 131
A96: 87 | B96: 1 | C96: 19 | D96: 0 | E96: 8 | F96: 28 | G96: 5 | H96: 14 | I96: 0 | J96: 66 | K96: 85 | L96: 113
A97: 88 | B97: 0 | C97: 17 | D97: 2 | E97: 11 | F97: 30 | G97: 1 | H97: 5 | I97: 0 | J97: 45 | K97: 51 | L97: 81
A98: 89 | B98: 2 | C98: 11 | D98: 0 | E98: 13 | F98: 26 | G98: 5 | H98: 4 | I98: 1 | J98: 42 | K98: 52 | L98: 78
A99: 90 | B99: 0 | C99: 14 | D99: 0 | E99: 8 | F99: 22 | G99: 1 | H99: 4 | I99: 0 | J99: 36 | K99: 41 | L99: 63
A100: 91 | B100: 0 | C100: 4 | D100: 0 | E100: 12 | F100: 16 | G100: 3 | H100: 1 | I100: 0 | J100: 28 | K100: 32 | L100: 48
A101: 92 | B101: 0 | C101: 7 | D101: 0 | E101: 3 | F101: 10 | G101: 2 | H101: 1 | I101: 0 | J101: 24 | K101: 27 | L101: 37
A102: 93 | B102: 0 | C102: 4 | D102: 0 | E102: 5 | F102: 9 | G102: 1 | H102: 0 | I102: 0 | J102: 15 | K102: 16 | L102: 25
A103: 94 | B103: 0 | C103: 0 | D103: 0 | E103: 2 | F103: 2 | G103: 0 | H103: 2 | I103: 0 | J103: 6 | K103: 8 | L103: 10
A104: 95 | B104: 0 | C104: 2 | D104: 0 | E104: 2 | F104: 4 | G104: 0 | H104: 0 | I104: 1 | J104: 7 | K104: 8 | L104: 12
A105: 96 | B105: 0 | C105: 1 | D105: 0 | E105: 2 | F105: 3 | G105: 3 | H105: 0 | I105: 0 | J105: 11 | K105: 14 | L105: 17
A106: 97 | B106: 0 | C106: 1 | D106: 0 | E106: 1 | F106: 2 | G106: 1 | H106: 0 | I106: 0 | J106: 1 | K106: 2 | L106: 4
A107: 98 | B107: 0 | C107: 0 | D107: 0 | E107: 2 | F107: 2 | G107: 1 | H107: 0 | I107: 0 | J107: 7 | K107: 8 | L107: 10
A108: 99 | B108: 0 | C108: 1 | D108: 0 | E108: 0 | F108: 1 | G108: 0 | H108: 0 | I108: 0 | J108: 4 | K108: 4 | L108: 5
A109: 100 e più | B109: 0 | C109: 0 | D109: 0 | E109: 0 | F109: 0 | G109: 0 | H109: 0 | I109: 0 | J109: 8 | K109: 8 | L109: 8
A110: TOTALE | B110: 8003 | C110: 9111 | D110: 264 | E110: 426 | F110: 17804 | G110: 7427 | H110: 9527 | I110: 535 | J110: 2039 | K110: 19528 | L110: 37332

Sheet 2013 fasce
A1: torna all'indice
A2: Popolazione residente al 1° Gennaio 2013 per età, sesso e stato civile
A3: Comune: Ciampino
A4: Eta' | B4: Celibi | C4: Coniugati | D4: Divorziati | E4: Vedovi | F4: Totale Maschi | G4: Nubili | H4: Coniugate | I4: Divorziate | J4: Vedove | K4: Totale Femmine | L4: Maschi
L5: +
L6: Femmine
A7: da 0 a 5 | B7: 1133 | C7: 0 | D7: 0 | E7: 0 | F7: 1133 | G7: 1074 | H7: 0 | I7: 0 | J7: 0 | K7: 1074 | L7: 2207
A8: da 6 a 10 | B8: 840 | C8: 0 | D8: 0 | E8: 0 | F8: 840 | G8: 953 | H8: 0 | I8: 0 | J8: 0 | K8: 953 | L8: 1793
A9: da 11 a 15 | B9: 931 | C9: 0 | D9: 0 | E9: 0 | F9: 931 | G9: 875 | H9: 0 | I9: 0 | J9: 0 | K9: 875 | L9: 1806
A10: da 16 a 20 | B10: 939 | C10: 0 | D10: 0 | E10: 0 | F10: 939 | G10: 947 | H10: 2 | I10: 0 | J10: 0 | K10: 949 | L10: 1888
A11: da 21 a 25 | B11: 973 | C11: 15 | D11: 0 | E11: 0 | F11: 988 | G11: 852 | H11: 63 | I11: 2 | J11: 0 | K11: 917 | L11: 1905
A12: da 26 a 30 | B12: 902 | C12: 123 | D12: 0 | E12: 0 | F12: 1025 | G12: 740 | H12: 249 | I12: 4 | J12: 1 | K12: 994 | L12: 2019
A13: da 31 a 35 | B13: 700 | C13: 449 | D13: 4 | E13: 1 | F13: 1154 | G13: 533 | H13: 611 | I13: 17 | J13: 5 | K13: 1166 | L13: 2320
A14: da 36 a 40 | B14: 594 | C14: 767 | D14: 11 | E14: 1 | F14: 1373 | G14: 464 | H14: 1026 | I14: 45 | J14: 13 | K14: 1548 | L14: 2921
A15: da 41 a 45 | B15: 407 | C15: 1098 | D15: 40 | E15: 2 | F15: 1547 | G15: 300 | H15: 1300 | I15: 77 | J15: 15 | K15: 1692 | L15: 3239
A16: da 46 a 50 | B16: 247 | C16: 1267 | D16: 63 | E16: 10 | F16: 1587 | G16: 235 | H16: 1397 | I16: 107 | J16: 51 | K16: 1790 | L16: 3377
A17: da 51 a 55 | B17: 119 | C17: 1097 | D17: 50 | E17: 12 | F17: 1278 | G17: 120 | H17: 1152 | I17: 98 | J17: 45 | K17: 1415 | L17: 2693
A18: da 56 a 60 | B18: 87 | C18: 984 | D18: 37 | E18: 15 | F18: 1123 | G18: 78 | H18: 972 | I18: 67 | J18: 97 | K18: 1214 | L18: 2337
A19: da 61 a 65 | B19: 62 | C19: 920 | D19: 21 | E19: 32 | F19: 1035 | G19: 58 | H19: 898 | I19: 41 | J19: 147 | K19: 1144 | L19: 2179
A20: da 66 a 70 | B20: 20 | C20: 771 | D20: 20 | E20: 52 | F20: 863 | G20: 48 | H20: 689 | I20: 37 | J20: 204 | K20: 978 | L20: 1841
A21: da 71 a 75 | B21: 21 | C21: 722 | D21: 6 | E21: 72 | F21: 821 | G21: 56 | H21: 618 | I21: 23 | J21: 319 | K21: 1016 | L21: 1837
A22: da 76 a 80 | B22: 15 | C22: 503 | D22: 6 | E22: 71 | F22: 595 | G22: 41 | H22: 350 | I22: 12 | J22: 380 | K22: 783 | L22: 1378
A23: da 81 a 85 | B23: 10 | C23: 274 | D23: 4 | E23: 79 | F23: 367 | G23: 25 | H23: 156 | I23: 2 | J23: 400 | K23: 583 | L23: 950
A24: da 86 a 90 | B24: 3 | C24: 101 | D24: 2 | E24: 50 | F24: 156 | G24: 17 | H24: 40 | I24: 2 | J24: 251 | K24: 310 | L24: 466
A25: da 91 95 | B25: 0 | C25: 17 | D25: 0 | E25: 24 | F25: 41 | G25: 6 | H25: 4 | I25: 1 | J25: 80 | K25: 91 | L25: 132
A26: oltre 95 | B26: 0 | C26: 3 | D26: 0 | E26: 5 | F26: 8 | G26: 5 | H26: 0 | I26: 0 | J26: 31 | K26: 36 | L26: 44
A27: TOTALE | B27: =SUM(B7:B26) -> 8003 | C27: =SUM(C7:C26) -> 9111 | D27: 264 | E27: 426 | F27: 17804 | G27: 7427 | H27: 9527 | I27: 535 | J27: 2039 | K27: 19528 | L27: 37332
A100: Eta' | B100: Celibi | C100: Coniugati | D100: Divorziati | E100: Vedovi | F100: Totale Maschi | G100: Nubili | H100: Coniugate | I100: Divorziate | J100: Vedove | K100: Totale Femmine | L100: Maschi
L101: +
L102: Femmine
A103: da 0 a 5 | B103: 1133 | C103: 0 | D103: 0 | E103: 0 | F103: 1133 | G103: -1074 | H103: 0 | I103: 0 | J103: 0 | K103: -1074 | L103: 2207 | M103: =G103-(G103*2) -> 1074 | N103: =H103-(H103*2) -> 0 | O103: 0 | P103: 0 | Q103: 1074
A104: da 6 a 10 | B104: 840 | C104: 0 | D104: 0 | E104: 0 | F104: 840 | G104: -953 | H104: 0 | I104: 0 | J104: 0 | K104: -953 | L104: 1793 | M104: =G104-(G104*2) -> 953 | N104: =H104-(H104*2) -> 0 | O104: =I104-(I104*2) -> 0 | P104: =J104-(J104*2) -> 0 | Q104: =K104-(K104*2) -> 953
A105: da 11 a 15 | B105: 931 | C105: 0 | D105: 0 | E105: 0 | F105: 931 | G105: -875 | H105: 0 | I105: 0 | J105: 0 | K105: -875 | L105: 1806 | M105: 875 | N105: 0 | O105: 0 | P105: 0 | Q105: 875
A106: da 16 a 20 | B106: 939 | C106: 0 | D106: 0 | E106: 0 | F106: 939 | G106: -947 | H106: -2 | I106: 0 | J106: 0 | K106: -949 | L106: 1888 | M106: 947 | N106: 2 | O106: 0 | P106: 0 | Q106: 949
A107: da 21 a 25 | B107: 973 | C107: 15 | D107: 0 | E107: 0 | F107: 988 | G107: -852 | H107: -63 | I107: -2 | J107: 0 | K107: -917 | L107: 1905 | M107: 852 | N107: 63 | O107: 2 | P107: 0 | Q107: 917
A108: da 26 a 30 | B108: 902 | C108: 123 | D108: 0 | E108: 0 | F108: 1025 | G108: -740 | H108: -249 | I108: -4 | J108: -1 | K108: -994 | L108: 2019 | M108: 740 | N108: 249 | O108: 4 | P108: 1 | Q108: 994
A109: da 31 a 35 | B109: 700 | C109: 449 | D109: 4 | E109: 1 | F109: 1154 | G109: -533 | H109: -611 | I109: -17 | J109: -5 | K109: -1166 | L109: 2320 | M109: 533 | N109: 611 | O109: 17 | P109: 5 | Q109: 1166
A110: da 36 a 40 | B110: 594 | C110: 767 | D110: 11 | E110: 1 | F110: 1373 | G110: -464 | H110: -1026 | I110: -45 | J110: -13 | K110: -1548 | L110: 2921 | M110: 464 | N110: 1026 | O110: 45 | P110: 13 | Q110: 1548
A111: da 41 a 45 | B111: 407 | C111: 1098 | D111: 40 | E111: 2 | F111: 1547 | G111: -300 | H111: -1300 | I111: -77 | J111: -15 | K111: -1692 | L111: 3239 | M111: 300 | N111: 1300 | O111: 77 | P111: 15 | Q111: 1692
A112: da 46 a 50 | B112: 247 | C112: 1267 | D112: 63 | E112: 10 | F112: 1587 | G112: -235 | H112: -1397 | I112: -107 | J112: -51 | K112: -1790 | L112: 3377 | M112: 235 | N112: 1397 | O112: 107 | P112: 51 | Q112: 1790
A113: da 51 a 55 | B113: 119 | C113: 1097 | D113: 50 | E113: 12 | F113: 1278 | G113: -120 | H113: -1152 | I113: -98 | J113: -45 | K113: -1415 | L113: 2693 | M113: 120 | N113: 1152 | O113: 98 | P113: 45 | Q113: 1415
A114: da 56 a 60 | B114: 87 | C114: 984 | D114: 37 | E114: 15 | F114: 1123 | G114: -78 | H114: -972 | I114: -67 | J114: -97 | K114: -1214 | L114: 2337 | M114: 78 | N114: 972 | O114: 67 | P114: 97 | Q114: 1214
A115: da 61 a 65 | B115: 62 | C115: 920 | D115: 21 | E115: 32 | F115: 1035 | G115: -58 | H115: -898 | I115: -41 | J115: -147 | K115: -1144 | L115: 2179 | M115: 58 | N115: 898 | O115: 41 | P115: 147 | Q115: 1144
A116: da 66 a 70 | B116: 20 | C116: 771 | D116: 20 | E116: 52 | F116: 863 | G116: -48 | H116: -689 | I116: -37 | J116: -204 | K116: -978 | L116: 1841 | M116: 48 | N116: 689 | O116: 37 | P116: 204 | Q116: 978
A117: da 71 a 75 | B117: 21 | C117: 722 | D117: 6 | E117: 72 | F117: 821 | G117: -56 | H117: -618 | I117: -23 | J117: -319 | K117: -1016 | L117: 1837 | M117: 56 | N117: 618 | O117: 23 | P117: 319 | Q117: 1016
A118: da 76 a 80 | B118: 15 | C118: 503 | D118: 6 | E118: 71 | F118: 595 | G118: -41 | H118: -350 | I118: -12 | J118: -380 | K118: -783 | L118: 1378 | M118: 41 | N118: 350 | O118: 12 | P118: 380 | Q118: 783
A119: da 81 a 85 | B119: 10 | C119: 274 | D119: 4 | E119: 79 | F119: 367 | G119: -25 | H119: -156 | I119: -2 | J119: -400 | K119: -583 | L119: 950 | M119: 25 | N119: 156 | O119: 2 | P119: 400 | Q119: 583
A120: da 86 a 90 | B120: 3 | C120: 101 | D120: 2 | E120: 50 | F120: 156 | G120: -17 | H120: -40 | I120: -2 | J120: -251 | K120: -310 | L120: 466 | M120: 17 | N120: 40 | O120: 2 | P120: 251 | Q120: 310
A121: da 91 95 | B121: 0 | C121: 17 | D121: 0 | E121: 24 | F121: 41 | G121: -6 | H121: -4 | I121: -1 | J121: -80 | K121: -91 | L121: 132 | M121: 6 | N121: 4 | O121: 1 | P121: 80 | Q121: 91
A122: oltre 95 | B122: 0 | C122: 3 | D122: 0 | E122: 5 | F122: 8 | G122: -5 | H122: 0 | I122: 0 | J122: -31 | K122: -36 | L122: 44 | M122: 5 | N122: 0 | O122: 0 | P122: 31 | Q122: 36
A123: TOTALE | B123: =SUM(B103:B122) -> 8003 | C123: =SUM(C103:C122) -> 9111 | D123: 264 | E123: 426 | F123: 17804 | G123: -7427 | H123: -9527 | I123: -535 | J123: -2039 | K123: -19528 | L123: 37332

Sheet 2014
A1: torna all'indice
A3: Popolazione residente al 1° Gennaio 2014 per età, sesso e stato civile
A4: Comune: Ciampino
A5: Età | B5: Celibi | C5: Coniugati | D5: Divorziati | E5: Vedovi | F5: Totale Maschi | G5: Nubili | H5: Coniugate | I5: Divorziate | J5: Vedove | K5: Totale Femmine | L5: Maschi+Femmine
A6: 0 | B6: 149 | C6: 0 | D6: 0 | E6: 0 | F6: 149 | G6: 133 | H6: 0 | I6: 0 | J6: 0 | K6: 133 | L6: 282
A7: 1 | B7: 184 | C7: 0 | D7: 0 | E7: 0 | F7: 184 | G7: 155 | H7: 0 | I7: 0 | J7: 0 | K7: 155 | L7: 339
A8: 2 | B8: 196 | C8: 0 | D8: 0 | E8: 0 | F8: 196 | G8: 178 | H8: 0 | I8: 0 | J8: 0 | K8: 178 | L8: 374
A9: 3 | B9: 186 | C9: 0 | D9: 0 | E9: 0 | F9: 186 | G9: 188 | H9: 0 | I9: 0 | J9: 0 | K9: 188 | L9: 374
A10: 4 | B10: 202 | C10: 0 | D10: 0 | E10: 0 | F10: 202 | G10: 187 | H10: 0 | I10: 0 | J10: 0 | K10: 187 | L10: 389
A11: 5 | B11: 185 | C11: 0 | D11: 0 | E11: 0 | F11: 185 | G11: 163 | H11: 0 | I11: 0 | J11: 0 | K11: 163 | L11: 348
A12: 6 | B12: 207 | C12: 0 | D12: 0 | E12: 0 | F12: 207 | G12: 206 | H12: 0 | I12: 0 | J12: 0 | K12: 206 | L12: 413
A13: 7 | B13: 178 | C13: 0 | D13: 0 | E13: 0 | F13: 178 | G13: 198 | H13: 0 | I13: 0 | J13: 0 | K13: 198 | L13: 376
A14: 8 | B14: 166 | C14: 0 | D14: 0 | E14: 0 | F14: 166 | G14: 192 | H14: 0 | I14: 0 | J14: 0 | K14: 192 | L14: 358
A15: 9 | B15: 175 | C15: 0 | D15: 0 | E15: 0 | F15: 175 | G15: 183 | H15: 0 | I15: 0 | J15: 0 | K15: 183 | L15: 358
A16: 10 | B16: 168 | C16: 0 | D16: 0 | E16: 0 | F16: 168 | G16: 202 | H16: 0 | I16: 0 | J16: 0 | K16: 202 | L16: 370
A17: 11 | B17: 171 | C17: 0 | D17: 0 | E17: 0 | F17: 171 | G17: 190 | H17: 0 | I17: 0 | J17: 0 | K17: 190 | L17: 361
A18: 12 | B18: 189 | C18: 0 | D18: 0 | E18: 0 | F18: 189 | G18: 173 | H18: 0 | I18: 0 | J18: 0 | K18: 173 | L18: 362
A19: 13 | B19: 182 | C19: 0 | D19: 0 | E19: 0 | F19: 182 | G19: 182 | H19: 0 | I19: 0 | J19: 0 | K19: 182 | L19: 364
A20: 14 | B20: 198 | C20: 0 | D20: 0 | E20: 0 | F20: 198 | G20: 168 | H20: 0 | I20: 0 | J20: 0 | K20: 168 | L20: 366
A21: 15 | B21: 187 | C21: 0 | D21: 0 | E21: 0 | F21: 187 | G21: 186 | H21: 0 | I21: 0 | J21: 0 | K21: 186 | L21: 373
A22: 16 | B22: 189 | C22: 0 | D22: 0 | E22: 0 | F22: 189 | G22: 196 | H22: 0 | I22: 0 | J22: 0 | K22: 196 | L22: 385
A23: 17 | B23: 190 | C23: 0 | D23: 0 | E23: 0 | F23: 190 | G23: 188 | H23: 0 | I23: 0 | J23: 0 | K23: 188 | L23: 378
A24: 18 | B24: 184 | C24: 0 | D24: 0 | E24: 0 | F24: 184 | G24: 169 | H24: 0 | I24: 0 | J24: 0 | K24: 169 | L24: 353
A25: 19 | B25: 171 | C25: 0 | D25: 0 | E25: 0 | F25: 171 | G25: 190 | H25: 1 | I25: 0 | J25: 0 | K25: 191 | L25: 362
A26: 20 | B26: 222 | C26: 0 | D26: 0 | E26: 0 | F26: 222 | G26: 211 | H26: 1 | I26: 0 | J26: 0 | K26: 212 | L26: 434
A27: 21 | B27: 195 | C27: 0 | D27: 0 | E27: 0 | F27: 195 | G27: 195 | H27: 2 | I27: 0 | J27: 0 | K27: 197 | L27: 392
A28: 22 | B28: 210 | C28: 2 | D28: 0 | E28: 0 | F28: 212 | G28: 161 | H28: 3 | I28: 1 | J28: 0 | K28: 165 | L28: 377
A29: 23 | B29: 189 | C29: 3 | D29: 0 | E29: 0 | F29: 192 | G29: 190 | H29: 7 | I29: 0 | J29: 0 | K29: 197 | L29: 389
A30: 24 | B30: 194 | C30: 2 | D30: 0 | E30: 0 | F30: 196 | G30: 170 | H30: 16 | I30: 0 | J30: 0 | K30: 186 | L30: 382
A31: 25 | B31: 208 | C31: 7 | D31: 0 | E31: 0 | F31: 215 | G31: 176 | H31: 25 | I31: 0 | J31: 0 | K31: 201 | L31: 416
A32: 26 | B32: 176 | C32: 9 | D32: 0 | E32: 0 | F32: 185 | G32: 161 | H32: 47 | I32: 0 | J32: 0 | K32: 208 | L32: 393
A33: 27 | B33: 180 | C33: 15 | D33: 0 | E33: 0 | F33: 195 | G33: 165 | H33: 43 | I33: 1 | J33: 0 | K33: 209 | L33: 404
A34: 28 | B34: 195 | C34: 22 | D34: 0 | E34: 0 | F34: 217 | G34: 152 | H34: 42 | I34: 0 | J34: 0 | K34: 194 | L34: 411
A35: 29 | B35: 170 | C35: 29 | D35: 0 | E35: 0 | F35: 199 | G35: 145 | H35: 55 | I35: 2 | J35: 0 | K35: 202 | L35: 401
A36: 30 | B36: 187 | C36: 33 | D36: 0 | E36: 0 | F36: 220 | G36: 131 | H36: 66 | I36: 1 | J36: 1 | K36: 199 | L36: 419
A37: 31 | B37: 155 | C37: 57 | D37: 0 | E37: 0 | F37: 212 | G37: 127 | H37: 88 | I37: 1 | J37: 0 | K37: 216 | L37: 428
A38: 32 | B38: 151 | C38: 77 | D38: 0 | E38: 0 | F38: 228 | G38: 117 | H38: 103 | I38: 3 | J38: 0 | K38: 223 | L38: 451
A39: 33 | B39: 146 | C39: 101 | D39: 0 | E39: 0 | F39: 247 | G39: 117 | H39: 125 | I39: 1 | J39: 1 | K39: 244 | L39: 491
A40: 34 | B40: 142 | C40: 98 | D40: 1 | E40: 0 | F40: 241 | G40: 89 | H40: 114 | I40: 2 | J40: 0 | K40: 205 | L40: 446
A41: 35 | B41: 129 | C41: 103 | D41: 0 | E41: 0 | F41: 232 | G41: 108 | H41: 165 | I41: 3 | J41: 1 | K41: 277 | L41: 509
A42: 36 | B42: 122 | C42: 132 | D42: 3 | E42: 0 | F42: 257 | G42: 96 | H42: 152 | I42: 10 | J42: 4 | K42: 262 | L42: 519
A43: 37 | B43: 112 | C43: 124 | D43: 0 | E43: 0 | F43: 236 | G43: 83 | H43: 169 | I43: 14 | J43: 3 | K43: 269 | L43: 505
A44: 38 | B44: 125 | C44: 152 | D44: 3 | E44: 0 | F44: 280 | G44: 120 | H44: 189 | I44: 8 | J44: 4 | K44: 321 | L44: 601
A45: 39 | B45: 114 | C45: 168 | D45: 1 | E45: 0 | F45: 283 | G45: 99 | H45: 221 | I45: 10 | J45: 2 | K45: 332 | L45: 615
A46: 40 | B46: 118 | C46: 186 | D46: 5 | E46: 0 | F46: 309 | G46: 105 | H46: 247 | I46: 5 | J46: 2 | K46: 359 | L46: 668
A47: 41 | B47: 118 | C47: 162 | D47: 5 | E47: 0 | F47: 285 | G47: 76 | H47: 244 | I47: 10 | J47: 4 | K47: 334 | L47: 619
A48: 42 | B48: 83 | C48: 189 | D48: 1 | E48: 0 | F48: 273 | G48: 85 | H48: 273 | I48: 14 | J48: 2 | K48: 374 | L48: 647
A49: 43 | B49: 106 | C49: 236 | D49: 6 | E49: 0 | F49: 348 | G49: 61 | H49: 223 | I49: 9 | J49: 3 | K49: 296 | L49: 644
A50: 44 | B50: 90 | C50: 236 | D50: 8 | E50: 1 | F50: 335 | G50: 54 | H50: 280 | I50: 22 | J50: 3 | K50: 359 | L50: 694
A51: 45 | B51: 74 | C51: 226 | D51: 11 | E51: 1 | F51: 312 | G51: 58 | H51: 291 | I51: 12 | J51: 6 | K51: 367 | L51: 679
A52: 46 | B52: 65 | C52: 239 | D52: 15 | E52: 1 | F52: 320 | G52: 45 | H52: 253 | I52: 25 | J52: 4 | K52: 327 | L52: 647
A53: 47 | B53: 65 | C53: 269 | D53: 13 | E53: 0 | F53: 347 | G53: 70 | H53: 288 | I53: 25 | J53: 11 | K53: 394 | L53: 741
A54: 48 | B54: 58 | C54: 257 | D54: 17 | E54: 3 | F54: 335 | G54: 50 | H54: 266 | I54: 19 | J54: 9 | K54: 344 | L54: 679
A55: 49 | B55: 53 | C55: 282 | D55: 9 | E55: 2 | F55: 346 | G55: 36 | H55: 337 | I55: 22 | J55: 8 | K55: 403 | L55: 749
A56: 50 | B56: 46 | C56: 252 | D56: 9 | E56: 3 | F56: 310 | G56: 32 | H56: 259 | I56: 21 | J56: 14 | K56: 326 | L56: 636
A57: 51 | B57: 32 | C57: 238 | D57: 19 | E57: 3 | F57: 292 | G57: 49 | H57: 255 | I57: 25 | J57: 12 | K57: 341 | L57: 633
A58: 52 | B58: 30 | C58: 242 | D58: 12 | E58: 1 | F58: 285 | G58: 26 | H58: 244 | I58: 30 | J58: 11 | K58: 311 | L58: 596
A59: 53 | B59: 24 | C59: 240 | D59: 7 | E59: 1 | F59: 272 | G59: 26 | H59: 252 | I59: 17 | J59: 9 | K59: 304 | L59: 576
A60: 54 | B60: 25 | C60: 205 | D60: 14 | E60: 4 | F60: 248 | G60: 36 | H60: 227 | I60: 21 | J60: 13 | K60: 297 | L60: 545
A61: 55 | B61: 21 | C61: 215 | D61: 13 | E61: 2 | F61: 251 | G61: 23 | H61: 236 | I61: 25 | J61: 7 | K61: 291 | L61: 542
A62: 56 | B62: 23 | C62: 212 | D62: 8 | E62: 5 | F62: 248 | G62: 24 | H62: 204 | I62: 14 | J62: 9 | K62: 251 | L62: 499
A63: 57 | B63: 20 | C63: 188 | D63: 6 | E63: 3 | F63: 217 | G63: 19 | H63: 216 | I63: 12 | J63: 19 | K63: 266 | L63: 483
A64: 58 | B64: 20 | C64: 223 | D64: 9 | E64: 5 | F64: 257 | G64: 16 | H64: 206 | I64: 13 | J64: 11 | K64: 246 | L64: 503
A65: 59 | B65: 22 | C65: 198 | D65: 11 | E65: 4 | F65: 235 | G65: 12 | H65: 193 | I65: 17 | J65: 23 | K65: 245 | L65: 480
A66: 60 | B66: 15 | C66: 200 | D66: 5 | E66: 2 | F66: 222 | G66: 15 | H66: 174 | I66: 10 | J66: 19 | K66: 218 | L66: 440
A67: 61 | B67: 10 | C67: 184 | D67: 8 | E67: 3 | F67: 205 | G67: 13 | H67: 189 | I67: 16 | J67: 39 | K67: 257 | L67: 462
A68: 62 | B68: 10 | C68: 169 | D68: 7 | E68: 5 | F68: 191 | G68: 10 | H68: 186 | I68: 10 | J68: 22 | K68: 228 | L68: 419
A69: 63 | B69: 14 | C69: 178 | D69: 3 | E69: 9 | F69: 204 | G69: 7 | H69: 173 | I69: 8 | J69: 24 | K69: 212 | L69: 416
A70: 64 | B70: 14 | C70: 171 | D70: 5 | E70: 7 | F70: 197 | G70: 13 | H70: 197 | I70: 6 | J70: 36 | K70: 252 | L70: 449
A71: 65 | B71: 16 | C71: 216 | D71: 7 | E71: 2 | F71: 241 | G71: 18 | H71: 186 | I71: 8 | J71: 33 | K71: 245 | L71: 486
A72: 66 | B72: 7 | C72: 184 | D72: 3 | E72: 8 | F72: 202 | G72: 11 | H72: 162 | I72: 8 | J72: 45 | K72: 226 | L72: 428
A73: 67 | B73: 5 | C73: 188 | D73: 5 | E73: 13 | F73: 211 | G73: 9 | H73: 181 | I73: 7 | J73: 41 | K73: 238 | L73: 449
A74: 68 | B74: 4 | C74: 150 | D74: 2 | E74: 10 | F74: 166 | G74: 9 | H74: 136 | I74: 6 | J74: 42 | K74: 193 | L74: 359
A75: 69 | B75: 5 | C75: 150 | D75: 5 | E75: 12 | F75: 172 | G75: 13 | H75: 121 | I75: 7 | J75: 38 | K75: 179 | L75: 351
A76: 70 | B76: 2 | C76: 148 | D76: 4 | E76: 12 | F76: 166 | G76: 8 | H76: 138 | I76: 6 | J76: 45 | K76: 197 | L76: 363
A77: 71 | B77: 5 | C77: 134 | D77: 5 | E77: 10 | F77: 154 | G77: 9 | H77: 109 | I77: 7 | J77: 60 | K77: 185 | L77: 339
A78: 72 | B78: 8 | C78: 146 | D78: 0 | E78: 17 | F78: 171 | G78: 14 | H78: 129 | I78: 3 | J78: 48 | K78: 194 | L78: 365
A79: 73 | B79: 3 | C79: 155 | D79: 3 | E79: 14 | F79: 175 | G79: 13 | H79: 141 | I79: 3 | J79: 73 | K79: 230 | L79: 405
A80: 74 | B80: 2 | C80: 135 | D80: 1 | E80: 9 | F80: 147 | G80: 15 | H80: 134 | I80: 6 | J80: 73 | K80: 228 | L80: 375
A81: 75 | B81: 3 | C81: 136 | D81: 2 | E81: 21 | F81: 162 | G81: 8 | H81: 112 | I81: 6 | J81: 70 | K81: 196 | L81: 358
A82: 76 | B82: 4 | C82: 142 | D82: 1 | E82: 21 | F82: 168 | G82: 8 | H82: 91 | I82: 3 | J82: 75 | K82: 177 | L82: 345
A83: 77 | B83: 3 | C83: 121 | D83: 1 | E83: 15 | F83: 140 | G83: 13 | H83: 75 | I83: 3 | J83: 87 | K83: 178 | L83: 318
A84: 78 | B84: 7 | C84: 119 | D84: 2 | E84: 14 | F84: 142 | G84: 9 | H84: 72 | I84: 5 | J84: 83 | K84: 169 | L84: 311
A85: 79 | B85: 2 | C85: 98 | D85: 1 | E85: 21 | F85: 122 | G85: 7 | H85: 74 | I85: 2 | J85: 77 | K85: 160 | L85: 282
A86: 80 | B86: 3 | C86: 79 | D86: 1 | E86: 13 | F86: 96 | G86: 6 | H86: 50 | I86: 0 | J86: 71 | K86: 127 | L86: 223
A87: 81 | B87: 1 | C87: 71 | D87: 1 | E87: 13 | F87: 86 | G87: 7 | H87: 51 | I87: 0 | J87: 76 | K87: 134 | L87: 220
A88: 82 | B88: 3 | C88: 68 | D88: 1 | E88: 18 | F88: 90 | G88: 5 | H88: 46 | I88: 0 | J88: 95 | K88: 146 | L88: 236
A89: 83 | B89: 2 | C89: 56 | D89: 0 | E89: 11 | F89: 69 | G89: 5 | H89: 27 | I89: 0 | J89: 98 | K89: 130 | L89: 199
A90: 84 | B90: 1 | C90: 54 | D90: 1 | E90: 19 | F90: 75 | G90: 5 | H90: 28 | I90: 1 | J90: 65 | K90: 99 | L90: 174
A91: 85 | B91: 1 | C91: 40 | D91: 0 | E91: 17 | F91: 58 | G91: 7 | H91: 17 | I91: 1 | J91: 71 | K91: 96 | L91: 154
A92: 86 | B92: 1 | C92: 30 | D92: 1 | E92: 16 | F92: 48 | G92: 2 | H92: 16 | I92: 0 | J92: 72 | K92: 90 | L92: 138
A93: 87 | B93: 0 | C93: 37 | D93: 0 | E93: 8 | F93: 45 | G93: 5 | H93: 13 | I93: 1 | J93: 57 | K93: 76 | L93: 121
A94: 88 | B94: 1 | C94: 16 | D94: 0 | E94: 7 | F94: 24 | G94: 5 | H94: 12 | I94: 0 | J94: 57 | K94: 74 | L94: 98
A95: 89 | B95: 0 | C95: 14 | D95: 1 | E95: 9 | F95: 24 | G95: 1 | H95: 5 | I95: 0 | J95: 43 | K95: 49 | L95: 73
A96: 90 | B96: 1 | C96: 9 | D96: 0 | E96: 12 | F96: 22 | G96: 4 | H96: 4 | I96: 0 | J96: 40 | K96: 48 | L96: 70
A97: 91 | B97: 0 | C97: 11 | D97: 0 | E97: 7 | F97: 18 | G97: 1 | H97: 4 | I97: 0 | J97: 29 | K97: 34 | L97: 52
A98: 92 | B98: 0 | C98: 4 | D98: 0 | E98: 11 | F98: 15 | G98: 2 | H98: 1 | I98: 0 | J98: 23 | K98: 26 | L98: 41
A99: 93 | B99: 0 | C99: 6 | D99: 0 | E99: 2 | F99: 8 | G99: 2 | H99: 1 | I99: 0 | J99: 19 | K99: 22 | L99: 30
A100: 94 | B100: 0 | C100: 4 | D100: 0 | E100: 4 | F100: 8 | G100: 1 | H100: 0 | I100: 0 | J100: 12 | K100: 13 | L100: 21
A101: 95 | B101: 0 | C101: 0 | D101: 0 | E101: 2 | F101: 2 | G101: 0 | H101: 1 | I101: 0 | J101: 6 | K101: 7 | L101: 9
A102: 96 | B102: 0 | C102: 2 | D102: 0 | E102: 2 | F102: 4 | G102: 0 | H102: 0 | I102: 1 | J102: 4 | K102: 5 | L102: 9
A103: 97 | B103: 0 | C103: 1 | D103: 0 | E103: 2 | F103: 3 | G103: 3 | H103: 0 | I103: 0 | J103: 7 | K103: 10 | L103: 13
A104: 98 | B104: 0 | C104: 1 | D104: 0 | E104: 1 | F104: 2 | G104: 0 | H104: 0 | I104: 0 | J104: 0 | K104: 0 | L104: 2
A105: 99 | B105: 0 | C105: 0 | D105: 0 | E105: 2 | F105: 2 | G105: 0 | H105: 0 | I105: 0 | J105: 5 | K105: 5 | L105: 7
A106: 100 e più | B106: 0 | C106: 0 | D106: 0 | E106: 0 | F106: 0 | G106: 0 | H106: 0 | I106: 0 | J106: 7 | K106: 7 | L106: 7
A107: TOTALE | B107: 8225 | C107: 9256 | D107: 282 | E107: 440 | F107: 18203 | G107: 7626 | H107: 9684 | I107: 549 | J107: 2083 | K107: 19942 | L107: 38145

Sheet 2014 fasce
A1: torna all'indice
A2: Popolazione residente al 1° Gennaio 2014 per età, sesso e stato civile
A3: Comune: Ciampino
A4: Eta' | B4: Celibi | C4: Coniugati | D4: Divorziati | E4: Vedovi | F4: Totale Maschi | G4: Nubili | H4: Coniugate | I4: Divorziate | J4: Vedove | K4: Totale Femmine | L4: Maschi
L5: +
L6: Femmine
A7: da 0 a 5 | B7: 1102 | C7: 0 | D7: 0 | E7: 0 | F7: 1102 | G7: 1004 | H7: 0 | I7: 0 | J7: 0 | K7: 1004 | L7: 2106
A8: da 6 a 10 | B8: 894 | C8: 0 | D8: 0 | E8: 0 | F8: 894 | G8: 981 | H8: 0 | I8: 0 | J8: 0 | K8: 981 | L8: 1875
A9: da 11 a 15 | B9: 927 | C9: 0 | D9: 0 | E9: 0 | F9: 927 | G9: 899 | H9: 0 | I9: 0 | J9: 0 | K9: 899 | L9: 1826
A10: da 16 a 20 | B10: 956 | C10: 0 | D10: 0 | E10: 0 | F10: 956 | G10: 954 | H10: 2 | I10: 0 | J10: 0 | K10: 956 | L10: 1912
A11: da 21 a 25 | B11: 996 | C11: 14 | D11: 0 | E11: 0 | F11: 1010 | G11: 892 | H11: 53 | I11: 1 | J11: 0 | K11: 946 | L11: 1956
A12: da 26 a 30 | B12: 908 | C12: 108 | D12: 0 | E12: 0 | F12: 1016 | G12: 754 | H12: 253 | I12: 4 | J12: 1 | K12: 1012 | L12: 2028
A13: da 31 a 35 | B13: 723 | C13: 436 | D13: 1 | E13: 0 | F13: 1160 | G13: 558 | H13: 595 | I13: 10 | J13: 2 | K13: 1165 | L13: 2325
A14: da 36 a 40 | B14: 591 | C14: 762 | D14: 12 | E14: 0 | F14: 1365 | G14: 503 | H14: 978 | I14: 47 | J14: 15 | K14: 1543 | L14: 2908
A15: da 41 a 45 | B15: 471 | C15: 1049 | D15: 31 | E15: 2 | F15: 1553 | G15: 334 | H15: 1311 | I15: 67 | J15: 18 | K15: 1730 | L15: 3283
A16: da 46 a 50 | B16: 287 | C16: 1299 | D16: 63 | E16: 9 | F16: 1658 | G16: 233 | H16: 1403 | I16: 112 | J16: 46 | K16: 1794 | L16: 3452
A17: da 51 a 55 | B17: 132 | C17: 1140 | D17: 65 | E17: 11 | F17: 1348 | G17: 160 | H17: 1214 | I17: 118 | J17: 52 | K17: 1544 | L17: 2892
A18: da 56 a 60 | B18: 100 | C18: 1021 | D18: 39 | E18: 19 | F18: 1179 | G18: 86 | H18: 993 | I18: 66 | J18: 81 | K18: 1226 | L18: 2405
A19: da 61 a 65 | B19: 64 | C19: 918 | D19: 30 | E19: 26 | F19: 1038 | G19: 61 | H19: 931 | I19: 48 | J19: 154 | K19: 1194 | L19: 2232
A20: da 66 a 70 | B20: 23 | C20: 820 | D20: 19 | E20: 55 | F20: 917 | G20: 50 | H20: 738 | I20: 34 | J20: 211 | K20: 1033 | L20: 1950
A21: da 71 a 75 | B21: 21 | C21: 706 | D21: 11 | E21: 71 | F21: 809 | G21: 59 | H21: 625 | I21: 25 | J21: 324 | K21: 1033 | L21: 1842
A22: da 76 a 80 | B22: 19 | C22: 559 | D22: 6 | E22: 84 | F22: 668 | G22: 43 | H22: 362 | I22: 13 | J22: 393 | K22: 811 | L22: 1479
A23: da 81 a 85 | B23: 8 | C23: 289 | D23: 3 | E23: 78 | F23: 378 | G23: 29 | H23: 169 | I23: 2 | J23: 405 | K23: 605 | L23: 983
A24: da 86 a 90 | B24: 3 | C24: 106 | D24: 2 | E24: 52 | F24: 163 | G24: 17 | H24: 50 | I24: 1 | J24: 269 | K24: 337 | L24: 500
A25: da 91 95 | B25: 0 | C25: 25 | D25: 0 | E25: 26 | F25: 51 | G25: 6 | H25: 7 | I25: 0 | J25: 89 | K25: 102 | L25: 153
A26: oltre 95 | B26: 0 | C26: 4 | D26: 0 | E26: 7 | F26: 11 | G26: 3 | H26: 0 | I26: 1 | J26: 23 | K26: 27 | L26: 38
A27: TOTALE | B27: =SUM(B7:B26) -> 8225 | C27: =SUM(C7:C26) -> 9256 | D27: 282 | E27: 440 | F27: 18203 | G27: 7626 | H27: 9684 | I27: 549 | J27: 2083 | K27: 19942 | L27: 38145
A100: Eta' | B100: Celibi | C100: Coniugati | D100: Divorziati | E100: Vedovi | F100: Totale Maschi | G100: Nubili | H100: Coniugate | I100: Divorziate | J100: Vedove | K100: Totale Femmine | L100: Maschi
L101: +
L102: Femmine
A103: da 0 a 5 | B103: 1102 | C103: 0 | D103: 0 | E103: 0 | F103: 1102 | G103: -1004 | H103: 0 | I103: 0 | J103: 0 | K103: -1004 | L103: 2106 | M103: =G103-(G103*2) -> 1004 | N103: =H103-(H103*2) -> 0 | O103: 0 | P103: 0 | Q103: 1004
A104: da 6 a 10 | B104: 894 | C104: 0 | D104: 0 | E104: 0 | F104: 894 | G104: -981 | H104: 0 | I104: 0 | J104: 0 | K104: -981 | L104: 1875 | M104: =G104-(G104*2) -> 981 | N104: =H104-(H104*2) -> 0 | O104: =I104-(I104*2) -> 0 | P104: =J104-(J104*2) -> 0 | Q104: =K104-(K104*2) -> 981
A105: da 11 a 15 | B105: 927 | C105: 0 | D105: 0 | E105: 0 | F105: 927 | G105: -899 | H105: 0 | I105: 0 | J105: 0 | K105: -899 | L105: 1826 | M105: 899 | N105: 0 | O105: 0 | P105: 0 | Q105: 899
A106: da 16 a 20 | B106: 956 | C106: 0 | D106: 0 | E106: 0 | F106: 956 | G106: -954 | H106: -2 | I106: 0 | J106: 0 | K106: -956 | L106: 1912 | M106: 954 | N106: 2 | O106: 0 | P106: 0 | Q106: 956
A107: da 21 a 25 | B107: 996 | C107: 14 | D107: 0 | E107: 0 | F107: 1010 | G107: -892 | H107: -53 | I107: -1 | J107: 0 | K107: -946 | L107: 1956 | M107: 892 | N107: 53 | O107: 1 | P107: 0 | Q107: 946
A108: da 26 a 30 | B108: 908 | C108: 108 | D108: 0 | E108: 0 | F108: 1016 | G108: -754 | H108: -253 | I108: -4 | J108: -1 | K108: -1012 | L108: 2028 | M108: 754 | N108: 253 | O108: 4 | P108: 1 | Q108: 1012
A109: da 31 a 35 | B109: 723 | C109: 436 | D109: 1 | E109: 0 | F109: 1160 | G109: -558 | H109: -595 | I109: -10 | J109: -2 | K109: -1165 | L109: 2325 | M109: 558 | N109: 595 | O109: 10 | P109: 2 | Q109: 1165
A110: da 36 a 40 | B110: 591 | C110: 762 | D110: 12 | E110: 0 | F110: 1365 | G110: -503 | H110: -978 | I110: -47 | J110: -15 | K110: -1543 | L110: 2908 | M110: 503 | N110: 978 | O110: 47 | P110: 15 | Q110: 1543
A111: da 41 a 45 | B111: 471 | C111: 1049 | D111: 31 | E111: 2 | F111: 1553 | G111: -334 | H111: -1311 | I111: -67 | J111: -18 | K111: -1730 | L111: 3283 | M111: 334 | N111: 1311 | O111: 67 | P111: 18 | Q111: 1730
A112: da 46 a 50 | B112: 287 | C112: 1299 | D112: 63 | E112: 9 | F112: 1658 | G112: -233 | H112: -1403 | I112: -112 | J112: -46 | K112: -1794 | L112: 3452 | M112: 233 | N112: 1403 | O112: 112 | P112: 46 | Q112: 1794
A113: da 51 a 55 | B113: 132 | C113: 1140 | D113: 65 | E113: 11 | F113: 1348 | G113: -160 | H113: -1214 | I113: -118 | J113: -52 | K113: -1544 | L113: 2892 | M113: 160 | N113: 1214 | O113: 118 | P113: 52 | Q113: 1544
A114: da 56 a 60 | B114: 100 | C114: 1021 | D114: 39 | E114: 19 | F114: 1179 | G114: -86 | H114: -993 | I114: -66 | J114: -81 | K114: -1226 | L114: 2405 | M114: 86 | N114: 993 | O114: 66 | P114: 81 | Q114: 1226
A115: da 61 a 65 | B115: 64 | C115: 918 | D115: 30 | E115: 26 | F115: 1038 | G115: -61 | H115: -931 | I115: -48 | J115: -154 | K115: -1194 | L115: 2232 | M115: 61 | N115: 931 | O115: 48 | P115: 154 | Q115: 1194
A116: da 66 a 70 | B116: 23 | C116: 820 | D116: 19 | E116: 55 | F116: 917 | G116: -50 | H116: -738 | I116: -34 | J116: -211 | K116: -1033 | L116: 1950 | M116: 50 | N116: 738 | O116: 34 | P116: 211 | Q116: 1033
A117: da 71 a 75 | B117: 21 | C117: 706 | D117: 11 | E117: 71 | F117: 809 | G117: -59 | H117: -625 | I117: -25 | J117: -324 | K117: -1033 | L117: 1842 | M117: 59 | N117: 625 | O117: 25 | P117: 324 | Q117: 1033
A118: da 76 a 80 | B118: 19 | C118: 559 | D118: 6 | E118: 84 | F118: 668 | G118: -43 | H118: -362 | I118: -13 | J118: -393 | K118: -811 | L118: 1479 | M118: 43 | N118: 362 | O118: 13 | P118: 393 | Q118: 811
A119: da 81 a 85 | B119: 8 | C119: 289 | D119: 3 | E119: 78 | F119: 378 | G119: -29 | H119: -169 | I119: -2 | J119: -405 | K119: -605 | L119: 983 | M119: 29 | N119: 169 | O119: 2 | P119: 405 | Q119: 605
A120: da 86 a 90 | B120: 3 | C120: 106 | D120: 2 | E120: 52 | F120: 163 | G120: -17 | H120: -50 | I120: -1 | J120: -269 | K120: -337 | L120: 500 | M120: 17 | N120: 50 | O120: 1 | P120: 269 | Q120: 337
A121: da 91 95 | B121: 0 | C121: 25 | D121: 0 | E121: 26 | F121: 51 | G121: -6 | H121: -7 | I121: 0 | J121: -89 | K121: -102 | L121: 153 | M121: 6 | N121: 7 | O121: 0 | P121: 89 | Q121: 102
A122: oltre 95 | B122: 0 | C122: 4 | D122: 0 | E122: 7 | F122: 11 | G122: -3 | H122: 0 | I122: -1 | J122: -23 | K122: -27 | L122: 38 | M122: 3 | N122: 0 | O122: 1 | P122: 23 | Q122: 27
A123: TOTALE | B123: =SUM(B103:B122) -> 8225 | C123: =SUM(C103:C122) -> 9256 | D123: 282 | E123: 440 | F123: 18203 | G123: -7626 | H123: -9684 | I123: -549 | J123: -2083 | K123: -19942 | L123: 38145

Sheet 2015
A1: torna all'indice
A3: Popolazione residente al 1° Gennaio 2015 per età, sesso e stato civile
A4: Comune: Ciampino
A5: Età | B5: Celibi | C5: Coniugati | D5: Divorziati | E5: Vedovi | F5: Totale Maschi | G5: Nubili | H5: Coniugate | I5: Divorziate | J5: Vedove | K5: Totale Femmine | L5: Maschi+Femmine
A6: 0 | B6: 155 | C6: 0 | D6: 0 | E6: 0 | F6: 155 | G6: 128 | H6: 0 | I6: 0 | J6: 0 | K6: 128 | L6: 283
A7: 1 | B7: 163 | C7: 0 | D7: 0 | E7: 0 | F7: 163 | G7: 144 | H7: 0 | I7: 0 | J7: 0 | K7: 144 | L7: 307
A8: 2 | B8: 184 | C8: 0 | D8: 0 | E8: 0 | F8: 184 | G8: 162 | H8: 0 | I8: 0 | J8: 0 | K8: 162 | L8: 346
A9: 3 | B9: 208 | C9: 0 | D9: 0 | E9: 0 | F9: 208 | G9: 177 | H9: 0 | I9: 0 | J9: 0 | K9: 177 | L9: 385
A10: 4 | B10: 186 | C10: 0 | D10: 0 | E10: 0 | F10: 186 | G10: 185 | H10: 0 | I10: 0 | J10: 0 | K10: 185 | L10: 371
A11: 5 | B11: 201 | C11: 0 | D11: 0 | E11: 0 | F11: 201 | G11: 183 | H11: 0 | I11: 0 | J11: 0 | K11: 183 | L11: 384
A12: 6 | B12: 189 | C12: 0 | D12: 0 | E12: 0 | F12: 189 | G12: 175 | H12: 0 | I12: 0 | J12: 0 | K12: 175 | L12: 364
A13: 7 | B13: 211 | C13: 0 | D13: 0 | E13: 0 | F13: 211 | G13: 212 | H13: 0 | I13: 0 | J13: 0 | K13: 212 | L13: 423
A14: 8 | B14: 186 | C14: 0 | D14: 0 | E14: 0 | F14: 186 | G14: 197 | H14: 0 | I14: 0 | J14: 0 | K14: 197 | L14: 383
A15: 9 | B15: 166 | C15: 0 | D15: 0 | E15: 0 | F15: 166 | G15: 195 | H15: 0 | I15: 0 | J15: 0 | K15: 195 | L15: 361
A16: 10 | B16: 187 | C16: 0 | D16: 0 | E16: 0 | F16: 187 | G16: 196 | H16: 0 | I16: 0 | J16: 0 | K16: 196 | L16: 383
A17: 11 | B17: 175 | C17: 0 | D17: 0 | E17: 0 | F17: 175 | G17: 201 | H17: 0 | I17: 0 | J17: 0 | K17: 201 | L17: 376
A18: 12 | B18: 171 | C18: 0 | D18: 0 | E18: 0 | F18: 171 | G18: 190 | H18: 0 | I18: 0 | J18: 0 | K18: 190 | L18: 361
A19: 13 | B19: 190 | C19: 0 | D19: 0 | E19: 0 | F19: 190 | G19: 170 | H19: 0 | I19: 0 | J19: 0 | K19: 170 | L19: 360
A20: 14 | B20: 193 | C20: 0 | D20: 0 | E20: 0 | F20: 193 | G20: 179 | H20: 0 | I20: 0 | J20: 0 | K20: 179 | L20: 372
A21: 15 | B21: 217 | C21: 0 | D21: 0 | E21: 0 | F21: 217 | G21: 182 | H21: 0 | I21: 0 | J21: 0 | K21: 182 | L21: 399
A22: 16 | B22: 183 | C22: 0 | D22: 0 | E22: 0 | F22: 183 | G22: 188 | H22: 0 | I22: 0 | J22: 0 | K22: 188 | L22: 371
A23: 17 | B23: 183 | C23: 0 | D23: 0 | E23: 0 | F23: 183 | G23: 196 | H23: 0 | I23: 0 | J23: 0 | K23: 196 | L23: 379
A24: 18 | B24: 191 | C24: 0 | D24: 0 | E24: 0 | F24: 191 | G24: 190 | H24: 0 | I24: 0 | J24: 0 | K24: 190 | L24: 381
A25: 19 | B25: 177 | C25: 0 | D25: 0 | E25: 0 | F25: 177 | G25: 169 | H25: 0 | I25: 0 | J25: 0 | K25: 169 | L25: 346
A26: 20 | B26: 170 | C26: 0 | D26: 0 | E26: 0 | F26: 170 | G26: 194 | H26: 1 | I26: 0 | J26: 0 | K26: 195 | L26: 365
A27: 21 | B27: 221 | C27: 0 | D27: 0 | E27: 0 | F27: 221 | G27: 213 | H27: 2 | I27: 0 | J27: 0 | K27: 215 | L27: 436
A28: 22 | B28: 192 | C28: 1 | D28: 0 | E28: 0 | F28: 193 | G28: 195 | H28: 5 | I28: 0 | J28: 0 | K28: 200 | L28: 393
A29: 23 | B29: 207 | C29: 2 | D29: 0 | E29: 0 | F29: 209 | G29: 161 | H29: 6 | I29: 1 | J29: 0 | K29: 168 | L29: 377
A30: 24 | B30: 191 | C30: 4 | D30: 0 | E30: 0 | F30: 195 | G30: 190 | H30: 10 | I30: 0 | J30: 0 | K30: 200 | L30: 395
A31: 25 | B31: 188 | C31: 4 | D31: 0 | E31: 0 | F31: 192 | G31: 171 | H31: 21 | I31: 0 | J31: 0 | K31: 192 | L31: 384
A32: 26 | B32: 202 | C32: 11 | D32: 0 | E32: 0 | F32: 213 | G32: 168 | H32: 32 | I32: 0 | J32: 0 | K32: 200 | L32: 413
A33: 27 | B33: 164 | C33: 9 | D33: 0 | E33: 0 | F33: 173 | G33: 164 | H33: 55 | I33: 0 | J33: 0 | K33: 219 | L33: 392
A34: 28 | B34: 173 | C34: 22 | D34: 0 | E34: 0 | F34: 195 | G34: 155 | H34: 53 | I34: 1 | J34: 0 | K34: 209 | L34: 404
A35: 29 | B35: 190 | C35: 24 | D35: 0 | E35: 0 | F35: 214 | G35: 154 | H35: 52 | I35: 1 | J35: 0 | K35: 207 | L35: 421
A36: 30 | B36: 163 | C36: 42 | D36: 0 | E36: 0 | F36: 205 | G36: 145 | H36: 66 | I36: 2 | J36: 0 | K36: 213 | L36: 418
A37: 31 | B37: 176 | C37: 49 | D37: 1 | E37: 0 | F37: 226 | G37: 121 | H37: 84 | I37: 0 | J37: 0 | K37: 205 | L37: 431
A38: 32 | B38: 157 | C38: 69 | D38: 1 | E38: 0 | F38: 227 | G38: 126 | H38: 106 | I38: 2 | J38: 0 | K38: 234 | L38: 461
A39: 33 | B39: 141 | C39: 86 | D39: 2 | E39: 0 | F39: 229 | G39: 113 | H39: 114 | I39: 5 | J39: 0 | K39: 232 | L39: 461
A40: 34 | B40: 138 | C40: 103 | D40: 1 | E40: 0 | F40: 242 | G40: 112 | H40: 120 | I40: 4 | J40: 1 | K40: 237 | L40: 479
A41: 35 | B41: 126 | C41: 101 | D41: 1 | E41: 0 | F41: 228 | G41: 97 | H41: 130 | I41: 2 | J41: 0 | K41: 229 | L41: 457
A42: 36 | B42: 132 | C42: 106 | D42: 0 | E42: 0 | F42: 238 | G42: 103 | H42: 165 | I42: 5 | J42: 2 | K42: 275 | L42: 513
A43: 37 | B43: 121 | C43: 129 | D43: 2 | E43: 0 | F43: 252 | G43: 108 | H43: 167 | I43: 12 | J43: 4 | K43: 291 | L43: 543
A44: 38 | B44: 111 | C44: 123 | D44: 3 | E44: 0 | F44: 237 | G44: 75 | H44: 171 | I44: 9 | J44: 3 | K44: 258 | L44: 495
A45: 39 | B45: 125 | C45: 157 | D45: 4 | E45: 0 | F45: 286 | G45: 112 | H45: 195 | I45: 8 | J45: 4 | K45: 319 | L45: 605
A46: 40 | B46: 110 | C46: 176 | D46: 2 | E46: 0 | F46: 288 | G46: 95 | H46: 219 | I46: 12 | J46: 3 | K46: 329 | L46: 617
A47: 41 | B47: 125 | C47: 199 | D47: 6 | E47: 0 | F47: 330 | G47: 103 | H47: 249 | I47: 5 | J47: 2 | K47: 359 | L47: 689
A48: 42 | B48: 129 | C48: 175 | D48: 5 | E48: 0 | F48: 309 | G48: 77 | H48: 239 | I48: 11 | J48: 5 | K48: 332 | L48: 641
A49: 43 | B49: 78 | C49: 197 | D49: 2 | E49: 0 | F49: 277 | G49: 80 | H49: 272 | I49: 17 | J49: 2 | K49: 371 | L49: 648
A50: 44 | B50: 98 | C50: 234 | D50: 7 | E50: 0 | F50: 339 | G50: 66 | H50: 226 | I50: 14 | J50: 3 | K50: 309 | L50: 648
A51: 45 | B51: 89 | C51: 235 | D51: 8 | E51: 1 | F51: 333 | G51: 56 | H51: 281 | I51: 25 | J51: 4 | K51: 366 | L51: 699
A52: 46 | B52: 70 | C52: 242 | D52: 10 | E52: 1 | F52: 323 | G52: 56 | H52: 285 | I52: 15 | J52: 4 | K52: 360 | L52: 683
A53: 47 | B53: 57 | C53: 239 | D53: 14 | E53: 1 | F53: 311 | G53: 50 | H53: 260 | I53: 29 | J53: 6 | K53: 345 | L53: 656
A54: 48 | B54: 61 | C54: 263 | D54: 14 | E54: 0 | F54: 338 | G54: 67 | H54: 289 | I54: 27 | J54: 12 | K54: 395 | L54: 733
A55: 49 | B55: 52 | C55: 260 | D55: 13 | E55: 4 | F55: 329 | G55: 46 | H55: 277 | I55: 21 | J55: 10 | K55: 354 | L55: 683
A56: 50 | B56: 56 | C56: 278 | D56: 10 | E56: 3 | F56: 347 | G56: 34 | H56: 331 | I56: 23 | J56: 8 | K56: 396 | L56: 743
A57: 51 | B57: 44 | C57: 244 | D57: 10 | E57: 3 | F57: 301 | G57: 33 | H57: 260 | I57: 20 | J57: 14 | K57: 327 | L57: 628
A58: 52 | B58: 31 | C58: 237 | D58: 20 | E58: 4 | F58: 292 | G58: 49 | H58: 254 | I58: 25 | J58: 12 | K58: 340 | L58: 632
A59: 53 | B59: 26 | C59: 238 | D59: 11 | E59: 2 | F59: 277 | G59: 26 | H59: 238 | I59: 30 | J59: 14 | K59: 308 | L59: 585
A60: 54 | B60: 21 | C60: 239 | D60: 8 | E60: 1 | F60: 269 | G60: 26 | H60: 248 | I60: 15 | J60: 11 | K60: 300 | L60: 569
A61: 55 | B61: 24 | C61: 211 | D61: 17 | E61: 4 | F61: 256 | G61: 35 | H61: 224 | I61: 19 | J61: 15 | K61: 293 | L61: 549
A62: 56 | B62: 21 | C62: 215 | D62: 14 | E62: 2 | F62: 252 | G62: 19 | H62: 233 | I62: 26 | J62: 7 | K62: 285 | L62: 537
A63: 57 | B63: 20 | C63: 210 | D63: 9 | E63: 4 | F63: 243 | G63: 22 | H63: 202 | I63: 15 | J63: 10 | K63: 249 | L63: 492
A64: 58 | B64: 19 | C64: 182 | D64: 6 | E64: 4 | F64: 211 | G64: 17 | H64: 209 | I64: 12 | J64: 23 | K64: 261 | L64: 472
A65: 59 | B65: 19 | C65: 218 | D65: 7 | E65: 4 | F65: 248 | G65: 17 | H65: 206 | I65: 13 | J65: 12 | K65: 248 | L65: 496
A66: 60 | B66: 19 | C66: 204 | D66: 12 | E66: 4 | F66: 239 | G66: 12 | H66: 191 | I66: 14 | J66: 26 | K66: 243 | L66: 482
A67: 61 | B67: 14 | C67: 196 | D67: 6 | E67: 0 | F67: 216 | G67: 14 | H67: 173 | I67: 11 | J67: 20 | K67: 218 | L67: 434
A68: 62 | B68: 10 | C68: 177 | D68: 9 | E68: 3 | F68: 199 | G68: 12 | H68: 182 | I68: 16 | J68: 42 | K68: 252 | L68: 451
A69: 63 | B69: 9 | C69: 173 | D69: 5 | E69: 4 | F69: 191 | G69: 10 | H69: 180 | I69: 12 | J69: 23 | K69: 225 | L69: 416
A70: 64 | B70: 13 | C70: 176 | D70: 4 | E70: 8 | F70: 201 | G70: 7 | H70: 168 | I70: 8 | J70: 30 | K70: 213 | L70: 414
A71: 65 | B71: 14 | C71: 172 | D71: 5 | E71: 7 | F71: 198 | G71: 13 | H71: 194 | I71: 7 | J71: 39 | K71: 253 | L71: 451
A72: 66 | B72: 14 | C72: 218 | D72: 5 | E72: 4 | F72: 241 | G72: 18 | H72: 184 | I72: 10 | J72: 34 | K72: 246 | L72: 487
A73: 67 | B73: 7 | C73: 176 | D73: 4 | E73: 7 | F73: 194 | G73: 11 | H73: 158 | I73: 9 | J73: 48 | K73: 226 | L73: 420
A74: 68 | B74: 5 | C74: 184 | D74: 5 | E74: 14 | F74: 208 | G74: 9 | H74: 178 | I74: 7 | J74: 40 | K74: 234 | L74: 442
A75: 69 | B75: 4 | C75: 149 | D75: 2 | E75: 10 | F75: 165 | G75: 9 | H75: 131 | I75: 6 | J75: 45 | K75: 191 | L75: 356
A76: 70 | B76: 5 | C76: 147 | D76: 3 | E76: 14 | F76: 169 | G76: 13 | H76: 121 | I76: 6 | J76: 41 | K76: 181 | L76: 350
A77: 71 | B77: 2 | C77: 148 | D77: 4 | E77: 13 | F77: 167 | G77: 8 | H77: 133 | I77: 6 | J77: 50 | K77: 197 | L77: 364
A78: 72 | B78: 5 | C78: 136 | D78: 5 | E78: 11 | F78: 157 | G78: 8 | H78: 106 | I78: 6 | J78: 59 | K78: 179 | L78: 336
A79: 73 | B79: 8 | C79: 145 | D79: 0 | E79: 16 | F79: 169 | G79: 14 | H79: 128 | I79: 4 | J79: 49 | K79: 195 | L79: 364
A80: 74 | B80: 3 | C80: 152 | D80: 4 | E80: 14 | F80: 173 | G80: 14 | H80: 134 | I80: 4 | J80: 79 | K80: 231 | L80: 404
A81: 75 | B81: 2 | C81: 130 | D81: 1 | E81: 9 | F81: 142 | G81: 15 | H81: 133 | I81: 5 | J81: 76 | K81: 229 | L81: 371
A82: 76 | B82: 2 | C82: 130 | D82: 1 | E82: 20 | F82: 153 | G82: 9 | H82: 104 | I82: 6 | J82: 75 | K82: 194 | L82: 347
A83: 77 | B83: 4 | C83: 140 | D83: 1 | E83: 21 | F83: 166 | G83: 8 | H83: 85 | I83: 3 | J83: 76 | K83: 172 | L83: 338
A84: 78 | B84: 3 | C84: 115 | D84: 1 | E84: 15 | F84: 134 | G84: 13 | H84: 69 | I84: 2 | J84: 92 | K84: 176 | L84: 310
A85: 79 | B85: 6 | C85: 117 | D85: 2 | E85: 14 | F85: 139 | G85: 9 | H85: 69 | I85: 5 | J85: 86 | K85: 169 | L85: 308
A86: 80 | B86: 2 | C86: 95 | D86: 1 | E86: 21 | F86: 119 | G86: 7 | H86: 65 | I86: 3 | J86: 82 | K86: 157 | L86: 276
A87: 81 | B87: 3 | C87: 75 | D87: 1 | E87: 12 | F87: 91 | G87: 6 | H87: 41 | I87: 0 | J87: 73 | K87: 120 | L87: 211
A88: 82 | B88: 1 | C88: 61 | D88: 1 | E88: 11 | F88: 74 | G88: 7 | H88: 45 | I88: 0 | J88: 76 | K88: 128 | L88: 202
A89: 83 | B89: 3 | C89: 60 | D89: 1 | E89: 20 | F89: 84 | G89: 5 | H89: 40 | I89: 0 | J89: 92 | K89: 137 | L89: 221
A90: 84 | B90: 2 | C90: 55 | D90: 0 | E90: 11 | F90: 68 | G90: 3 | H90: 24 | I90: 0 | J90: 94 | K90: 121 | L90: 189
A91: 85 | B91: 1 | C91: 48 | D91: 1 | E91: 19 | F91: 69 | G91: 6 | H91: 21 | I91: 0 | J91: 63 | K91: 90 | L91: 159
A92: 86 | B92: 1 | C92: 35 | D92: 0 | E92: 16 | F92: 52 | G92: 6 | H92: 12 | I92: 1 | J92: 70 | K92: 89 | L92: 141
A93: 87 | B93: 0 | C93: 25 | D93: 1 | E93: 16 | F93: 42 | G93: 3 | H93: 13 | I93: 1 | J93: 67 | K93: 84 | L93: 126
A94: 88 | B94: 0 | C94: 33 | D94: 0 | E94: 7 | F94: 40 | G94: 3 | H94: 10 | I94: 1 | J94: 55 | K94: 69 | L94: 109
A95: 89 | B95: 1 | C95: 15 | D95: 0 | E95: 6 | F95: 22 | G95: 5 | H95: 10 | I95: 0 | J95: 54 | K95: 69 | L95: 91
A96: 90 | B96: 0 | C96: 11 | D96: 1 | E96: 9 | F96: 21 | G96: 1 | H96: 3 | I96: 0 | J96: 37 | K96: 41 | L96: 62
A97: 91 | B97: 0 | C97: 6 | D97: 0 | E97: 12 | F97: 18 | G97: 4 | H97: 4 | I97: 0 | J97: 33 | K97: 41 | L97: 59
A98: 92 | B98: 0 | C98: 8 | D98: 0 | E98: 4 | F98: 12 | G98: 1 | H98: 3 | I98: 0 | J98: 23 | K98: 27 | L98: 39
A99: 93 | B99: 0 | C99: 3 | D99: 0 | E99: 9 | F99: 12 | G99: 1 | H99: 0 | I99: 0 | J99: 20 | K99: 21 | L99: 33
A100: 94 | B100: 0 | C100: 4 | D100: 0 | E100: 3 | F100: 7 | G100: 1 | H100: 0 | I100: 0 | J100: 16 | K100: 17 | L100: 24
A101: 95 | B101: 0 | C101: 2 | D101: 0 | E101: 2 | F101: 4 | G101: 1 | H101: 0 | I101: 0 | J101: 10 | K101: 11 | L101: 15
A102: 96 | B102: 0 | C102: 0 | D102: 0 | E102: 2 | F102: 2 | G102: 0 | H102: 1 | I102: 0 | J102: 6 | K102: 7 | L102: 9
A103: 97 | B103: 0 | C103: 0 | D103: 0 | E103: 2 | F103: 2 | G103: 0 | H103: 0 | I103: 1 | J103: 4 | K103: 5 | L103: 7
A104: 98 | B104: 0 | C104: 1 | D104: 0 | E104: 2 | F104: 3 | G104: 3 | H104: 0 | I104: 0 | J104: 5 | K104: 8 | L104: 11
A105: 99 | B105: 0 | C105: 0 | D105: 0 | E105: 1 | F105: 1 | G105: 0 | H105: 0 | I105: 0 | J105: 0 | K105: 0 | L105: 1
A106: 100 e più | B106: 0 | C106: 0 | D106: 0 | E106: 2 | F106: 2 | G106: 0 | H106: 0 | I106: 0 | J106: 7 | K106: 7 | L106: 9
A107: TOTALE | B107: 8317 | C107: 9256 | D107: 294 | E107: 433 | F107: 18300 | G107: 7759 | H107: 9670 | I107: 580 | J107: 2108 | K107: 20117 | L107: 38417

Sheet 2015 fasce
A1: torna all'indice
A2: Popolazione residente al 1° Gennaio 2015 per età, sesso e stato civile
A3: Comune: Ciampino
A4: Eta' | B4: Celibi | C4: Coniugati | D4: Divorziati | E4: Vedovi | F4: Totale Maschi | G4: Nubili | H4: Coniugate | I4: Divorziate | J4: Vedove | K4: Totale Femmine | L4: Maschi
L5: +
L6: Femmine
A7: da 0 a 5 | B7: 1097 | C7: 0 | D7: 0 | E7: 0 | F7: 1097 | G7: 979 | H7: 0 | I7: 0 | J7: 0 | K7: 979 | L7: 2076
A8: da 6 a 10 | B8: 939 | C8: 0 | D8: 0 | E8: 0 | F8: 939 | G8: 975 | H8: 0 | I8: 0 | J8: 0 | K8: 975 | L8: 1914
A9: da 11 a 15 | B9: 946 | C9: 0 | D9: 0 | E9: 0 | F9: 946 | G9: 922 | H9: 0 | I9: 0 | J9: 0 | K9: 922 | L9: 1868
A10: da 16 a 20 | B10: 904 | C10: 0 | D10: 0 | E10: 0 | F10: 904 | G10: 937 | H10: 1 | I10: 0 | J10: 0 | K10: 938 | L10: 1842
A11: da 21 a 25 | B11: 999 | C11: 11 | D11: 0 | E11: 0 | F11: 1010 | G11: 930 | H11: 44 | I11: 1 | J11: 0 | K11: 975 | L11: 1985
A12: da 26 a 30 | B12: 892 | C12: 108 | D12: 0 | E12: 0 | F12: 1000 | G12: 786 | H12: 258 | I12: 4 | J12: 0 | K12: 1048 | L12: 2048
A13: da 31 a 35 | B13: 738 | C13: 408 | D13: 6 | E13: 0 | F13: 1152 | G13: 569 | H13: 554 | I13: 13 | J13: 1 | K13: 1137 | L13: 2289
A14: da 36 a 40 | B14: 599 | C14: 691 | D14: 11 | E14: 0 | F14: 1301 | G14: 493 | H14: 917 | I14: 46 | J14: 16 | K14: 1472 | L14: 2773
A15: da 41 a 45 | B15: 519 | C15: 1040 | D15: 28 | E15: 1 | F15: 1588 | G15: 382 | H15: 1267 | I15: 72 | J15: 16 | K15: 1737 | L15: 3325
A16: da 46 a 50 | B16: 296 | C16: 1282 | D16: 61 | E16: 9 | F16: 1648 | G16: 253 | H16: 1442 | I16: 115 | J16: 40 | K16: 1850 | L16: 3498
A17: da 51 a 55 | B17: 146 | C17: 1169 | D17: 66 | E17: 14 | F17: 1395 | G17: 169 | H17: 1224 | I17: 109 | J17: 66 | K17: 1568 | L17: 2963
A18: da 56 a 60 | B18: 98 | C18: 1029 | D18: 48 | E18: 18 | F18: 1193 | G18: 87 | H18: 1041 | I18: 80 | J18: 78 | K18: 1286 | L18: 2479
A19: da 61 a 65 | B19: 60 | C19: 894 | D19: 29 | E19: 22 | F19: 1005 | G19: 56 | H19: 897 | I19: 54 | J19: 154 | K19: 1161 | L19: 2166
A20: da 66 a 70 | B20: 35 | C20: 874 | D20: 19 | E20: 49 | F20: 977 | G20: 60 | H20: 772 | I20: 38 | J20: 208 | K20: 1078 | L20: 2055
A21: da 71 a 75 | B21: 20 | C21: 711 | D21: 14 | E21: 63 | F21: 808 | G21: 59 | H21: 634 | I21: 25 | J21: 313 | K21: 1031 | L21: 1839
A22: da 76 a 80 | B22: 17 | C22: 597 | D22: 6 | E22: 91 | F22: 711 | G22: 46 | H22: 392 | I22: 19 | J22: 411 | K22: 868 | L22: 1579
A23: da 81 a 85 | B23: 10 | C23: 299 | D23: 4 | E23: 73 | F23: 386 | G23: 27 | H23: 171 | I23: 0 | J23: 398 | K23: 596 | L23: 982
A24: da 86 a 90 | B24: 2 | C24: 119 | D24: 2 | E24: 54 | F24: 177 | G24: 18 | H24: 48 | I24: 3 | J24: 283 | K24: 352 | L24: 529
A25: da 91 95 | B25: 0 | C25: 23 | D25: 0 | E25: 30 | F25: 53 | G25: 8 | H25: 7 | I25: 0 | J25: 102 | K25: 117 | L25: 170
A26: oltre 95 | B26: 0 | C26: 1 | D26: 0 | E26: 9 | F26: 10 | G26: 3 | H26: 1 | I26: 1 | J26: 22 | K26: 27 | L26: 37
A27: TOTALE | B27: =SUM(B7:B26) -> 8317 | C27: =SUM(C7:C26) -> 9256 | D27: 294 | E27: 433 | F27: 18300 | G27: 7759 | H27: 9670 | I27: 580 | J27: 2108 | K27: 20117 | L27: 38417
A100: Eta' | B100: Celibi | C100: Coniugati | D100: Divorziati | E100: Vedovi | F100: Totale Maschi | G100: Nubili | H100: Coniugate | I100: Divorziate | J100: Vedove | K100: Totale Femmine | L100: Maschi
L101: +
L102: Femmine
A103: da 0 a 5 | B103: 1097 | C103: 0 | D103: 0 | E103: 0 | F103: 1097 | G103: -979 | H103: 0 | I103: 0 | J103: 0 | K103: -979 | L103: 2076 | M103: =G103-(G103*2) -> 979 | N103: =H103-(H103*2) -> 0 | O103: 0 | P103: 0 | Q103: 979
A104: da 6 a 10 | B104: 939 | C104: 0 | D104: 0 | E104: 0 | F104: 939 | G104: -975 | H104: 0 | I104: 0 | J104: 0 | K104: -975 | L104: 1914 | M104: =G104-(G104*2) -> 975 | N104: =H104-(H104*2) -> 0 | O104: =I104-(I104*2) -> 0 | P104: =J104-(J104*2) -> 0 | Q104: =K104-(K104*2) -> 975
A105: da 11 a 15 | B105: 946 | C105: 0 | D105: 0 | E105: 0 | F105: 946 | G105: -922 | H105: 0 | I105: 0 | J105: 0 | K105: -922 | L105: 1868 | M105: 922 | N105: 0 | O105: 0 | P105: 0 | Q105: 922
A106: da 16 a 20 | B106: 904 | C106: 0 | D106: 0 | E106: 0 | F106: 904 | G106: -937 | H106: -1 | I106: 0 | J106: 0 | K106: -938 | L106: 1842 | M106: 937 | N106: 1 | O106: 0 | P106: 0 | Q106: 938
A107: da 21 a 25 | B107: 999 | C107: 11 | D107: 0 | E107: 0 | F107: 1010 | G107: -930 | H107: -44 | I107: -1 | J107: 0 | K107: -975 | L107: 1985 | M107: 930 | N107: 44 | O107: 1 | P107: 0 | Q107: 975
A108: da 26 a 30 | B108: 892 | C108: 108 | D108: 0 | E108: 0 | F108: 1000 | G108: -786 | H108: -258 | I108: -4 | J108: 0 | K108: -1048 | L108: 2048 | M108: 786 | N108: 258 | O108: 4 | P108: 0 | Q108: 1048
A109: da 31 a 35 | B109: 738 | C109: 408 | D109: 6 | E109: 0 | F109: 1152 | G109: -569 | H109: -554 | I109: -13 | J109: -1 | K109: -1137 | L109: 2289 | M109: 569 | N109: 554 | O109: 13 | P109: 1 | Q109: 1137
A110: da 36 a 40 | B110: 599 | C110: 691 | D110: 11 | E110: 0 | F110: 1301 | G110: -493 | H110: -917 | I110: -46 | J110: -16 | K110: -1472 | L110: 2773 | M110: 493 | N110: 917 | O110: 46 | P110: 16 | Q110: 1472
A111: da 41 a 45 | B111: 519 | C111: 1040 | D111: 28 | E111: 1 | F111: 1588 | G111: -382 | H111: -1267 | I111: -72 | J111: -16 | K111: -1737 | L111: 3325 | M111: 382 | N111: 1267 | O111: 72 | P111: 16 | Q111: 1737
A112: da 46 a 50 | B112: 296 | C112: 1282 | D112: 61 | E112: 9 | F112: 1648 | G112: -253 | H112: -1442 | I112: -115 | J112: -40 | K112: -1850 | L112: 3498 | M112: 253 | N112: 1442 | O112: 115 | P112: 40 | Q112: 1850
A113: da 51 a 55 | B113: 146 | C113: 1169 | D113: 66 | E113: 14 | F113: 1395 | G113: -169 | H113: -1224 | I113: -109 | J113: -66 | K113: -1568 | L113: 2963 | M113: 169 | N113: 1224 | O113: 109 | P113: 66 | Q113: 1568
A114: da 56 a 60 | B114: 98 | C114: 1029 | D114: 48 | E114: 18 | F114: 1193 | G114: -87 | H114: -1041 | I114: -80 | J114: -78 | K114: -1286 | L114: 2479 | M114: 87 | N114: 1041 | O114: 80 | P114: 78 | Q114: 1286
A115: da 61 a 65 | B115: 60 | C115: 894 | D115: 29 | E115: 22 | F115: 1005 | G115: -56 | H115: -897 | I115: -54 | J115: -154 | K115: -1161 | L115: 2166 | M115: 56 | N115: 897 | O115: 54 | P115: 154 | Q115: 1161
A116: da 66 a 70 | B116: 35 | C116: 874 | D116: 19 | E116: 49 | F116: 977 | G116: -60 | H116: -772 | I116: -38 | J116: -208 | K116: -1078 | L116: 2055 | M116: 60 | N116: 772 | O116: 38 | P116: 208 | Q116: 1078
A117: da 71 a 75 | B117: 20 | C117: 711 | D117: 14 | E117: 63 | F117: 808 | G117: -59 | H117: -634 | I117: -25 | J117: -313 | K117: -1031 | L117: 1839 | M117: 59 | N117: 634 | O117: 25 | P117: 313 | Q117: 1031
A118: da 76 a 80 | B118: 17 | C118: 597 | D118: 6 | E118: 91 | F118: 711 | G118: -46 | H118: -392 | I118: -19 | J118: -411 | K118: -868 | L118: 1579 | M118: 46 | N118: 392 | O118: 19 | P118: 411 | Q118: 868
A119: da 81 a 85 | B119: 10 | C119: 299 | D119: 4 | E119: 73 | F119: 386 | G119: -27 | H119: -171 | I119: 0 | J119: -398 | K119: -596 | L119: 982 | M119: 27 | N119: 171 | O119: 0 | P119: 398 | Q119: 596
A120: da 86 a 90 | B120: 2 | C120: 119 | D120: 2 | E120: 54 | F120: 177 | G120: -18 | H120: -48 | I120: -3 | J120: -283 | K120: -352 | L120: 529 | M120: 18 | N120: 48 | O120: 3 | P120: 283 | Q120: 352
A121: da 91 95 | B121: 0 | C121: 23 | D121: 0 | E121: 30 | F121: 53 | G121: -8 | H121: -7 | I121: 0 | J121: -102 | K121: -117 | L121: 170 | M121: 8 | N121: 7 | O121: 0 | P121: 102 | Q121: 117
A122: oltre 95 | B122: 0 | C122: 1 | D122: 0 | E122: 9 | F122: 10 | G122: -3 | H122: -1 | I122: -1 | J122: -22 | K122: -27 | L122: 37 | M122: 3 | N122: 1 | O122: 1 | P122: 22 | Q122: 27
A123: TOTALE | B123: =SUM(B103:B122) -> 8317 | C123: =SUM(C103:C122) -> 9256 | D123: 294 | E123: 433 | F123: 18300 | G123: -7759 | H123: -9670 | I123: -580 | J123: -2108 | K123: -20117 | L123: 38417

Sheet 2016
A1: torna all'indice
A3: Popolazione residente al 1° Gennaio 2016 per età, sesso e stato civile
A4: Comune: Ciampino
A5: Eta' | B5: Celibi | C5: Coniugati | D5: Divorziati | E5: Vedovi | F5: Totale Maschi | G5: Nubili | H5: Coniugate | I5: Divorziate | J5: Vedove | K5: Totale Femmine | L5: Totale maschi + femmine
A6: 0 | B6: 180 | C6: 0 | D6: 0 | E6: 0 | F6: 180 | G6: 142 | H6: 0 | I6: 0 | J6: 0 | K6: 142 | L6: 322
A7: 1 | B7: 162 | C7: 0 | D7: 0 | E7: 0 | F7: 162 | G7: 141 | H7: 0 | I7: 0 | J7: 0 | K7: 141 | L7: 303
A8: 2 | B8: 167 | C8: 0 | D8: 0 | E8: 0 | F8: 167 | G8: 144 | H8: 0 | I8: 0 | J8: 0 | K8: 144 | L8: 311
A9: 3 | B9: 188 | C9: 0 | D9: 0 | E9: 0 | F9: 188 | G9: 168 | H9: 0 | I9: 0 | J9: 0 | K9: 168 | L9: 356
A10: 4 | B10: 209 | C10: 0 | D10: 0 | E10: 0 | F10: 209 | G10: 172 | H10: 0 | I10: 0 | J10: 0 | K10: 172 | L10: 381
A11: 5 | B11: 185 | C11: 0 | D11: 0 | E11: 0 | F11: 185 | G11: 180 | H11: 0 | I11: 0 | J11: 0 | K11: 180 | L11: 365
B12: 1091 | C12: 0 | D12: 0 | E12: 0 | F12: 1091 | G12: 947 | H12: 0 | I12: 0 | J12: 0 | K12: 947 | L12: 2038
A13: 6 | B13: 202 | C13: 0 | D13: 0 | E13: 0 | F13: 202 | G13: 188 | H13: 0 | I13: 0 | J13: 0 | K13: 188 | L13: 390
A14: 7 | B14: 189 | C14: 0 | D14: 0 | E14: 0 | F14: 189 | G14: 180 | H14: 0 | I14: 0 | J14: 0 | K14: 180 | L14: 369
A15: 8 | B15: 208 | C15: 0 | D15: 0 | E15: 0 | F15: 208 | G15: 207 | H15: 0 | I15: 0 | J15: 0 | K15: 207 | L15: 415
A16: 9 | B16: 189 | C16: 0 | D16: 0 | E16: 0 | F16: 189 | G16: 195 | H16: 0 | I16: 0 | J16: 0 | K16: 195 | L16: 384
A17: 10 | B17: 165 | C17: 0 | D17: 0 | E17: 0 | F17: 165 | G17: 192 | H17: 0 | I17: 0 | J17: 0 | K17: 192 | L17: 357
B18: 953 | C18: 0 | D18: 0 | E18: 0 | F18: 953 | G18: 962 | H18: 0 | I18: 0 | J18: 0 | K18: 962 | L18: 1915
A19: 11 | B19: 186 | C19: 0 | D19: 0 | E19: 0 | F19: 186 | G19: 203 | H19: 0 | I19: 0 | J19: 0 | K19: 203 | L19: 389
A20: 12 | B20: 174 | C20: 0 | D20: 0 | E20: 0 | F20: 174 | G20: 203 | H20: 0 | I20: 0 | J20: 0 | K20: 203 | L20: 377
A21: 13 | B21: 168 | C21: 0 | D21: 0 | E21: 0 | F21: 168 | G21: 189 | H21: 0 | I21: 0 | J21: 0 | K21: 189 | L21: 357
A22: 14 | B22: 189 | C22: 0 | D22: 0 | E22: 0 | F22: 189 | G22: 168 | H22: 0 | I22: 0 | J22: 0 | K22: 168 | L22: 357
A23: 15 | B23: 192 | C23: 0 | D23: 0 | E23: 0 | F23: 192 | G23: 176 | H23: 0 | I23: 0 | J23: 0 | K23: 176 | L23: 368
B24: 909 | C24: 0 | D24: 0 | E24: 0 | F24: 909 | G24: 939 | H24: 0 | I24: 0 | J24: 0 | K24: 939 | L24: 1848
A25: 16 | B25: 218 | C25: 0 | D25: 0 | E25: 0 | F25: 218 | G25: 178 | H25: 0 | I25: 0 | J25: 0 | K25: 178 | L25: 396
A26: 17 | B26: 182 | C26: 0 | D26: 0 | E26: 0 | F26: 182 | G26: 183 | H26: 0 | I26: 0 | J26: 0 | K26: 183 | L26: 365
A27: 18 | B27: 186 | C27: 0 | D27: 0 | E27: 0 | F27: 186 | G27: 197 | H27: 0 | I27: 0 | J27: 0 | K27: 197 | L27: 383
A28: 19 | B28: 194 | C28: 0 | D28: 0 | E28: 0 | F28: 194 | G28: 191 | H28: 1 | I28: 0 | J28: 0 | K28: 192 | L28: 386
A29: 20 | B29: 177 | C29: 0 | D29: 0 | E29: 0 | F29: 177 | G29: 171 | H29: 0 | I29: 0 | J29: 0 | K29: 171 | L29: 348
B30: 957 | C30: 0 | D30: 0 | E30: 0 | F30: 957 | G30: 920 | H30: 1 | I30: 0 | J30: 0 | K30: 921 | L30: 1878
A31: 21 | B31: 175 | C31: 0 | D31: 0 | E31: 0 | F31: 175 | G31: 191 | H31: 1 | I31: 0 | J31: 0 | K31: 192 | L31: 367
A32: 22 | B32: 215 | C32: 1 | D32: 0 | E32: 0 | F32: 216 | G32: 217 | H32: 3 | I32: 0 | J32: 0 | K32: 220 | L32: 436
A33: 23 | B33: 195 | C33: 1 | D33: 0 | E33: 0 | F33: 196 | G33: 195 | H33: 9 | I33: 0 | J33: 0 | K33: 204 | L33: 400
A34: 24 | B34: 208 | C34: 3 | D34: 0 | E34: 0 | F34: 211 | G34: 158 | H34: 6 | I34: 1 | J34: 0 | K34: 165 | L34: 376
A35: 25 | B35: 188 | C35: 4 | D35: 0 | E35: 0 | F35: 192 | G35: 182 | H35: 14 | I35: 0 | J35: 0 | K35: 196 | L35: 388
B36: 981 | C36: 9 | D36: 0 | E36: 0 | F36: 990 | G36: 943 | H36: 33 | I36: 1 | J36: 0 | K36: 977 | L36: 1967
A37: 26 | B37: 186 | C37: 3 | D37: 0 | E37: 0 | F37: 189 | G37: 168 | H37: 31 | I37: 0 | J37: 0 | K37: 199 | L37: 388
A38: 27 | B38: 201 | C38: 12 | D38: 0 | E38: 0 | F38: 213 | G38: 157 | H38: 35 | I38: 1 | J38: 0 | K38: 193 | L38: 406
A39: 28 | B39: 158 | C39: 11 | D39: 0 | E39: 0 | F39: 169 | G39: 159 | H39: 60 | I39: 2 | J39: 0 | K39: 221 | L39: 390
A40: 29 | B40: 166 | C40: 28 | D40: 0 | E40: 0 | F40: 194 | G40: 148 | H40: 60 | I40: 1 | J40: 0 | K40: 209 | L40: 403
A41: 30 | B41: 175 | C41: 32 | D41: 0 | E41: 0 | F41: 207 | G41: 138 | H41: 67 | I41: 2 | J41: 0 | K41: 207 | L41: 414
B42: 886 | C42: 86 | D42: 0 | E42: 0 | F42: 972 | G42: 770 | H42: 253 | I42: 6 | J42: 0 | K42: 1029 | L42: 2001
A43: 31 | B43: 158 | C43: 45 | D43: 2 | E43: 0 | F43: 205 | G43: 135 | H43: 78 | I43: 2 | J43: 0 | K43: 215 | L43: 420
A44: 32 | B44: 158 | C44: 67 | D44: 1 | E44: 0 | F44: 226 | G44: 121 | H44: 92 | I44: 1 | J44: 0 | K44: 214 | L44: 440
A45: 33 | B45: 143 | C45: 78 | D45: 0 | E45: 0 | F45: 221 | G45: 121 | H45: 119 | I45: 2 | J45: 0 | K45: 242 | L45: 463
A46: 34 | B46: 134 | C46: 93 | D46: 2 | E46: 0 | F46: 229 | G46: 107 | H46: 121 | I46: 2 | J46: 0 | K46: 230 | L46: 459
A47: 35 | B47: 129 | C47: 116 | D47: 1 | E47: 0 | F47: 246 | G47: 108 | H47: 129 | I47: 3 | J47: 1 | K47: 241 | L47: 487
B48: 722 | C48: 399 | D48: 6 | E48: 0 | F48: 1127 | G48: 592 | H48: 539 | I48: 10 | J48: 1 | K48: 1142 | L48: 2269
A49: 36 | B49: 121 | C49: 106 | D49: 1 | E49: 0 | F49: 228 | G49: 95 | H49: 129 | I49: 2 | J49: 0 | K49: 226 | L49: 454
A50: 37 | B50: 129 | C50: 112 | D50: 2 | E50: 0 | F50: 243 | G50: 101 | H50: 171 | I50: 3 | J50: 2 | K50: 277 | L50: 520
A51: 38 | B51: 120 | C51: 134 | D51: 2 | E51: 0 | F51: 256 | G51: 106 | H51: 170 | I51: 14 | J51: 5 | K51: 295 | L51: 551
A52: 39 | B52: 100 | C52: 129 | D52: 2 | E52: 0 | F52: 231 | G52: 75 | H52: 171 | I52: 12 | J52: 4 | K52: 262 | L52: 493
A53: 40 | B53: 120 | C53: 158 | D53: 6 | E53: 1 | F53: 285 | G53: 112 | H53: 205 | I53: 10 | J53: 4 | K53: 331 | L53: 616
B54: 590 | C54: 639 | D54: 13 | E54: 1 | F54: 1243 | G54: 489 | H54: 846 | I54: 41 | J54: 15 | K54: 1391 | L54: 2634
A55: 41 | B55: 113 | C55: 175 | D55: 3 | E55: 0 | F55: 291 | G55: 93 | H55: 222 | I55: 13 | J55: 3 | K55: 331 | L55: 622
A56: 42 | B56: 116 | C56: 198 | D56: 10 | E56: 0 | F56: 324 | G56: 103 | H56: 248 | I56: 9 | J56: 2 | K56: 362 | L56: 686
A57: 43 | B57: 124 | C57: 176 | D57: 9 | E57: 0 | F57: 309 | G57: 75 | H57: 235 | I57: 15 | J57: 6 | K57: 331 | L57: 640
A58: 44 | B58: 79 | C58: 194 | D58: 3 | E58: 1 | F58: 277 | G58: 76 | H58: 277 | I58: 16 | J58: 2 | K58: 371 | L58: 648
A59: 45 | B59: 88 | C59: 237 | D59: 8 | E59: 0 | F59: 333 | G59: 58 | H59: 223 | I59: 16 | J59: 2 | K59: 299 | L59: 632
B60: 520 | C60: 980 | D60: 33 | E60: 1 | F60: 1534 | G60: 405 | H60: 1205 | I60: 69 | J60: 15 | K60: 1694 | L60: 3228
A61: 46 | B61: 88 | C61: 234 | D61: 8 | E61: 1 | F61: 331 | G61: 48 | H61: 283 | I61: 30 | J61: 6 | K61: 367 | L61: 698
A62: 47 | B62: 68 | C62: 235 | D62: 12 | E62: 2 | F62: 317 | G62: 56 | H62: 289 | I62: 15 | J62: 5 | K62: 365 | L62: 682
A63: 48 | B63: 57 | C63: 241 | D63: 14 | E63: 2 | F63: 314 | G63: 50 | H63: 259 | I63: 32 | J63: 7 | K63: 348 | L63: 662
A64: 49 | B64: 58 | C64: 263 | D64: 15 | E64: 0 | F64: 336 | G64: 64 | H64: 285 | I64: 28 | J64: 10 | K64: 387 | L64: 723
A65: 50 | B65: 53 | C65: 249 | D65: 14 | E65: 4 | F65: 320 | G65: 42 | H65: 277 | I65: 22 | J65: 10 | K65: 351 | L65: 671
B66: 324 | C66: 1222 | D66: 63 | E66: 9 | F66: 1618 | G66: 260 | H66: 1393 | I66: 127 | J66: 38 | K66: 1818 | L66: 3436
A67: 51 | B67: 54 | C67: 274 | D67: 12 | E67: 4 | F67: 344 | G67: 35 | H67: 336 | I67: 23 | J67: 9 | K67: 403 | L67: 747
A68: 52 | B68: 42 | C68: 246 | D68: 11 | E68: 5 | F68: 304 | G68: 34 | H68: 260 | I68: 22 | J68: 14 | K68: 330 | L68: 634
A69: 53 | B69: 30 | C69: 233 | D69: 18 | E69: 4 | F69: 285 | G69: 51 | H69: 252 | I69: 28 | J69: 12 | K69: 343 | L69: 628
A70: 54 | B70: 26 | C70: 238 | D70: 11 | E70: 2 | F70: 277 | G70: 26 | H70: 239 | I70: 29 | J70: 16 | K70: 310 | L70: 587
A71: 55 | B71: 21 | C71: 240 | D71: 8 | E71: 1 | F71: 270 | G71: 26 | H71: 250 | I71: 16 | J71: 10 | K71: 302 | L71: 572
B72: 173 | C72: 1231 | D72: 60 | E72: 16 | F72: 1480 | G72: 172 | H72: 1337 | I72: 118 | J72: 61 | K72: 1688 | L72: 3168
A73: 56 | B73: 23 | C73: 210 | D73: 19 | E73: 4 | F73: 256 | G73: 35 | H73: 219 | I73: 22 | J73: 16 | K73: 292 | L73: 548
A74: 57 | B74: 21 | C74: 210 | D74: 15 | E74: 3 | F74: 249 | G74: 20 | H74: 232 | I74: 28 | J74: 8 | K74: 288 | L74: 537
A75: 58 | B75: 20 | C75: 209 | D75: 9 | E75: 6 | F75: 244 | G75: 23 | H75: 199 | I75: 17 | J75: 11 | K75: 250 | L75: 494
A76: 59 | B76: 20 | C76: 183 | D76: 6 | E76: 4 | F76: 213 | G76: 19 | H76: 207 | I76: 13 | J76: 23 | K76: 262 | L76: 475
A77: 60 | B77: 18 | C77: 215 | D77: 7 | E77: 4 | F77: 244 | G77: 15 | H77: 205 | I77: 14 | J77: 13 | K77: 247 | L77: 491
B78: 102 | C78: 1027 | D78: 56 | E78: 21 | F78: 1206 | G78: 112 | H78: 1062 | I78: 94 | J78: 71 | K78: 1339 | L78: 2545
A79: 61 | B79: 18 | C79: 197 | D79: 15 | E79: 4 | F79: 234 | G79: 12 | H79: 183 | I79: 15 | J79: 31 | K79: 241 | L79: 475
A80: 62 | B80: 11 | C80: 198 | D80: 5 | E80: 1 | F80: 215 | G80: 14 | H80: 172 | I80: 11 | J80: 21 | K80: 218 | L80: 433
A81: 63 | B81: 11 | C81: 170 | D81: 9 | E81: 3 | F81: 193 | G81: 12 | H81: 184 | I81: 15 | J81: 41 | K81: 252 | L81: 445
A82: 64 | B82: 9 | C82: 169 | D82: 5 | E82: 5 | F82: 188 | G82: 11 | H82: 175 | I82: 12 | J82: 23 | K82: 221 | L82: 409
A83: 65 | B83: 12 | C83: 176 | D83: 4 | E83: 8 | F83: 200 | G83: 7 | H83: 163 | I83: 9 | J83: 35 | K83: 214 | L83: 414
B84: 61 | C84: 910 | D84: 38 | E84: 21 | F84: 1030 | G84: 56 | H84: 877 | I84: 62 | J84: 151 | K84: 1146 | L84: 2176
A85: 66 | B85: 14 | C85: 167 | D85: 4 | E85: 7 | F85: 192 | G85: 12 | H85: 184 | I85: 7 | J85: 46 | K85: 249 | L85: 441
A86: 67 | B86: 13 | C86: 212 | D86: 5 | E86: 6 | F86: 236 | G86: 17 | H86: 181 | I86: 10 | J86: 35 | K86: 243 | L86: 479
A87: 68 | B87: 7 | C87: 171 | D87: 3 | E87: 10 | F87: 191 | G87: 12 | H87: 152 | I87: 8 | J87: 52 | K87: 224 | L87: 415
A88: 69 | B88: 4 | C88: 176 | D88: 5 | E88: 16 | F88: 201 | G88: 9 | H88: 173 | I88: 7 | J88: 43 | K88: 232 | L88: 433
A89: 70 | B89: 4 | C89: 144 | D89: 3 | E89: 11 | F89: 162 | G89: 9 | H89: 127 | I89: 6 | J89: 47 | K89: 189 | L89: 351
B90: 42 | C90: 870 | D90: 20 | E90: 50 | F90: 982 | G90: 59 | H90: 817 | I90: 38 | J90: 223 | K90: 1137 | L90: 2119
A91: 71 | B91: 5 | C91: 146 | D91: 3 | E91: 15 | F91: 169 | G91: 12 | H91: 118 | I91: 6 | J91: 44 | K91: 180 | L91: 349
A92: 72 | B92: 2 | C92: 138 | D92: 4 | E92: 15 | F92: 159 | G92: 8 | H92: 126 | I92: 6 | J92: 55 | K92: 195 | L92: 354
A93: 73 | B93: 5 | C93: 129 | D93: 5 | E93: 15 | F93: 154 | G93: 8 | H93: 97 | I93: 6 | J93: 62 | K93: 173 | L93: 327
A94: 74 | B94: 6 | C94: 136 | D94: 0 | E94: 15 | F94: 157 | G94: 14 | H94: 126 | I94: 5 | J94: 47 | K94: 192 | L94: 349
A95: 75 | B95: 2 | C95: 144 | D95: 3 | E95: 17 | F95: 166 | G95: 14 | H95: 133 | I95: 4 | J95: 81 | K95: 232 | L95: 398
B96: 20 | C96: 693 | D96: 15 | E96: 77 | F96: 805 | G96: 56 | H96: 600 | I96: 27 | J96: 289 | K96: 972 | L96: 1777
A97: 76 | B97: 2 | C97: 122 | D97: 0 | E97: 11 | F97: 135 | G97: 14 | H97: 120 | I97: 5 | J97: 84 | K97: 223 | L97: 358
A98: 77 | B98: 2 | C98: 126 | D98: 1 | E98: 18 | F98: 147 | G98: 8 | H98: 99 | I98: 6 | J98: 80 | K98: 193 | L98: 340
A99: 78 | B99: 4 | C99: 131 | D99: 1 | E99: 22 | F99: 158 | G99: 6 | H99: 78 | I99: 2 | J99: 78 | K99: 164 | L99: 322
A100: 79 | B100: 3 | C100: 111 | D100: 1 | E100: 18 | F100: 133 | G100: 13 | H100: 59 | I100: 2 | J100: 94 | K100: 168 | L100: 301
A101: 80 | B101: 6 | C101: 107 | D101: 2 | E101: 13 | F101: 128 | G101: 9 | H101: 59 | I101: 5 | J101: 93 | K101: 166 | L101: 294
B102: 17 | C102: 597 | D102: 5 | E102: 82 | F102: 701 | G102: 50 | H102: 415 | I102: 20 | J102: 429 | K102: 914 | L102: 1615
A103: 81 | B103: 2 | C103: 89 | D103: 2 | E103: 17 | F103: 110 | G103: 7 | H103: 56 | I103: 3 | J103: 86 | K103: 152 | L103: 262
A104: 82 | B104: 2 | C104: 64 | D104: 0 | E104: 12 | F104: 78 | G104: 5 | H104: 31 | I104: 0 | J104: 75 | K104: 111 | L104: 189
A105: 83 | B105: 1 | C105: 56 | D105: 1 | E105: 12 | F105: 70 | G105: 7 | H105: 36 | I105: 0 | J105: 78 | K105: 121 | L105: 191
A106: 84 | B106: 3 | C106: 57 | D106: 1 | E106: 19 | F106: 80 | G106: 5 | H106: 34 | I106: 0 | J106: 87 | K106: 126 | L106: 206
A107: 85 | B107: 2 | C107: 48 | D107: 0 | E107: 12 | F107: 62 | G107: 4 | H107: 22 | I107: 1 | J107: 91 | K107: 118 | L107: 180
B108: 10 | C108: 314 | D108: 4 | E108: 72 | F108: 400 | G108: 28 | H108: 179 | I108: 4 | J108: 417 | K108: 628 | L108: 1028
